Workbook

Sheet Welcome
A1: Mental health promotion ROI Tool
A3: Commissioning Support Tool
A5: Last Updated: August 2017
B6: Click Here for Instructions
A7: Purpose of tool
B8: Click Here to Proceed to Intervention Choice Menu
A9: The purpose of this tool is to report on the economic case for a number of interventions delivered in different sectors for which there is evidence that they can help reduce the risk and/or incidence of mental health problems in individuals of different ages: children and young people, the working age population and older people. The report recognises that a holistic and collaborative approach working across sectors may be needed to improve health outcomes. The approach taken here identifies which sectors are likely to pay for each of the eight areas for intervention that we have modelled ; it also looks at the potential resource use and costs that can be avoided over different time periods, depending on the nature of the evidence available.
A11: For each of the tools you can select the adjust model data option to change model default assumptions. All values are in 2015 prices; where necessary inflated using HM Treasury GDP Deflators published in December 2016.
A15: PHE Publications gateway number: 2017209 ©Crown copyright 2017

Sheet Instructions (hidden)
A1: Mental health promotion ROI Tool
A3: Instructions
B7: Click Here to Proceed to Interventions Menu

Sheet Intervention Choice
A1: Mental health promotion ROI Tool
A3: Intervention Choice Menu
A5: Click on cell in yellow to the right to select England as a whole or a specific devolved English region, English Local Authority or NHS Clinical Commissioning Group (CCG) area. If no area selected model default values will be used | C5: --- Model default values
A7: Click on links below to select area for potential investment
A9: Children: Whole school anti-bullying programme | C9: Collaborative Care for Physical Health Problems
A11: Children: Social and Emotional Learning | C11: Older People: Tackling Loneliness through Volunteering and Social Activities
A13: Workplace: Wellbeing Programme | C13: Adults: Debt and welfare advice
A15: Workplace: Stress Prevention | C15: Adults: Suicide Prevention

Sheet SEL_Contents
A1: Investing in Social and Emotional Learning: School Based Resilience
A3: Click on links below for further information about the intervention, adjust the values of some model parameters or see results
A6: About the SEL programme
A8: Check and/or adjust model parameters
A10: Summary of Return on Investment
A12: Summary of Return on Investment: Payoffs to Different Sectors
A14: Return to Intervention Choice Menu

Sheet SEL_Background
A1: Investing in Social and Emotional Learning: School Based Resilience
A6: Target: | B6: Pupils in Year Seven, Key Stage 3 (Age 11-12) | C6: Return to School Based Resilience Contents Page
C7: Return to Intervention Choice Page
A8: Intervention: | B8: UK version of Penn Resilience Programme
A10: Outcome evidence | B10: Meta-analysis of resilience programmes worldwise, and empirical study in England
A12: Economic Pay Offs | B12: NHS, Families, Schools and Local Authorities
A14: Findings | B14: Costs avoided to NHS and families, and some small impacts on schools. In addition (not quantified in ROI tool), benefits to school and children related to short term improvements in academic performance

Sheet SEL_Parameters
A1: Investing in School Based Resilience: Checking and/or Adjusting Model Parameters
A4: You can use your own values rather than the model's predefined assumptions by inputing these into one or more of the blue coloured cells | B4: Area selected: | C4: =+A33 -> --- Model default values
C6: Return to School Based Resilience Contents Page
A7: Intervention Costs | C7: Return to Intervention Choice Menu
B9: Default | C9: Input your own value for costs if desired in the blue cells below
A10: Training costs per teacher per school year (assumes valid for 3 years) | B10: 519
A13: Other Costs
B15: Default | C15: Input your own value for costs if desired in the cells below
A16: 6 months additional cost per child of hospital care for depression | B16: 122.867
A17: 6 months additional cost per child to school health services for depression | B17: 3.064
A19: Other parameters
B21: Default | C21: Input your own value if desired
A22: Reduced risk of depression if completes resilience programme | B22: 0.59
A23: Rate of depression in school population without intervention | B23: 0.06
A24: Reduction in rate of absence from school due to depression | B24: 1.5
A25: Uptake rate for resilience programme | B25: 0.6
A26: Discount Rate (Costs) | B26: 0.035
A27: Discount Rate (Outcomes) | B27: 0.015
A29: School population aged 11 | B29: 150 | C29: =+B33 -> 0
A32: Population in selected area
A33: =+'Intervention Choice'!C5 -> --- Model default values | B33: =VLOOKUP(+'Intervention Choice'!C5,Population_7_11!D6:J382,6) -> 0 | C33: Population aged 11 (0 if default selected)
A35: Return to School Based Resilience Contents Page
A37: Return to Intervention Choice Menu

Sheet SEL_ROI
A1: ROI: School Based Resilience Programme
A6: Area Selected: | D6: Return to School Based Resilience Contents Page
A7: =+'Intervention Choice'!C5 -> --- Model default values | D7: Return to Intervention Choice Menu
A9: Total Net Costs / Payoffs (Default values 2015 prices)
B11: Year 1 | C11: Year 2 | D11: Year 3 | E11: Year 4 | F11: Year 5 | G11: Year 6 | H11: Year 7 | I11: Total Cost / Saving
A12: Cost of Resilience Programme Training | B12: =+B31-B47 -> 1297.5 | C12: =+C31-C47 -> 0 | D12: 0 | E12: 0 | F12: 0 | G12: 0 | H12: 0 | I12: =SUM(B12:H12) -> 1297.5
A14: A&E, inpatient and outpatient hospital contacts | B14: =+B32-B48 -> -344.2117496 | C14: -24.23730808 | D14: -1.706644541 | E14: -0.1201715792 | F14: -0.008461755275 | G14: -0.0005958255924 | H14: -4.195443171e-05 | I14: =SUM(B14:H14) -> -370.2849733
A15: GP services | B15: -77.68556093 | C15: -5.470147014 | D15: -0.385174645 | E15: -0.02712166726 | F15: -0.001909743656 | G15: -0.0001344725897 | H15: -9.46874593e-06 | I15: -83.57005794
A16: School Nurse or Counsellor | B16: -8.583792236 | C16: -0.6044186964 | D16: -0.04255950639 | E16: -0.002996782852 | F16: -0.0002110153106 | G16: -1.485842101e-05 | H16: -1.046240072e-06 | I16: -9.233994141
A17: CAMHS and child psychologists | B17: -1.5968543 | C17: -0.1124408149 | D17: -0.007917401647 | E17: -0.0005574955044 | F17: -3.925545921e-05 | G17: -2.764131846e-06 | H17: -1.946334347e-07 | I17: -1.717812226
A18: Social workers | B18: -1.058966536 | C18: -0.07456601411 | D18: -0.005250487408 | E18: -0.000369707545 | F18: -2.603256769e-05 | G18: -1.833055856e-06 | H18: -1.290726983e-07 | I18: -1.139180739
A19: Other professionals | B19: -12.11928369 | C19: -0.8533666059 | D19: -0.06008891144 | E19: -0.00423109746 | F19: -0.0002979282746 | G19: -2.097830591e-05 | H19: -1.477165327e-06 | I19: -13.03729068
A20: Absenteeism cost to families | B20: =+B38-B54 -> -6107.3649 | C20: =+C38-C54 -> 0 | D20: 0 | E20: 0 | F20: 0 | G20: 0 | H20: 0 | I20: -6107.3649
A23: Total cost consequences (saving if negative value) | B23: =SUM(B14:B20) -> -6552.621107 | C23: =SUM(C14:C22) -> -31.35224723 | D23: -2.207635492 | E23: -0.1554483298 | F23: -0.01094573054 | G23: -0.0007707320968 | H23: -5.427028917e-05 | I23: -6586.348209
A24: Total costs (saving if negative value) | B24: =+B12+B23 -> -5255.121107 | C24: =+C12+C23 -> -31.35224723 | D24: -2.207635492 | E24: -0.1554483298 | F24: -0.01094573054 | G24: -0.0007707320968 | H24: -5.427028917e-05 | I24: =SUM(B24:H24) -> -5288.848209
A25: Cumulative Return per Pound Invested | B25: =+(B23/B12)*-1 -> 5.050189678 | C25: =+((C23+B23)/$B$12)*-1 -> 5.07435326 | D25: =+((D23+C23+B23)/$B$12)*-1 -> 5.076054713 | E25: =+((E23+D23+C23+B23)/$B$12)*-1 -> 5.076174519 | F25: =+((F23+E23+D23+C23+B23)/$B$12)*-1 -> 5.076182955 | G25: =+((G23+F23+E23+D23+C23+B23)/$B$12)*-1 -> 5.076183549 | H25: =+((H23+G23+F23+E23+D23+C23+B23)/$B$12)*-1 -> 5.076183591 | I25: =+(I23/I12)*-1 -> 5.076183591
A26: QALYs gained | B26: =+B42-B58 -> 0.4407508139 | C26: =+C42-C58 -> 0.03165414166 | D26: 0.002273358671 | E26: 0.0001632696189 | F26: 1.172580852e-05 | G26: 8.421320814e-07 | H26: 6.048081502e-08 | I26: =SUM(B26:H26) -> 0.4748542123
A29: Costs of Resilience Cohort
B30: Year 1 | C30: Year 2 | D30: Year 3 | E30: Year 4 | F30: Year 5 | G30: Year 6 | H30: Year 7 | I30: Total
A31: Cost of Resilience Programme Training | B31: =+SEL_model!T63 -> 1297.5 | C31: 0 | D31: 0 | E31: 0 | F31: 0 | G31: 0 | H31: 0 | I31: =SUM(B31:H31) -> 1297.5
A32: A&E, inpatient and outpatient hospital contacts | B32: =+SEL_model!AA63+SEL_model!AA64 -> 2141.80728 | C32: =+SEL_model!AA65+SEL_model!AA66 -> 2840.438363 | D32: =+SEL_model!AA67+SEL_model!AA68 -> 2797.909521 | E32: =+SEL_model!AA69+SEL_model!AA70 -> 2706.320615 | F32: =+SEL_model!AA71+SEL_model!AA72 -> 2614.298459 | G32: =+SEL_model!AA73+SEL_model!AA74 -> 2525.164026 | H32: =+SEL_model!AA75+SEL_model!AA76 -> 2439.051642 | I32: 18064.98991
A33: GP services | B33: =+SEL_model!AM63+SEL_model!AM64 -> 483.3870435 | C33: =+SEL_model!AM65+SEL_model!AM66 -> 641.0619272 | D33: =+SEL_model!AM67+SEL_model!AM68 -> 631.4635421 | E33: =+SEL_model!AM69+SEL_model!AM70 -> 610.7927325 | F33: =+SEL_model!AM71+SEL_model!AM72 -> 590.0241421 | G33: =+SEL_model!AM73+SEL_model!AM74 -> 569.9072855 | H33: =+SEL_model!AM75+SEL_model!AM76 -> 550.4724787 | I33: 4077.109152
A34: School Nurse or Counsellor | B34: =+SEL_model!AS63+SEL_model!AS64 -> 53.41139204 | C34: =+SEL_model!AS65+SEL_model!AS66 -> 70.83352849 | D34: =+SEL_model!AS67+SEL_model!AS68 -> 69.77296405 | E34: =+SEL_model!AS69+SEL_model!AS70 -> 67.48896258 | F34: =+SEL_model!AS71+SEL_model!AS72 -> 65.19415692 | G34: =+SEL_model!AS73+SEL_model!AS74 -> 62.97136397 | H34: =+SEL_model!AS75+SEL_model!AS76 -> 60.82393345 | I34: 450.4963015
A35: CAMHS and child psychologists | B35: =+SEL_model!AG63+SEL_model!AG64 -> 9.936192383 | C35: =+SEL_model!AG65+SEL_model!AG66 -> 13.17725563 | D35: =+SEL_model!AG67+SEL_model!AG68 -> 12.97995741 | E35: =+SEL_model!AG69+SEL_model!AG70 -> 12.55506158 | F35: =+SEL_model!AG71+SEL_model!AG72 -> 12.12815582 | G35: =+SEL_model!AG73+SEL_model!AG74 -> 11.71464669 | H35: =+SEL_model!AG75+SEL_model!AG76 -> 11.31515733 | I35: 83.80642684
A36: Social workers | B36: =+SEL_model!AY63+SEL_model!AY64 -> 6.589264423 | C36: =+SEL_model!AY65+SEL_model!AY66 -> 8.7386011 | D36: =+SEL_model!AY67+SEL_model!AY68 -> 8.60776123 | E36: =+SEL_model!AY69+SEL_model!AY70 -> 8.325988203 | F36: =+SEL_model!AY71+SEL_model!AY72 -> 8.042882283 | G36: =+SEL_model!AY73+SEL_model!AY74 -> 7.768660437 | H36: =+SEL_model!AY75+SEL_model!AY76 -> 7.503735915 | I36: 55.57689359
A37: Other professionals | B37: =+SEL_model!BE63+SEL_model!BE64 -> 75.41047061 | C37: =+SEL_model!BE65+SEL_model!BE66 -> 100.0084348 | D37: =+SEL_model!BE67+SEL_model!BE68 -> 98.51104519 | E37: =+SEL_model!BE69+SEL_model!BE70 -> 95.28630944 | F37: =+SEL_model!BE71+SEL_model!BE72 -> 92.04631946 | G37: =+SEL_model!BE73+SEL_model!BE74 -> 88.90800278 | H37: =+SEL_model!BE75+SEL_model!BE76 -> 85.87608881 | I37: =SUM(B37:H37) -> 636.0466711
A38: Absenteeism cost to families | B38: =+SEL_model!BM63 -> -6107.3649 | C38: 0 | D38: 0 | E38: 0 | F38: 0 | G38: 0 | H38: 0 | I38: =SUM(B38:H38) -> -6107.3649
A41: Total cost | B41: =SUM(B31:B40) -> -2039.323257 | C41: =SUM(C31:C40) -> 3674.25811 | D41: 3619.244791 | E41: 3500.76967 | F41: 3381.734115 | G41: 3266.433986 | H41: 3155.043036 | I41: =SUM(B41:H41) -> 18558.16045
A42: QALYs | B42: =+SEL_model!BW63+SEL_model!BW64 -> 124.4214754 | C42: =+SEL_model!BW65+SEL_model!BW66 -> 121.5681315 | D42: =+SEL_model!BW67+SEL_model!BW68 -> 119.6925413 | E42: =+SEL_model!BW69+SEL_model!BW70 -> 117.911953 | F42: =+SEL_model!BW71+SEL_model!BW72 -> 116.1626009 | G42: =+SEL_model!BW73+SEL_model!BW74 -> 114.4395433 | H42: =+SEL_model!BW75+SEL_model!BW76 -> 112.7420686 | I42: =SUM(B42:H42) -> 826.938314
A45: Costs of Usual Care Cohort
B46: Year 1 | C46: Year 2 | D46: Year 3 | E46: Year 4 | F46: Year 5 | G46: Year 6 | H46: Year 7 | I46: Total
A47: Cost of Resilience Programme Training | B47: 0 | C47: 0 | D47: 0 | E47: 0 | F47: 0 | G47: 0 | H47: 0 | I47: =SUM(B47:H47) -> 0
A48: A&E, inpatient and outpatient hospital contacts | B48: =+SEL_model!AB63+SEL_model!AB64 -> 2486.019029 | C48: =+SEL_model!AB65+SEL_model!AB66 -> 2864.675671 | D48: =+SEL_model!AB67+SEL_model!AB68 -> 2799.616166 | E48: =+SEL_model!AB69+SEL_model!AB70 -> 2706.440787 | F48: =+SEL_model!AB71+SEL_model!AB72 -> 2614.306921 | G48: =+SEL_model!AB73+SEL_model!AB74 -> 2525.164622 | H48: =+SEL_model!AB75+SEL_model!AB76 -> 2439.051684 | I48: =SUM(B48:H48) -> 18435.27488
A49: GP services | B49: =+SEL_model!AN63+SEL_model!AN64 -> 561.0726044 | C49: =+SEL_model!AN65+SEL_model!AN66 -> 646.5320742 | D49: =+SEL_model!AN67+SEL_model!AN68 -> 631.8487167 | E49: =+SEL_model!AN69+SEL_model!AN70 -> 610.8198541 | F49: =+SEL_model!AN71+SEL_model!AN72 -> 590.0260518 | G49: =+SEL_model!AN73+SEL_model!AN74 -> 569.90742 | H49: =+SEL_model!AN75+SEL_model!AN76 -> 550.4724881 | I49: 4160.679209
A50: School Nurse or Counsellor | B50: =+SEL_model!AT63+SEL_model!AT64 -> 61.99518428 | C50: =+SEL_model!AT65+SEL_model!AT66 -> 71.43794719 | D50: =+SEL_model!AT67+SEL_model!AT68 -> 69.81552355 | E50: =+SEL_model!AT69+SEL_model!AT70 -> 67.49195936 | F50: =+SEL_model!AT71+SEL_model!AT72 -> 65.19436793 | G50: =+SEL_model!AT73+SEL_model!AT74 -> 62.97137882 | H50: =+SEL_model!AT75+SEL_model!AT76 -> 60.8239345 | I50: 459.7302956
A51: CAMHS and child psychologists | B51: =+SEL_model!AH63+SEL_model!AH64 -> 11.53304668 | C51: =+SEL_model!AH65+SEL_model!AH66 -> 13.28969644 | D51: =+SEL_model!AH67+SEL_model!AH68 -> 12.98787481 | E51: =+SEL_model!AH69+SEL_model!AH70 -> 12.55561907 | F51: =+SEL_model!AH71+SEL_model!AH72 -> 12.12819508 | G51: =+SEL_model!AH73+SEL_model!AH74 -> 11.71464945 | H51: =+SEL_model!AH75+SEL_model!AH76 -> 11.31515753 | I51: 85.52423907
A52: Social workers | B52: =+SEL_model!AZ63+SEL_model!AZ64 -> 7.648230958 | C52: =+SEL_model!AZ65+SEL_model!AZ66 -> 8.813167114 | D52: =+SEL_model!AZ67+SEL_model!AZ68 -> 8.613011718 | E52: =+SEL_model!AZ69+SEL_model!AZ70 -> 8.326357911 | F52: =+SEL_model!AZ71+SEL_model!AZ72 -> 8.042908315 | G52: =+SEL_model!AZ73+SEL_model!AZ74 -> 7.76866227 | H52: =+SEL_model!AZ75+SEL_model!AZ76 -> 7.503736044 | I52: 56.71607433
A53: Other professionals | B53: =+SEL_model!BF63+SEL_model!BF64 -> 87.5297543 | C53: =+SEL_model!BF65+SEL_model!BF66 -> 100.8618014 | D53: =+SEL_model!BF67+SEL_model!BF68 -> 98.5711341 | E53: =+SEL_model!BF69+SEL_model!BF70 -> 95.29054054 | F53: =+SEL_model!BF71+SEL_model!BF72 -> 92.04661739 | G53: =+SEL_model!BF73+SEL_model!BF74 -> 88.90802376 | H53: =+SEL_model!BF75+SEL_model!BF76 -> 85.87609029 | I53: 649.0839618
A54: Absenteeism cost to families | B54: 0 | C54: 0 | D54: 0 | E54: 0 | F54: 0 | G54: 0 | H54: 0 | I54: 0
A57: Total cost usual care | B57: =SUM(B47:B56) -> 3215.79785 | C57: =SUM(C47:C56) -> 3705.610358 | D57: 3621.452427 | E57: 3500.925118 | F57: 3381.745061 | G57: 3266.434756 | H57: 3155.043091 | I57: =SUM(B57:H57) -> 23847.00866
A58: QALYs | B58: =+SEL_model!BX63+SEL_model!BX64 -> 123.9807246 | C58: =+SEL_model!BX65+SEL_model!BX66 -> 121.5364773 | D58: =+SEL_model!BX67+SEL_model!BX68 -> 119.690268 | E58: =+SEL_model!BX69+SEL_model!BX70 -> 117.9117897 | F58: =+SEL_model!BX71+SEL_model!BX72 -> 116.1625892 | G58: =+SEL_model!BX73+SEL_model!BX74 -> 114.4395425 | H58: =+SEL_model!BX75+SEL_model!BX76 -> 112.7420685 | I58: =SUM(B58:H58) -> 826.4634598
A60: Return to School Based Resilience Contents Page
A62: Return to Intervention Choice Menu

Sheet SEL_ROI_by sector
A1: ROI: School Based Resilience Programme
A5: Area Selected: | D5: Return to School Based Resilience Contents Page
A6: =+'Intervention Choice'!C5 -> --- Model default values | D6: Return to Intervention Choice Menu
A8: Total Net Costs / Payoffs to Different Sectors (Default values 2015 prices)
B10: Year 1 | C10: Year 2 | D10: Year 3 | E10: Year 4 | F10: Year 5 | G10: Year 6 | H10: Year 7 | I10: Total Cost / Saving
A11: Programme cost: Schools and/or education sector | B11: =+B37-B50 -> 1297.5 | C11: 0 | D11: 0 | E11: 0 | F11: 0 | G11: 0 | H11: 0 | I11: =SUM(B11:H11) -> 1297.5
A12: Payoffs:
A13: NHS | B13: =+B39-B52 -> -423.4941648 | C13: -29.81989591 | D13: -2.099736587 | E13: -0.1478507419 | F13: -0.01041075439 | G13: -0.0007330623139 | H13: -5.16178111e-05 | I13: =SUM(B13:H13) -> -455.5728435
A14: Local Authority | B14: -13.17825022 | C14: -0.9279326201 | D14: -0.06533939885 | E14: -0.004600805005 | F14: -0.0003239608423 | G14: -2.281136176e-05 | H14: -1.60623803e-06 | I14: =SUM(B14:H14) -> -14.17647142
A15: Families | B15: -6107.3649 | C15: 0 | D15: 0 | E15: 0 | F15: 0 | G15: 0 | H15: 0 | I15: =SUM(B15:H15) -> -6107.3649
A16: Schools | B16: -8.583792236 | C16: -0.6044186964 | D16: -0.04255950639 | E16: -0.002996782852 | F16: -0.0002110153106 | G16: -1.485842101e-05 | H16: -1.046240072e-06 | I16: =SUM(B16:H16) -> -9.233994141
A18: Total cost consequences (saving if negative value) | B18: =SUM(B13:B17) -> -6552.621107 | C18: -31.35224723 | D18: -2.207635492 | E18: -0.1554483298 | F18: -0.01094573054 | G18: -0.0007707320967 | H18: -5.42702892e-05 | I18: =SUM(B18:H18) -> -6586.348209
A19: Total costs (saving if negative value) | B19: =+B11+B18 -> -5255.121107 | C19: -31.35224723 | D19: -2.207635492 | E19: -0.1554483298 | F19: -0.01094573054 | G19: -0.0007707320967 | H19: -5.42702892e-05 | I19: =SUM(B19:H19) -> -5288.848209
A20: Cumulative Return per Pound Invested | B20: =+(B18/B11)*-1 -> 5.050189678 | C20: =+((C18+B18)/$B$11)*-1 -> 5.07435326 | D20: =+((D18+C18+B18)/$B$11)*-1 -> 5.076054713 | E20: =+((E18+D18+C18+B18)/$B$11)*-1 -> 5.076174519 | F20: =+((F18+E18+D18+C18+B18)/$B$11)*-1 -> 5.076182955 | G20: =+((G18+F18+E18+D18+C18+B18)/$B$11)*-1 -> 5.076183549 | H20: =+((H18+G18+F18+E18+D18+C18+B18)/$B$11)*-1 -> 5.076183591 | I20: =+(I18/I11)*-1 -> 5.076183591
A21: QALYs gained | B21: =+B45-B58 -> 0.4407508139 | C21: 0.03165414166 | D21: 0.002273358671 | E21: 0.0001632696189 | F21: 1.172580852e-05 | G21: 8.421320814e-07 | H21: 6.048081502e-08 | I21: =SUM(B21:H21) -> 0.4748542123
A24: Cumulative ROI by sector
B25: Year 1 | C25: Year 2 | D25: Year 3 | E25: Year 4 | F25: Year 5 | G25: Year 6 | H25: Year 7 | I25: Total Cost / Saving
I26: `
A27: NHS | B27: =+(B13/$B$11)*-1 -> 0.3263924199 | C27: =+((C13/$B$11)*-1) -> 0.02298257874 | D27: 0.001618294094 | E27: 0.0001139504755 | F27: 8.023702806e-06 | G27: 5.649805887e-07 | H27: 3.978251337e-08 | I27: =SUM(B27:H27) -> 0.3511158717
A28: Local Authority | B28: =+(B14/$B$11)*-1 -> 0.01015664757 | C28: 0.0007151696494 | D28: 5.035791819e-05 | E28: 3.545899811e-06 | F28: 2.496808033e-07 | G28: 1.758101099e-08 | H28: 1.237948385e-09 | I28: =SUM(B28:H28) -> 0.01092598954
A29: Families | B29: =+(B15/$B$11)*-1 -> 4.707024971 | C29: 0 | D29: 0 | E29: 0 | F29: 0 | G29: 0 | H29: 0 | I29: =SUM(B29:H29) -> 4.707024971
A30: Schools | B30: =+(B16/$B$11)*-1 -> 0.006615639488 | C30: 0.000465833292 | D30: 3.2801161e-05 | E30: 2.309659231e-06 | F30: 1.626322239e-07 | G30: 1.145157689e-08 | H30: 8.063507301e-10 | I30: =SUM(B30:H30) -> 0.007116758491
A32: Total | B32: =SUM(B27:B31) -> 5.050189678 | C32: =SUM(C27:C31) -> 0.02416358168 | D32: 0.001701453173 | E32: 0.0001198060345 | F32: 8.436015833e-06 | G32: 5.940131766e-07 | H32: 4.182681248e-08 | I32: =SUM(I27:I31) -> 5.076183591
A35: Costs of Resilience Cohort
B36: Year 1 | C36: Year 2 | D36: Year 3 | E36: Year 4 | F36: Year 5 | G36: Year 6 | H36: Year 7 | I36: Total
A37: Programme cost: Schools and/or education sector | B37: =+SEL_ROI!B31 -> 1297.5 | C37: 0 | D37: 0 | E37: 0 | F37: 0 | G37: 0 | H37: 0 | I37: =SUM(B37:H37) -> 1297.5
A38: Payoffs:
A39: NHS | B39: =+SEL_ROI!B32+SEL_ROI!B33+SEL_ROI!B35 -> 2635.130516 | C39: =+SEL_ROI!C32+SEL_ROI!C33+SEL_ROI!C35 -> 3494.677546 | D39: =+SEL_ROI!D32+SEL_ROI!D33+SEL_ROI!D35 -> 3442.353021 | E39: =+SEL_ROI!E32+SEL_ROI!E33+SEL_ROI!E35 -> 3329.668409 | F39: =+SEL_ROI!F32+SEL_ROI!F33+SEL_ROI!F35 -> 3216.450757 | G39: =+SEL_ROI!G32+SEL_ROI!G33+SEL_ROI!G35 -> 3106.785958 | H39: =+SEL_ROI!H32+SEL_ROI!H33+SEL_ROI!H35 -> 3000.839278 | I39: 22225.90549
A40: Local Authority | B40: =+SEL_ROI!B36+SEL_ROI!B37 -> 81.99973504 | C40: =+SEL_ROI!C36+SEL_ROI!C37 -> 108.7470359 | D40: =+SEL_ROI!D36+SEL_ROI!D37 -> 107.1188064 | E40: =+SEL_ROI!E36+SEL_ROI!E37 -> 103.6122976 | F40: =+SEL_ROI!F36+SEL_ROI!F37 -> 100.0892017 | G40: =+SEL_ROI!G36+SEL_ROI!G37 -> 96.67666322 | H40: =+SEL_ROI!H36+SEL_ROI!H37 -> 93.37982472 | I40: 691.6235647
A41: Families | B41: =+SEL_ROI!B38 -> -6107.3649 | C41: 0 | D41: 0 | E41: 0 | F41: 0 | G41: 0 | H41: 0 | I41: -6107.3649
A42: Schools | B42: =+SEL_ROI!B34 -> 53.41139204 | C42: =+SEL_ROI!C34 -> 70.83352849 | D42: =+SEL_ROI!D34 -> 69.77296405 | E42: =+SEL_ROI!E34 -> 67.48896258 | F42: =+SEL_ROI!F34 -> 65.19415692 | G42: =+SEL_ROI!G34 -> 62.97136397 | H42: =+SEL_ROI!H34 -> 60.82393345 | I42: 450.4963015
A44: Total cost | B44: =SUM(B37:B43) -> -2039.323257 | C44: 3674.25811 | D44: 3619.244791 | E44: 3500.76967 | F44: 3381.734115 | G44: 3266.433986 | H44: 3155.043036 | I44: =SUM(B44:H44) -> 18558.16045
A45: QALYs | B45: =+SEL_ROI!B42 -> 124.4214754 | C45: =+SEL_ROI!C42 -> 121.5681315 | D45: =+SEL_ROI!D42 -> 119.6925413 | E45: =+SEL_ROI!E42 -> 117.911953 | F45: =+SEL_ROI!F42 -> 116.1626009 | G45: =+SEL_ROI!G42 -> 114.4395433 | H45: =+SEL_ROI!H42 -> 112.7420686 | I45: =SUM(B45:H45) -> 826.938314
A48: Costs of Usual Care Cohort
B49: Year 1 | C49: Year 2 | D49: Year 3 | E49: Year 4 | F49: Year 5 | G49: Year 6 | H49: Year 7 | I49: Total
A50: Programme cost: Schools and/or education sector | B50: 0 | C50: 0 | D50: 0 | E50: 0 | F50: 0 | G50: 0 | H50: 0 | I50: =SUM(B50:H50) -> 0
A51: Payoffs:
A52: NHS | B52: =+SEL_ROI!B48+SEL_ROI!B49+SEL_ROI!B51 -> 3058.624681 | C52: =+SEL_ROI!C48+SEL_ROI!C49+SEL_ROI!C51 -> 3524.497442 | D52: =+SEL_ROI!D48+SEL_ROI!D49+SEL_ROI!D51 -> 3444.452757 | E52: =+SEL_ROI!E48+SEL_ROI!E49+SEL_ROI!E51 -> 3329.81626 | F52: =+SEL_ROI!F48+SEL_ROI!F49+SEL_ROI!F51 -> 3216.461168 | G52: =+SEL_ROI!G48+SEL_ROI!G49+SEL_ROI!G51 -> 3106.786691 | H52: =+SEL_ROI!H48+SEL_ROI!H49+SEL_ROI!H51 -> 3000.83933 | I52: 22681.47833
A53: Local Authority | B53: =+SEL_ROI!B52+SEL_ROI!B53 -> 95.17798526 | C53: =+SEL_ROI!C52+SEL_ROI!C53 -> 109.6749685 | D53: =+SEL_ROI!D52+SEL_ROI!D53 -> 107.1841458 | E53: =+SEL_ROI!E52+SEL_ROI!E53 -> 103.6168984 | F53: =+SEL_ROI!F52+SEL_ROI!F53 -> 100.0895257 | G53: =+SEL_ROI!G52+SEL_ROI!G53 -> 96.67668603 | H53: =+SEL_ROI!H52+SEL_ROI!H53 -> 93.37982633 | I53: 705.8000361
A54: Families | B54: 0 | C54: 0 | D54: 0 | E54: 0 | F54: 0 | G54: 0 | H54: 0 | I54: 0
A55: Schools | B55: =+SEL_ROI!B50 -> 61.99518428 | C55: =+SEL_ROI!C50 -> 71.43794719 | D55: =+SEL_ROI!D50 -> 69.81552355 | E55: =+SEL_ROI!E50 -> 67.49195936 | F55: =+SEL_ROI!F50 -> 65.19436793 | G55: =+SEL_ROI!G50 -> 62.97137882 | H55: =+SEL_ROI!H50 -> 60.8239345 | I55: 459.7302956
A57: Total cost usual care | B57: =SUM(B50:B56) -> 3215.79785 | C57: 3705.610358 | D57: 3621.452427 | E57: 3500.925118 | F57: 3381.745061 | G57: 3266.434756 | H57: 3155.043091 | I57: =SUM(B57:H57) -> 23847.00866
A58: QALYs | B58: =+SEL_ROI!B58 -> 123.9807246 | C58: =+SEL_ROI!C58 -> 121.5364773 | D58: =+SEL_ROI!D58 -> 119.690268 | E58: =+SEL_ROI!E58 -> 117.9117897 | F58: =+SEL_ROI!F58 -> 116.1625892 | G58: =+SEL_ROI!G58 -> 114.4395425 | H58: =+SEL_ROI!H58 -> 112.7420685 | I58: =SUM(B58:H58) -> 826.4634598
A60: Return to School Based Resilience Contents Page
A62: Return to Home Page

Sheet SEL_model (hidden)
A1: SEL Model
A3: Name | F3: Depressed | G3: =+B6*B5 -> 0.0354 | I3: Markov Matrix | J3: Depressed | K3: Not Depressed | N3: Prog Depressed | O3: Prog Remains Depressed | P3: Prog Not Depressed | Q3: No Prog Depressed | R3: No Prog Remains Depressed | S3: No Prog Not Depressed
A4: half_year | B4: 14 | D4: Attends programme | E4: =+p_uptake -> 0.6 | I4: Depressed | J4: =+G3 -> 0.0354 | K4: =1-J4 -> 0.9646 | M4: Depressed | N4: 0.33 | O4: 0 | P4: =1-N4 -> 0.67 | Q4: 0.33 | R4: 0 | S4: =1-Q4 -> 0.67
A5: rr_int | B5: =IF(SEL_Parameters!$C22>0,SEL_Parameters!$C22,SEL_Parameters!$B22) -> 0.59 | C5: RP | I5: Not Depressed | J5: 0.06 | K5: =1-J5 -> 0.94 | M5: Remains Depressed | N5: 0 | O5: 0 | P5: 0 | Q5: 0 | R5: 0 | S5: 0
A6: p_depression | B6: =IF(SEL_Parameters!$C23>0,SEL_Parameters!$C23,SEL_Parameters!$B23) -> 0.06 | F6: Not Depressed | G6: =1-G3 -> 0.9646 | M6: Not Depressed | N6: =0.06 -> 0.06 | O6: =+O4*0.06 -> 0 | P6: =1-N6 -> 0.94 | Q6: =0.06 -> 0.06 | R6: =+R4*0.06 -> 0 | S6: =1-Q6 -> 0.94
A7: population | B7: =IF(SEL_Parameters!$C29>0,SEL_Parameters!$C29,SEL_Parameters!$B29) -> 150
A8: u_depression | B8: =0.537/2 -> 0.2685
A9: u_no_depression | B9: =0.851/2 -> 0.4255 | F9: Depressed | G9: 0.06 | I9: Markov Matrix | J9: Depressed | K9: Not Depressed
A10: QALY_depression | B10: =+u_depression*population -> 40.275 | D10: Does not attend programme | E10: =1-E4 -> 0.4 | I10: Depressed | J10: =+G9 -> 0.06 | K10: =1-J10 -> 0.94 | N10: 0.33
A11: QALY_no_depression | B11: =+u_no_depression*population -> 63.825 | F11: Not Depressed | G11: =1-G9 -> 0.94 | I11: Not Depressed | J11: 0.06 | K11: =1-J11 -> 0.94
A12: uc_training | B12: =IF(SEL_Parameters!$C10>0,SEL_Parameters!$C10,SEL_Parameters!$B10) -> 519 | O12: =+N4*0.33 -> 0.1089
A13: no_of_teachers | B13: =+(B7/B34)/B32 -> 2.5
A14: cost_training | B14: =+uc_training*no_of_teachers -> 1297.5
A15: no_of_schools | B15: 1 | D15: P_depression_persists | E15: 0.33
A16: r | B16: 0.035/2
A17: hr | B17: 0.015/2
A18: uc_hospital_costs | B18: =IF(SEL_Parameters!$C16>0,SEL_Parameters!$C16,SEL_Parameters!$B16) -> 122.867
A19: uc_GP | B19: 27.73 | D19: (SEL_Parameters!$D28>0,SEL_Parameters!$D28,SEL_Parameters!$C28)
A20: uc_school_health | B20: =IF(SEL_Parameters!$C17>0,SEL_Parameters!$C17,SEL_Parameters!$B17) -> 3.064
A21: uc_CMHS | B21: 0.57
A22: uc_social_worker | B22: 0.378
A23: uc_other_professional | B23: 4.326
A24: cost_CMHS | B24: =+uc_CMHS*B7 -> 85.5
A25: cost_GP | B25: =+uc_GP*B7 -> 4159.5
A26: cost_hospital | B26: =+uc_hospital_costs*B7 -> 18430.05
A27: cost_other_professionals | B27: =+uc_other_professional*B7 -> 648.9
A28: cost_school_health | B28: =+uc_school_health*B7 -> 459.6
A29: cost_social_worker | B29: =+uc_social_worker*B7 -> 56.7
A30: cost_depression | B30: (cost_CMHS+cost_GP+cost_hospital+cost_other_professionals+cost_school_health+cost_social_worker+cost_training)
A31: c_IAPT
A32: pupils_per_teacher | B32: 15
A33: no_teachers | B33: population/pupils_per_teacher
A34: teacher_capacity | B34: 4
A35: p_depression_persists | B35: 0.33
A37: cost_prog
A38: p_uptake | B38: =IF(SEL_Parameters!$C25>0,SEL_Parameters!$C25,SEL_Parameters!$B25) -> 0.6
A39: reduction_absence | B39: =IF(SEL_Parameters!$C24>0,SEL_Parameters!$C24,SEL_Parameters!$B24) -> 1.5
A40: cost_reduction_absence | B40: =+reduction_absence*min_wage_daily*B7 -> -10552.5
A41: min_wage_daily | B41: =-6.7*7 -> -46.9
A42: six_month_discount_rate_outcomes | B42: =+unitcost_productivity/2 -> 0.0075
A43: six_month_discount_rate_costs | B43: =+B45/2 -> 0.0175
A44: discount_rate_outcomes | B44: =IF(SEL_Parameters!$C27>0,SEL_Parameters!$C27,SEL_Parameters!$B27) -> 0.015
A45: discount_rate_costs | B45: =IF(SEL_Parameters!$C26>0,SEL_Parameters!$C26,SEL_Parameters!$B26) -> 0.035
E60: SCHOOL RESILIENCE FOR DEPRESSION INTERVENTION
G61: PROBABILITY | N61: TRAINING COSTS RESILIENCE PROGRAMME | U61: ALL HOSPITAL CONTACTS | AC61: CAMHS COST | AI61: GP VISITS | AO61: SCHOOL HEALTH | AU61: SOCIAL WORKERS | BA61: OTHER PROFESSIONALS | BG61: ABSENTEEISM COST TO FAMILIES | BP61: Discount Outcomes | BQ61: UTILITY
E62: YEARS | F62: HALF YEAR | G62: RP-DEPRESSED | H62: RP-REMAINS DEPRESSED | I62: RP NOT DEPRESSED | J62: NO-RP-DEPRESSED | K62: NO-RP-REMAINS DEPRESSED | L62: NO-RP-NOT-DEPRESSED | M62: discount | N62: RP-DEPRESSED | O62: RP-REMAINS DEPRESSED | P62: RP NOT DEPRESSED | Q62: NO-RP-DEPRESSED | R62: NO-RP-REMAINS DEPRESSED | S62: NO-RP-NOT-DEPRESSED | T62: TOTAL | U62: RP-DEPRESSED | V62: RP-REMAINS DEPRESSED | W62: RP NOT DEPRESSED | X62: NO-RP-DEPRESSED | Y62: NO-RP-REMAINS DEPRESSED | Z62: NO-RP-NOT-DEPRESSED | AA62: TOTAL-INT | AB62: TOTAL USUAL CARE | AC62: RP-DEPRESSED | AD62: RP NOT DEPRESSED | AE62: NO-RP-DEPRESSED | AF62: NO-RP-NOT-DEPRESSED | AG62: TOTAL RP | AH62: TOTAL USUAL CARE | AI62: RP-DEPRESSED | AJ62: RP NOT DEPRESSED | AK62: NO-RP-DEPRESSED | AL62: NO-RP-NOT-DEPRESSED | AM62: TOTAL RP | AN62: TOTAL USUAL CARE | AO62: RP-DEPRESSED | AP62: RP NOT DEPRESSED | AQ62: NO-RP-DEPRESSED | AR62: NO-RP-NOT-DEPRESSED | AS62: TOTAL RP | AT62: TOTAL USUAL CARE | AU62: RP-DEPRESSED | AV62: RP NOT DEPRESSED | AW62: NO-RP-DEPRESSED | AX62: NO-RP-NOT-DEPRESSED | AY62: TOTAL RP | AZ62: TOTAL USUAL CARE | BA62: RP-DEPRESSED | BB62: RP NOT DEPRESSED | BC62: NO-RP-DEPRESSED | BD62: NO-RP-NOT-DEPRESSED | BE62: TOTAL RP | BF62: TOTAL USUAL CARE | BG62: RP-DEPRESSED | BH62: RP-REMAINS DEPRESSED | BI62: RP NOT DEPRESSED | BJ62: NO-RP-DEPRESSED | BK62: NO-RP-REMAINS DEPRESSED | BL62: NO-RP-NOT-DEPRESSED | BM62: TOTAL | BN62: TOTAL ALL COST RP | BO62: TOTAL COSTS USUAL CARE | BP62: 1 | BQ62: RP-DEPRESSED | BR62: RP-REMAINS DEPRESSED | BS62: RP NOT DEPRESSED | BT62: NO-RP-DEPRESSED | BU62: NO-RP-REMAINS DEPRESSED | BV62: NO-RP-NOT-DEPRESSED | BW62: TOTAL RP | BX62: TOTAL USUAL CARE
F63: 1 | G63: =+G3 -> 0.0354 | H63: 0 | I63: =+G6 -> 0.9646 | J63: =+G9 -> 0.06 | K63: 0 | L63: =+G11 -> 0.94 | M63: 1 | N63: =+(($E$4*$G63*B14)*$M63) -> 27.5589 | O63: =+(($E$4*$B$14*$H63)*$M63) -> 0 | P63: =($E$4*$B$14*$I63)*$M63 -> 750.9411 | Q63: =($E$10*$B$14*$J63)*$M63 -> 31.14 | R63: =($E$10*$B$14*$K63)*$M63 -> 0 | S63: =($E$10*$B$14*$L63)*$M63 -> 487.86 | T63: =SUM(N63:S63) -> 1297.5 | U63: =+(($E$4*$G63*$B$26)*$M63) -> 391.454262 | X63: =+(($E$10*$J63*$B$26)*$M63) -> 442.3212 | AA63: =SUM(U63:Z63) -> 833.775462 | AB63: =+(($J63*$B$26)*$M63) -> 1105.803 | AC63: =+(($E$4*$G63*$B$24)*$M63) -> 1.81602 | AE63: =+(($E$10*$J63*$B$24)*$M63) -> 2.052 | AG63: =SUM(AC63:AF63) -> 3.86802 | AH63: =+($J63*$B$24)*$M63 -> 5.13 | AI63: =+(($E$4*$G63*$B$25)*$M63) -> 88.34778 | AK63: =+(($E$10*$J63*$B$25)*$M63) -> 99.828 | AM63: =SUM(AI63:AL63) -> 188.17578 | AN63: =+($J63*$B$25)*$M63 -> 249.57 | AO63: =+(($E$4*$G63*$B$28)*$M63) -> 9.761904 | AQ63: =+(($E$10*$J63*$B$28)*$M63) -> 11.0304 | AS63: =SUM(AO63:AR63) -> 20.792304 | AT63: =+($J63*$B$28)*$M63 -> 27.576 | AU63: =+(($E$4*$G63*$B$29)*$M63) -> 1.204308 | AW63: =+(($E$10*$J63*$B$29)*$M63) -> 1.3608 | AY63: =SUM(AU63:AX63) -> 2.565108 | AZ63: =+($J63*$B$29)*$M63 -> 3.402 | BA63: =+(($E$4*$G63*$B$27)*$M63) -> 13.782636 | BC63: =+(($E$10*$J63*$B$27)*$M63) -> 15.5736 | BE63: =SUM(BA63:BD63) -> 29.356236 | BF63: =+($J63*$B$27)*$M63 -> 38.934 | BI63: =+(($E$4*$B$40*$I63)*$M63) -> -6107.3649 | BM63: =SUM(BG63:BL63) -> -6107.3649 | BN63: =+T63+AA63+AG63+AM63+AS63+AY63+BE63+BM63 -> -3731.33199 | BO63: =AB63+AH63+AN63+AT63+AZ63+BF63 -> 1430.415 | BP63: 1 | BQ63: =+p_uptake*$G63*QALY_depression*$BP63 -> 0.855441 | BR63: =+p_uptake*$H63*QALY_depression*$BP63 -> 0 | BS63: =+p_uptake*I63*QALY_no_depression*$BP63 -> 36.939357 | BT63: =+(1-p_uptake)*$J63*QALY_depression*$BP63 -> 0.9666 | BU63: =+(1-p_uptake)*$K63*QALY_depression*$BP63 -> 0 | BV63: =+(1-p_uptake)*$L63*QALY_no_depression*$BP63 -> 23.9982 | BW63: =SUM(BQ63:BV63) -> 62.759598 | BX63: =($L63*QALY_no_depression*$BP63)+($J63*QALY_depression*$BP63) -> 62.412
F64: =1+F63 -> 2 | G64: =+($N$4*$G63)+(N5*H63)+(N6*I63) -> 0.069558 | H64: =+($O$4*$G63)+(O5*H63)+(O6*I63) -> 0 | I64: =1-G64 -> 0.930442 | J64: =+($N$10*$J63)+(Q5*K63)+(Q6*L63) -> 0.0762 | K64: =+($O$4*$G63)+(R5*K63)+(R6*L63) -> 0 | L64: =1-J64 -> 0.9238 | M64: =+M63/(1+six_month_discount_rate_costs) -> 0.9828009828 | T64: =SUM(N64:O64) -> 0 | U64: =+(($E$4*$G64*$B$26)*$M64) -> 755.9454061 | X64: =+(($E$10*$J64*$B$26)*$M64) -> 552.0864118 | AA64: =SUM(U64:Y64) -> 1308.031818 | AB64: =+(($J64*$B$26)*$M64) -> 1380.216029 | AC64: =+(($E$4*$G64*$B$24)*$M64) -> 3.50695371 | AE64: =+(($E$10*$J64*$B$24)*$M64) -> 2.561218673 | AG64: =SUM(AC64:AF64) -> 6.068172383 | AH64: =+($J64*$B$24)*$M64 -> 6.403046683 | AI64: =+(($E$4*$G64*$B$25)*$M64) -> 170.6102217 | AK64: =+(($E$10*$J64*$B$25)*$M64) -> 124.6010418 | AM64: =SUM(AI64:AL64) -> 295.2112635 | AN64: =+($J64*$B$25)*$M64 -> 311.5026044 | AO64: =+(($E$4*$G64*$B$28)*$M64) -> 18.85141433 | AQ64: =+(($E$10*$J64*$B$28)*$M64) -> 13.76767371 | AS64: =SUM(AO64:AR64) -> 32.61908804 | AT64: =+($J64*$B$28)*$M64 -> 34.41918428 | AU64: =+(($E$4*$G64*$B$29)*$M64) -> 2.325664039 | AW64: =+(($E$10*$J64*$B$29)*$M64) -> 1.698492383 | AY64: =SUM(AU64:AX64) -> 4.024156423 | AZ64: =+($J64*$B$29)*$M64 -> 4.246230958 | BA64: =+(($E$4*$G64*$B$27)*$M64) -> 26.61593289 | BC64: =+(($E$10*$J64*$B$27)*$M64) -> 19.43830172 | BE64: =SUM(BA64:BD64) -> 46.05423461 | BF64: =+($J64*$B$27)*$M64 -> 48.5957543 | BN64: =+T64+AA64+AG64+AM64+AS64+AY64+BE64+BM64 -> 1692.008733 | BO64: =AB64+AH64+AN64+AT64+AZ64+BF64 -> 1785.38285 | BP64: =+BP63/(1+six_month_discount_rate_outcomes) -> 0.9925558313 | BQ64: 1.668356397 | BR64: 0 | BS64: 35.36603116 | BT64: 1.218443672 | BU64: 0 | BV64: 23.40904615 | BW64: =SUM(BQ64:BV64) -> 61.66187738 | BX64: 61.56872457
F65: =1+F64 -> 3 | G65: =+$N$4*$G64+$N$5*H64+$N$6*I64 -> 0.07878066 | H65: =+$O$4*$G64+$O$5*I64+O6*J64 -> 0 | I65: =+$P$4*$G64+$P$5*H64+$P$6*I64 -> 0.92121934 | J65: =+$Q$4*$J64+$Q$5*K64+$Q$6*L64 -> 0.080574 | K65: =+$O$4*$G64+$O$5*L64+R6*M64 -> 0 | L65: =+$S$4*$J64+$S$5*$K64+$S$6*$L64 -> 0.919426 | M65: 0.9658977718 | U65: =+(($E$4*$G65*$B$26)*$M65) -> 841.450442 | X65: =+(($E$10*$J65*$B$26)*$M65) -> 573.7366499 | AA65: =SUM(U65:Y65) -> 1415.187092 | AB65: 1434.341625 | AC65: 3.903625481 | AE65: 2.66165765 | AG65: 6.56528313 | AH65: 6.654144124 | AI65: 189.9079554 | AK65: 129.4873099 | AM65: =SUM(AI65:AL65) -> 319.3952653 | AN65: 323.7182747 | AO65: 20.98369908 | AQ65: 14.30757726 | AS65: 35.29127634 | AT65: 35.76894315 | AU65: 2.588720056 | AW65: 1.765099283 | AY65: 4.353819339 | AZ65: 4.412748209 | BA65: 29.62646286 | BC65: 20.20058069 | BE65: 49.82704355 | BF65: 50.50145172 | BN65: 1830.61978 | BO65: 1855.397187 | BP65: 0.9851670782 | BQ65: 1.875496702 | BR65: 0 | BS65: 34.75481741 | BT65: 1.278793308 | BU65: 0 | BV65: 23.12477341 | BW65: 61.03388083 | BX65: 61.0089168
F66: 4 | G66: =+$N$4*$G65+$N$5*H65+$N$6*I65 -> 0.0812707782 | H66: 0 | I66: =+$P$4*$G65+$P$5*H65+$P$6*I65 -> 0.9187292218 | J66: =+$Q$4*$J65+$Q$5*K65+$Q$6*L65 -> 0.08175498 | K66: =+$O$4*$G65+$O$5*L65+R7*M65 -> 0 | L66: =+$S$4*$J65+$S$5*$K65+$S$6*$L65 -> 0.91824502 | M66: 0.9492852794 | U66: =+(($E$4*$G66*$B$26)*$M66) -> 853.1176527 | X66: =+(($E$10*$J66*$B$26)*$M66) -> 572.1336186 | AA66: =SUM(U66:Y66) -> 1425.251271 | AB66: 1430.334047 | AC66: 3.957751569 | AE66: 2.654220927 | AG66: 6.611972496 | AH66: 6.635552317 | AI66: 192.5411421 | AK66: 129.1255198 | AM66: 321.6666619 | AN66: 322.8137996 | AO66: 21.27465054 | AQ66: 14.26760161 | AS66: 35.54225215 | AT66: 35.66900404 | AU66: 2.624614198 | AW66: 1.760167562 | AY66: 4.38478176 | AZ66: 4.400418905 | BA66: 30.03725138 | BC66: 20.14413988 | BE66: 50.18139126 | BF66: 50.36034969 | BN66: 1843.638331 | BO66: 1850.213171 | BP66: 0.9778333282 | BQ66: 1.920375043 | BR66: 0 | BS66: 34.4028514 | BT66: 1.287877609 | BU66: 0 | BV66: 22.92314661 | BW66: 60.53425066 | BX66: 60.52756055
F67: 5 | G67: =+$N$4*$G66+$N$5*H66+$N$6*I66 -> 0.08194311011 | H67: 0 | I67: =+$P$4*$G66+$P$5*H66+$P$6*I66 -> 0.9180568899 | J67: 0.0820738446 | K67: 0 | L67: 0.9179261554 | M67: 0.9329585056 | U67: 845.3811028 | X67: 564.4865661 | AA67: =SUM(U67:Y67) -> 1409.867669 | AB67: 1411.216415 | AC67: 3.921860456 | AE67: 2.618745006 | AG67: 6.540605462 | AH67: 6.546862515 | AI67: 190.7950709 | AK67: 127.3996474 | AM67: 318.1947183 | AN67: 318.4991185 | AO67: 21.08172006 | AQ67: 14.07690298 | AS67: 35.15862304 | AT67: 35.19225745 | AU67: 2.600812723 | AW67: 1.736641425 | AY67: 4.337454148 | AZ67: 4.341603563 | BA67: 29.76485672 | BC67: 19.87489631 | BE67: 49.63975303 | BF67: 49.68724077 | BN67: 1823.738823 | BO67: 1825.483498 | BP67: 0.9705541719 | BQ67: 1.921847945 | BR67: 0 | BS67: 34.12176196 | BT67: 1.283276079 | BU67: 0 | BV67: 22.74460193 | BW67: 60.07148791 | BX67: 60.06969503
F68: 6 | G68: 0.08212463973 | H68: 0 | I68: 0.9178753603 | J68: 0.08215993804 | K68: 0 | L68: 0.917840062 | M68: 0.9169125362 | U68: 832.6819522 | X68: 555.3599003 | AA68: =SUM(U68:Y68) -> 1388.041852 | AB68: 1388.399751 | AC68: 3.86294703 | AE68: 2.576404919 | AG68: 6.439351949 | AH68: 6.441012297 | AI68: 187.9289845 | AK68: 125.3398393 | AM68: 313.2688238 | AN68: 313.3495983 | AO68: 20.76503456 | AQ68: 13.84930644 | AS68: 34.614341 | AT68: 34.6232661 | AU68: 2.56174382 | AW68: 1.708563262 | AY68: 4.270307082 | AZ68: 4.271408155 | BA68: 29.31773483 | BC68: 19.55355733 | BE68: 48.87129216 | BF68: 48.88389333 | BN68: 1795.505968 | BO68: 1795.968929 | BP68: 0.9633292029 | BQ68: 1.911767185 | BR68: 0 | BS68: 33.86105705 | BT68: 1.275059259 | BU68: 0 | BV68: 22.57316991 | BW68: 59.62105341 | BX68: 59.62057293
F69: 7 | G69: 0.08217365273 | H69: 0 | I69: 0.9178263473 | J69: 0.08218318327 | K69: 0 | L69: 0.9178168167 | M69: 0.9011425417 | U69: 818.8490487 | X69: 545.9626795 | AA69: 1364.811728 | AB69: 1364.906699 | AC69: 3.798773941 | AE69: 2.532809683 | AG69: 6.331583623 | AH69: 6.332024207 | AI69: 184.8070199 | AK69: 123.2189693 | AM69: 308.0259893 | AN69: 308.0474233 | AO69: 20.42007606 | AQ69: 13.61496293 | AS69: 34.03503899 | AT69: 34.03740732 | AU69: 2.519186929 | AW69: 1.679652737 | AY69: 4.198839666 | AZ69: 4.199131843 | BA69: 28.83069485 | BC69: 19.22269244 | BE69: 48.05338729 | BF69: 48.05673109 | BN69: 1765.456567 | BO69: 1765.579416 | BP69: 0.9561580178 | BQ69: 1.89866814 | BR69: 0 | BS69: 33.60719496 | BT69: 1.265925566 | BU69: 0 | BV69: 22.404564 | BW69: 59.17635267 | BX69: 59.1762239
F70: 8 | G70: 0.08218688624 | H70: 0 | I70: 0.9178131138 | J70: 0.08218945948 | K70: 0 | L70: 0.9178105405 | M70: 0.8856437756 | U70: 804.8952519 | X70: 536.6136353 | AA70: 1341.508887 | AB70: 1341.534088 | AC70: 3.734040007 | AE70: 2.489437946 | AG70: 6.223477953 | AH70: 6.223594865 | AI70: 181.6577709 | AK70: 121.1089723 | AM70: 302.7667432 | AN70: 302.7724309 | AO70: 20.07210278 | AQ70: 13.38182082 | AS70: 33.45392359 | AT70: 33.45455204 | AU70: 2.47625811 | AW70: 1.650890427 | AY70: 4.127148537 | AZ70: 4.127226068 | BA70: 28.33939837 | BC70: 18.89352378 | BE70: 47.23292215 | BF70: 47.23380945 | BN70: 1735.313103 | BO70: 1735.345701 | BP70: 0.9490402162 | BQ70: 1.884837626 | BR70: 0 | BS70: 33.35653638 | BT70: 1.25659776 | BU70: 0 | BV70: 22.23762857 | BW70: 58.73560034 | BX70: 58.73556583
F71: 9 | G71: 0.08219045928 | H71: 0 | I71: 0.9178095407 | J71: 0.08219115406 | K71: 0 | L71: 0.9178088459 | M71: 0.8704115731 | U71: 791.0862353 | X71: 527.3952817 | AA71: 1318.481517 | AB71: 1318.488204 | AC71: 3.669977733 | AE71: 2.446672504 | AG71: 6.116650237 | AH71: 6.11668126 | AI71: 178.5411974 | AK71: 119.0284711 | AM71: 297.5696686 | AN71: 297.5711778 | AO71: 19.72773995 | AQ71: 13.15193781 | AS71: 32.87967777 | AT71: 32.87984453 | AU71: 2.433774707 | AW71: 1.622530187 | AY71: 4.056304894 | AZ71: 4.056325467 | BA71: 27.85319943 | BC71: 18.56895658 | BE71: 46.42215601 | BF71: 46.42239146 | BN71: 1705.525974 | BO71: 1705.534625 | BP71: 0.9419754006 | BQ71: 1.870887909 | BR71: 0 | BS71: 33.10809581 | BT71: 1.247269149 | BU71: 0 | BV71: 22.07204716 | BW71: 58.29830003 | BX71: 58.29829078
F72: 10 | G72: 0.08219142401 | H72: 0 | I72: 0.917808576 | J72: 0.0821916116 | K72: 0 | L72: 0.9178083884 | M72: 0.8554413495 | U72: 777.4894553 | X72: 518.3274865 | AA72: 1295.816942 | AB72: 1295.818716 | AC72: 3.606900059 | AE72: 2.404605527 | AG72: 6.011505586 | AH72: 6.011513818 | AI72: 175.4725239 | AK72: 116.9819496 | AM72: 292.4544735 | AN72: 292.454874 | AO72: 19.38866979 | AQ72: 12.92580936 | AS72: 32.31447915 | AT72: 32.3145234 | AU72: 2.39194425 | AW72: 1.594633139 | AY72: 3.986577389 | AZ72: 3.986582848 | BA72: 27.37447308 | BC72: 18.24969037 | BE72: 45.62416345 | BF72: 45.62422593 | BN72: 1676.208141 | BO72: 1676.210436 | BP72: 0.9349631768 | BQ72: 1.8569825 | BR72: 0 | BS72: 32.86159901 | BT72: 1.237991159 | BU72: 0 | BV72: 21.9077282 | BW72: 57.86430087 | BX72: 57.86429839
F73: 11 | G73: 0.08219168448 | H73: 0 | I73: 0.9178083155 | J73: 0.08219173513 | K73: 0 | L73: 0.9178082649 | M73: 0.840728599 | N73: =SUM(N63:N66) -> 27.5589 | U73: 764.1198224 | X73: 509.4135288 | AA73: 1273.533351 | AB73: 1273.533822 | AC73: 3.544876157 | AE73: 2.363252228 | AG73: 5.908128384 | AH73: 5.908130569 | AI73: 172.4551155 | AK73: 114.9701478 | AM73: 287.4252633 | AN73: 287.4253696 | AO73: 19.05526411 | AQ73: 12.70351724 | AS73: 31.75878135 | AT73: 31.75879309 | AU73: 2.350812609 | AW73: 1.567209372 | AY73: 3.918021981 | AZ73: 3.91802343 | BA73: 26.90374431 | BC73: 17.93584059 | BE73: 44.8395849 | BF73: 44.83960148 | BN73: 1647.383131 | BO73: 1647.38374 | BP73: 0.9280031532 | BQ73: 1.84316465 | BR73: 0 | BS73: 32.61696247 | BT73: 1.228777191 | BU73: 0 | BV73: 21.74464045 | BW73: 57.43354476 | BX73: 57.43354409
F74: 12 | G74: 0.08219175481 | H74: 0 | I74: 0.9178082452 | J74: 0.08219176849 | K74: 0 | L74: 0.9178082315 | M74: 0.8262688934 | U74: 750.978355 | X74: 500.65232 | AA74: 1251.630675 | AB74: 1251.6308 | AC74: 3.483910752 | AE74: 2.322607554 | AG74: 5.806518306 | AH74: 5.806518886 | AI74: 169.489202 | AK74: 112.9928201 | AM74: 282.4820222 | AN74: 282.4820504 | AO74: 18.72754832 | AQ74: 12.48503429 | AS74: 31.21258261 | AT74: 31.21258573 | AU74: 2.31038292 | AW74: 1.540255536 | AY74: 3.850638456 | AZ74: 3.85063884 | BA74: 26.44104897 | BC74: 17.62736891 | BE74: 44.06841788 | BF74: 44.06842228 | BN74: 1619.050854 | BO74: 1619.051016 | BP74: 0.9210949411 | BQ74: 1.829445387 | BR74: 0 | BS74: 32.37415382 | BT74: 1.219630461 | BU74: 0 | BV74: 21.58276889 | BW74: 57.00599855 | BX74: 57.00599837
F75: 13 | G75: 0.0821917738 | H75: 0 | I75: 0.9178082262 | J75: 0.08219177749 | K75: 0 | L75: 0.9178082225 | M75: 0.8120578805 | U75: 738.0624359 | X75: 492.041646 | AA75: 1230.104082 | AB75: 1230.104115 | AC75: 3.423991702 | AE75: 2.282661237 | AG75: 5.706652939 | AH75: 5.706653093 | AI75: 166.5741928 | AK75: 111.0494669 | AM75: 277.6236597 | AN75: 277.6236671 | AO75: 18.40545715 | AQ75: 12.27030532 | AS75: 30.67576247 | AT75: 30.67576329 | AU75: 2.270647129 | AW75: 1.51376482 | AY75: 3.784411949 | AZ75: 3.784412051 | BA75: 25.98629492 | BC75: 17.32419739 | BE75: 43.31049231 | BF75: 43.31049347 | BN75: 1591.205061 | BO75: 1591.205104 | BP75: 0.914238155 | BQ75: 1.815827106 | BR75: 0 | BS75: 32.13315449 | BT75: 1.210551459 | BU75: 0 | BV75: 21.42210291 | BW75: 56.58163596 | BX75: 56.58163591
F76: 14 | G76: 0.08219177893 | H76: 0 | I76: 0.9178082211 | J76: =+$Q$4*$J75+$Q$5*K75+$Q$6*L75 -> 0.08219177992 | K76: 0 | L76: 0.9178082201 | M76: 0.798091283 | U76: 725.3685326 | X76: 483.5790276 | AA76: 1208.94756 | AB76: 1208.947569 | AC76: 3.36510262 | AE76: 2.243401774 | AG76: 5.608504393 | AH76: 5.608504434 | AI76: 163.7092906 | AK76: 109.1395284 | AM76: 272.848819 | AN76: 272.848821 | AO76: 18.0889025 | AQ76: 12.05926848 | AS76: 30.14817098 | AT76: 30.1481712 | AU76: 2.231594369 | AW76: 1.487729597 | AY76: 3.719323966 | AZ76: 3.719323993 | BA76: 25.53935778 | BC76: 17.02623872 | BE76: 42.5655965 | BF76: 42.56559681 | BN76: 1563.837975 | BO76: 1563.837986 | BP76: 0.9074324119 | BQ76: 1.802309895 | BR76: 0 | BS76: 31.89394969 | BT76: 1.201539945 | BU76: 0 | BV76: 21.2626331 | BW76: 56.16043263 | BX76: 56.16043261
E78: TOTALS | G78: =SUM(G64:G73) -> 0.8046112948 | H78: =SUM(H64:H73) -> 0 | N78: =SUM(N63:N64) -> 27.5589 | O78: =SUM(O63:O73) -> 0 | T78: =SUM(T63:T73) -> 1297.5 | U78: =SUM(U63:U76) -> 10690.87995 | V78: =SUM(V63:V73) -> 0 | Y78: =SUM(Y63:Y73) -> 0 | Z78: =SUM(Z63:Z73) -> 0 | AA78: =SUM(AA63:AA76) -> 18064.98991 | AB78: =SUM(AB63:AB76) -> 18435.27488 | AC78: =SUM(AC63:AC76) -> 49.59673122 | AD78: 0 | AE78: 34.20969563 | AF78: 0 | AG78: 83.80642684 | AH78: 85.52423907 | AI78: =SUM(AI63:AI76) -> 2412.837468 | AJ78: =SUM(AJ63:AJ73) -> 0 | AK78: =SUM(AK63:AK76) -> 1664.271684 | AM78: =SUM(AM63:AM76) -> 4077.109152 | AN78: =SUM(AN63:AN76) -> 4160.679209 | AO78: =SUM(AO63:AO76) -> 266.6041832 | AP78: 0 | AQ78: 183.8921183 | AR78: 0 | AS78: 450.4963015 | AT78: 459.7302956 | AU78: 32.89046386 | AV78: 0 | AW78: 22.68642973 | AX78: 0 | AY78: 55.57689359 | AZ78: 56.71607433 | BA78: 376.4130864 | BB78: 0 | BC78: 259.6335847 | BD78: 0 | BE78: 636.0466711 | BF78: 649.0839618 | BN78: =SUM(BN63:BN76) -> 18558.16045 | BO78: =SUM(BO63:BO76) -> 23847.00866 | BQ78: =SUM(BQ63:BQ66) -> 6.319669142 | BR78: =SUM(BR63:BR66) -> 0 | BW78: =SUM(BW63:BW76) -> 826.938314 | BX78: =SUM(BX63:BX76) -> 826.4634598
T80: =SUM(N78:O78) -> 27.5589

Sheet Bullying_Contents
A1: Investing in a Whole School Anti-Bullying Programme
A3: Click on links below for further information about the intervention, adjust the values of some model parameters or see results
A5: About the Programme
A7: Check and/or adjust model parameters
A9: Summary of Return on Investment
A11: Summary of Return on Investment: Payoffs to Different Sectors
A13: Return to Intervention Choice Menu

Sheet Bullying_Background
A1: Investing in a Whole School Anti-Bullying Programme
A5: Target: | B5: Universal school based interventions for children aged 7-11
C6: Return to Bullying Intervention Contents Page
A7: Intervention: | B7: Based on Finnish KiVa bullying prevention programme. Whole school approach - manualised programme delivered by teachers on bullying and cyber bullying. | C7: Return to Intervention Choice Menu
A9: Outcome evidence | B9: Outcome evidence on likelihood avoiding bullying drawn from RCT trial in Finland; Data from RCT in Wales will be available in future. Linking with longer term evidence on impacts into adulthood of bullying
A11: Economic Pay Offs | B11: Impacts on health, school attendance, children and adolescent mental health (CAMH) and future mental health.
A13: Findings | B13: Outcomes per pupil over 4 year period and costs to school of delivery. Benefits to families, schools and health sector. Longer term benefits through better life chances

Sheet Bullying_Parameters
A1: Investing in a Whole School Anti-Bullying Programme: Checking and/or Adjusting Model Parameters
A3: You can use your own values rather than the model's predefined assumptions by inputing these into one or more of the blue coloured cells | B3: Area selected: | C3: =+A31 -> --- Model default values
C5: Return to Bullying Intervention Contents Page
A6: Intervention Costs | C6: Return to Intervention Choice
B8: Default | C8: Input your own value for costs if desired
A9: Initial set up costs of bullying prevention programme per pupil | B9: 1.6
A10: Annual maintenance costs of bullying prevention programme per pupil | B10: 0.6
A12: Other Costs
B14: Default | C14: Input your own value for costs if desired
A15: CAMH Generic Multi-Disciplinary Team Average cost per case | B15: 4871
A16: Cost per psychosocial assessment following self-harm | B16: 430
A18: Other parameters
B20: Default | C20: Input your own value if desired
A21: Initial bullying victimisation without intervention | B21: 0.16
A22: Odds ratio for victimisation with usual care versus KIVA programme | B22: 1.22
A23: Probability of self-harm for children who are bullied intensely | B23: 0.31
A24: Probability of school absence of more than 28 days if bullied | B24: 0.034
A25: Discount Rate (Costs) | B25: 0.035
A26: Discount Rate (Outcomes) | B26: 0.015
A27: Number of children in a school year (age 7 to 8) | B27: 200 | C27: =+B32 -> 0
A30: Population in selected area
A31: =+'Intervention Choice'!C5 -> --- Model default values | B31: =VLOOKUP(+'Intervention Choice'!C5,Population_7_11!D5:J382,7) -> 0 | C31: Population aged 7 to 11
B32: =VLOOKUP(A31,Population_7_11!D5:J382,2) -> 0 | C32: Population aged 7
A34: Return to Bullying Intervention Contents Page
A35: Return to Home Page

Sheet Bullying_ROI_adult_earnings (hidden)
A1: ROI: Whole School Anti-Bullying Programme
A4: Return on Investment from KiVa programme
F6: Return to Bullying Intervention Contents Page
F8: Return to Home Page
A9: Total Net Costs / Payoffs (Default values 2015 prices) | B9: Area Selected: | C9: =+Bullying_Parameters!A31 -> --- Model default values
B11: Year 1 | C11: Year 2 | D11: Year 3 | E11: Year 4 | F11: Year 11 | G11: Total Cost / Saving
A12: Incremental cost of KIVA intervention | B12: =+B26-B39 -> 320 | C12: 115.942029 | D12: 112.021284 | E12: 108.2331247 | F12: 0 | G12: =SUM(B12:E12) -> 656.1964377
A13: CAMH cost | B13: 0 | C13: -83.02196988 | D13: -111.5351849 | E13: -126.3096739 | F13: 0 | G13: =SUM(B13:E13) -> -320.8668286
A14: GP cost | B14: -0.599842623 | C14: -0.8326634589 | D14: -0.9636492289 | E14: -1.011413781 | F14: 0 | G14: -3.407569092
A15: Pupil Absenteeism | B15: -128.8227672 | C15: -142.585491 | D15: -158.2704406 | E15: -162.0795128 | F15: 0 | G15: -591.7582116
A16: Self-Harm | B16: 0 | C16: -31.41676785 | D16: -42.20659923 | E16: -47.79748912 | F16: 0 | G16: -121.4208562
A17: Adult Earnings | F17: =+F31-F44 -> -9976.864454 | G17: =SUM(B17:F17) -> -9976.864454
G18: 0
A19: Total cost (saving if negative value) | B19: =SUM(B13:B18) -> -129.4226098 | C19: -257.8568922 | D19: -312.9758739 | E19: -337.1980896 | F19: -9976.864454 | G19: -11014.31792
A20: Overall Return per Pound Invested | B20: =+(B19/B12)*-1 -> 0.4044456557 | C20: =+((C19+B19)/(C12+B12))*-1 -> 0.8883738576 | D20: =+((D19+C19+B19)/(D12+C12+B12))*-1 -> 1.27792383 | E20: =+((E19+D19+C19+B19)/(E12+D12+C12+B12))*-1 -> 1.581010511 | F20: =+((F19+E19+D19+C19+B19)/(F12+E12+D12+C12+B12))*-1 -> 16.78509252 | G20: =+(G19/G12)*-1 -> 16.78509252
A22: Intense Bullying Victimisation Free Years Gained | B22: =+B35-B48 -> 2.885245902 | C22: =+C35-C48 -> 3.256415789 | D22: =+D35-D48 -> 3.685858302 | E22: =+E35-E48 -> 3.848941001 | G22: =SUM(B22:E22) -> 13.67646099
A24: Costs of KIVA Cohort
B25: Year 1 | C25: Year 2 | D25: Year 3 | E25: Year 4 | F25: Year 11 | G25: Total
A26: Intervention cost | B26: =+bullying_model!O67 -> 320 | C26: =+bullying_model!O68 -> 115.942029 | D26: =+bullying_model!O69 -> 112.021284 | E26: =+bullying_model!O70 -> 108.2331247 | F26: 0 | G26: =SUM(B26:E26) -> 656.1964377
A27: CAMH cost | B27: =+bullying_model!S67 -> 5114.55 | C27: =+bullying_model!S68 -> 5111.581856 | D27: =+bullying_model!S69 -> 5010.076282 | E27: =+bullying_model!S70 -> 4879.642402 | F27: 0 | G27: 20115.85054
A28: GP cost | B28: =+bullying_model!W67 -> 23.51655738 | C28: =+bullying_model!W68 -> 23.23954524 | D28: =+bullying_model!W69 -> 22.81620206 | E28: =+bullying_model!W70 -> 22.22437121 | F28: 0 | G28: 91.79667589
A29: Absenteeism | B29: =+bullying_model!AA67 -> 585.5580328 | C29: =+bullying_model!AA68 -> 602.8553438 | D29: =+bullying_model!AA69 -> 629.1839678 | E29: =+bullying_model!AA70 -> 629.4883019 | F29: 0 | G29: 2447.085646
A30: Self Harm | B30: =+bullying_model!AE67 -> 0 | C30: =+bullying_model!AE68 -> 64.3258965 | D30: =+bullying_model!AE69 -> 89.15048616 | E30: =+bullying_model!AE70 -> 100.8897581 | F30: 0 | G30: 254.3661408
A31: Adult Earnings | F31: =+bullying_model!AL82 -> 21058.91878 | G31: =SUM(B31:F31) -> 21058.91878
G32: 0
A33: Total cost | B33: =SUM(B26:B32) -> 6043.62459 | C33: 5917.944671 | D33: 5863.248222 | E33: 5740.477957 | F33: 21058.91878 | G33: 44624.21422
A35: Intense Bullying Victimisation Free Years | B35: =+bullying_model!AI67 -> 186.8852459 | C35: =+bullying_model!AI68 -> 183.2761202 | D35: =+bullying_model!AI69 -> 179.4796897 | E35: =+bullying_model!AI70 -> 176.3147893 | G35: =SUM(B35:F35) -> 725.9558452
A37: Costs of Usual Care Cohort
B38: Year 1 | C38: Year 2 | D38: Year 3 | E38: Year 4 | F38: Year 11 | G38: Total
A39: Usual care | B39: 0 | C39: 0 | D39: 0 | E39: 0 | F39: 0 | G39: =SUM(B39:F39) -> 0
A40: CAMH cost | B40: =+bullying_model!AX67 -> 5114.55 | C40: =+bullying_model!AX68 -> 5194.603826 | D40: =+bullying_model!AX69 -> 5121.611466 | E40: =+bullying_model!AX70 -> 5005.952075 | F40: 0 | G40: =SUM(B40:E40) -> 20436.71737
A41: GP cost | B41: =+bullying_model!BC67 -> 24.1164 | C41: =+bullying_model!BC68 -> 24.0722087 | D41: =+bullying_model!BC69 -> 23.77985129 | E41: =+bullying_model!BC70 -> 23.23578499 | F41: 0 | G41: 95.20424498
A42: Absenteeism | B42: =+bullying_model!BG67 -> 714.3808 | C42: =+bullying_model!BG68 -> 745.4408348 | D42: =+bullying_model!BG69 -> 787.4544084 | E42: =+bullying_model!BG70 -> 791.5678146 | F42: 0 | G42: 3038.843858
A43: Self-Harm | B43: =+bullying_model!BK67 -> 0 | C43: =+bullying_model!BK68 -> 95.74266435 | D43: =+bullying_model!BK69 -> 131.3570854 | E43: =+bullying_model!BK70 -> 148.6872472 | F43: 0 | G43: 375.786997
A44: Adult Earnings | F44: =+bullying_model!BR82 -> 31035.78324 | G44: =SUM(B44:F44) -> 31035.78324
G45: 0
A46: Total cost usual care | B46: =SUM(B39:B45) -> 5853.0472 | C46: 6059.859534 | D46: 6064.202812 | E46: 5969.442922 | F46: 31035.78324 | G46: 54982.33571
A48: Intense Bullying Victimisation Free Years | B48: =+bullying_model!BO67 -> 184 | C48: =+bullying_model!BO68 -> 180.0197044 | D48: =+bullying_model!BO69 -> 175.7938314 | E48: =+bullying_model!BO70 -> 172.4658483 | G48: =SUM(B48:F48) -> 712.2793842
A50: Return to Bullying Intervention Contents Page
A52: Return to Home Page

Sheet Bullying_ROI
A1: ROI: Whole School Anti-Bullying Programme
A5: Area Selected: | D5: Return to Bullying Intervention Contents Page
A6: =+'Intervention Choice'!C5 -> --- Model default values | D6: Return to Intervention Choice Menu
A8: Total Net Costs / Payoffs (Default values 2015 prices)
B10: Year 1 | C10: Year 2 | D10: Year 3 | E10: Year 4 | F10: Total Cost / Saving
A11: Incremental cost of KIVA intervention | B11: =+B26-B39 -> 320 | C11: =+C26-C39 -> 115.942029 | D11: =+D26-D39 -> 112.021284 | E11: =+E26-E39 -> 108.2331247 | F11: =SUM(B11:E11) -> 656.1964377
A13: CAMH cost | B13: =+B27-B40 -> 0 | C13: -83.02196988 | D13: -111.5351849 | E13: -126.3096739 | F13: =SUM(B13:E13) -> -320.8668286
A14: GP cost | B14: -0.599842623 | C14: -0.8326634589 | D14: -0.9636492289 | E14: -1.011413781 | F14: =SUM(B14:E14) -> -3.407569092
A15: Pupil Absenteeism | B15: -128.8227672 | C15: -142.585491 | D15: -158.2704406 | E15: -162.0795128 | F15: =SUM(B15:E15) -> -591.7582116
A16: Self-Harm | B16: 0 | C16: -31.41676785 | D16: -42.20659923 | E16: -47.79748912 | F16: =SUM(B16:E16) -> -121.4208562
A19: Total cost (saving if negative value) | B19: =SUM(B13:B18) -> -129.4226098 | C19: =SUM(C13:C18) -> -257.8568922 | D19: =SUM(D13:D18) -> -312.9758739 | E19: =SUM(E13:E18) -> -337.1980896 | F19: =SUM(F13:F18) -> -1037.453465
A20: Overall Return per Pound Invested | B20: =+(B19/B11)*-1 -> 0.4044456557 | C20: =+((C19+B19)/(C11+B11))*-1 -> 0.8883738576 | D20: =+((D19+C19+B19)/(D11+C11+B11))*-1 -> 1.27792383 | E20: =+((E19+D19+C19+B19)/(E11+D11+C11+B11))*-1 -> 1.581010511 | F20: =+(F19/F11)*-1 -> 1.581010511
A22: Intense Bullying Victimisation Free Years Gained | B22: =+B35-B48 -> 2.885245902 | C22: =+C35-C48 -> 3.256415789 | D22: =+D35-D48 -> 3.685858302 | E22: =+E35-E48 -> 3.848941001 | F22: =SUM(B22:E22) -> 13.67646099
A24: Costs of KIVA Cohort
B25: Year 1 | C25: Year 2 | D25: Year 3 | E25: Year 4 | F25: Total
A26: Intervention cost | B26: =+bullying_model!O67 -> 320 | C26: =+bullying_model!O68 -> 115.942029 | D26: =+bullying_model!O69 -> 112.021284 | E26: =+bullying_model!O70 -> 108.2331247 | F26: =SUM(B26:E26) -> 656.1964377
A27: CAMH cost | B27: =+bullying_model!S67 -> 5114.55 | C27: =+bullying_model!S68 -> 5111.581856 | D27: =+bullying_model!S69 -> 5010.076282 | E27: =+bullying_model!S70 -> 4879.642402 | F27: =SUM(B27:E27) -> 20115.85054
A28: GP cost | B28: =+bullying_model!W67 -> 23.51655738 | C28: =+bullying_model!W68 -> 23.23954524 | D28: =+bullying_model!W69 -> 22.81620206 | E28: =+bullying_model!W70 -> 22.22437121 | F28: =SUM(B28:E28) -> 91.79667589
A29: Absenteeism | B29: =+bullying_model!AA67 -> 585.5580328 | C29: =+bullying_model!AA68 -> 602.8553438 | D29: =+bullying_model!AA69 -> 629.1839678 | E29: =+bullying_model!AA70 -> 629.4883019 | F29: =SUM(B29:E29) -> 2447.085646
A30: Self Harm | B30: =+bullying_model!AE67 -> 0 | C30: =+bullying_model!AE68 -> 64.3258965 | D30: =+bullying_model!AE69 -> 89.15048616 | E30: =+bullying_model!AE70 -> 100.8897581 | F30: =SUM(B30:E30) -> 254.3661408
A33: Total cost | B33: =SUM(B26:B32) -> 6043.62459 | C33: 5917.944671 | D33: 5863.248222 | E33: 5740.477957 | F33: 23565.29544
A35: Intense Bullying Victimisation Free Years | B35: =+bullying_model!AI67 -> 186.8852459 | C35: =+bullying_model!AI68 -> 183.2761202 | D35: =+bullying_model!AI69 -> 179.4796897 | E35: =+bullying_model!AI70 -> 176.3147893 | F35: =SUM(B35:E35) -> 725.9558452
A37: Costs of Usual Care Cohort
B38: Year 1 | C38: Year 2 | D38: Year 3 | E38: Year 4 | F38: Total
A39: Usual care | B39: 0 | C39: 0 | D39: 0 | E39: 0 | F39: =SUM(B39:E39) -> 0
A40: CAMH cost | B40: =+bullying_model!AX67 -> 5114.55 | C40: =+bullying_model!AX68 -> 5194.603826 | D40: =+bullying_model!AX69 -> 5121.611466 | E40: =+bullying_model!AX70 -> 5005.952075 | F40: =SUM(B40:E40) -> 20436.71737
A41: GP cost | B41: =+bullying_model!BC67 -> 24.1164 | C41: =+bullying_model!BC68 -> 24.0722087 | D41: =+bullying_model!BC69 -> 23.77985129 | E41: =+bullying_model!BC70 -> 23.23578499 | F41: =SUM(B41:E41) -> 95.20424498
A42: Absenteeism | B42: =+bullying_model!BG67 -> 714.3808 | C42: =+bullying_model!BG68 -> 745.4408348 | D42: =+bullying_model!BG69 -> 787.4544084 | E42: =+bullying_model!BG70 -> 791.5678146 | F42: =SUM(B42:E42) -> 3038.843858
A43: Self-Harm | B43: =+bullying_model!BK67 -> 0 | C43: =+bullying_model!BK68 -> 95.74266435 | D43: =+bullying_model!BK69 -> 131.3570854 | E43: =+bullying_model!BK70 -> 148.6872472 | F43: =SUM(B43:E43) -> 375.786997
A46: Total cost usual care | B46: =SUM(B39:B45) -> 5853.0472 | C46: 6059.859534 | D46: 6064.202812 | E46: 5969.442922 | F46: 23946.55247
A48: Intense Bullying Victimisation Free Years | B48: =+bullying_model!BO67 -> 184 | C48: =+bullying_model!BO68 -> 180.0197044 | D48: =+bullying_model!BO69 -> 175.7938314 | E48: =+bullying_model!BO70 -> 172.4658483 | F48: =SUM(B48:E48) -> 712.2793842
A50: Return to Bullying Intervention Contents Page
A52: Return to Intervention Choice Menu

Sheet Bullying_ROI_sector
A1: ROI: Whole School Anti-Bullying Programme
A6: Area Selected: | C6: Return to Bullying Intervention Contents Page
A7: =+'Intervention Choice'!C5 -> --- Model default values | C7: Return to Intervention Choice Menu
A9: Total Net Costs / Payoffs to Different Sectors (Default values 2015 prices)
B11: Year 1 | C11: Year 2 | D11: Year 3 | E11: Year 4 | F11: Total Cost / Saving
A12: Programme cost: Schools and/or education sector | B12: =+B31-B42 -> 320 | C12: =+C31-C42 -> 115.942029 | D12: =+D31-D42 -> 112.021284 | E12: =+E31-E42 -> 108.2331247 | F12: =SUM(B12:E12) -> 656.1964377
A13: Payoffs:
A14: NHS | B14: =+B33-B44 -> -0.5998426229 | C14: -115.2714012 | D14: -154.7054333 | E14: -175.1185768 | F14: =SUM(B14:E14) -> -445.6952539
A15: Familes | B15: -128.8227672 | C15: -142.585491 | D15: -158.2704406 | E15: -162.0795128 | F15: =SUM(B15:E15) -> -591.7582116
A17: Total cost consequences (saving if negative value) | B17: =SUM(B14:B16) -> -129.4226098 | C17: =SUM(C14:C16) -> -257.8568922 | D17: =SUM(D14:D16) -> -312.9758739 | E17: =SUM(E14:E16) -> -337.1980896 | F17: =SUM(B17:E17) -> -1037.453465
A18: Total costs (saving if negative value) | B18: =+B12+B17 -> 190.5773902 | C18: =+C12+C17 -> -141.9148632 | D18: =+D12+D17 -> -200.9545899 | E18: =+E12+E17 -> -228.9649649 | F18: =SUM(B18:E18) -> -381.2570278
A19: Cumulative Return per Pound Invested | B19: =+(B17/B12)*-1 -> 0.4044456557 | C19: =+((C17+B17)/($B$12+$C$12))*-1 -> 0.8883738576 | D19: =+((D17+C17+B17)/($B$12+$C$12+$D$12))*-1 -> 1.27792383 | E19: =+((E17+D17+C17+B17)/($B$12+$C$12+$D$12+$E$12))*-1 -> 1.581010511 | F19: =+(F17/F12)*-1 -> 1.581010511
A20: Intense Bullying Victimisation Free Years Gained | B20: =+B37-B48 -> 2.885245902 | C20: =+C37-C48 -> 3.256415789 | D20: =+D37-D48 -> 3.685858302 | E20: =+E37-E48 -> 3.848941001 | F20: =SUM(B20:E20) -> 13.67646099
A22: Cumulative ROI by sector:
B23: Year 1 | C23: Year 2 | D23: Year 3 | E23: Year 4 | F23: Total Cost / Saving
A24: NHS | B24: =+(B14/($B$12+$C$12+$D$12+$E$12)*-1) -> 0.000914120511 | C24: 0.1756659966 | D24: 0.2357608552 | E24: 0.2668691366 | F24: =SUM(B24:E24) -> 0.6792101089
A25: Families | B25: 0.1963173827 | C25: 0.2172908641 | D25: 0.2411936906 | E25: 0.2469984649 | F25: =SUM(B25:E25) -> 0.9018004024
A27: Total | B27: =SUM(B24:B26) -> 0.1972315032 | C27: =SUM(C24:C26) -> 0.3929568607 | D27: =SUM(D24:D26) -> 0.4769545458 | E27: =SUM(E24:E26) -> 0.5138676015 | F27: =SUM(F24:F26) -> 1.581010511
A29: Costs of Anti-Bullying Cohort
B30: Year 1 | C30: Year 2 | D30: Year 3 | E30: Year 4 | F30: Total
A31: Programme cost: Schools and/or education sector | B31: =+Bullying_ROI!B26 -> 320 | C31: =+Bullying_ROI!C26 -> 115.942029 | D31: =+Bullying_ROI!D26 -> 112.021284 | E31: =+Bullying_ROI!E26 -> 108.2331247 | F31: =SUM(B31:E31) -> 656.1964377
A32: Payoffs:
A33: NHS | B33: =+Bullying_ROI!B27+Bullying_ROI!B28+Bullying_ROI!B30 -> 5138.066557 | C33: =+Bullying_ROI!C27+Bullying_ROI!C28+Bullying_ROI!C30 -> 5199.147298 | D33: =+Bullying_ROI!D27+Bullying_ROI!D28+Bullying_ROI!D30 -> 5122.04297 | E33: =+Bullying_ROI!E27+Bullying_ROI!E28+Bullying_ROI!E30 -> 5002.756531 | F33: =SUM(B33:E33) -> 20462.01336
A34: Families | B34: =+Bullying_ROI!B29 -> 585.5580328 | C34: =+Bullying_ROI!C29 -> 602.8553438 | D34: =+Bullying_ROI!D29 -> 629.1839678 | E34: =+Bullying_ROI!E29 -> 629.4883019 | F34: =SUM(B34:E34) -> 2447.085646
A36: Total cost | B36: =SUM(B31:B35) -> 6043.62459 | C36: =SUM(C31:C35) -> 5917.944671 | D36: =SUM(D31:D35) -> 5863.248222 | E36: =SUM(E31:E35) -> 5740.477957 | F36: =SUM(B36:E36) -> 23565.29544
A37: Intense Bullying Victimisation Free Years | B37: =+Bullying_ROI!B35 -> 186.8852459 | C37: =+Bullying_ROI!C35 -> 183.2761202 | D37: =+Bullying_ROI!D35 -> 179.4796897 | E37: =+Bullying_ROI!E35 -> 176.3147893 | F37: =SUM(B37:E37) -> 725.9558452
A40: Costs of Usual Care Cohort
B41: Year 1 | C41: Year 2 | D41: Year 3 | E41: Year 4 | F41: Total
A42: Programme cost: Schools and/or education sector | B42: 0 | C42: 0 | D42: 0 | E42: 0 | F42: =SUM(B42:E42) -> 0
A43: Payoffs:
A44: NHS | B44: =+Bullying_ROI!B40+Bullying_ROI!B41+Bullying_ROI!B43 -> 5138.6664 | C44: =+Bullying_ROI!C40+Bullying_ROI!C41+Bullying_ROI!C43 -> 5314.418699 | D44: =+Bullying_ROI!D40+Bullying_ROI!D41+Bullying_ROI!D43 -> 5276.748403 | E44: =+Bullying_ROI!E40+Bullying_ROI!E41+Bullying_ROI!E43 -> 5177.875108 | F44: =SUM(B44:E44) -> 20907.70861
A45: Families | B45: =+Bullying_ROI!B42 -> 714.3808 | C45: =+Bullying_ROI!C42 -> 745.4408348 | D45: =+Bullying_ROI!D42 -> 787.4544084 | E45: =+Bullying_ROI!E42 -> 791.5678146 | F45: =SUM(B45:E45) -> 3038.843858
A47: Total cost usual care | B47: =SUM(B42:B46) -> 5853.0472 | C47: =SUM(C42:C46) -> 6059.859534 | D47: =SUM(D42:D46) -> 6064.202812 | E47: =SUM(E42:E46) -> 5969.442922 | F47: =SUM(B47:E47) -> 23946.55247
A48: Intense Bullying Victimisation Free Years | B48: =+Bullying_ROI!B48 -> 184 | C48: =+Bullying_ROI!C48 -> 180.0197044 | D48: =+Bullying_ROI!D48 -> 175.7938314 | E48: =+Bullying_ROI!E48 -> 172.4658483 | F48: =SUM(B48:E48) -> 712.2793842
A50: Return to Bullying Intervention Contents Page
A52: Return to Intervention Choice Menu

Sheet bullying_model (hidden)
A1: SEL Model | I1: Int KIVA plus usual action
A3: Name | J3: Not bullied | K3: Bullied intensely | L3: Bullied intermittently
A4: wage_diff_intermittent | B4: =16*52 -> 832
A5: wage_diff_intense | B5: =52*52 -> 2704
A6: uc_immediate_self_harm | B6: =668.72/2 -> 334.36
A7: c_AE_attendance | B7: =+c_ambulance_transp*p_amb_use -> 56.64
A8: p_ambulance_use | B8: 0.24
A9: school_years | B9: 4 | I9: Initial Values | J9: =1-K9-L9 -> 0.868852459 | K9: 0 | L9: =+p_bully_kiva -> 0.131147541
A10: p_bullying_usualcare | B10: =IF(Bullying_Parameters!$C21>0,Bullying_Parameters!$C21,Bullying_Parameters!$B21) -> 0.16 | C10: RP | D10: =IF(Bullying_Parameters!$C37<>"",Bullying_Parameters!$C37,Bullying_Parameters!$B37) -> 0 | I10: Not bullied | J10: =1-K10-L10 -> 0.868852459 | K10: 0 | L10: =+p_bully_kiva -> 0.131147541
A11: p_bully_kiva | B11: =+p_bullying_usualcare/p_inc_OR_usualcare -> 0.131147541 | I11: Bullied intensely | J11: 0 | K11: =+p_bully_kiva_intense -> 0.5 | L11: =+p_bullying_usual_intense_intermittent -> 0.5
A12: p_inc_OR_usualcare | B12: =IF(Bullying_Parameters!$C22>0,Bullying_Parameters!$C22,Bullying_Parameters!$B22) -> 1.22 | I12: Bullied intermittently | J12: =1-K12-L12 -> 0.868852459 | K12: =+p_bully_kiva_intermittent_intense -> 0.06557377049 | L12: =+p_bully_kiva_intermittent_intermittent -> 0.06557377049
A13: Cost | B13: 0
A14: c_KIVA_sunk | B14: =+uc_sunk_costs_KIVA*population -> 320
A15: c_ambulance_transp | B15: 236
A16: population | B16: =IF(Bullying_Parameters!$C27>0,Bullying_Parameters!$C27,Bullying_Parameters!$B27) -> 200 | E16: IF(Volunteering_Parameters!$D28>0,Volunteering_Parameters!$D28,Volunteering_Parameters!$C28) | I16: Usual Action
A17: uc_sunk_costs_KIVA | B17: =IF(Bullying_Parameters!$C9>0,Bullying_Parameters!$C9,Bullying_Parameters!$B9) -> 1.6
A18: uc_KIVA_maintenance | B18: =IF(Bullying_Parameters!$C10>0,Bullying_Parameters!$C10,Bullying_Parameters!$B10) -> 0.6 | J18: Not bullied | K18: Bullied intensely | L18: Bullied intermittently
A19: c_KIVA_maintenance | B19: =+uc_KIVA_maintenance*population -> 120 | I19: Initial Values | J19: =1-K19-L19 -> 0.84 | K19: 0 | L19: =+p_bullying_usualcare -> 0.16
A20: uc_absent | B20: 46.9 | I20: Not bullied | J20: =1-K20-L20 -> 0.84 | K20: 0 | L20: =+p_bullying_usualcare -> 0.16
A21: av_day_absent_bullied | B21: 28 | I21: Bullied intensely | J21: 0 | K21: =+p_bully_usualcare_intense -> 0.5 | L21: =+p_bullying_usual_intense_intermittent -> 0.5
A22: av_day_absent_not_bullied | B22: 0 | I22: Bullied intermittently | J22: =1-K22-L22 -> 0.84 | K22: =+p_bullying_usual_intermittent_intense -> 0.08 | L22: =+p_bullying_usual_intermittent_intermittent -> 0.08
A23: c_absence_bullied | B23: =+uc_absent*av_day_absent_bullied*population*p_absent_bullied_intense -> 8929.76
A24: c_absence_not_bullied | B24: =+uc_absent*av_day_absent_not_bullied*population -> 0
A25: c_ei_psychosis | B25: =6379*population -> 1275800
A26: c_depression | B26: =702*population -> 140400
A27: p_bully_kiva_intense | B27: 0.5
A28: p_bully_kiva_intense_intermittent | B28: 0.5
A29: p_bully_kiva_intermittent_intense | B29: =+p_bully_kiva*0.5 -> 0.06557377049
A30: C_absence_intermittent | B30: =+bullying_model!c_absence_bullied*0.5 -> 4464.88
A31: p_depression_intermittent | B31: 0.071
A32: p_depression_intense | B32: 0.148
A33: p_depression_no_bully | B33: 0.055
A34: p_psychosis_no_bully | B34: 0.043
A35: p_psychosis_intense | B35: 0.109
A36: p_psychosis_intermittent | B36: 0.049
A37: p_absent_bullied_intense | B37: =IF(Bullying_Parameters!$C24>0,Bullying_Parameters!$C24,Bullying_Parameters!$B24) -> 0.034
A38: uc_CAMH | B38: =IF(Bullying_Parameters!$C15>0,Bullying_Parameters!$C15,Bullying_Parameters!$B15) -> 4871
A39: p_CAMH_not_bullied | B39: =0.0042*5*0.25 -> 0.00525
A40: p_CAMH_intense | B40: =+p_CAMH_not_bullied*5 -> 0.02625
A41: c_CAMH_not_bullied | B41: =+uc_CAMH*p_CAMH_not_bullied*population -> 5114.55
A42: c_CAMH_intense_bullied | B42: =+uc_CAMH*p_CAMH_intense*population -> 25572.75
A43: uc_GP_contact | B43: =0.44*45 -> 19.8
A44: c_GP_not_bullied | B44: =+uc_GP_contact*p_CAMH_not_bullied*population -> 20.79
A45: c_GP_intense | B45: =+uc_GP_contact*p_CAMH_intense*population -> 103.95
A46: p_bully_usualcare_intense | B46: 0.5
A47: p_bullying_usual_intense_intermittent | B47: 0.5
A48: p_bullying_usual_intermittent_intermittent | B48: =+p_bullying_usualcare*0.5 -> 0.08
A49: p_bullying_usual_intermittent_intense | B49: =+p_bullying_usualcare*0.5 -> 0.08
A50: p_bully_kiva_intermittent_intermittent | B50: =+p_bully_kiva*0.5 -> 0.06557377049
A51: p_self_harm_intense | B51: =IF(Bullying_Parameters!$C23>0,Bullying_Parameters!$C23,Bullying_Parameters!$B23) -> 0.31
A52: p_hospital_if_self_harm | B52: 0.126
A53: uc_AandE_attendance | B53: 170
A54: uc_psychosocial_assessment | B54: =IF(Bullying_Parameters!$C16>0,Bullying_Parameters!$C16,Bullying_Parameters!$B16) -> 430
A55: c_self_harm | B55: =+(uc_psychosocial_assessment+uc_AandE_attendance+c_ae_attend+uc_immediate_self_harm)*(population*p_self_harm_intense*p_hospital_if_self_harm) -> 7741.692
A56: C_gp_intermittent | B56: =+bullying_model!c_GP_not_bullied*2 -> 41.58
A57: Other parameters | B57: Values
A64: discount rate costs | B64: =IF(Bullying_Parameters!$C25<>"",Bullying_Parameters!$C25,Bullying_Parameters!$B25) -> 0.035 | E64: BULLYING INTERVENTION | AN64: Usual care
A65: discount rate outcomes | B65: =IF(Bullying_Parameters!$C26<>"",Bullying_Parameters!$C26,Bullying_Parameters!$B26) -> 0.015 | G65: PROBABILITY | L65: KIVA COSTS | P65: CAMH COSTS | T65: GP COSTS | X65: ABSENTEEISM | AB65: SELF HARM | AF65: UTILITY | AJ65: ADULT EARNINGS | AP65: PROBABILITY | AU65: CAMH COSTS | AZ65: GP COSTS | BD65: ABSENTEEISM | BH65: SELF-HARM | BL65: UTILITY | BP65: ADULT EARNINGS
A66: value per QALY | B66: 20000 | E66: YEARS | F66: YEAR | G66: NOT BULLIED | H66: INTENSE | I66: INTERMITTENT | J66: discount | K66: UTILITY DISCOUNT | L66: NOT BULLIED | M66: INTENSE | N66: INTERMITTENT | O66: TOTAL | P66: NOT BULLIED | Q66: INTENSE | R66: INTERMITTENT | S66: TOTAL | T66: NOT BULLIED | U66: INTENSE | V66: INTERMITTENT | W66: TOTAL | X66: NOT BULLIED | Y66: INTENSE | Z66: INTERMITTENT | AA66: TOTAL | AB66: NOT BULLIED | AC66: INTENSE | AD66: INTERMITTENT | AE66: TOTAL | AF66: NOT BULLIED | AG66: INTENSE | AH66: INTERMITTENT | AI66: TOTAL | AJ66: INTENSE | AK66: INTERMITTENT | AL66: TOTAL | AN66: YEARS | AO66: YEAR | AP66: NOT BULLIED | AQ66: INTENSE | AR66: INTERMITTENT | AS66: discount | AT66: utility discount | AU66: NOT BULLIED | AV66: INTENSE | AW66: INTERMITTENT | AX66: TOTAL | AY66: TOTAL USUAL CARE | AZ66: NOT BULLIED | BA66: INTENSE | BB66: INTERMITTENT | BC66: TOTAL | BD66: NOT BULLIED | BE66: INTENSE | BF66: INTERMITTENT | BG66: TOTAL | BH66: NOT BULLIED | BI66: INTENSE | BJ66: INTERMITTENT | BK66: TOTAL | BL66: NOT BULLIED | BM66: INTENSE | BN66: INTERMITTENT | BO66: TOTAL | BP66: INTENSE | BQ66: INTERMITTENT | BR66: TOTAL
F67: 1 | G67: =+$J$9 -> 0.868852459 | H67: =+$K$9 -> 0 | I67: =+$L$9 -> 0.131147541 | J67: 1 | K67: 1 | L67: =+c_KIVA_sunk*$G67*$J67 -> 278.0327869 | M67: =+c_KIVA_sunk*$H67*$J67 -> 0 | N67: =+c_KIVA_sunk*$I67*$J67 -> 41.96721311 | O67: =+L67+M67+N67 -> 320 | P67: =+c_CAMH_not_bullied*$G67*$J67 -> 4443.789344 | Q67: =+bullying_model!c_CAMH_intense_bullied*$H67*$J67 -> 0 | R67: =+c_CAMH_not_bullied*$I67*$J67 -> 670.7606557 | S67: =SUM(P67:R67) -> 5114.55 | T67: =+bullying_model!c_GP_not_bullied*$G67*$J67 -> 18.06344262 | U67: =+bullying_model!c_GP_intense*$H67*$J67 -> 0 | V67: =+bullying_model!C_gp_intermittent*$I67*$J67 -> 5.453114754 | W67: =SUM(T67:V67) -> 23.51655738 | X67: =+bullying_model!c_absence_not_bullied*$G67*$J67 -> 0 | Y67: =+bullying_model!c_absence_bullied*$H67*$J67 -> 0 | Z67: =+bullying_model!c_absence_intermittent*$I67*$J67 -> 585.5580328 | AA67: =SUM(X67:Z67) -> 585.5580328 | AB67: 0 | AC67: =+bullying_model!c_self_harm*$H67*$J67 -> 0 | AD67: 0 | AE67: =SUM(AB67:AD67) -> 0 | AF67: =+population*$G67*$K67 -> 173.7704918 | AG67: 0 | AH67: =+population*0.5*$I67*$K67 -> 13.1147541 | AI67: =SUM(AF67:AH67) -> 186.8852459 | AM67: 1 | AO67: 1 | AP67: =+$J19 -> 0.84 | AQ67: =+$K19 -> 0 | AR67: =+$L19 -> 0.16 | AS67: 1 | AT67: 1 | AU67: =+c_CAMH_not_bullied*$AP67*$AS67 -> 4296.222 | AV67: =+bullying_model!c_CAMH_intense_bullied*$AQ67*$AS67 -> 0 | AW67: =+c_CAMH_not_bullied*$AR67*$AS67 -> 818.328 | AX67: =SUM(AU67:AW67) -> 5114.55 | AY67: =SUM(AU67:AX67) -> 10229.1 | AZ67: =+bullying_model!c_GP_not_bullied*$AP67*$AS67 -> 17.4636 | BA67: =+bullying_model!c_GP_intense*$AQ67*$AS67 -> 0 | BB67: =+bullying_model!C_gp_intermittent*$AR67*$AS67 -> 6.6528 | BC67: =SUM(AZ67:BB67) -> 24.1164 | BD67: =+bullying_model!c_absence_not_bullied*$AP67*$AS67 -> 0 | BE67: =+bullying_model!c_absence_bullied*$AQ67*$AS67 -> 0 | BF67: =+bullying_model!c_absence_intermittent*$AR67*$AS67 -> 714.3808 | BG67: =SUM(BD67:BF67) -> 714.3808 | BH67: 0 | BI67: =+bullying_model!c_self_harm*$AQ67*$AS67 -> 0 | BJ67: 0 | BK67: =SUM(BH67:BJ67) -> 0 | BL67: =+population*$AP67*$AT67 -> 168 | BM67: 0 | BN67: =+population*0.5*$AR67*$AT67 -> 16 | BO67: =SUM(BL67:BN67) -> 184
A68: default value per QALY | B68: 20000 | F68: =1+F67 -> 2 | G68: =+($J$10*$G67)+($J$11*$H67)+($J$12*$I67) -> 0.868852459 | H68: =+($K$10*$G67)+($K$11*$H67)+($K$12*$I67) -> 0.008599838753 | I68: =+($L$10*$G67)+($L$11*$H67)+($L$12*$I67) -> 0.1225477022 | J68: =+J67/(1+discount_rate_costs) -> 0.9661835749 | K68: =+K67/(1+discount_rate_outcomes) -> 0.9852216749 | L68: =+c_KIVA_maintenance*$G68*$J68 -> 100.736517 | M68: =+c_KIVA_maintenance*$H68*$J68 -> 0.997082754 | N68: =+c_KIVA_maintenance*$I68*$J68 -> 14.20842924 | O68: =SUM(L68:N68) -> 115.942029 | P68: =+c_CAMH_not_bullied*$G68*$J68 -> 4293.516275 | Q68: =+bullying_model!c_CAMH_intense_bullied*$H68*$J68 -> 212.4845666 | R68: =+c_CAMH_not_bullied*$I68*$J68 -> 605.5810149 | S68: =SUM(P68:R68) -> 5111.581856 | T68: =+bullying_model!c_GP_not_bullied*$G68*$J68 -> 17.45260157 | U68: =+bullying_model!c_GP_intense*$H68*$J68 -> 0.8637229356 | V68: =+bullying_model!C_gp_intermittent*$I68*$J68 -> 4.923220733 | W68: =SUM(T68:V68) -> 23.23954524 | X68: =+bullying_model!c_absence_not_bullied*$G68*$J68 -> 0 | Y68: =+bullying_model!c_absence_bullied*$H68*$J68 -> 74.19758078 | Z68: =+bullying_model!c_absence_intermittent*$I68*$J68 -> 528.657763 | AA68: =SUM(X68:Z68) -> 602.8553438 | AB68: 0 | AC68: =+bullying_model!c_self_harm*$H68*$J68 -> 64.3258965 | AD68: 0 | AE68: =SUM(AB68:AD68) -> 64.3258965 | AF68: =+population*$G68*$K68 -> 171.202455 | AG68: 0 | AH68: =+population*0.5*$I68*$K68 -> 12.07366524 | AI68: =SUM(AF68:AH68) -> 183.2761202 | AM68: =1+AM67 -> 2 | AO68: =1+AO67 -> 2 | AP68: =+($J$20*$AP67)+($J$21*$AQ67)+($J$22*$AR67) -> 0.84 | AQ68: =+($K$20*$AP67)+($K$21*$AQ67)+($K$22*AR67) -> 0.0128 | AR68: =+($L$20*$AP67)+($L$21*$AQ67)+($L$22*$AR67) -> 0.1472 | AS68: =+AS67/(1+discount_rate_costs) -> 0.9661835749 | AT68: =+AT67/(1+discount_rate_outcomes) -> 0.9852216749 | AU68: =+c_CAMH_not_bullied*$AP68*$AS68 -> 4150.93913 | AV68: =+bullying_model!c_CAMH_intense_bullied*$AQ68*$AS68 -> 316.262029 | AW68: =+c_CAMH_not_bullied*$AR68*$AS68 -> 727.4026667 | AX68: =SUM(AU68:AW68) -> 5194.603826 | AZ68: =+bullying_model!c_GP_not_bullied*$AP68*$AS68 -> 16.87304348 | BA68: =+bullying_model!c_GP_intense*$AQ68*$AS68 -> 1.285565217 | BB68: =+bullying_model!C_gp_intermittent*$AR68*$AS68 -> 5.9136 | BC68: =SUM(AZ68:BB68) -> 24.0722087 | BD68: =+bullying_model!c_absence_not_bullied*$AP68*$AS68 -> 0 | BE68: =+bullying_model!c_absence_bullied*$AQ68*$AS68 -> 110.4356792 | BF68: =+bullying_model!c_absence_intermittent*$AR68*$AS68 -> 635.0051556 | BG68: =SUM(BD68:BF68) -> 745.4408348 | BH68: 0 | BI68: =+bullying_model!c_self_harm*$AQ68*$AS68 -> 95.74266435 | BJ68: 0 | BK68: =SUM(BH68:BJ68) -> 95.74266435 | BL68: =+population*$AP68*$AT68 -> 165.5172414 | BM68: 0 | BN68: =+population*0.5*$AR68*$AT68 -> 14.50246305 | BO68: =SUM(BL68:BN68) -> 180.0197044
F69: =1+F68 -> 3 | G69: =+($J$10*$G68)+($J$11*$H68)+($J$12*$I68) -> 0.861380468 | H69: =+($K$10*$G68)+($K$11*$H68)+($K$12*$I68) -> 0.01233583428 | I69: =+($L$10*$G68)+($L$11*$H68)+($L$12*$I68) -> 0.1262836978 | J69: 0.9335107004 | K69: =+K68/(1+discount_rate_outcomes) -> 0.9706617486 | L69: =+c_KIVA_maintenance*$G69*$J69 -> 96.49294607 | M69: =+c_KIVA_maintenance*$H69*$J69 -> 1.381875995 | N69: =+c_KIVA_maintenance*$I69*$J69 -> 14.14646198 | O69: =SUM(L69:N69) -> 112.021284 | P69: =+c_CAMH_not_bullied*$G69*$J69 -> 4112.649978 | Q69: =+bullying_model!c_CAMH_intense_bullied*$H69*$J69 -> 294.4864114 | R69: =+c_CAMH_not_bullied*$I69*$J69 -> 602.9398925 | S69: =SUM(P69:R69) -> 5010.076282 | T69: =+bullying_model!c_GP_not_bullied*$G69*$J69 -> 16.71740291 | U69: =+bullying_model!c_GP_intense*$H69*$J69 -> 1.197050081 | V69: =+bullying_model!C_gp_intermittent*$I69*$J69 -> 4.901749075 | W69: =SUM(T69:V69) -> 22.81620206 | X69: =+bullying_model!c_absence_not_bullied*$G69*$J69 -> 0 | Y69: =+bullying_model!c_absence_bullied*$H69*$J69 -> 102.8318416 | Z69: =+bullying_model!c_absence_intermittent*$I69*$J69 -> 526.3521262 | AA69: =SUM(X69:Z69) -> 629.1839678 | AB69: 0 | AC69: =+bullying_model!c_self_harm*$H69*$J69 -> 89.15048616 | AD69: 0 | AE69: =SUM(AB69:AD69) -> 89.15048616 | AF69: =+population*$G69*$K69 -> 167.2218143 | AG69: 0 | AH69: =+population*0.5*$I69*$K69 -> 12.25787549 | AI69: =SUM(AF69:AH69) -> 179.4796897 | AM69: =1+AM68 -> 3 | AO69: =1+AO68 -> 3 | AP69: =+($J$20*$AP68)+($J$21*$AQ68)+($J$22*$AR68) -> 0.829248 | AQ69: =+($K$20*$AP68)+($K$21*$AQ68)+($K$22*AR68) -> 0.018176 | AR69: =+($L$20*$AP68)+($L$21*$AQ68)+($L$22*$AR68) -> 0.152576 | AS69: 0.9335107004 | AT69: =+AT68/(1+discount_rate_outcomes) -> 0.9706617486 | AU69: =+c_CAMH_not_bullied*$AP69*$AS69 -> 3959.233922 | AV69: =+bullying_model!c_CAMH_intense_bullied*$AQ69*$AS69 -> 433.9053924 | AW69: =+c_CAMH_not_bullied*$AR69*$AS69 -> 728.4721518 | AX69: =SUM(AU69:AW69) -> 5121.611466 | AZ69: =+bullying_model!c_GP_not_bullied*$AP69*$AS69 -> 16.09378601 | BA69: =+bullying_model!c_GP_intense*$AQ69*$AS69 -> 1.763770636 | BB69: =+bullying_model!C_gp_intermittent*$AR69*$AS69 -> 5.922294644 | BC69: =SUM(AZ69:BB69) -> 23.77985129 | BD69: =+bullying_model!c_absence_not_bullied*$AP69*$AS69 -> 0 | BE69: =+bullying_model!c_absence_bullied*$AQ69*$AS69 -> 151.5156179 | BF69: =+bullying_model!c_absence_intermittent*$AR69*$AS69 -> 635.9387905 | BG69: =SUM(BD69:BF69) -> 787.4544084 | BH69: 0 | BI69: =+bullying_model!c_self_harm*$AQ69*$AS69 -> 131.3570854 | BJ69: 0 | BK69: =SUM(BH69:BJ69) -> 131.3570854 | BL69: =+population*$AP69*$AT69 -> 160.9838627 | BM69: 0 | BN69: =+population*0.5*$AR69*$AT69 -> 14.8099687 | BO69: =SUM(BL69:BN69) -> 175.7938314
F70: =1+F69 -> 4 | G70: =+($J$10*$G69)+($J$11*$H69)+($J$12*$I69) -> 0.8581344391 | H70: =+($K$10*$G69)+($K$11*$H69)+($K$12*$I69) -> 0.01444881535 | I70: =+($L$10*$G69)+($L$11*$H69)+($L$12*$I69) -> 0.1274167456 | J70: 0.9019427057 | K70: =+K69/(1+discount_rate_outcomes) -> 0.9563169937 | L70: =+c_KIVA_maintenance*$G70*$J70 -> 92.87857174 | M70: =+c_KIVA_maintenance*$H70*$J70 -> 1.563840433 | N70: =+c_KIVA_maintenance*$I70*$J70 -> 13.79071251 | O70: =SUM(L70:N70) -> 108.2331247 | P70: =+c_CAMH_not_bullied*$G70*$J70 -> 3958.600826 | Q70: =+bullying_model!c_CAMH_intense_bullied*$H70*$J70 -> 333.2641704 | R70: =+c_CAMH_not_bullied*$I70*$J70 -> 587.7774056 | S70: =SUM(P70:R70) -> 4879.642402 | T70: =+bullying_model!c_GP_not_bullied*$G70*$J70 -> 16.09121255 | U70: =+bullying_model!c_GP_intense*$H70*$J70 -> 1.354676775 | V70: =+bullying_model!C_gp_intermittent*$I70*$J70 -> 4.778481885 | W70: =SUM(T70:V70) -> 22.22437121 | X70: =+bullying_model!c_absence_not_bullied*$G70*$J70 -> 0 | Y70: =+bullying_model!c_absence_bullied*$H70*$J70 -> 116.3726646 | Z70: =+bullying_model!c_absence_intermittent*$I70*$J70 -> 513.1156373 | AA70: =SUM(X70:Z70) -> 629.4883019 | AB70: 0 | AC70: =+bullying_model!c_self_harm*$H70*$J70 -> 100.8897581 | AD70: 0 | AE70: =SUM(AB70:AD70) -> 100.8897581 | AF70: =+population*$G70*$K70 -> 164.1297094 | AG70: 0 | AH70: =+population*0.5*$I70*$K70 -> 12.18507991 | AI70: =SUM(AF70:AH70) -> 176.3147893 | AM70: 4 | AO70: =1+AO69 -> 4 | AP70: =+($J$20*$AP69)+($J$21*$AQ69)+($J$22*$AR69) -> 0.82473216 | AQ70: =+($K$20*$AP69)+($K$21*$AQ69)+($K$22*AR69) -> 0.02129408 | AR70: =+($L$20*$AP69)+($L$21*$AQ69)+($L$22*$AR69) -> 0.15397376 | AS70: 0.9019427057 | AT70: =+AT69/(1+discount_rate_outcomes) -> 0.9563169937 | AU70: =+c_CAMH_not_bullied*$AP70*$AS70 -> 3804.515075 | AV70: =+bullying_model!c_CAMH_intense_bullied*$AQ70*$AS70 -> 491.1512627 | AW70: =+c_CAMH_not_bullied*$AR70*$AS70 -> 710.2857381 | AX70: =SUM(AU70:AW70) -> 5005.952075 | AZ70: =+bullying_model!c_GP_not_bullied*$AP70*$AS70 -> 15.46487343 | BA70: =+bullying_model!c_GP_intense*$AQ70*$AS70 -> 1.996467872 | BB70: =+bullying_model!C_gp_intermittent*$AR70*$AS70 -> 5.774443693 | BC70: =SUM(AZ70:BB70) -> 23.23578499 | BD70: =+bullying_model!c_absence_not_bullied*$AP70*$AS70 -> 0 | BE70: =+bullying_model!c_absence_bullied*$AQ70*$AS70 -> 171.5053289 | BF70: =+bullying_model!c_absence_intermittent*$AR70*$AS70 -> 620.0624857 | BG70: =SUM(BD70:BF70) -> 791.5678146 | BH70: 0 | BI70: =+bullying_model!c_self_harm*$AQ70*$AS70 -> 148.6872472 | BJ70: 0 | BK70: =SUM(BH70:BJ70) -> 148.6872472 | BL70: =+population*$AP70*$AT70 -> 157.741076 | BM70: 0 | BN70: =+population*0.5*$AR70*$AT70 -> 14.72477233 | BO70: =SUM(BL70:BN70) -> 172.4658483
F71: =1+F70 -> 5 | J71: 0.8714422277 | AM71: 5 | AS71: 0.8714422277
F72: 6 | J72: 0.8419731669 | AM72: 6 | AS72: 0.8419731669
F73: 7 | J73: 0.8135006443 | AM73: 7 | AS73: 0.8135006443
F74: 8 | J74: 0.7859909607 | AM74: 8 | AS74: 0.7859909607
F75: 9 | J75: 0.7594115562 | AM75: 9 | AS75: 0.7594115562
F76: 10 | J76: 0.7337309722 | AM76: 10 | AS76: 0.7337309722
F77: 11 | J77: 0.7089188137 | AJ77: =+population*$H$70*wage_diff_intense*J77 -> 5539.434431 | AL77: =SUM(AJ77:AK77) -> 5539.434431 | AM77: 11 | AS77: 0.7089188137 | BO77: =SUM(BL77:BN77) -> 0 | BP77: =+population*$AQ$70*wage_diff_intense*AS77 -> 8163.794543 | BR77: =SUM(BP77:BQ77) -> 8163.794543
F78: 12 | J78: 0.6849457137 | AJ78: =+population*$H$70*wage_diff_intense*J78 -> 5352.110561 | AL78: =SUM(AJ78:AK78) -> 5352.110561 | AM78: 12 | AS78: 0.6849457137 | BO78: =SUM(BL78:BN78) -> 0 | BP78: =+population*$AQ$70*wage_diff_intense*AS78 -> 7887.724196 | BR78: =SUM(BP78:BQ78) -> 7887.724196
F79: 13 | J79: 0.6617832983 | AJ79: =+population*$H$70*wage_diff_intense*J79 -> 5171.121315 | AL79: 5171.121315 | AM79: 13 | AS79: 0.6617832983 | BP79: =+population*$AQ$70*wage_diff_intense*AS79 -> 7620.989561 | BR79: 7620.989561
F80: 14 | J80: 0.6394041529 | AJ80: =+population*$H$70*wage_diff_intense*J80 -> 4996.252478 | AL80: 4996.252478 | AM80: 14 | AS80: 0.6394041529 | BP80: =+population*$AQ$70*wage_diff_intense*AS80 -> 7363.274938 | BR80: 7363.274938
O82: =SUM(O67:O77) -> 656.1964377 | P82: =SUM(P67:P80) -> 16808.55642 | Q82: =SUM(Q67:Q80) -> 840.2351484 | S82: =SUM(S67:S80) -> 20115.85054 | W82: =SUM(W67:W80) -> 91.79667589 | X82: =SUM(X67:X80) -> 0 | Y82: =SUM(Y67:Y77) -> 293.4020869 | Z82: =SUM(Z67:Z80) -> 2153.683559 | AA82: 2447.085646 | AB82: 0 | AC82: 254.3661408 | AD82: 0 | AE82: 254.3661408 | AI82: =SUM(AI67:AI80) -> 725.9558452 | AJ82: =SUM(AJ67:AJ80) -> 21058.91878 | AL82: =SUM(AL67:AL80) -> 21058.91878 | AN82: TOTALS | AP82: =SUM(AP68:AP77) -> 2.49398016 | AQ82: =SUM(AQ68:AQ77) -> 0.05227008 | AX82: =SUM(AX67:AX80) -> 20436.71737 | AY82: 10229.1 | BC82: 95.20424498 | BG82: =SUM(BG67:BG80) -> 3038.843858 | BH82: =SUM(BH67:BH80) -> 0 | BI82: =SUM(BI67:BI80) -> 375.786997 | BJ82: =SUM(BJ67:BJ80) -> 0 | BK82: =SUM(BK67:BK76) -> 375.786997 | BO82: =SUM(BO67:BO80) -> 712.2793842 | BP82: =SUM(BP67:BP80) -> 31035.78324 | BR82: =SUM(BR67:BR80) -> 31035.78324
O84: =SUM(L82:L82) -> 0

Sheet Workplace_Wellbeing_Contents
A1: Investing in a Workplace Wellbeing programme
A3: Click on links below for further information about the intervention, adjust the values of some model parameters or see results
A5: About the wellbeing programme
A7: Check and/or adjust model parameters
A9: Summary of Return on Investment
A11: Summary of Return on Investment: Payoffs to Different Sectors
A13: Return to Intervention Choice Menu

Sheet Wellbeing_Background
A1: Investing in a Workplace Wellbeing programme
A6: Target: | B6: Universal workplace wellbeing programme | C6: Return to Workplace Wellbeing Contents Page
C7: Return to Intervention Choice Menu
A8: Intervention: | B8: Multi-component workplace wellbeing programme
A10: Outcome evidence | B10: Based on results of a peer reviewed publication of findings from a randomised control of programme in a UK workplace
A12: Economic Pay Offs | B12: Impacts on presenteeism and absenteeism work, as well as contact with GPs
A14: Findings | B14: Outcomes over 1 year period and costs to workplace estimated.

Sheet Wellbeing_Parameters
A1: Investing in a Workplace Wellbeing programme: Checking and/or Adjusting Model Parameters
A4: You can use your own values rather than the model's predefined assumptions by inputing these into one or more of the blue coloured cells | B4: Area selected: | C4: Workplace
C6: Return to Workplace Wellbeing Contents Page
C7: Return to Intervention Choice Menu
A8: Intervention Costs
B10: Default | C10: Input your own value for costs if desired
A11: Costs of workplace wellbeing programme per worker | B11: 82.1
A13: Other Costs
B15: Default | C15: Input your own value for costs if desired
A16: Average hourly wage | B16: 17.91
A18: Other parameters
B20: Default | C20: Input your own values if desired
A21: Probability of uptake of wellbeing programme | B21: 0.1
A22: Number of employees in workplace | B22: 500
A24: Information on working age population in area
A25: =+'Intervention Choice'!C5 -> --- Model default values | B25: =VLOOKUP(+'Intervention Choice'!C5,Population_18_67!D6:BC382,52) -> 0 | C25: Population aged 18-67
A27: Return to Workplace Wellbeing Contents Page
A29: Return to Intervention Choice Menu

Sheet Wellbeing_ROI
A1: ROI: Workplace Wellbeing Programme
A4: Return on Investment from Wellness programme
A6: Area Selected: | C6: Return to Workplace Wellbeing Contents Page
A7: Workplace | C7: Return to Intervention Choice Menu
A9: Total Net Costs / Payoffs (Default values 2015 prices)
B11: Year 1 | C11: Total Cost / Saving
A12: Incremental cost of wellbeing programme | B12: =+B25-B37 -> 41050 | C12: =SUM(B12:B12) -> 41050
A14: Absenteeism-related productivity losses avoided | B14: =+B26-B38 -> -27079.92 | C14: =SUM(B14:B14) -> -27079.92
A15: Presenteeism-related productivity losses avoided | B15: =+B27-B39 -> -67914.72 | C15: =SUM(B15:B15) -> -67914.72
A16: GP Visits Avoided | B16: =+B28-B40 -> -2250 | C16: =SUM(B16:B16) -> -2250
A18: Total costs avoided | B18: =SUM(B14:B16) -> -97244.64 | C18: =SUM(C14:C16) -> -97244.64
A19: Net savings | B19: =+B18+B12 -> -56194.64 | C19: =+C18+C12 -> -56194.64
A20: Overall Return per Pound Invested | B20: =+(B18/B12)*-1 -> 2.368931547 | C20: =+(C18/C12)*-1 -> 2.368931547
A23: Costs of Wellbeing Cohort
B24: Year 1 | C24: Total
A25: Incremental cost of wellbeing programme | B25: =+Wellbeing_Model!I19 -> 41050 | C25: =SUM(B25:B25) -> 41050
A26: Absenteeism avoided | B26: =+Wellbeing_Model!J19 -> -27079.92 | C26: =SUM(B26:B26) -> -27079.92
A27: Presenteeism avoided | B27: =+Wellbeing_Model!K19 -> -67914.72 | C27: =SUM(B27:B27) -> -67914.72
A28: GP Visits Avoided | B28: =+Wellbeing_Model!L19 -> -2250 | C28: =SUM(B28:B28) -> -2250
A32: Total cost | B32: =SUM(B25:B31) -> -56194.64 | C32: =SUM(C25:C31) -> -56194.64
A35: Costs of No Intervention Cohort
B36: Year 1 | C36: Total
A37: Usual intervention | B37: 0 | C37: =SUM(B37:B37) -> 0
A38: Absenteeism avoided | B38: 0 | C38: =SUM(B38:B38) -> 0
A39: Presenteeism avoided | B39: 0 | C39: =SUM(B39:B39) -> 0
A40: GP Visits Avoided | B40: 0 | C40: =SUM(B40:B40) -> 0
A42: Total cost usual care | B42: =SUM(B37:B41) -> 0 | C42: =SUM(C37:C41) -> 0
A45: Return to Workplace Wellbeing Contents Page
A47: Return to Intervention Choice Menu

Sheet Wellbeing_ROI_by_sector
A1: ROI: Workplace Wellbeing Programme
A5: Area Selected: | C5: Return to Workplace Wellbeing Contents Page
A6: Workplace | C6: Return to Intervention Choice Menu
A8: Total Net Costs / Payoffs to Different Sectors (Default values 2015 prices)
B10: Year 1 | C10: Total Cost / Saving
A11: Initial investment | B11: =+Wellbeing_Model!I19 -> 41050 | C11: =SUM(B11:B11) -> 41050
A13: Employer | B13: =+B28-B35 -> -94994.64 | C13: =SUM(B13:B13) -> -94994.64
A14: NHS | B14: =+B29-B36 -> -2250 | C14: =SUM(B14:B14) -> -2250
A16: Total cost avoided | B16: =SUM(B13:B15) -> -97244.64 | C16: =SUM(C13:C15) -> -97244.64
A17: Overall Return per Pound Invested | B17: =+(B16/B11) -> -2.368931547 | C17: =+(C16/C11) -> -2.368931547
A19: Cumulative ROI by sector:
B20: Year 1 | C20: Total Cost / Saving
A21: Employer | B21: =+(B13/B11)*-1 -> 2.314120341 | C21: =SUM(B21:B21) -> 2.314120341
A22: NHS | B22: =+(B14/B11)*-1 -> 0.05481120585 | C22: =SUM(B22:B22) -> 0.05481120585
A24: Total | B24: =SUM(B21:B23) -> 2.368931547 | C24: =SUM(C21:C23) -> 2.368931547
A26: Costs of Intervention Cohort
B27: Year 1 | C27: Total
A28: Employer | B28: =+Wellbeing_Model!O19 -> -94994.64 | C28: =SUM(B28:B28) -> -94994.64
A29: NHS | B29: =+Wellbeing_Model!P19 -> -2250 | C29: =SUM(B29:B29) -> -2250
A31: Total cost | B31: =SUM(B28:B30) -> -97244.64 | C31: -97244.64
A33: Costs of No Intervention Cohort
B34: Year 1 | C34: Total
A35: Employer | B35: 0 | C35: =SUM(B35:B35) -> 0
A36: GPs | B36: 0 | C36: =SUM(B36:B36) -> 0
A38: Total cost usual care | B38: =SUM(B35:B37) -> 0 | C38: =SUM(C35:C37) -> 0
A40: Return to Workplace Wellbeing Contents Page
A41: Return to Intervention Choice Menu

Sheet Wellbeing_Model (hidden)
A1: Wellbeing model
E2: =IF(Wellbeing_Parameters!$C21>0,Wellbeing_Parameters!$C21,Wellbeing_Parameters!$B21) -> 0.1
A3: Name | B3: Root Definition | I3: Cost | O3: Gross Savings by Sector
A4: average_hourly_wage | B4: =IF(Wellbeing_Parameters!$C16>0,Wellbeing_Parameters!$C16,Wellbeing_Parameters!$B16) -> 17.91
A5: c_absenteeism | B5: 4.32*average_hourly_wage*7*company_size | C5: =+B26*B4*B8*7 -> 270799.2 | G5: Wellbeing Maintained | I5: Intervention | J5: Absenteeism | K5: Productivity | L5: GP | M5: Total | O5: Employer | P5: GP
A6: c_health_promotion_programme | B6: =IF(Wellbeing_Parameters!$C11>0,Wellbeing_Parameters!$C11,Wellbeing_Parameters!$B11) -> 82.1 | D6: Mills paper £70 assume 2006 prices & use HMT deflator | G6: 1 | I6: =+G6*$B$6*$B$8*$F$8 -> 4105 | J6: =+G6*$C$5*$F$8*-1 -> -27079.92 | K6: =+G6*C18*$F$8*-1 -> -67914.72 | L6: =+C25*G6*$F$8*-1 -> -2250 | M6: =+I6+J6+K6+L6 -> -93139.64 | O6: =SUM(J6:K6) -> -94994.64 | P6: =+L6 -> -2250
A7: c_usual_care | B7: 0. | F7: Make use of care
A8: company_size | B8: =IF(Wellbeing_Parameters!$C22>0,Wellbeing_Parameters!$C22,Wellbeing_Parameters!$B22) -> 500 | F8: =+B15 -> 0.1 | G8: Wellbeing Deteriorates
A9: cost | B9: 0 | E9: Workplace Wellbeing Cohort | G9: =1-G6 -> 0 | I9: =+G9*$B$6*$B$8*$F$8 -> 0 | J9: 0 | K9: 0 | L9: 0 | M9: =+I9-J9-K9-L9 -> 0 | O9: =SUM(I9:K9) -> 0 | P9: =+L9 -> 0
A10: health_care_costs
A11: p_improve_no_action | B11: 0
A12: p_improve_no_treat_scre | B12: 0.33 | G12: Wellbeing Maintained
A13: p_improve_no_usual_care | B13: 0. | F13: Do not make use of care | G13: 0.33 | I13: =+G13*$B$6*$B$8*$F$14 -> 12191.85 | J13: 0 | K13: 0 | M13: =+I13-J13-K13-L13 -> 12191.85 | O13: 0 | P13: =+L13 -> 0
A14: p_improve_treat_scre | B14: 1 | F14: =1-B15 -> 0.9
A15: p_uptake_programme | B15: =IF(Wellbeing_Parameters!$C21<>"",Wellbeing_Parameters!$C21,Wellbeing_Parameters!$B21) -> 0.1 | G15: Wellbeing Deteriorates
A16: p_uptake_usual_care | B16: 0. | E16: (Wellbeing_Parameters!$D28>0,Wellbeing_Parameters!$D28,Wellbeing_Parameters!$C28) | G16: =1-G13 -> 0.67 | I16: =+G16*$B$6*$B$8*$F$14 -> 24753.15 | J16: 0 | K16: 0 | M16: =+I16-J16-K16-L16 -> 24753.15 | O16: 0 | P16: =+L16 -> 0
A17: prev_depression | B17: 0.067
A18: productivity_improve | B18: average_hourly_wage*6.32*12*company_size | C18: =+B4*B27*12*B8 -> 679147.2
A19: recovery_improve | B19: 0.177 | G19: Totals | I19: =SUM(I6:I16) -> 41050 | J19: =SUM(J6:J16) -> -27079.92 | K19: =SUM(K6:K16) -> -67914.72 | L19: =SUM(L6:L16) -> -2250 | M19: =SUM(M6:M16) -> -56194.64 | O19: =SUM(O6:O16) -> -94994.64 | P19: =SUM(P6:P16) -> -2250
A20: recovery_improve_scre | B20: 0.27
A21: recovery_no_improve | B21: 0
A22: work_retention_improve | B22: 0.926
A23: work_retention_not_improve | B23: 0.88
A24: unit_cost_GP | B24: 45
A25: c_GP | B25: unit_cost_GP*company_size | C25: =+B24*B8 -> 22500
A26: days_absent | B26: 4.32
A27: presenteeism_hours | B27: 6.32

Sheet Workplace_Stress_Contents
A1: Investing in a Workplace Stress programme
A3: Click on links below for further information about the intervention, adjust the values of some model parameters or see results
A5: About the workplace stress programme
A7: Check and/or adjust model parameters
A9: Summary of Return on Investment
A11: Summary of Return on Investment: Payoffs to Different Sectors
A13: Return to Intervention Choice Menu

Sheet Workplace_Stress Background
A1: Investing in a Workplace Stress programme
A6: Target: | B6: Universal provision of workplace CBT service for employees identified as being stressed | C6: Return to Workplace Stress Contents Page
A8: Intervention: | B8: Multi-component workplace stress alleviation programme including CBT | C8: Return to Intervention Choice Menu
A10: Outcome evidence | B10: Implementation of multi-component programme for local authority employees in Wales
A12: Economic Pay Offs | B12: Impacts on presenteeism, absenteeism, staff retention, as well as contact with GPs, secondary health services and local authority wellbeing services
A14: Findings | B14: Outcomes over 2 year period and costs to workplace estimated.

Sheet Workplace_Stress_Parameters
A1: Investing in a Workplace Stress programme : Checking and/or Adjusting Model Parameters
A4: You can use your own values rather than the model's predefined assumptions by inputing these into one or more of the blue coloured cells | B4: Area selected: | C4: =+A32 -> --- Model default values
C6: Return to Workplace Stress Contents Page
C7: Return to Intervention Choice Menu
A8: Intervention Costs
B10: Default | C10: Input your own value for costs if desired
A11: Costs of workplace stress programme per worker | B11: 3.4053
A13: Other Costs
B15: Default | C15: Input your own value for costs if desired
A16: Mean reduced cost of LA wellbeing services per supported worker | B16: -109.1182
A17: Mean reduced cost of mental health services per supported worker | B17: -70.4397
A19: Other parameters
B21: Default | C21: Input your own value if desired
A22: Probability of employees remaining stressed after intervention | B22: 0.87
A23: Risk of depression if stressed | B23: 0.06
A24: Probability of stressed employees being identified by HR | B24: 0.33
A25: % of employees in need of support | B25: 0.0138
A26: Discount Rate (Outcomes) | B26: 0.015
A27: Discount Rate (Costs) | B27: 0.035
A28: Number of employees in workplace | B28: 1000
A31: Information on working age population in area
A32: =+'Intervention Choice'!C5 -> --- Model default values | B32: =VLOOKUP(+'Intervention Choice'!C5,Population_18_67!D6:BC382,52) -> 0 | C32: Population aged 18-67
A35: Return to Workplace Stress Contents Page
A37: Return to Intervention Choice Menu

Sheet Workplace Stress_ROI
A1: ROI: Workplace Stress programme
A6: Area Selected: | C6: Return to Workplace Stress Contents Page
A7: Workplace | C7: Return to Intervention Choice Menu
A9: Total Net Costs / Payoffs (Default values 2015 prices)
B11: Year 1 | C11: Year 2 | D11: Total Cost / Saving
A12: Total cost of intervention | B12: =+B13+B14 -> 3493.3 | C12: =+C13+C14 -> 0 | D12: =SUM(B12:C12) -> 3493.3
A13: Set Up Costs | B13: =+B35-B55 -> 88 | C13: =+C35-C55 -> 0 | D13: =SUM(B13:C13) -> 88
A14: Running Costs | B14: =+B36-B57 -> 3405.3 | C14: 0 | D14: =SUM(B14:C14) -> 3405.3
A16: GP Visits | B16: =+B39-B59 -> -256.2298812 | C16: -253.358773 | D16: =SUM(B16:C16) -> -509.5886542
A17: Physical Care Costs | B17: -49.0934631 | C17: -48.54336082 | D17: -97.63682392
A18: Secondary Mental Health Services | B18: -200.4526428 | C18: -198.20653 | D18: -398.6591728
A19: Medications | B19: -29.05494321 | C19: -28.72937664 | D19: -57.78431985
A20: Occupational Health Services | B20: -46.01608645 | C20: -45.50046681 | D20: -91.51655326
A21: LA wellbeing services | B21: -310.5213618 | C21: -307.0419065 | D21: -617.5632684
A22: Productivity | B22: -909.4965573 | C22: -899.3054626 | D22: -1808.80202
A23: Presenteeism | B23: -783.6786931 | C23: -774.8974133 | D23: -1558.576106
A24: Retention | B24: -927.6395338 | C24: -917.2451434 | D24: -1844.884677
A26: Total cost consequences (saving if negative value) | B26: =SUM(B16:B24) -> -3512.183163 | C26: =SUM(C16:C25) -> -3472.828433 | D26: =SUM(D16:D25) -> -6985.011596
A27: Total cost | B27: =SUM(B13:B24) -> -18.88316272 | C27: =SUM(C13:C24) -> -3472.828433 | D27: =SUM(D13:D24) -> -3491.711596
A28: Cumulative Return per Pound Invested | B28: =+(B26/B12)*-1 -> 1.005405537 | C28: =+((C26+B26)/$B$12)*-1 -> 1.9995453 | D28: =+(D26/$B$12)*-1 -> 1.9995453
A29: QALYs gained | B29: =+B50-B70 -> 3.793763112 | C29: =+C50-C70 -> 3.769650553 | D29: =SUM(B29:C29) -> 7.563413665
A32: Costs of Workplace Programme
B33: Year 1 | C33: Year 2 | D33: Total
A34: Total cost intervention | B34: =+B35+B36 -> 3493.3 | C34: 0 | D34: =SUM(B34:C34) -> 3493.3
A35: Set Up Costs | B35: =+Workplace_Stressmodel!P63 -> 88 | C35: 0
A36: Running Costs | B36: =+Workplace_Stressmodel!U63 -> 3405.3 | C36: 0
A38: Costs avoided:
A39: GP Visits | B39: =+Workplace_Stressmodel!AE63 -> -256.2298812 | C39: =+Workplace_Stressmodel!AE64 -> -253.358773 | D39: =SUM(B39:C39) -> -509.5886542
A40: Physical Care Costs | B40: =+Workplace_Stressmodel!AJ63 -> -49.0934631 | C40: =+Workplace_Stressmodel!AJ64 -> -48.54336082 | D40: =SUM(B40:C40) -> -97.63682392
A41: Secondary Mental Health Services | B41: =+Workplace_Stressmodel!AO63 -> -200.4526428 | C41: =+Workplace_Stressmodel!AO64 -> -198.20653 | D41: =SUM(B41:C41) -> -398.6591728
A42: Medications | B42: =+Workplace_Stressmodel!Z63 -> -29.05494321 | C42: =+Workplace_Stressmodel!Z64 -> -28.72937664 | D42: -57.78431985
A43: Occupational Health Services | B43: =+Workplace_Stressmodel!AT63 -> -46.01608645 | C43: =+Workplace_Stressmodel!AT64 -> -45.50046681 | D43: -91.51655326
A44: LA wellbeing services | B44: =+Workplace_Stressmodel!AY63 -> -310.5213618 | C44: =+Workplace_Stressmodel!AY64 -> -307.0419065 | D44: -617.5632684
A45: Productivity | B45: =+Workplace_Stressmodel!BD63 -> -909.4965573 | C45: =+Workplace_Stressmodel!BD64 -> -899.3054626 | D45: -1808.80202
A46: Presenteeism | B46: =+Workplace_Stressmodel!BI63 -> -783.6786931 | C46: =+Workplace_Stressmodel!BI64 -> -774.8974133 | D46: -1558.576106
A47: Retention | B47: =+Workplace_Stressmodel!BN63 -> -927.6395338 | C47: =+Workplace_Stressmodel!BN64 -> -917.2451434 | D47: -1844.884677
A49: Total cost | B49: =SUM(B35:B47) -> -18.88316272 | C49: =SUM(C35:C47) -> -3472.828433 | D49: =SUM(D34:D47) -> -3491.711596
A50: QALYs gained | B50: =+Workplace_Stressmodel!BU63 -> 3.793763112 | C50: =+Workplace_Stressmodel!BU64 -> 3.769650553 | D50: =SUM(B50:C50) -> 7.563413665
A53: Costs of Usual Care Cohort
B54: Year 1 | C54: Year 2 | D54: Total
A55: Total cost intervention | B55: 0 | C55: 0 | D55: =SUM(B55:C55) -> 0
A56: Set Up Costs | B56: 0 | C56: 0 | D56: =SUM(B56:C56) -> 0
A57: Running Costs | D57: 0
A59: GP Visits | B59: 0 | C59: 0 | D59: 0
A60: Physical Care Costs | B60: 0 | C60: 0 | D60: 0
A61: Secondary Mental Health Services | B61: 0 | C61: 0 | D61: 0
A62: Medications | B62: 0 | C62: 0 | D62: 0
A63: Occupational Health Services | B63: 0 | C63: 0 | D63: 0
A64: LA wellbeing services | B64: 0 | C64: 0 | D64: 0
A65: Productivity | B65: 0 | C65: 0 | D65: 0
A66: Presenteeism | B66: 0 | C66: 0 | D66: 0
A67: Retention | B67: 0 | C67: 0 | D67: 0
A69: Total cost usual care | B69: =SUM(B55:B68) -> 0 | C69: =SUM(C55:C68) -> 0 | D69: 0
A70: QALYs gained | B70: 0 | C70: 0 | D70: =SUM(B70:C70) -> 0
A72: Return to Workplace Stress Contents Page
A74: Return to Intervention Choice Menu

Sheet Workplace_stress_ROI_by_sector
A1: ROI: Workplace Stress programme
A6: Area Selected: | C6: Return to Workplace Stress Contents Page
A7: Workplace | C7: Return to Intervention Choice Menu
A10: Total Net Costs / Payoffs to Different Sectors (Default values 2015 prices)
B12: Year 1 | C12: Year 2 | D12: Total Cost / Saving
A13: Programme cost: Workplace | B13: =+B36-B48 -> 3493.3 | C13: =+C36-C48 -> 0 | D13: =SUM(B13:C13) -> 3493.3
A14: Payoffs:
A15: NHS | B15: =+B38-B50 -> -534.8309303 | C15: =+C38-C50 -> -528.8380405 | D15: =SUM(B15:C15) -> -1063.668971
A16: Local Authority | B16: =+B39-B50 -> -310.5213618 | C16: =+C39-C50 -> -307.0419065 | D16: =SUM(B16:C16) -> -617.5632684
A17: Productivity | B17: =+B40-B51 -> -2666.830871 | C17: =+C40-C51 -> -2636.948486 | D17: =SUM(B17:C17) -> -5303.779357
A19: Total cost consequences (saving if negative value) | B19: =SUM(B15:B18) -> -3512.183163 | C19: =SUM(C15:C18) -> -3472.828433 | D19: =SUM(B19:C19) -> -6985.011596
A20: Total costs (saving if negative value) | B20: =+B13+B19 -> -18.88316272 | C20: =+C13+C19 -> -3472.828433 | D20: =SUM(B20:C20) -> -3491.711596
A21: Cumulative Return per Pound Invested | B21: =+(B19/B13)*-1 -> 1.005405537 | C21: =+((C19+B19)/$B$13)*-1 -> 1.9995453 | D21: =+(D19/D13)*-1 -> 1.9995453
A22: QALYs gained | B22: =+B43-B54 -> 3.793763112 | C22: =+C43-C54 -> 3.769650553 | D22: =SUM(B22:C22) -> 7.563413665
A25: Cumulative ROI by sector:
B26: Year 1 | C26: Year 2 | D26: Total Cost / Saving
A27: NHS | B27: =+(B15/$B$13)*-1 -> 0.153101918 | C27: =+((C15/$B$13)*-1) -> 0.1513863798 | D27: =SUM(B27:C27) -> 0.3044882978
A28: Local Authority | B28: =+(B16/$B$13)*-1 -> 0.088890551 | C28: =+((C16/$B$13)*-1) -> 0.08789451422 | D28: =SUM(B28:C28) -> 0.1767850652
A29: Productivity | B29: =+(B17/$B$13)*-1 -> 0.7634130681 | C29: =+((C17/$B$13)*-1) -> 0.7548588687 | D29: =SUM(B29:C29) -> 1.518271937
A31: Total | B31: =SUM(B27:B30) -> 1.005405537 | C31: =SUM(C27:C30) -> 0.9941397627 | D31: =SUM(D27:D30) -> 1.9995453
A34: Costs of Workplace Stress Intervention Cohort
B35: Year 1 | C35: Year 2 | D35: Total
A36: Programme cost: Workplace | B36: =+'Workplace Stress_ROI'!B12 -> 3493.3 | C36: =+'Workplace Stress_ROI'!C12 -> 0 | D36: =SUM(B36:C36) -> 3493.3
A37: Payoffs:
A38: NHS | B38: =+'Workplace Stress_ROI'!B39+'Workplace Stress_ROI'!B40+'Workplace Stress_ROI'!B41+'Workplace Stress_ROI'!B42 -> -534.8309303 | C38: =+'Workplace Stress_ROI'!C39+'Workplace Stress_ROI'!C40+'Workplace Stress_ROI'!C41+'Workplace Stress_ROI'!C42 -> -528.8380405 | D38: =SUM(B38:C38) -> -1063.668971
A39: Local Authority | B39: =+'Workplace Stress_ROI'!B44 -> -310.5213618 | C39: =+'Workplace Stress_ROI'!C44 -> -307.0419065 | D39: =SUM(B39:C39) -> -617.5632684
A40: Productivity | B40: =+'Workplace Stress_ROI'!B43+'Workplace Stress_ROI'!B45+'Workplace Stress_ROI'!B46+'Workplace Stress_ROI'!B47 -> -2666.830871 | C40: =+'Workplace Stress_ROI'!C43+'Workplace Stress_ROI'!C45+'Workplace Stress_ROI'!C46+'Workplace Stress_ROI'!C47 -> -2636.948486 | D40: =SUM(B40:C40) -> -5303.779357
A42: Total cost | B42: =SUM(B36:B41) -> -18.88316272 | C42: =SUM(C36:C41) -> -3472.828433 | D42: =SUM(B42:C42) -> -3491.711596
A43: Life Years Saved | B43: =+'Workplace Stress_ROI'!B50 -> 3.793763112 | C43: =+'Workplace Stress_ROI'!C50 -> 3.769650553 | D43: =SUM(B43:C43) -> 7.563413665
A46: Costs of Usual Care Cohort
B47: Year 1 | C47: Year 2 | D47: Total
A48: Programme cost: Workplace | B48: 0 | C48: 0 | D48: =SUM(B48:C48) -> 0
A49: Payoffs:
A50: NHS | D50: =SUM(B50:C50) -> 0
A51: Productivity | D51: =SUM(B51:C51) -> 0
A53: Total cost usual care | B53: =SUM(B48:B52) -> 0 | C53: =SUM(C48:C52) -> 0 | D53: =SUM(B53:C53) -> 0
A54: Life years saved | B54: 0 | C54: 0 | D54: =SUM(B54:C54) -> 0
A56: Return to Workplace Stress Contents Page
A57: Return to Intervention Choice Menu

Sheet Workplace_Stressmodel (hidden)
A1: Stress Model | I1: Int Markov Complete CBT Stressed | W1: Usual Care
AE2: Depressed | AF2: Not Depressed
A3: Name | F3: Stressed after complete CBT | G3: =+B15 -> 0.87 | J3: Depressed | K3: Not Depressed | AC3: Depressed | AE3: =+B14*B25 -> 0.066 | AF3: =1-AE3 -> 0.934
D4: Complete CBT | E4: =+B9 -> 0.6623 | I4: Initial Values | J4: =+p_stress_depression -> 0.06 | K4: =1-J4 -> 0.94 | AA4: Stressed after complete usual support | AB4: =+B23 -> 0.94 | AC4: Not Depressed | AE4: =+B14 -> 0.033 | AF4: =1-AE4 -> 0.967
A5: Improved | B5: 2 | C5: CBT | I5: Depressed | J5: =+p_stress_depression -> 0.06 | K5: =1-J5 -> 0.94 | W5: Complete usual support | X5: =+B10 -> 0
A6: NotImprove | B6: 5 | F6: Not stressed after complete CBT | G6: =1-G3 -> 0.13 | I6: Not Depressed | J6: =+p_depression -> 0.033 | K6: =1-J6 -> 0.967 | AE6: Depressed | AF6: Not Depressed
A7: p_improve_MI | B7: 0.5 | AA7: Not stressed after complete usual support | AB7: =1-AB4 -> 0.06 | AC7: Depressed | AE7: =+B14 -> 0.033 | AF7: =1-AE7 -> 0.967
A8: p_improve_Control | B8: 0.5 | AC8: Not Depressed | AE8: =+B14 -> 0.033 | AF8: =1-AE8 -> 0.967
A9: p_complete_CBT | B9: 0.6623
A10: p_complete_Cont | B10: 0 | AE10: Depressed | AF10: Not Depressed
A11: Cost | B11: 0 | I11: Int Markov Complete CBT Not Stressed | AC11: Depressed | AE11: =+B14*B25 -> 0.066 | AF11: =1-AE11 -> 0.934
A12: year | B12: 2 | W12: Do not complete usual support | X12: =1-X5 -> 1 | AA12: Stressed after not complete usual support | AB12: =+B22 -> 0.94 | AC12: Not Depressed | AE12: =+B14 -> 0.033 | AF12: =1-AE12 -> 0.967
F13: Complete usual support | G13: =+B10 -> 0 | J13: Depressed | K13: Not depressed
A14: p_depression | B14: 0.033 | D14: Not Complete CBT - offer usual support | E14: =1-E4 -> 0.3377 | I14: Initial Values | J14: =+p_no_stress_depression -> 0.033 | K14: =1-J14 -> 0.967 | AE14: Depressed | AF14: Not Depressed
A15: p_stress_int | B15: =IF(Workplace_Stress_Parameters!$C22>0,Workplace_Stress_Parameters!$C22,Workplace_Stress_Parameters!$B22) -> 0.87 | I15: Depressed | J15: =+p_depression -> 0.033 | K15: =1-J15 -> 0.967 | AC15: Depressed | AE15: =+B14 -> 0.033 | AF15: =1-AE15 -> 0.967
D16: (Workplace_Stress_Parameters!$D28>0,Workplace_Stress_Parameters!$D28,Workplace_Stress_Parameters!$C28) | I16: Not Depressed | J16: =+p_depression -> 0.033 | K16: =1-J16 -> 0.967 | AA16: Not stressed after not complete usual support | AB16: =1-AB12 -> 0.06 | AC16: Not Depressed | AE16: =+B14 -> 0.033 | AF16: =1-AE16 -> 0.967
R18: Complete CBT | S18: Stress | V18: Depression | X18: Cost
A19: p_no_stress_depression | B19: =+p_depression -> 0.033 | V19: 0.066 | X19: =+R21*S20*V19*$P$21*0 -> 0 | Y19: =+X25 -> 0
F20: Do not complete usual support | G20: =1-G13 -> 1 | I20: Markov Do not complete CBT then complete usual care stressed | S20: 0.87 | V20: 0.934 | X20: =+R21*S20*V20*P21 -> -25.02301592 | Y20: =+X26 -> 0
P21: =+B40 -> -46.49634 | R21: 0.6623 | S21: 0.13 | V21: 0.033 | X21: =+R21*S21*V21*P21*0 -> 0 | Y21: =+X27 -> 0
A22: p_stress | B22: 0.94 | J22: Depressed | K22: Not depressed | V22: 0.967 | X22: =+R21*S21*V22*P21 -> -3.871179861 | Y22: =+X28 -> 0
A23: p_stress_uc | B23: 0.94 | I23: Initial Values | J23: =+p_stress_depression -> 0.06 | K23: =1-J23 -> 0.94 | X23: =SUM(X19:X22) -> -28.89419578 | Y23: =+X29 -> 0
A24: p_stress_depression | B24: =IF(Workplace_Stress_Parameters!$C23>0,Workplace_Stress_Parameters!$C23,Workplace_Stress_Parameters!$B23) -> 0.06 | I24: Depressed | J24: =+p_stress_depression -> 0.06 | K24: =1-J24 -> 0.94 | S24: Complete Usual Care | T24: Stress /Not Stress
A25: rr_stress | B25: 2 | I25: Not Depressed | J25: =+p_depression -> 0.033 | K25: =1-J25 -> 0.967 | T25: 0.94 | V25: 0.033 | X25: =+R26*S26*T25*V25*P21*0 -> 0
A26: population | B26: =IF(Workplace_Stress_Parameters!$C28>0,Workplace_Stress_Parameters!$C28,Workplace_Stress_Parameters!$B28) -> 1000 | R26: =1-R21 -> 0.3377 | S26: 0 | T26: 0.06 | V26: 0.967 | X26: =+R26*S26*T26*V26*P21 -> 0
A27: c_setup_int | B27: =+unitcost_setup_int*population -> 88 | V27: 0.033 | X27: =+R26*S26*T26*V27*P21*0 -> 0
V28: 0.967 | X28: =+R26*S26*T26*V28*P21 -> 0
A29: pop_need | B29: =IF(Workplace_Stress_Parameters!$C25>0,Workplace_Stress_Parameters!$C25,Workplace_Stress_Parameters!$B25) -> 0.0138 | I29: Markov Do not complete CBT then complete usual care not stressed | X29: =SUM(X25:X28) -> 0
A30: pop_int | B30: =+population*pop_need*population_reached -> 4.554
A31: unitcost_setup_int | B31: 0.088 | J31: Depressed | K31: Not depressed | S31: 1 | T31: 0.94 | V31: 0.033 | X31: =+R26*S31*T31*V31*P21*0 -> 0
A32: u_depression | B32: 0.537 | I32: Initial Values | J32: =+p_no_stress_depression -> 0.033 | K32: =1-J32 -> 0.967 | T32: 0.06 | V32: 0.967 | X32: =+R26*S31*T31*V32*P21*0 -> 0
A33: u_no_depression | B33: 0.851 | I33: Depressed | J33: =+p_depression -> 0.033 | K33: =1-J33 -> 0.967 | V33: 0.033 | X33: =+R26*S31*T32*V33*P21*0 -> 0
A34: r | B34: 0.035 | I34: Not Depressed | J34: =+p_depression -> 0.033 | K34: =1-J34 -> 0.967 | V34: 0.967 | X34: =+R26*S31*T32*V34*P21*0 -> 0
A35: hr | B35: 0.015 | X35: =SUM(X31:X34) -> 0
A36: unitcost_GP | B36: -90.04
A37: unitcost_physicalcare | B37: -17.2516 | X37: =+X23+X29+X35 -> -28.89419578
A38: unitcost_secondaryMH | B38: =IF(Workplace_Stress_Parameters!$C17<>0,Workplace_Stress_Parameters!$C17,Workplace_Stress_Parameters!$B17) -> -70.4397 | I38: Markov Do not complete CBT then do not complete usual care stressed
A39: unitcost_drugs | B39: -10.21
A40: c_drugs | B40: =+unitcost_drugs*pop_int -> -46.49634 | J40: Depressed | K40: Not depressed
A41: c_GP | B41: =+unitcost_GP*pop_int -> -410.04216 | I41: Initial Values | J41: =+p_stress_depression -> 0.06 | K41: =1-J41 -> 0.94
A42: c_physicalcare | B42: =+unitcost_physicalhealthcare*pop_int -> -78.5637864 | I42: Depressed | J42: =+p_stress_depression -> 0.06 | K42: =1-J42 -> 0.94
A43: c_secondaryMH | B43: =+unitcost_secondaryMH*pop_int -> -320.7823938 | I43: Not Depressed | J43: =+p_depression -> 0.033 | K43: =1-J43 -> 0.967
A44: unitcost_productivity | B44: -319.6
A45: c_productivity | B45: =+unitcost_productivity*pop_int -> -1455.4584
A46: unicost_totalrunning | B46: =IF(Workplace_Stress_Parameters!$C11>0,Workplace_Stress_Parameters!$C11,Workplace_Stress_Parameters!$B11) -> 3.4053
A47: c_totalrunning | B47: =+unicost_totalrunning*population -> 3405.3 | I47: Markov Do not complete CBT then do not complete usual care not stressed
A48: unitcost_presenteeism | B48: -275.3872
A49: c_presenteeism | B49: =+unitcost_presenteeism*pop_int -> -1254.113309 | J49: Depressed | K49: Not depressed
A50: unitcost_retention | B50: -325.9755 | I50: Initial Values | J50: =+p_no_stress_depression -> 0.033 | K50: =1-J50 -> 0.967
A51: unitcost_OH | B51: -16.1702 | I51: Depressed | J51: =+p_depression -> 0.033 | K51: =1-J51 -> 0.967
A52: unitcost_LAwellbeingservice | B52: =IF(Workplace_Stress_Parameters!$C16<>0,Workplace_Stress_Parameters!$C16,Workplace_Stress_Parameters!$B16) -> -109.1182 | I52: Not Depressed | J52: =+p_depression -> 0.033 | K52: =1-J52 -> 0.967
A53: c_retention | B53: =+unitcost_retention*pop_int -> -1484.492427
A54: c_OH | B54: =+unitcost_OH*pop_int -> -73.6390908
A55: c_LAwellbeingservice | B55: =+unitcost_LAwellbeingservice*pop_int -> -496.9242828
A56: rr_CBT | B56: 0.87
A57: population_reached | B57: =IF(Workplace_Stress_Parameters!$C24<>0,Workplace_Stress_Parameters!$C24,Workplace_Stress_Parameters!$B24) -> 0.33
A58: discount_rate_costs | B58: =IF(Workplace_Stress_Parameters!$C27<>0,Workplace_Stress_Parameters!$C27,Workplace_Stress_Parameters!$B27) -> 0.035
A59: discount_rate_outcomes | B59: =IF(Workplace_Stress_Parameters!$C26<>0,Workplace_Stress_Parameters!$C26,Workplace_Stress_Parameters!$B26) -> 0.015
E60: WORKPLACE STRESS AND DEPRESSION INTERVENTION
G61: PROBABILITIES - IF STRESSED OR NOT STRESSED | L61: SET UP COSTS WORKPLACE STRESS PROGRAMME | Q61: RUNNING COST WORKPLACE STRESS PROGRAMME | V61: DRUG COST | AA61: GP VISITS | AF61: PHYSICAL HEALTH | AK61: SECONDARY MENTAL HEALTH | AP61: OCCUPATIONAL HEALTH SERVICES | AU61: LA WELLBING SERVICES | AZ61: PRODUCTIVITY | BE61: PRESENTEEISM | BJ61: RETENTION | BP61: Discount Outcomes | BQ61: QALYS GAINED
E62: YEARS | F62: YEAR | G62: DEPRESSED-STRESSED | H62: NOT DEPRESSED-STRESSED | I62: DEPRESSED-NOT STRESSED | J62: NOT DEPRESSED - NOT STRESSED | K62: discount | L62: DEPRESSED-STRESSED | M62: NOT DEPRESSED-STRESSED | N62: DEPRESSED-NOT STRESSED | O62: NOT DEPRESSED - NOT STRESSED | P62: TOTAL | Q62: DEPRESSED-STRESSED | R62: NOT DEPRESSED-STRESSED | S62: DEPRESSED-NOT STRESSED | T62: NOT DEPRESSED - NOT STRESSED | U62: TOTAL | V62: DEPRESSED-STRESSED | W62: NOT DEPRESSED-STRESSED | X62: DEPRESSED-NOT STRESSED | Y62: NOT DEPRESSED - NOT STRESSED | Z62: TOTAL | AA62: DEPRESSED-STRESSED | AB62: NOT DEPRESSED-STRESSED | AC62: DEPRESSED-NOT STRESSED | AD62: NOT DEPRESSED - NOT STRESSED | AE62: TOTAL | AF62: DEPRESSED-STRESSED | AG62: NOT DEPRESSED-STRESSED | AH62: DEPRESSED-NOT STRESSED | AI62: NOT DEPRESSED - NOT STRESSED | AJ62: TOTAL | AK62: DEPRESSED-STRESSED | AL62: NOT DEPRESSED-STRESSED | AM62: DEPRESSED-NOT STRESSED | AN62: NOT DEPRESSED - NOT STRESSED | AO62: TOTAL | AP62: DEPRESSED-STRESSED | AQ62: NOT DEPRESSED-STRESSED | AR62: DEPRESSED-NOT STRESSED | AS62: NOT DEPRESSED - NOT STRESSED | AT62: TOTAL | AU62: DEPRESSED-STRESSED | AV62: NOT DEPRESSED-STRESSED | AW62: DEPRESSED-NOT STRESSED | AX62: NOT DEPRESSED - NOT STRESSED | AY62: TOTAL | AZ62: DEPRESSED-STRESSED | BA62: NOT DEPRESSED-STRESSED | BB62: DEPRESSED-NOT STRESSED | BC62: NOT DEPRESSED - NOT STRESSED | BD62: TOTAL | BE62: DEPRESSED-STRESSED | BF62: NOT DEPRESSED-STRESSED | BG62: DEPRESSED-NOT STRESSED | BH62: NOT DEPRESSED - NOT STRESSED | BI62: TOTAL | BJ62: DEPRESSED-STRESSED | BK62: NOT DEPRESSED-STRESSED | BL62: DEPRESSED-NOT STRESSED | BM62: NOT DEPRESSED - NOT STRESSED | BN62: TOTAL | BO62: TOTAL COST | BP62: 1 | BQ62: DEPRESSED-STRESSED | BR62: NOT DEPRESSED-STRESSED | BS62: DEPRESSED-NOT STRESSED | BT62: NOT DEPRESSED - NOT STRESSED | BU62: TOTAL
F63: 1 | G63: =+$J$4 -> 0.06 | H63: =+$K$4 -> 0.94 | I63: =+$J$14 -> 0.033 | J63: =+$K$14 -> 0.967 | K63: 1 | L63: =+((p_complete_CBT*p_stress_int*c_setup_int*$G63)+($E$14*$G$13*$B$27*$G63))*$K63 -> 3.04234128 | M63: =+(($E$4*$G$3*$B$27*$H63)+($E$14*$G$13*$B$27*$H63))*$K63 -> 47.66334672 | N63: =+(($E$4*$G$6*$B$27*$I63)+($E$14*$G$20*$B$27*$I63))*$K63 -> 1.230712296 | O63: =+(($E$4*$G$6*$B$27*$J63)+($E$14*$G$20*$B$27*$J63))*$K63 -> 36.0635997 | P63: =SUM(L63:O63) -> 88 | Q63: =+((+p_complete_CBT*$G$3*$B$47*$G63)+($E$14*$G$13*$B$47*$G63))*$K63 -> 117.7282359 | R63: =+(($E$4*$G$3*$B$47*$H63)+($E$14*$G$13*$B$47*$H63))*$K63 -> 1844.409029 | S63: =+(($E$4*$G$6*$B$47*$I63)+($E$14*$G$20*$B$47*$I63))*$K63 -> 47.62437025 | T63: =+(($E$4*$G$6*$B$47*$J63)+($E$14*$G$20*$B$47*$J63))*$K63 -> 1395.538364 | U63: =SUM(Q63:T63) -> 3405.3 | W63: =+((+p_complete_CBT*+p_stress_int*+c_drugs*$H63))*$K63 -> -25.18376335 | Y63: =+(p_complete_CBT*Not_stressed_after_complete_CBT*c_drugs*$J63*$K63) -> -3.871179861 | Z63: =SUM(V63:Y63) -> -29.05494321 | AB63: =+(($E$4*$G$3*$B$41*$H63))*$K63 -> -222.0907005 | AD63: =+$E$4*$G$6*$B$41*$J63*$K63 -> -34.13918068 | AE63: =SUM(AA63:AD63) -> -256.2298812 | AG63: =+(($E$4*$G$3*$B$42*$H63))*$K63 -> -42.55242035 | AI63: =+$E$4*$G$6*$B$42*$J63*$K63 -> -6.541042752 | AJ63: =SUM(AF63:AI63) -> -49.0934631 | AL63: =+(($E$4*$G$3*$B$43*$H63))*$K63 -> -173.7450279 | AN63: =+$E$4*$G$6*$B$43*$J63*$K63 -> -26.70761489 | AO63: =SUM(AK63:AN63) -> -200.4526428 | AQ63: =+(($E$4*$G$3*$B$54*$H63))*$K63 -> -39.88506269 | AS63: =+$E$4*$G$6*$B$54*$J63*$K63 -> -6.13102376 | AT63: =SUM(AP63:AS63) -> -46.01608645 | AV63: =+(($E$4*$G$3*$B$55*$H63))*$K63 -> -269.1485726 | AX63: =+$E$4*$G$6*$B$55*$J63*$K63 -> -41.37278926 | AY63: =SUM(AU63:AX63) -> -310.5213618 | BA63: =+(($E$4*$G$3*$B$45*$H63))*$K63 -> -788.3183904 | BC63: =+$E$4*$G$6*$B$45*$J63*$K63 -> -121.1781669 | BD63: =SUM(AZ63:BC63) -> -909.4965573 | BF63: =+(($E$4*$G$3*$B$49*$H63))*$K63 -> -679.2640621 | BH63: =+$E$4*$G$6*$B$49*$J63*$K63 -> -104.414631 | BI63: =SUM(BE63:BH63) -> -783.6786931 | BK63: =+(($E$4*$G$3*$B$53*$H63))*$K63 -> -804.0440597 | BM63: =+$E$4*$G$6*$B$53*$J63*$K63 -> -123.5954741 | BN63: =SUM(BJ63:BM63) -> -927.6395338 | BO63: =+P63+U63+Z63+AE63+AJ63+AO63+AT63+AY63+BD63+BI63+Workplace_Stressmodel!BN63 -> -18.88316272 | BP63: 1 | BQ63: =(+p_complete_CBT*p_stress_int*$G63*u_depression*pop_int*$BP63)+((1-p_complete_CBT)*p_stress*$G63*u_depression*pop_int*$BP63) -> 0.1311235432 | BR63: =+(p_complete_CBT*p_stress_int*$H63*u_no_depression*pop_int*$BP63)+(((1-p_complete_CBT)*p_stress*$H$63*u_no_depression*pop_int*$BP63)) -> 3.255461427 | BS63: =+(p_complete_CBT*(1-p_stress_int)*$I63*u_depression*pop_int*$BP63)+((1-p_complete_CBT)*(1-p_stress)*$I63*u_depression*pop_int*$BP63) -> 0.008583485222 | BT63: =+(p_complete_CBT*(1-p_stress_int)*$J63*u_no_depression*pop_int*$BP63)+((1-p_complete_CBT)*(1-p_stress)*$J63*u_no_depression*pop_int*$BP63) -> 0.3985946565 | BU63: =SUM(BQ63:BT63) -> 3.793763112
F64: 2 | G64: =+($J$5*$G63)+($J$6*$H63) -> 0.03462 | H64: =+($K$5*$G63)+($K$6*$H63) -> 0.96538 | I64: =+($J$15*$I63)+(J$16*$J63) -> 0.033 | J64: =+($K$15*$I63)+($K$16*$J63) -> 0.967 | K64: =+K63/(1+discount_rate_costs) -> 0.9661835749 | P64: =SUM(L64:N64) -> 0 | U64: =SUM(Q64:S64) -> 0 | W64: =+((+p_complete_CBT*+p_stress_int*+c_drugs*$H64))*$K64 -> -24.98910624 | Y64: =+(p_complete_CBT*Not_stressed_after_complete_CBT*c_drugs*$J64*$K64) -> -3.740270397 | Z64: =SUM(V64:Y64) -> -28.72937664 | AB64: =+(($E$4*$G$3*$B$41*$H64))*$K64 -> -220.3740574 | AD64: =+$E$4*$G$6*$B$41*$J64*$K64 -> -32.98471563 | AE64: =SUM(AA64:AD64) -> -253.358773 | AG64: =+(($E$4*$G$3*$B$42*$H64))*$K64 -> -42.22351275 | AI64: =+$E$4*$G$6*$B$42*$J64*$K64 -> -6.319848069 | AJ64: =SUM(AF64:AI64) -> -48.54336082 | AL64: =+(($E$4*$G$3*$B$43*$H64))*$K64 -> -172.4020712 | AN64: =+$E$4*$G$6*$B$43*$J64*$K64 -> -25.80445883 | AO64: =SUM(AK64:AN64) -> -198.20653 | AQ64: =+(($E$4*$G$3*$B$54*$H64))*$K64 -> -39.57677235 | AS64: =+$E$4*$G$6*$B$54*$J64*$K64 -> -5.923694454 | AT64: =SUM(AP64:AS64) -> -45.50046681 | AV64: =+(($E$4*$G$3*$B$55*$H64))*$K64 -> -267.0681971 | AX64: =+$E$4*$G$6*$B$55*$J64*$K64 -> -39.97370943 | AY64: =SUM(AU64:AX64) -> -307.0419065 | BA64: =+(($E$4*$G$3*$B$45*$H64))*$K64 -> -782.2251082 | BC64: =+$E$4*$G$6*$B$45*$J64*$K64 -> -117.0803545 | BD64: =SUM(AZ64:BC64) -> -899.3054626 | BF64: =+(($E$4*$G$3*$B$49*$H64))*$K64 -> -674.0137118 | BH64: =+$E$4*$G$6*$B$49*$J64*$K64 -> -100.8837015 | BI64: =SUM(BE64:BH64) -> -774.8974133 | BK64: =+(($E$4*$G$3*$B$53*$H64))*$K64 -> -797.8292264 | BM64: =+$E$4*$G$6*$B$53*$J64*$K64 -> -119.415917 | BN64: =SUM(BJ64:BM64) -> -917.2451434 | BO64: =+P64+U64+Z64+AE64+AJ64+AO64+AT64+AY64+BD64+BI64+Workplace_Stressmodel!BN64 -> -3472.828433 | BP64: =+BP63/(1+discount_rate_outcomes) -> 0.9852216749 | BQ64: =(+p_complete_CBT*p_stress_int*$G64*u_depression*pop_int*$BP64)+((1-p_complete_CBT)*p_stress*$G64*u_depression*pop_int*$BP64) -> 0.07454018172 | BR64: =+(p_complete_CBT*p_stress_int*$H64*u_no_depression*pop_int*$BP64)+(((1-p_complete_CBT)*p_stress*$H64*u_no_depression*pop_int*$BP64)) -> 3.293949641 | BS64: =+(p_complete_CBT*(1-p_stress_int)*$I64*u_depression*pop_int*$BP64)+((1-p_complete_CBT)*(1-p_stress)*$I64*u_depression*pop_int*$BP64) -> 0.008456635686 | BT64: =+(p_complete_CBT*(1-p_stress_int)*$J64*u_no_depression*pop_int*$BP64)+((1-p_complete_CBT)*(1-p_stress)*$J64*u_no_depression*pop_int*$BP64) -> 0.3927040951 | BU64: =SUM(BQ64:BT64) -> 3.769650553
L67: =SUM(L63:L66) -> 3.04234128 | Q67: =SUM(Q63:Q66) -> 117.7282359
L70: DEPRESSED-STRESSED | M70: NOT DEPRESSED-STRESSED | N70: DEPRESSED-NOT STRESSED | O70: NOT DEPRESSED - NOT STRESSED | Q70: DEPRESSED-STRESSED | R70: NOT DEPRESSED-STRESSED | S70: DEPRESSED-NOT STRESSED | T70: NOT DEPRESSED - NOT STRESSED | BO70: =SUM(BO63:BO64) -> -3491.711596
E71: TOTALS | G71: =SUM(G64:G67) -> 0.03462 | H71: =SUM(H64:H67) -> 0.96538 | I71: =SUM(I64:I67) -> 0.033 | J71: =SUM(J64:J67) -> 0.967 | L71: =SUM(L63:L64) -> 3.04234128 | M71: =SUM(M63:M67) -> 47.66334672 | N71: 1.230712296 | O71: 36.0635997 | P71: 88 | Q71: =SUM(Q63:Q64) -> 117.7282359 | R71: =SUM(R63:R67) -> 1844.409029 | S71: =SUM(S63:S67) -> 47.62437025 | T71: =SUM(T63:T67) -> 1395.538364 | U71: =SUM(U63:U67) -> 3405.3 | V71: 0 | W71: -50.17286959 | X71: 0 | Z71: -57.78431985 | AA71: 0 | AB71: -442.4647579 | AC71: 0 | AE71: -509.5886542 | AF71: 0 | AG71: -84.7759331 | AH71: 0 | AJ71: -97.63682392 | AK71: 0 | AL71: -346.1470991 | AM71: 0 | AO71: -398.6591728 | AP71: =SUM(AP68) -> 0 | AQ71: =SUM(AQ68) -> 0 | AR71: 0 | AT71: 0 | AU71: 0 | AV71: 0 | AW71: 0 | AY71: 0 | BQ71: =SUM(BQ63:BQ66) -> 0.205663725 | BR71: =SUM(BR63:BR66) -> 6.549411068 | BS71: =SUM(BS63:BS66) -> 0.01704012091 | BT71: =SUM(BT63:BT66) -> 0.7912987516 | BU71: =SUM(BQ71:BT71) -> 7.563413665

Sheet Debt_Contents
A1: Providing support for people in debt
A3: Click on links below for further information about the intervention, adjust the values of some model parameters or see results
A5: About the debt advice and support programme
A7: Check and/or adjust model parameters
A9: Summary of Return on Investment
A11: Summary of Return on Investment: Payoffs to different sectors
A13: Return to Intervention Choice Menu

Sheet Debt_Background
A1: Providing support for people in debt
A6: Target: | B6: Adults experiencing problematic debt, but without mental health problems, who come into contact with GP surgeries | C6: Return to Debt Advice Contents Page
A8: Intervention: | B8: Free debt advice services delivered by a not-for-profit organisation provided within a GP surgery | C8: Return to Intervention Choice Page
A10: Outcome evidence | B10: Randomised controlled trial in England and surveys of individuals making use of debt advice services
A12: Economic Pay Offs | B12: Impacts on NHS, legal system costs and workplaces
A14: Findings | B14: From a health system perspective debt advice services likely to have a positive return on investment, particularly if bulk of costs of service are borne by creditors or financial industry.

Sheet Debt_Parameters
A1: Providing support for people in debt : Checking and/or Adjusting Model Parameters
A4: You can use your own values rather than the model's predefined assumptions by inputing these into one or more of the blue coloured cells | B4: Area selected: | C4: =+A32 -> --- Model default values
C6: Return to Debt Advice Contents Page
C7: Return to Intervention Choice Menu
A8: Intervention Costs
B10: Default | C10: Input your own value for costs if desired
A11: Cost per client for face to face debt advice | B11: 128
A13: Other Costs
B15: Default | C15: Input your own value for costs if desired
A16: Cost of GP debt awareness training | B16: 1050
A18: Other parameters
B20: Default | C20: Input your own value if desired
A21: Face to face advice uptake rate | B21: 0.56
A22: Probability debts become manageable with face to face intervention | B22: 0.25
A23: Increased risk of developing mental health problems with unmanageable debts | B23: 1.33
A24: Likelihood of having debt arrears in population | B24: 0.16
A25: Average debt arrears | B25: 6000
A26: Discount Rate (Costs) | B26: 0.035
A27: Discount Rate (Outcomes) | B27: 0.015
A28: Adult population | B28: 100000 | C28: =+B32 -> 0
A31: Population in selected area
A32: =+'Intervention Choice'!C5 -> --- Model default values | B32: =VLOOKUP(+'Intervention Choice'!C5,All_Population_18plus!D6:BZ382,75) -> 0 | C32: Population aged 18 and over
A35: Return to Debt Advice Contents Page
A37: Return to Intervention Choice Menu

Sheet Debt_Advice_ROI
A1: ROI: Providing support for people in debt
A5: Area Selected: | C5: Return to Debt Advice Contents Page
A6: =+'Intervention Choice'!C5 -> --- Model default values | C6: Return to Intervention Choice Menu
A9: Total Net Costs / Payoffs (Default values 2015 prices)
B11: Year 1 | C11: Year 2 | D11: Year 3 | E11: Year 4 | F11: Year 5 | G11: Total Cost / Saving
A12: Total cost intervention | B12: =+B13+B14 -> 1216180
A13: including GP Awareness Training | B13: =+B31-B46 -> 69300 | C13: 0 | D13: 0 | E13: 0 | F13: 0 | G13: =SUM(B13:F13) -> 69300
A14: including Face to Face Debt Advice Service | B14: 1146880 | C14: 0 | D14: 0 | E14: 0 | F14: 0 | G14: =SUM(B14:F14) -> 1146880
A16: GP Visits | B16: =+B34-B49 -> -44352 | C16: -38956.52174 | D16: -37639.15144 | E16: -36366.32989 | F16: -35136.55062 | G16: =SUM(B16:F16) -> -192450.5537
A17: Depression Treatment | B17: 0 | C17: -19025.59388 | D17: -20233.17832 | E17: -19904.50411 | F17: -19292.33613 | G17: =SUM(B17:F17) -> -78455.61244
A18: Legal and Debt Administration | B18: 0 | C18: -259710.1449 | D18: -250927.6763 | E18: -242442.1993 | F18: -234243.6708 | G18: =SUM(B18:F18) -> -987323.6913
A19: Workplace Stress Absence due to Debt | B19: -167531.4995 | C19: -134946.717 | D19: -129309.4163 | E19: -124665.5303 | F19: -120381.354 | G19: =SUM(B19:F19) -> -676834.5172
A20: Depression Productivity Losses | B20: 0 | C20: -299258.0125 | D20: -316052.8623 | E20: -311791.7905 | F20: -302775.4872 | G20: =SUM(B20:F20) -> -1229878.152
A22: Total cost consequences (saving if negative value) | B22: =SUM(B16:B21) -> -211883.4995 | C22: =SUM(C16:C21) -> -751896.9901 | D22: =SUM(D16:D21) -> -754162.2846 | E22: =SUM(E16:E21) -> -735170.3541 | F22: =SUM(F16:F21) -> -711829.3987 | G22: =SUM(B22:F22) -> -3164942.527
A23: Total cost | B23: =SUM(B13:B20) -> 1004296.5 | C23: =SUM(C13:C20) -> -751896.9901 | D23: =SUM(D13:D20) -> -754162.2846 | E23: =SUM(E13:E20) -> -735170.3541 | F23: =SUM(F13:F20) -> -711829.3987 | G23: =SUM(B23:F23) -> -1948762.527
A24: Cumulative Return per Pound Invested | B24: =+(B22/B12)*-1 -> 0.1742205097 | C24: =+((C22+B22)/$B$12)*-1 -> 0.7924653337 | D24: =+((D22+C22+B22)/$B$12)*-1 -> 1.412572789 | E24: =+((E22+D22+C22+B22)/$B$12)*-1 -> 2.017064191 | F24: =+((F22+E22+D22+C22+B22)/$B$12)*-1 -> 2.60236357 | G24: =+(G22/$B$12)*-1 -> 2.60236357
A25: Cumulative QALYs gained | B25: =+B41-B56 -> 0 | C25: =+C41-C56 -> 6.338971366 | D25: =+D41-D56 -> 6.874149683 | E25: =+E41-E56 -> 6.895734713 | F25: =+F41-F56 -> 6.815352304 | G25: =SUM(B25:F25) -> 26.92420807
A28: Costs of Debt Advice Cohort
B29: Year 1 | C29: Year 2 | D29: Year 3 | E29: Year 4 | F29: Year 5 | G29: Total
A30: Total cost intervention | B30: =+B31+B32 -> 1216180
A31: including GP Awareness Training | B31: =+Debt_Model!S64 -> 69300 | C31: 0 | D31: 0 | E31: 0 | F31: 0 | G31: =SUM(B31:F31) -> 69300
A32: including Face to Face Debt Advice Service | B32: =+Debt_Model!AB64 -> 1146880 | C32: 0 | D32: 0 | E32: 0 | F32: 0 | G32: =SUM(B32:F32) -> 1146880
A34: GP Visits | B34: =+Debt_Model!AL64 -> 574848 | C34: =+Debt_Model!AL65 -> 93217.3913 | D34: =+Debt_Model!AL66 -> 90065.11237 | E34: =+Debt_Model!AL67 -> 87019.43224 | F34: =+Debt_Model!AL68 -> 84076.74613 | G34: =SUM(B34:F34) -> 929226.682
A35: Depression Treatment | B35: =+Debt_Model!AQ64 -> 0 | C35: =+Debt_Model!AQ65 -> 1182521.898 | D35: =+Debt_Model!AQ66 -> 1246124.523 | E35: =+Debt_Model!AQ67 -> 1230428.128 | F35: =+Debt_Model!AQ68 -> 1195569.506 | G35: =SUM(B35:F35) -> 4854644.056
A36: Legal and Debt Administration | B36: =+Debt_Model!AV64 -> 0 | C36: =+Debt_Model!AV65 -> 621449.2754 | D36: =+Debt_Model!AV66 -> 600434.0825 | E36: =+Debt_Model!AV67 -> 580129.5483 | F36: =+Debt_Model!AV68 -> 560511.6409 | G36: =SUM(B36:F36) -> 2362524.547
A37: Workplace Stress Absence | B37: =+Debt_Model!AG64 -> 2171382.292 | C37: =+Debt_Model!AG65 -> 323935.803 | D37: =+Debt_Model!AG66 -> 310511.7703 | E37: =+Debt_Model!AG67 -> 299381.8626 | F37: =+Debt_Model!AG68 -> 289097.377 | G37: =SUM(B37:F37) -> 3394309.105
A38: Depression Productivity Losses | B38: =+Debt_Model!BA64 -> 0 | C38: =+Debt_Model!BA65 -> 4440178.629 | D38: =+Debt_Model!BA66 -> 4679024.011 | E38: =+Debt_Model!BA67 -> 4620075.098 | F38: =+Debt_Model!BA68 -> 4489178.862 | G38: =SUM(B38:F38) -> 18228456.6
A40: Total cost | B40: =SUM(B31:B39) -> 3962410.292 | C40: 6661302.997 | D40: 6926159.498 | E40: 6817034.069 | F40: 6618434.132 | G40: 30985340.99
A41: QALYs gained | B41: =+Debt_Model!BJ64 -> 13616 | C41: =+Debt_Model!BJ65 -> 13020.78419 | D41: =+Debt_Model!BJ66 -> 12793.16404 | E41: =+Debt_Model!BJ67 -> 12594.94153 | F41: =+Debt_Model!BJ68 -> 12406.42482 | G41: =SUM(B41:F41) -> 64431.31458
A44: Costs of Usual Care Cohort
B45: Year 1 | C45: Year 2 | D45: Year 3 | E45: Year 4 | F45: Year 5 | G45: Total
A46: GP Awareness Training | B46: 0 | C46: 0 | D46: 0 | E46: 0 | F46: 0 | G46: =SUM(B46:F46) -> 0
A47: Face to Face Debt Advice Service | B47: 0 | C47: 0 | D47: 0 | E47: 0 | F47: 0 | G47: =SUM(B47:F47) -> 0
A49: GP Visits | B49: =+Debt_Model!CC64 -> 619200 | C49: =+Debt_Model!CC65 -> 132173.913 | D49: =+Debt_Model!CC66 -> 127704.2638 | E49: =+Debt_Model!CC67 -> 123385.7621 | F49: =+Debt_Model!CC68 -> 119213.2967 | G49: =SUM(B49:F49) -> 1121677.236
A50: Depression Treatment | B50: =+Debt_Model!CF64 -> 0 | C50: =+Debt_Model!CF65 -> 1201547.492 | D50: =+Debt_Model!CF66 -> 1266357.701 | E50: =+Debt_Model!CF67 -> 1250332.632 | F50: =+Debt_Model!CF68 -> 1214861.843 | G50: =SUM(B50:F50) -> 4933099.668
A51: Legal and Debt Administration | B51: =+Debt_Model!CI64 -> 0 | C51: =+Debt_Model!CI65 -> 881159.4203 | D51: =+Debt_Model!CI66 -> 851361.7587 | E51: =+Debt_Model!CI67 -> 822571.7476 | F51: =+Debt_Model!CI68 -> 794755.3117 | G51: =SUM(B51:F51) -> 3349848.238
A52: Workplace Stress Absence | B52: =+Debt_Model!BZ64 -> 2338913.792 | C52: =+Debt_Model!BZ65 -> 458882.52 | D52: =+Debt_Model!BZ66 -> 439821.1866 | E52: =+Debt_Model!BZ67 -> 424047.3929 | F52: =+Debt_Model!BZ68 -> 409478.731 | G52: =SUM(B52:F52) -> 4071143.623
A53: Depression Productivity Losses | B53: =+Debt_Model!CL64 -> 0 | C53: =+Debt_Model!CL65 -> 4739436.641 | D53: =+Debt_Model!CL66 -> 4995076.873 | E53: =+Debt_Model!CL67 -> 4931866.888 | F53: =+Debt_Model!CL68 -> 4791954.349 | G53: =SUM(B53:F53) -> 19458334.75
A55: Total cost usual care | B55: =SUM(B46:B54) -> 2958113.792 | C55: =SUM(C46:C54) -> 7413199.987 | D55: =SUM(D46:D54) -> 7680321.783 | E55: =SUM(E46:E54) -> 7552204.423 | F55: =SUM(F46:F54) -> 7330263.531 | G55: =SUM(B55:F55) -> 32934103.52
A56: QALYs gained | B56: =+Debt_Model!CQ64 -> 13616 | C56: =+Debt_Model!CQ65 -> 13014.44522 | D56: =+Debt_Model!CQ66 -> 12786.28989 | E56: =+Debt_Model!CQ67 -> 12588.0458 | F56: =+Debt_Model!CQ68 -> 12399.60947 | G56: =SUM(B56:F56) -> 64404.39037
A58: Return to Debt Advice Contents Page
A60: Return to Intervention Choice Menu

Sheet Debt_ROI_by sector
A1: ROI: Providing support for people in debt
A6: Area Selected: | C6: Return to Debt Advice Contents Page
A7: =+'Intervention Choice'!C5 -> --- Model default values | C7: Return to Intervention Choice Menu
A10: Total Net Costs / Payoffs to Different Sectors (Default values 2015 prices)
B12: Year 1 | C12: Year 2 | D12: Year 3 | E12: Year 4 | F12: Year 5 | G12: Total Cost / Saving
A13: Programme cost: Finance industry, NHS, local authorities | B13: =+B37-B49 -> 1216180 | C13: =+C37-C49 -> 0 | D13: =+D37-D49 -> 0 | E13: =+E37-E49 -> 0 | F13: =+F37-F49 -> 0 | G13: =SUM(B13:F13) -> 1216180
A14: Payoffs:
A15: NHS | B15: =+B39-B51 -> -44352 | C15: -57982.11562 | D15: -57872.32976 | E15: -56270.834 | F15: -54428.88675 | G15: =SUM(B15:F15) -> -270906.1661
A16: Legal Sector | B16: 0 | C16: -259710.1449 | D16: -250927.6763 | E16: -242442.1993 | F16: -234243.6708 | G16: =SUM(B16:F16) -> -987323.6913
A17: Productivity | B17: -167531.4995 | C17: -434204.7295 | D17: -445362.2786 | E17: -436457.3208 | F17: -423156.8412 | G17: =SUM(B17:F17) -> -1906712.67
A20: Total cost consequences (saving if negative value) | B20: =SUM(B15:B19) -> -211883.4995 | C20: =SUM(C15:C19) -> -751896.9901 | D20: =SUM(D15:D19) -> -754162.2846 | E20: =SUM(E15:E19) -> -735170.3541 | F20: =SUM(F15:F19) -> -711829.3987 | G20: =SUM(B20:F20) -> -3164942.527
A21: Total costs (saving if negative value) | B21: =+B13+B20 -> 1004296.5 | C21: =+C13+C20 -> -751896.9901 | D21: =+D13+D20 -> -754162.2846 | E21: =+E13+E20 -> -735170.3541 | F21: =+F13+F20 -> -711829.3987 | G21: =SUM(B21:F21) -> -1948762.527
A22: Cumulative Return per Pound Invested | B22: =+(B20/B13)*-1 -> 0.1742205097 | C22: =+((C20+B20)/$B$13)*-1 -> 0.7924653337 | D22: =+((D20+C20+B20)/$B$13)*-1 -> 1.412572789 | E22: =+((E20+D20+C20+B20)/$B$13)*-1 -> 2.017064191 | F22: =+((F20+E20+D20+C20+B20)/$B$13)*-1 -> 2.60236357 | G22: =+(G20/G13)*-1 -> 2.60236357
A23: Cumulative QALYs gained | B23: =+B44-B56 -> 0 | C23: =+C44-C56 -> 6.338971366 | D23: =+D44-D56 -> 6.874149683 | E23: =+E44-E56 -> 6.895734713 | F23: =+F44-F56 -> 6.815352304 | G23: =SUM(B23:F23) -> 26.92420807
A26: Cumulative ROI by sector:
B27: Year 1 | C27: Year 2 | D27: Year 3 | E27: Year 4 | F27: Year 5 | G27: Total Cost / Saving
A28: NHS | B28: =+(B15/$B$13)*-1 -> 0.03646828594 | C28: =+((C15/$B$13)*-1) -> 0.04767560363 | D28: 0.04758533256 | E28: 0.04626850795 | F28: 0.04475397289 | G28: =SUM(B28:F28) -> 0.222751703
A29: Legal Sector | B29: =+(B16/$B$13)*-1 -> 0 | C29: 0.2135458114 | D29: 0.2063244555 | E29: 0.1993473 | F29: 0.1926060869 | G29: =SUM(B29:F29) -> 0.8118236538
A30: Productivity | B30: =+(B17/$B$13)*-1 -> 0.1377522238 | C30: 0.357023409 | D30: 0.366197667 | E30: 0.3588755947 | F30: 0.3479393192 | G30: =SUM(B30:F30) -> 1.567788214
A32: Total | B32: =SUM(B28:B31) -> 0.1742205097 | C32: 0.618244824 | D32: 0.620107455 | E32: 0.6044914026 | F32: 0.585299379 | G32: 2.60236357
A35: Costs of Debt Advice Cohort
B36: Year 1 | C36: Year 2 | D36: Year 3 | E36: Year 4 | F36: Year 5 | G36: Total
A37: Programme cost: Finance industry, NHS, local authorities | B37: =+Debt_Advice_ROI!B13+Debt_Advice_ROI!B14 -> 1216180 | G37: =SUM(B37:F37) -> 1216180
A38: Payoffs:
A39: NHS | B39: =+Debt_Advice_ROI!B34+Debt_Advice_ROI!B35 -> 574848 | C39: =+Debt_Advice_ROI!C34+Debt_Advice_ROI!C35 -> 1275739.29 | D39: =+Debt_Advice_ROI!D34+Debt_Advice_ROI!D35 -> 1336189.635 | E39: =+Debt_Advice_ROI!E34+Debt_Advice_ROI!E35 -> 1317447.56 | F39: =+Debt_Advice_ROI!F34+Debt_Advice_ROI!F35 -> 1279646.253 | G39: =SUM(B39:F39) -> 5783870.738
A40: Legal Sector | B40: =+Debt_Advice_ROI!B36 -> 0 | C40: =+Debt_Advice_ROI!C36 -> 621449.2754 | D40: =+Debt_Advice_ROI!D36 -> 600434.0825 | E40: =+Debt_Advice_ROI!E36 -> 580129.5483 | F40: =+Debt_Advice_ROI!F36 -> 560511.6409 | G40: =SUM(B40:F40) -> 2362524.547
A41: Productivity | B41: =+Debt_Advice_ROI!B37+Debt_Advice_ROI!B38 -> 2171382.292 | C41: =+Debt_Advice_ROI!C37+Debt_Advice_ROI!C38 -> 4764114.432 | D41: =+Debt_Advice_ROI!D37+Debt_Advice_ROI!D38 -> 4989535.781 | E41: =+Debt_Advice_ROI!E37+Debt_Advice_ROI!E38 -> 4919456.96 | F41: =+Debt_Advice_ROI!F37+Debt_Advice_ROI!F38 -> 4778276.239 | G41: =SUM(B41:F41) -> 21622765.7
A43: Total cost | B43: =SUM(B37:B42) -> 3962410.292 | C43: =SUM(C37:C42) -> 6661302.997 | D43: =SUM(D37:D42) -> 6926159.498 | E43: =SUM(E37:E42) -> 6817034.069 | F43: =SUM(F37:F42) -> 6618434.132 | G43: =SUM(B43:F43) -> 30985340.99
A44: QALYs gained | B44: =+Debt_Advice_ROI!B41 -> 13616 | C44: =+Debt_Advice_ROI!C41 -> 13020.78419 | D44: =+Debt_Advice_ROI!D41 -> 12793.16404 | E44: =+Debt_Advice_ROI!E41 -> 12594.94153 | F44: =+Debt_Advice_ROI!F41 -> 12406.42482 | G44: =SUM(B44:F44) -> 64431.31458
A47: Costs of Usual Support Cohort
B48: Year 1 | C48: Year 2 | D48: Year 3 | E48: Year 4 | F48: Year 5 | G48: Total
A49: Programme cost: Finance industry, NHS, local authorities | B49: 0 | G49: =SUM(B49:F49) -> 0
A50: Payoffs:
A51: NHS | B51: =+Debt_Advice_ROI!B49+Debt_Advice_ROI!B50 -> 619200 | C51: =+Debt_Advice_ROI!C49+Debt_Advice_ROI!C50 -> 1333721.405 | D51: =+Debt_Advice_ROI!D49+Debt_Advice_ROI!D50 -> 1394061.965 | E51: =+Debt_Advice_ROI!E49+Debt_Advice_ROI!E50 -> 1373718.394 | F51: =+Debt_Advice_ROI!F49+Debt_Advice_ROI!F50 -> 1334075.139 | G51: =SUM(B51:F51) -> 6054776.904
A52: Legal Sector | B52: =+Debt_Advice_ROI!B51 -> 0 | C52: =+Debt_Advice_ROI!C51 -> 881159.4203 | D52: =+Debt_Advice_ROI!D51 -> 851361.7587 | E52: =+Debt_Advice_ROI!E51 -> 822571.7476 | F52: =+Debt_Advice_ROI!F51 -> 794755.3117 | G52: =SUM(B52:F52) -> 3349848.238
A53: Productivity | B53: =+Debt_Advice_ROI!B52+Debt_Advice_ROI!B53 -> 2338913.792 | C53: =+Debt_Advice_ROI!C52+Debt_Advice_ROI!C53 -> 5198319.161 | D53: =+Debt_Advice_ROI!D52+Debt_Advice_ROI!D53 -> 5434898.059 | E53: =+Debt_Advice_ROI!E52+Debt_Advice_ROI!E53 -> 5355914.281 | F53: =+Debt_Advice_ROI!F52+Debt_Advice_ROI!F53 -> 5201433.08 | G53: =SUM(B53:F53) -> 23529478.37
A55: Total cost usual care | B55: =SUM(B49:B54) -> 2958113.792 | C55: =SUM(C49:C54) -> 7413199.987 | D55: =SUM(D49:D54) -> 7680321.783 | E55: =SUM(E49:E54) -> 7552204.423 | F55: =SUM(F49:F54) -> 7330263.531 | G55: =SUM(B55:F55) -> 32934103.52
A56: QALYs gained | B56: =+Debt_Advice_ROI!B56 -> 13616 | C56: =+Debt_Advice_ROI!C56 -> 13014.44522 | D56: =+Debt_Advice_ROI!D56 -> 12786.28989 | E56: =+Debt_Advice_ROI!E56 -> 12588.0458 | F56: =+Debt_Advice_ROI!F56 -> 12399.60947 | G56: =SUM(B56:F56) -> 64404.39037
A58: Return to Debt Advice Contents Page
A60: Return to Intervention Choice Menu

Sheet Debt_Model (hidden)
A1: Debt model | I1: Int Markov Face to Face & Uptake of Service
A3: Name | B3: Root Definition | F3: GP Identifies and refers | G3: =+p_GP_refer -> 1 | J3: Debt Man - MHP | K3: Debt Man - No MHP | L3: Debt Unman - MHP | M3: Debt Unman - No MHP
A4: CISR_unit_cost | F4: GP Does not refer | G4: =1-p_GP_refer -> 0 | I4: Initial Values | J4: 0 | K4: =+p_manageable_face_to_face -> 0.25 | L4: 0 | M4: =1-J4-K4-L4 -> 0.75 | R4: =+J5+L5 -> 0.33
A5: P_manageable_web | B5: 0.25 | F5: Public make use of service | G5: =+p_uptake_face_to_face -> 0.56 | I5: Debt Man - MHP | J5: =+p_depression_persists*(1-p_future_debt_action) -> 0.3003 | K5: =+(1-p_depression_persists)*(1-p_future_debt_action) -> 0.6097 | L5: =+p_depression_persists*p_future_debt_action -> 0.0297 | M5: =+(1-p_depression_persists)*(p_future_debt_action) -> 0.0603 | R5: =SUM(J5:N5) -> 1
A6: QALY | F6: Public do not make use of service | G6: =1-p_uptake_face_to_face -> 0.44 | I6: Debt Man - No MHP | J6: =+(p_developing_mental_health_problem)*(1-p_future_debt_action) -> 0.05733 | K6: =+(1-p_developing_mental_health_problem)*(1-p_future_debt_action) -> 0.85267 | L6: =+p_developing_mental_health_problem*p_future_debt_action -> 0.00567 | M6: =+(1-p_developing_mental_health_problem)*p_future_debt_action -> 0.08433 | R6: =SUM(J6:N6) -> 1
A7: adult_pop_in_debt | B7: =+adult_population*p_debt_arrears -> 16000 | I7: Debt Unman - MHP | J7: =+p_depression_persists*(1-p_future_debt_action) -> 0.3003 | K7: =+(1-p_depression_persists)*(1-p_future_debt_action) -> 0.6097 | L7: =+p_depression_persists*p_future_debt_action -> 0.0297 | M7: =+(1-p_depression_persists)*p_future_debt_action -> 0.0603 | R7: =SUM(J7:N7) -> 1
A8: adult_population | B8: =IF(Debt_Parameters!$C28>0,Debt_Parameters!$C28,Debt_Parameters!$B28) -> 100000 | I8: Debt Unman - No MHP | J8: =+p_developing_mental_health_problems_with_unmanageable_debt*(1-p_future_debt_action) -> 0.0762489 | K8: =+(1-p_developing_mental_health_problems_with_unmanageable_debt)*(1-p_future_debt_action) -> 0.8337511 | L8: =+p_developing_mental_health_problems_with_unmanageable_debt*p_future_debt_action -> 0.0075411 | M8: =+(1-p_developing_mental_health_problems_with_unmanageable_debt)*(p_future_debt_action) -> 0.0824589 | R8: =SUM(J8:N8) -> 1
A9: c
A10: cost | B10: 0
A11: cost_face_to_face | B11: =+uc_face_to_face*adult_pop_in_debt -> 2048000 | I11: Int Markov Face to Face No Uptake of Service
A12: cost_of_face_to_face_consultation
A13: cost_recovery | J13: Debt Man - MHP | K13: Debt Man - No MHP | L13: Debt Unman - MHP | M13: Debt Unman - No MHP
A14: cost_telephone | B14: uc_telephone*adult_pop_in_debt*0 | I14: Initial Values | J14: 0 | K14: =+p_manageable -> 0.14 | L14: 0 | M14: =1-J14-K14-L14 -> 0.86 | R14: =SUM(J14:N14) -> 1
A15: cost_web | B15: uc_web*adult_pop_in_debt*0 | I15: Debt Man - MHP | J15: =+p_depression_persists*(1-p_future_debt_no_action) -> 0.2673 | K15: =+(1-p_depression_persists)*(1-p_future_debt_no_action) -> 0.5427 | L15: =+p_depression_persists*p_future_debt_no_action -> 0.0627 | M15: =+(1-p_depression_persists)*(p_future_debt_no_action) -> 0.1273 | R15: =SUM(J15:N15) -> 1
A16: debt_reduction | I16: Debt Man - No MHP | J16: =+p_developing_mental_health_problem*(1-p_future_debt_no_action) -> 0.05103 | K16: =+(1-p_developing_mental_health_problem)*(1-p_future_debt_no_action) -> 0.75897 | L16: =+p_developing_mental_health_problem*p_future_debt_no_action -> 0.01197 | M16: =+(1-p_developing_mental_health_problem)*(p_future_debt_no_action) -> 0.17803 | R16: =SUM(J16:N16) -> 1
A17: diff_CISR_debt_and_non_debt | I17: Debt Unman - MHP | J17: =+p_depression_persists*(1-p_future_debt_no_action) -> 0.2673 | K17: =+(1-p_depression_persists)*(1-p_future_debt_no_action) -> 0.5427 | L17: =+p_depression_persists*p_future_debt_no_action -> 0.0627 | M17: =+(1-p_depression_persists)*p_future_debt_no_action -> 0.1273 | R17: =SUM(J17:N17) -> 1
A18: employment_rate_population | I18: Debt Unman - No MHP | J18: =+p_developing_mental_health_problems_with_unmanageable_debt*(1-p_future_debt_no_action) -> 0.0678699 | K18: =+(1-p_developing_mental_health_problems_with_unmanageable_debt)*(1-p_future_debt_no_action) -> 0.7421301 | L18: =+p_developing_mental_health_problems_with_unmanageable_debt*p_future_debt_no_action -> 0.0159201 | M18: =+(1-p_developing_mental_health_problems_with_unmanageable_debt)*(p_future_debt_no_action) -> 0.1740799 | R18: =SUM(J18:N18) -> 1
A19: c_IAPT | B19: =+uc_IAPT*adult_pop_in_debt -> 15376000
A20: c_lost_employment | B20: 0 | I20: No Int No Uptake of Service
A21: mental_health_status
A22: min_wage_per_day | B22: 50.25 | J22: Debt Man - MHP | K22: Debt Man - No MHP | L22: Debt Unman - MHP | M22: Debt Unman - No MHP
A23: non_health_costs | I23: Initial Values | J23: 0 | K23: =+p_manageable -> 0.14 | L23: 0 | M23: =1-J23-K23-L23 -> 0.86
A24: number_debt_advisors | I24: Debt Man - MHP | J24: =+p_depression_persists*(1-p_future_debt_no_action) -> 0.2673 | K24: =+(1-p_depression_persists)*(1-p_future_debt_no_action) -> 0.5427 | L24: =+p_depression_persists*p_future_debt_no_action -> 0.0627 | M24: =+(1-p_depression_persists)*(p_future_debt_no_action) -> 0.1273
A25: p_debt_arrears | B25: =IF(Debt_Parameters!$C24>0,Debt_Parameters!$C24,Debt_Parameters!$B24) -> 0.16 | I25: Debt Man - No MHP | J25: =+p_developing_mental_health_problem*(1-p_future_debt_no_action) -> 0.05103 | K25: =+(1-p_developing_mental_health_problem)*(1-p_future_debt_no_action) -> 0.75897 | L25: =+p_developing_mental_health_problem*p_future_debt_no_action -> 0.01197 | M25: =+(1-p_developing_mental_health_problem)*(p_future_debt_no_action) -> 0.17803
A26: p_developing_mental_health_problem | B26: 0.063 | I26: Debt Unman - MHP | J26: =+p_depression_persists*(1-p_future_debt_no_action) -> 0.2673 | K26: =+(1-p_depression_persists)*(1-p_future_debt_no_action) -> 0.5427 | L26: =+p_depression_persists*p_future_debt_no_action -> 0.0627 | M26: =+(1-p_depression_persists)*p_future_debt_no_action -> 0.1273
A27: p_developing_mental_health_problems_with_unmanageable_debt | B27: =+p_developing_mental_health_problem*unmanageable_debt_risk_mental_heath -> 0.08379 | I27: Debt Unman - No MHP | J27: =+p_developing_mental_health_problems_with_unmanageable_debt*(1-p_future_debt_no_action) -> 0.0678699 | K27: =+(1-p_developing_mental_health_problems_with_unmanageable_debt)*(1-p_future_debt_no_action) -> 0.7421301 | L27: =+p_developing_mental_health_problems_with_unmanageable_debt*p_future_debt_no_action -> 0.0159201 | M27: =+(1-p_developing_mental_health_problems_with_unmanageable_debt)*(p_future_debt_no_action) -> 0.1740799
A28: p_manageable | B28: 0.14
A29: p_manageable_face_to_face | B29: =IF(Debt_Parameters!$C22>0,Debt_Parameters!$C22,Debt_Parameters!$B22) -> 0.25
A30: p_manageable_telephone | B30: 0.25
A31: p_uptake_face_to_face | B31: =IF(Debt_Parameters!$C21>0,Debt_Parameters!$C21,Debt_Parameters!$B21) -> 0.56
A32: p_uptake_telephone | B32: 0.47
A33: p_uptake_web | B33: 0.47
A34: poor_mental_health
A35: stress_absenteeism | B35: 23
A36: total_debt_reduction | B36: adult_pop_in_debt*debt_reduction
A37: total_health_care_costs_avoided
A38: unmanageable_debt_risk_mental_heath | B38: =IF(Debt_Parameters!$C23>0,Debt_Parameters!$C23,Debt_Parameters!$B23) -> 1.33
A39: p_GP_refer | B39: 1
A40: u_Depression | B40: 0.537
A41: num_working_days | B41: 220
A42: p_lost_employment | B42: 0.02 | F42: =0.427*G7*c_AE_attendance*at_risk_population -> 
A43: c_lost_productivity_depression | B43: =+avg_lost_employment_depression*adult_pop_in_debt*(p_employ-p_employ_depression) -> 50631680 | F43: =#REF!*G8*c_AE_attendance*at_risk_population -> 
A44: c_lost_productivity_debt | B44: =+avg_lost_employment_depression*adult_pop_in_debt*(p_employ_depression-p_employ_debt) -> 103358464
A45: avg_days_absence_depression | F45: =SUM(F42:F43) -> 
A46: p_employ | B46: 0.745 | D46: (Debt_Parameters!$D28>0,Debt_Parameters!$D28,Debt_Parameters!$C28)
A47: p_depression_persists | B47: 0.33
A48: c_stress_absenteeism | B48: =+stress_absenteeism*avg_wage_day*adult_pop_in_debt*p_employ*irr_stress_debt -> 2719667.2
A49: uc_IAPT | B49: 961
A50: u_no_depression | B50: 0.851
A51: c_gp_training | B51: =+uc_GP_training*n_GPs_per_capita*adult_population -> 69300
A52: n_GPs_per_capita | B52: 0.00066
A53: uc_GP_training | B53: =IF(Debt_Parameters!$C16>0,Debt_Parameters!$C16,Debt_Parameters!$B16) -> 1050
A54: c_legal | B54: =+average_debt_arrears*c_debt_recovery*adult_pop_in_debt -> 4800000
A55: p_future_debt_no_action | B55: 0.19
A56: year | B56: 5
A57: p_future_debt_action | B57: 0.09
A58: uc_face_to_face | B58: =IF(Debt_Parameters!$C11>0,Debt_Parameters!$C11,Debt_Parameters!$B11) -> 128
A59: r | B59: 0.035
A60: hr | B60: 0.015
A61: uc_telephone | B61: 13 | E61: DEBT INTERVENTION | BP61: Usual care
A62: uc_web | B62: 2 | G62: PROBABILITY | Q62: GP AWARENESS TRAINING COSTS | T62: FACE TO FACE COSTS | AC62: COST STRESS ABSENTEEISM | AH62: GP VISITS | AM62: DEPRESSION TREATMENT | AR62: LEGAL COSTS | AW62: LOST PRODUCTIVITY | BH62: UTILITY | BR62: PROBABILITY | BX62: COST STRESS ABSENTEEISM | CA62: GP VISITS | CD62: DEPRESSION TREATMENT | CG62: LEGAL COSTS | CJ62: PRODUCTIVITY LOSSES | CM62: UTILITY
A63: average_debt_arrears | B63: =IF(Debt_Parameters!$C25>0,Debt_Parameters!$C25,Debt_Parameters!$B25) -> 6000 | E63: YEARS | F63: YEAR | G63: Int Debt Man - MHP | H63: Int Debt Man - No MHP | I63: Int Debt Unman - MHP | J63: Int Debt Unman - No MHP | K63: No Int Debt Man - MHP | L63: No Int Debt Man - No MHP | M63: No Int Debt Unman - MHP | N63: No Int Debt Unman - No MHP | O63: discount | P63: UTILITY DISCOUNT | Q63: TRAINED | R63: NOT TRAINED | S63: TOTAL | T63: Int Debt Man - MHP | U63: Int Debt Man - No MHP | V63: Int Debt Unman - MHP | W63: Int Debt Unman - No MHP | X63: No Int Debt Man - MHP | Y63: No Int Debt Man - No MHP | Z63: No Int Debt Unman - MHP | AA63: No Int Debt Unman - No MHP | AB63: TOTAL-INT | AC63: Int Debt Unman - MHP | AD63: Int Debt Unman - No MHP | AE63: No Int Debt Unman - MHP | AF63: No Int Debt Unman - No MHP | AG63: TOTAL | AH63: Int Debt Unman - MHP | AI63: Int Debt Unman - No MHP | AJ63: No Int Debt Unman - MHP | AK63: No Int Debt Unman - No MHP | AL63: TOTAL | AM63: Int Debt Man - MHP | AN63: Int Debt Unman - MHP | AO63: No Int Debt Man - MHP | AP63: No Int Debt Unman - MHP | AQ63: TOTAL | AR63: Int Debt Unman - MHP | AS63: Int Debt Unman - No MHP | AT63: No Int Debt Unman - MHP | AU63: No Int Debt Unman - No MHP | AV63: TOTAL | AW63: Int Debt Man - MHP | AX63: Int Debt Unman - MHP | AY63: No Int Debt Man - MHP | AZ63: No Int Debt Unman - MHP | BA63: TOTAL | BB63: Int Debt Man - MHP | BC63: Int Debt Man - No MHP | BD63: Int Debt Unman - MHP | BE63: Int Debt Unman - No MHP | BF63: No Int Debt Man - MHP | BG63: No Int Debt Man - No MHP | BH63: No Int Debt Unman - MHP | BI63: No Int Debt Unman - No MHP | BJ63: TOTAL UTILITY | BK63: TOTAL | BP63: YEARS | BQ63: YEAR | BR63: Debt Man - MHP | BS63: Debt Man - No MHP | BT63: Debt Unman - MHP | BU63: Debt Unman - No MHP | BV63: discount | BW63: utility discount | BX63: Debt Unman - MHP | BY63: Debt Unman - No MHP | BZ63: TOTAL USUAL CARE | CA63: Debt Unman - MHP | CB63: Debt Unman - No MHP | CC63: TOTAL USUAL CARE | CD63: Debt Man - MHP | CE63: Debt Unman - MHP | CF63: TOTAL USUAL CARE | CG63: Debt Unman - MHP | CH63: Debt Unman - No MHP | CI63: TOTAL USUAL CARE | CJ63: Debt Man - MHP | CK63: Debt Unman - MHP | CL63: TOTAL USUAL CARE | CM63: Debt Man - MHP | CN63: Debt Man - No MHP | CO63: Debt Unman - MHP | CP63: Debt Unman - No MHP | CQ63: TOTAL UTILITY | CR63: TOTAL COSTS
A64: avg_wage_day | B64: =496/5 -> 99.2 | F64: 1 | G64: =+$J$4 -> 0 | H64: =+$K$4 -> 0.25 | I64: =+$L$4 -> 0 | J64: =+$M$4 -> 0.75 | K64: =+$J$14 -> 0 | L64: =+$K$14 -> 0.14 | M64: =+$L$4 -> 0 | N64: =+$M$14 -> 0.86 | O64: 1 | P64: 1 | Q64: =+c_gp_training -> 69300 | R64: 0 | S64: =SUM(Q64:R64) -> 69300 | T64: =+(p_GP_refer*p_uptake_face_to_face*cost_face_to_face*$J4)+(GP_Does_not_refer*p_uptake_face_to_face*cost_face_to_face*$J4) -> 0 | U64: =+(p_GP_refer*p_uptake_face_to_face*cost_face_to_face*$K4)+(GP_Does_not_refer*p_uptake_face_to_face*cost_face_to_face*$K4) -> 286720 | V64: =+p_GP_refer*p_uptake_face_to_face*cost_face_to_face*$L4 -> 0 | W64: =+(p_GP_refer*p_uptake_face_to_face*cost_face_to_face*$M4)+(GP_Does_not_refer*p_uptake_face_to_face*cost_face_to_face*$M4) -> 860160 | X64: 0 | Y64: 0 | Z64: 0 | AA64: 0 | AB64: =SUM(T64:AA64) -> 1146880 | AC64: =+(p_GP_refer*p_uptake_face_to_face*$I64*c_stress_absenteeism*$O64)+((1-p_GP_refer)*p_uptake_face_to_face*$I64*c_stress_absenteeism*$O64) -> 0 | AD64: =+(p_GP_refer*p_uptake_face_to_face*$J64*c_stress_absenteeism*$O64)+((1-p_GP_refer)*p_uptake_face_to_face*$J64*c_stress_absenteeism*$O64) -> 1142260.224 | AE64: =+(p_GP_refer*(1-p_uptake_face_to_face)*M64*c_stress_absenteeism*$O64)+((1-p_GP_refer)*(1-p_uptake_face_to_face)*M64*c_stress_absenteeism*$O64) -> 0 | AF64: =+(p_GP_refer*(1-p_uptake_face_to_face)*N64*c_stress_absenteeism*$O64)+((1-p_GP_refer)*(1-p_uptake_face_to_face)*N64*c_stress_absenteeism*$O64) -> 1029122.068 | AG64: =SUM(AC64:AF64) -> 2171382.292 | AH64: =+(p_GP_refer*p_uptake_face_to_face*$I64*c_GP_visit*$O64)+((1-p_GP_refer)*p_uptake_face_to_face*$I64*c_GP_visit*$O64) -> 0 | AI64: =+(p_GP_refer*p_uptake_face_to_face*$J64*c_GP_visit*$O64)+((1-p_GP_refer)*p_uptake_face_to_face*$J64*c_GP_visit*$O64) -> 302400 | AJ64: =+(p_GP_refer*(1-p_uptake_face_to_face)*$M64*c_GP_visit*$O64)+((1-p_GP_refer)*(1-p_uptake_face_to_face)*$M64*c_GP_visit*$O64) -> 0 | AK64: =+(p_GP_refer*(1-p_uptake_face_to_face)*$N64*c_GP_visit*$O64)+((1-p_GP_refer)*(1-p_uptake_face_to_face)*$N64*c_GP_visit*$O64) -> 272448 | AL64: =SUM(AH64:AK64) -> 574848 | AM64: 0 | AN64: 0 | AO64: 0 | AP64: 0 | AQ64: =SUM(AM64:AP64) -> 0 | AR64: 0 | AS64: 0 | AT64: 0 | AU64: 0 | AV64: =SUM(AR64:AU64) -> 0 | AW64: 0 | AX64: 0 | AY64: 0 | AZ64: 0 | BA64: =SUM(AW64:AZ64) -> 0 | BB64: =+(p_GP_refer*p_uptake_face_to_face*$G64*u_Depression*adult_pop_in_debt*$P64)+((1-p_GP_refer)*p_uptake_face_to_face*$G64*u_Depression*adult_pop_in_debt*$P64) -> 0 | BC64: =+(p_GP_refer*p_uptake_face_to_face*$H64*u_no_depression*adult_pop_in_debt*$P64)+((1-p_GP_refer)*p_uptake_face_to_face*$H64*u_no_depression*adult_pop_in_debt*$P64) -> 1906.24 | BD64: =+(p_GP_refer*p_uptake_face_to_face*$I64*u_Depression*adult_pop_in_debt*$P64)+((1-p_GP_refer)*p_uptake_face_to_face*$I64*u_Depression*adult_pop_in_debt*$P64) -> 0 | BE64: =+(p_GP_refer*p_uptake_face_to_face*$J64*u_no_depression*adult_pop_in_debt*$O64)+((1-p_GP_refer)*p_uptake_face_to_face*$J64*u_no_depression*adult_pop_in_debt*$O64) -> 5718.72 | BF64: =+(p_GP_refer*(1-p_uptake_face_to_face)*$K64*u_Depression*adult_pop_in_debt*$P64)+((1-p_GP_refer)*(1-p_uptake_face_to_face)*$K64*u_Depression*adult_pop_in_debt*$P64) -> 0 | BG64: =+(p_GP_refer*(1-p_uptake_face_to_face)*$L64*u_no_depression*adult_pop_in_debt*$P64)+((1-p_GP_refer)*(1-p_uptake_face_to_face)*$L64*u_no_depression*adult_pop_in_debt*$P64) -> 838.7456 | BH64: =+(p_GP_refer*(1-p_uptake_face_to_face)*$M64*u_Depression*adult_pop_in_debt*$P64)+((1-p_GP_refer)*(1-p_uptake_face_to_face)*$M64*u_Depression*adult_pop_in_debt*$P64) -> 0 | BI64: =+(p_GP_refer*(1-p_uptake_face_to_face)*$N64*u_no_depression*adult_pop_in_debt*$P64)+((1-p_GP_refer)*(1-p_uptake_face_to_face)*$N64*u_no_depression*adult_pop_in_debt*$P64) -> 5152.2944 | BJ64: =SUM(BB64:BI64) -> 13616 | BK64: =+S64+AB64+AG64+AL64+AQ64+AV64+BA64 -> 3962410.292 | BQ64: 1 | BR64: =+$J$23 -> 0 | BS64: =+$K$23 -> 0.14 | BT64: =+$L$23 -> 0 | BU64: =+$M$23 -> 0.86 | BV64: 1 | BW64: 1 | BX64: =+$BT64*c_stress_absenteeism*$BV64 -> 0 | BY64: =+$BU64*c_stress_absenteeism*$BV64 -> 2338913.792 | BZ64: =SUM(BX64:BY64) -> 2338913.792 | CA64: =+$BT64*c_GP_visit*$BV64 -> 0 | CB64: =+$BU64*c_GP_visit*$BV64 -> 619200 | CC64: =SUM(CA64:CB64) -> 619200 | CD64: 0 | CE64: 0 | CF64: =SUM(CD64:CE64) -> 0 | CG64: 0 | CH64: 0 | CI64: =SUM(CG64:CH64) -> 0 | CJ64: 0 | CK64: 0 | CL64: =SUM(CJ64:CK64) -> 0 | CM64: =+$BR64*u_Depression*adult_pop_in_debt*$BW64 -> 0 | CN64: =+$BS64*u_no_depression*adult_pop_in_debt*$BW64 -> 1906.24 | CO64: =+$BT64*u_Depression*adult_pop_in_debt*$BW64 -> 0 | CP64: =+$BU64*u_no_depression*adult_pop_in_debt*$BW64 -> 11709.76 | CQ64: =SUM(CM64:CP64) -> 13616 | CR64: =+BZ64+CC64+CF64+CI64+CL64 -> 2958113.792
A65: p_employ_debt | B65: 0.304 | F65: =1+F64 -> 2 | G65: =+($J$5*$G64)+($J$6*$H64)+($J$7*$I64)+$J$8*$J64 -> 0.071519175 | H65: =+($K$5*$G64)+($K$6*$H64)+($K$7*$I64)+$K$8*$J64 -> 0.838480825 | I65: =+($L$5*$G64)+($L$6*$H64)+($L$7*$I64)+$L$8*$J64 -> 0.007073325 | J65: =+($M$5*$G64)+($M$6*$H64)+($M$7*$I64)+($M$8*$J64) -> 0.082926675 | K65: =+($J$15*$K64)+($J$16*$L64)+($J$17*$M64)+$J$18*$N64 -> 0.065512314 | L65: =+($K$15*$K64)+($K$16*$L64)+($K$17*$M64)+$K$18*$N64 -> 0.744487686 | M65: =+($L$15*$K64)+($L$16*$L64)+($L$17*$M64)+$L$18*$N64 -> 0.015367086 | N65: =+($M$15*$K64)+($M$16*$L64)+($M$17*$M64)+$M$18*$N64 -> 0.174632914 | O65: =+O64/(1+Discount_Rate_Costs) -> 0.9661835749 | P65: =+P64/(1+Discount_Rate_Outcomes) -> 0.9852216749 | AB65: =SUM(T65:AA65) -> 0 | AC65: 0 | AD65: =+(p_GP_refer*p_uptake_face_to_face*$J65*c_stress_absenteeism*$O65)+((1-p_GP_refer)*p_uptake_face_to_face*$J65*c_stress_absenteeism*$O65) -> 122027.4942 | AE65: 0 | AF65: =+(p_GP_refer*(1-p_uptake_face_to_face)*N65*c_stress_absenteeism*$O65)+((1-p_GP_refer)*(1-p_uptake_face_to_face)*N65*c_stress_absenteeism*$O65) -> 201908.3088 | AG65: =SUM(AC65:AF65) -> 323935.803 | AH65: =+(p_GP_refer*p_uptake_face_to_face*$I65*c_GP_visit*$O65)+((1-p_GP_refer)*p_uptake_face_to_face*$I65*c_GP_visit*$O65) -> 2755.521391 | AI65: =+(p_GP_refer*p_uptake_face_to_face*$J65*c_GP_visit*$O65)+((1-p_GP_refer)*p_uptake_face_to_face*$J65*c_GP_visit*$O65) -> 32305.34817 | AJ65: =+(p_GP_refer*(1-p_uptake_face_to_face)*$M65*c_GP_visit*$O65)+((1-p_GP_refer)*(1-p_uptake_face_to_face)*$M65*c_GP_visit*$O65) -> 4703.664584 | AK65: =+(p_GP_refer*(1-p_uptake_face_to_face)*$N65*c_GP_visit*$O65)+((1-p_GP_refer)*(1-p_uptake_face_to_face)*$N65*c_GP_visit*$O65) -> 53452.85715 | AL65: =SUM(AH65:AK65) -> 93217.3913 | AM65: =+(p_GP_refer*p_uptake_face_to_face*$G65*c_IAPT*$O65)+((1-p_GP_refer)*p_uptake_face_to_face*$G65*c_IAPT*$O65) -> 594995.3116 | AN65: =+(p_GP_refer*p_uptake_face_to_face*$I65*c_IAPT*$O65)+((1-p_GP_refer)*p_uptake_face_to_face*$I65*c_IAPT*$O65) -> 58845.69016 | AO65: =+(p_GP_refer*(1-p_uptake_face_to_face)*$K65*c_IAPT*$O65)+((1-p_GP_refer)*(1-p_uptake_face_to_face)*$K65*c_IAPT*$O65) -> 428231.5262 | AP65: =+(p_GP_refer*(1-p_uptake_face_to_face)*$M65*c_IAPT*$O65)+((1-p_GP_refer)*(1-p_uptake_face_to_face)*$M65*c_IAPT*$O65) -> 100449.3703 | AQ65: =SUM(AM65:AP65) -> 1182521.898 | AR65: =+(p_GP_refer*p_uptake_face_to_face*$I65*c_legal*$O65)+((1-p_GP_refer)*p_uptake_face_to_face*$I65*c_legal*$O65) -> 18370.14261 | AS65: =+(p_GP_refer*p_uptake_face_to_face*$J65*c_legal*$O65)+((1-p_GP_refer)*p_uptake_face_to_face*$J65*c_legal*$O65) -> 215368.9878 | AT65: =+(p_GP_refer*(1-p_uptake_face_to_face)*$M65*c_legal*$O65)+((1-p_GP_refer)*(1-p_uptake_face_to_face)*$M65*c_legal*$O65) -> 31357.7639 | AU65: =+(p_GP_refer*(1-p_uptake_face_to_face)*$N65*c_legal*$O65)+((1-p_GP_refer)*(1-p_uptake_face_to_face)*$N65*c_legal*$O65) -> 356352.381 | AV65: =SUM(AR65:AU65) -> 621449.2754 | AW65: =+(p_GP_refer*p_uptake_face_to_face*$G65*c_lost_productivity_depression*$O65)+((1-p_GP_refer)*p_uptake_face_to_face*$G65*c_lost_productivity_depression*$O65) -> 1959261.981 | AX65: =+(p_GP_refer*p_uptake_face_to_face*$I65*c_lost_productivity_debt*$O65)+((1-p_GP_refer)*p_uptake_face_to_face*$I65*c_lost_productivity_debt*$O65) -> 395564.5257 | AY65: =+(p_GP_refer*(1-p_uptake_face_to_face)*$K65*c_lost_productivity_depression*$O65)+((1-p_GP_refer)*(1-p_uptake_face_to_face)*$K65*c_lost_productivity_depression*$O65) -> 1410124.974 | AZ65: =+(p_GP_refer*(1-p_uptake_face_to_face)*$M65*c_lost_productivity_debt*$O65)+((1-p_GP_refer)*(1-p_uptake_face_to_face)*$M65*c_lost_productivity_debt*$O65) -> 675227.1481 | BA65: =SUM(AW65:AZ65) -> 4440178.629 | BB65: =+(p_GP_refer*p_uptake_face_to_face*$G65*u_Depression*adult_pop_in_debt*$P65)+((1-p_GP_refer)*p_uptake_face_to_face*$G65*u_Depression*adult_pop_in_debt*$P65) -> 339.0304836 | BC65: =+(p_GP_refer*p_uptake_face_to_face*$H65*u_no_depression*adult_pop_in_debt*$P65)+((1-p_GP_refer)*p_uptake_face_to_face*$H65*u_no_depression*adult_pop_in_debt*$P65) -> 6298.899262 | BD65: =+(p_GP_refer*p_uptake_face_to_face*$I65*u_Depression*adult_pop_in_debt*$P65)+((1-p_GP_refer)*p_uptake_face_to_face*$I65*u_Depression*adult_pop_in_debt*$P65) -> 33.53048739 | BE65: =+(p_GP_refer*p_uptake_face_to_face*$J65*u_no_depression*adult_pop_in_debt*$P65)+((1-p_GP_refer)*p_uptake_face_to_face*$J65*u_no_depression*adult_pop_in_debt*$P65) -> 622.9680589 | BF65: =+(p_GP_refer*(1-p_uptake_face_to_face)*$K65*u_Depression*adult_pop_in_debt*$P65)+((1-p_GP_refer)*(1-p_uptake_face_to_face)*$K65*u_Depression*adult_pop_in_debt*$P65) -> 244.0078747 | BG65: =+(p_GP_refer*(1-p_uptake_face_to_face)*$L65*u_no_depression*adult_pop_in_debt*$P65)+((1-p_GP_refer)*(1-p_uptake_face_to_face)*$L65*u_no_depression*adult_pop_in_debt*$P65) -> 4394.3404 | BH65: =+(p_GP_refer*(1-p_uptake_face_to_face)*$M65*u_Depression*adult_pop_in_debt*$P65)+((1-p_GP_refer)*(1-p_uptake_face_to_face)*$M65*u_Depression*adult_pop_in_debt*$P65) -> 57.23641506 | BI65: =+(p_GP_refer*(1-p_uptake_face_to_face)*$N65*u_no_depression*adult_pop_in_debt*$P65)+((1-p_GP_refer)*(1-p_uptake_face_to_face)*$N65*u_no_depression*adult_pop_in_debt*$P65) -> 1030.771205 | BJ65: =SUM(BB65:BI65) -> 13020.78419 | BK65: =+S65+AB65+AG65+AL65+AQ65+AV65+BA65 -> 6661302.997 | BQ65: =1+BQ64 -> 2 | BR65: =+($J$24*$BR64)+($J$25*$BS64)+($J$26*$BT64)+$J$27*$BU64 -> 0.065512314 | BS65: =+($K$24*$BR64)+($K$25*$BS64)+($K$26*$BT64)+$K$27*$BU64 -> 0.744487686 | BT65: =+($L$24*$BR64)+($L$25*$BS64)+($L$26*$BT64)+$L$27*$BU64 -> 0.015367086 | BU65: =+($M$24*$BR64)+($M$25*$BS64)+($M$26*$BT64)+$M$27*$BU64 -> 0.174632914 | BV65: =+BV64/(1+Discount_Rate_Costs) -> 0.9661835749 | BW65: =+BW64/(1+Discount_Rate_Outcomes) -> 0.9852216749 | BX65: 0 | BY65: =+$BU65*c_stress_absenteeism*$BV65 -> 458882.52 | BZ65: =SUM(BX65:BY65) -> 458882.52 | CA65: =+$BT65*c_GP_visit*$BV65 -> 10690.14678 | CB65: =+$BU65*c_GP_visit*$BV65 -> 121483.7663 | CC65: =SUM(CA65:CB65) -> 132173.913 | CD65: =+$BR65*c_IAPT*$BV65 -> 973253.4687 | CE65: =+$BT65*c_IAPT*$BV65 -> 228294.0235 | CF65: =SUM(CD65:CE65) -> 1201547.492 | CG65: =+$BT65*c_legal*$BV65 -> 71267.64522 | CH65: =+$BU65*c_legal*$BV65 -> 809891.7751 | CI65: =SUM(CG65:CH65) -> 881159.4203 | CJ65: =+$BR65*c_lost_productivity_depression*$BV65 -> 3204829.486 | CK65: =+$BT65*c_lost_productivity_debt*$BV65 -> 1534607.155 | CL65: =SUM(CJ65:CK65) -> 4739436.641 | CM65: =+$BR65*u_Depression*adult_pop_in_debt*$BW65 -> 554.5633516 | CN65: =+$BS65*u_no_depression*adult_pop_in_debt*$BW65 -> 9987.137273 | CO65: =+$BT65*u_Depression*adult_pop_in_debt*$BW65 -> 130.0827615 | CP65: =+$BU65*u_no_depression*adult_pop_in_debt*$BW65 -> 2342.66183 | CQ65: =SUM(CM65:CP65) -> 13014.44522 | CR65: =+BZ65+CC65+CF65+CI65+CL65 -> 7413199.987
A66: avg_lost_employment_depression | B66: =+num_working_days*avg_wage_day -> 21824 | F66: =1+F65 -> 3 | G66: =+($J$5*$G65)+($J$6*$H65)+($J$7*$I65)+$J$8*$J65 -> 0.0779945012 | H66: =+($K$5*$G65)+($K$6*$H65)+($K$7*$I65)+$K$8*$J65 -> 0.8320054988 | I66: =+($L$5*$G65)+($L$6*$H65)+($L$7*$I65)+$L$8*$J65 -> 0.007713741877 | J66: =+($M$5*$G65)+($M$6*$H65)+($M$7*$I65)+$M$8*$J65 -> 0.08228625812 | K66: =+($J$15*$K65)+($J$16*$L65)+($J$17*$M65)+$J$18*$N65 -> 0.07146258865 | L66: =+($K$15*$K65)+($K$16*$L65)+($K$17*$M65)+$K$18*$N65 -> 0.7385374114 | M66: =+($L$15*$K65)+($L$16*$L65)+($L$17*$M65)+$L$18*$N65 -> 0.01676282944 | N66: =+($M$15*$K65)+($M$16*$L65)+($M$17*$M65)+$M$18*$N65 -> 0.1732371706 | O66: =+O65/(1+Discount_Rate_Costs) -> 0.9335107004 | P66: =+P65/(1+Discount_Rate_Outcomes) -> 0.9706617486 | AB66: =SUM(T66:AA66) -> 0 | AC66: 0 | AD66: =+(p_GP_refer*p_uptake_face_to_face*$J66*c_stress_absenteeism*$O66)+((1-p_GP_refer)*p_uptake_face_to_face*$J66*c_stress_absenteeism*$O66) -> 116990.4482 | AE66: 0 | AF66: =+(p_GP_refer*(1-p_uptake_face_to_face)*N66*c_stress_absenteeism*$O66)+((1-p_GP_refer)*(1-p_uptake_face_to_face)*N66*c_stress_absenteeism*$O66) -> 193521.3221 | AG66: =SUM(AC66:AF66) -> 310511.7703 | AH66: =+(p_GP_refer*p_uptake_face_to_face*$I66*c_GP_visit*$O66)+((1-p_GP_refer)*p_uptake_face_to_face*$I66*c_GP_visit*$O66) -> 2903.386987 | AI66: =+(p_GP_refer*p_uptake_face_to_face*$J66*c_GP_visit*$O66)+((1-p_GP_refer)*p_uptake_face_to_face*$J66*c_GP_visit*$O66) -> 30971.84931 | AJ66: =+(p_GP_refer*(1-p_uptake_face_to_face)*$M66*c_GP_visit*$O66)+((1-p_GP_refer)*(1-p_uptake_face_to_face)*$M66*c_GP_visit*$O66) -> 4957.375309 | AK66: =+(p_GP_refer*(1-p_uptake_face_to_face)*N66*c_GP_visit*$O66)+((1-p_GP_refer)*(1-p_uptake_face_to_face)*N66*c_GP_visit*$O66) -> 51232.50077 | AL66: =SUM(AH66:AK66) -> 90065.11237 | AM66: =+(p_GP_refer*p_uptake_face_to_face*$G66*c_IAPT*$O66)+((1-p_GP_refer)*p_uptake_face_to_face*$G66*c_IAPT*$O66) -> 626923.6922 | AN66: =+(p_GP_refer*p_uptake_face_to_face*$I66*c_IAPT*$O66)+((1-p_GP_refer)*p_uptake_face_to_face*$I66*c_IAPT*$O66) -> 62003.44209 | AO66: =+(p_GP_refer*(1-p_uptake_face_to_face)*$K66*c_IAPT*$O66)+((1-p_GP_refer)*(1-p_uptake_face_to_face)*$K66*c_IAPT*$O66) -> 451329.8847 | AP66: =+(p_GP_refer*(1-p_uptake_face_to_face)*$M66*c_IAPT*$O66)+((1-p_GP_refer)*(1-p_uptake_face_to_face)*$M66*c_IAPT*$O66) -> 105867.5038 | AQ66: =SUM(AM66:AP66) -> 1246124.523 | AR66: =+(p_GP_refer*p_uptake_face_to_face*$I66*c_legal*$O66)+((1-p_GP_refer)*p_uptake_face_to_face*$I66*c_legal*$O66) -> 19355.91324 | AS66: =+(p_GP_refer*p_uptake_face_to_face*$J66*c_legal*$O66)+((1-p_GP_refer)*p_uptake_face_to_face*$J66*c_legal*$O66) -> 206478.9954 | AT66: =+(p_GP_refer*(1-p_uptake_face_to_face)*$M66*c_legal*$O66)+((1-p_GP_refer)*(1-p_uptake_face_to_face)*$M66*c_legal*$O66) -> 33049.16873 | AU66: =+(p_GP_refer*(1-p_uptake_face_to_face)*$N66*c_legal*$O66)+((1-p_GP_refer)*(1-p_uptake_face_to_face)*$N66*c_legal*$O66) -> 341550.0051 | AV66: =SUM(AR66:AU66) -> 600434.0825 | AW66: =+(p_GP_refer*p_uptake_face_to_face*$G66*c_lost_productivity_depression*$O66)+((1-p_GP_refer)*p_uptake_face_to_face*$G66*c_lost_productivity_depression*$O66) -> 2064399.049 | AX66: =+(p_GP_refer*p_uptake_face_to_face*$I66*c_lost_productivity_debt*$O66)+((1-p_GP_refer)*p_uptake_face_to_face*$I66*c_lost_productivity_debt*$O66) -> 416791.138 | AY66: =+(p_GP_refer*(1-p_uptake_face_to_face)*$K66*c_lost_productivity_depression*$O66)+((1-p_GP_refer)*(1-p_uptake_face_to_face)*$K66*c_lost_productivity_depression*$O66) -> 1486185.633 | AZ66: =+(p_GP_refer*(1-p_uptake_face_to_face)*$M66*c_lost_productivity_debt*$O66)+((1-p_GP_refer)*(1-p_uptake_face_to_face)*$M66*c_lost_productivity_debt*$O66) -> 711648.1908 | BA66: =SUM(AW66:AZ66) -> 4679024.011 | BB66: =+(p_GP_refer*p_uptake_face_to_face*$G66*u_Depression*adult_pop_in_debt*$P66)+((1-p_GP_refer)*p_uptake_face_to_face*$G66*u_Depression*adult_pop_in_debt*$P66) -> 364.2622751 | BC66: =+(p_GP_refer*p_uptake_face_to_face*$H66*u_no_depression*adult_pop_in_debt*$P66)+((1-p_GP_refer)*p_uptake_face_to_face*$H66*u_no_depression*adult_pop_in_debt*$P66) -> 6157.886528 | BD66: =+(p_GP_refer*p_uptake_face_to_face*$I66*u_Depression*adult_pop_in_debt*$P66)+((1-p_GP_refer)*p_uptake_face_to_face*$I66*u_Depression*adult_pop_in_debt*$P66) -> 36.0259393 | BE66: =+(p_GP_refer*p_uptake_face_to_face*$J66*u_no_depression*adult_pop_in_debt*$P66)+((1-p_GP_refer)*p_uptake_face_to_face*$J66*u_no_depression*adult_pop_in_debt*$P66) -> 609.0217445 | BF66: =+(p_GP_refer*(1-p_uptake_face_to_face)*$K66*u_Depression*adult_pop_in_debt*$P66)+((1-p_GP_refer)*(1-p_uptake_face_to_face)*$K66*u_Depression*adult_pop_in_debt*$P66) -> 262.2367804 | BG66: =+(p_GP_refer*(1-p_uptake_face_to_face)*$L66*u_no_depression*adult_pop_in_debt*$P66)+((1-p_GP_refer)*(1-p_uptake_face_to_face)*$L66*u_no_depression*adult_pop_in_debt*$P66) -> 4294.796936 | BH66: =+(p_GP_refer*(1-p_uptake_face_to_face)*$M66*u_Depression*adult_pop_in_debt*$P66)+((1-p_GP_refer)*(1-p_uptake_face_to_face)*$M66*u_Depression*adult_pop_in_debt*$P66) -> 61.51233121 | BI66: =+(p_GP_refer*(1-p_uptake_face_to_face)*$N66*u_no_depression*adult_pop_in_debt*$P66)+((1-p_GP_refer)*(1-p_uptake_face_to_face)*$N66*u_no_depression*adult_pop_in_debt*$P66) -> 1007.421503 | BJ66: =SUM(BB66:BI66) -> 12793.16404 | BK66: =+S66+AB66+AG66+AL66+AQ66+AV66+BA66 -> 6926159.498 | BQ66: =1+BQ65 -> 3 | BR66: =+($J$24*$BR65)+($J$25*$BS65)+($J$26*$BT65)+$J$27*$BU65 -> 0.07146258865 | BS66: =+($K$24*$BR65)+($K$25*$BS65)+($K$26*$BT65)+$K$27*$BU65 -> 0.7385374114 | BT66: =+($L$24*$BR65)+($L$25*$BS65)+($L$26*$BT65)+$L$27*$BU65 -> 0.01676282944 | BU66: =+($M$24*$BR65)+($M$25*$BS65)+($M$26*$BT65)+$M$27*$BU65 -> 0.1732371706 | BV66: =+BV65/(1+Discount_Rate_Costs) -> 0.9335107004 | BW66: =+BW65/(1+Discount_Rate_Outcomes) -> 0.9706617486 | BX66: 0 | BY66: =+$BU66*c_stress_absenteeism*$BV66 -> 439821.1866 | BZ66: =SUM(BX66:BY66) -> 439821.1866 | CA66: =+$BT66*c_GP_visit*$BV66 -> 11266.76207 | CB66: =+$BU66*c_GP_visit*$BV66 -> 116437.5017 | CC66: =SUM(CA66:CB66) -> 127704.2638 | CD66: =+$BR66*c_IAPT*$BV66 -> 1025749.738 | CE66: =+$BT66*c_IAPT*$BV66 -> 240607.9632 | CF66: =SUM(CD66:CE66) -> 1266357.701 | CG66: =+$BT66*c_legal*$BV66 -> 75111.7471 | CH66: =+$BU66*c_legal*$BV66 -> 776250.0116 | CI66: =SUM(CG66:CH66) -> 851361.7587 | CJ66: =+$BR66*c_lost_productivity_depression*$BV66 -> 3377694.621 | CK66: =+$BT66*c_lost_productivity_debt*$BV66 -> 1617382.252 | CL66: =SUM(CJ66:CK66) -> 4995076.873 | CM66: =+$BR66*u_Depression*adult_pop_in_debt*$BW66 -> 595.9926828 | CN66: =+$BS66*u_no_depression*adult_pop_in_debt*$BW66 -> 9760.902126 | CO66: =+$BT66*u_Depression*adult_pop_in_debt*$BW66 -> 139.8007528 | CP66: =+$BU66*u_no_depression*adult_pop_in_debt*$BW66 -> 2289.594326 | CQ66: =SUM(CM66:CP66) -> 12786.28989 | CR66: =+BZ66+CC66+CF66+CI66+CL66 -> 7680321.783
A67: c_debt_recovery | B67: 0.05 | F67: =1+F66 -> 4 | G67: =+($J$5*$G66)+($J$6*$H66)+($J$7*$I66)+$J$8*$J66 -> 0.07971129731 | H67: =+($K$5*$G66)+($K$6*$H66)+($K$7*$I66)+$K$8*$J66 -> 0.8302887027 | I67: =+($L$5*$G66)+($L$6*$H66)+($L$7*$I66)+$L$8*$J66 -> 0.007883534899 | J67: =+($M$5*$G66)+($M$6*$H66)+($M$7*$I66)+$M$8*$J66 -> 0.0821164651 | K67: =+($J$15*$K66)+($J$16*$L66)+($J$17*$M66)+$J$18*$N66 -> 0.0730278078 | L67: =+($K$15*$K66)+($K$16*$L66)+($K$17*$M66)+$K$18*$N66 -> 0.7369721922 | M67: =+($L$15*$K66)+($L$16*$L66)+($L$17*$M66)+$L$18*$N66 -> 0.01712997961 | N67: =+($M$15*$K66)+($M$16*$L66)+($M$17*$M66)+$M$18*$N66 -> 0.1728700204 | O67: =+O66/(1+Discount_Rate_Costs) -> 0.9019427057 | P67: =+P66/(1+Discount_Rate_Outcomes) -> 0.9563169937 | AB67: =SUM(T67:AA67) -> 0 | AC67: 0 | AD67: =+(p_GP_refer*p_uptake_face_to_face*$J67*c_stress_absenteeism*$O67)+((1-p_GP_refer)*p_uptake_face_to_face*$J67*c_stress_absenteeism*$O67) -> 112801.0097 | AE67: 0 | AF67: =+(p_GP_refer*(1-p_uptake_face_to_face)*N67*c_stress_absenteeism*$O67)+((1-p_GP_refer)*(1-p_uptake_face_to_face)*N67*c_stress_absenteeism*$O67) -> 186580.8529 | AG67: =SUM(AC67:AF67) -> 299381.8626 | AH67: =+(p_GP_refer*p_uptake_face_to_face*$I67*c_GP_visit*$O67)+((1-p_GP_refer)*p_uptake_face_to_face*$I67*c_GP_visit*$O67) -> 2866.952308 | AI67: =+(p_GP_refer*p_uptake_face_to_face*$J67*c_GP_visit*$O67)+((1-p_GP_refer)*p_uptake_face_to_face*$J67*c_GP_visit*$O67) -> 29862.74459 | AJ67: =+(p_GP_refer*(1-p_uptake_face_to_face)*$M67*c_GP_visit*$O67)+((1-p_GP_refer)*(1-p_uptake_face_to_face)*$M67*c_GP_visit*$O67) -> 4894.642417 | AK67: =+(p_GP_refer*(1-p_uptake_face_to_face)*N67*c_GP_visit*$O67)+((1-p_GP_refer)*(1-p_uptake_face_to_face)*N67*c_GP_visit*$O67) -> 49395.09292 | AL67: =SUM(AH67:AK67) -> 87019.43224 | AM67: =+(p_GP_refer*p_uptake_face_to_face*$G67*c_IAPT*$O67)+((1-p_GP_refer)*p_uptake_face_to_face*$G67*c_IAPT*$O67) -> 619056.4107 | AN67: =+(p_GP_refer*p_uptake_face_to_face*$I67*c_IAPT*$O67)+((1-p_GP_refer)*p_uptake_face_to_face*$I67*c_IAPT*$O67) -> 61225.3593 | AO67: =+(p_GP_refer*(1-p_uptake_face_to_face)*$K67*c_IAPT*$O67)+((1-p_GP_refer)*(1-p_uptake_face_to_face)*$K67*c_IAPT*$O67) -> 445618.5502 | AP67: =+(p_GP_refer*(1-p_uptake_face_to_face)*$M67*c_IAPT*$O67)+((1-p_GP_refer)*(1-p_uptake_face_to_face)*$M67*c_IAPT*$O67) -> 104527.8081 | AQ67: =SUM(AM67:AP67) -> 1230428.128 | AR67: =+(p_GP_refer*p_uptake_face_to_face*$I67*c_legal*$O67)+((1-p_GP_refer)*p_uptake_face_to_face*$I67*c_legal*$O67) -> 19113.01539 | AS67: =+(p_GP_refer*p_uptake_face_to_face*$J67*c_legal*$O67)+((1-p_GP_refer)*p_uptake_face_to_face*$J67*c_legal*$O67) -> 199084.964 | AT67: =+(p_GP_refer*(1-p_uptake_face_to_face)*$M67*c_legal*$O67)+((1-p_GP_refer)*(1-p_uptake_face_to_face)*$M67*c_legal*$O67) -> 32630.94945 | AU67: =+(p_GP_refer*(1-p_uptake_face_to_face)*$N67*c_legal*$O67)+((1-p_GP_refer)*(1-p_uptake_face_to_face)*$N67*c_legal*$O67) -> 329300.6195 | AV67: =SUM(AR67:AU67) -> 580129.5483 | AW67: =+(p_GP_refer*p_uptake_face_to_face*$G67*c_lost_productivity_depression*$O67)+((1-p_GP_refer)*p_uptake_face_to_face*$G67*c_lost_productivity_depression*$O67) -> 2038492.852 | AX67: =+(p_GP_refer*p_uptake_face_to_face*$I67*c_lost_productivity_debt*$O67)+((1-p_GP_refer)*p_uptake_face_to_face*$I67*c_lost_productivity_debt*$O67) -> 411560.8152 | AY67: =+(p_GP_refer*(1-p_uptake_face_to_face)*$K67*c_lost_productivity_depression*$O67)+((1-p_GP_refer)*(1-p_uptake_face_to_face)*$K67*c_lost_productivity_depression*$O67) -> 1467378.761 | AZ67: =+(p_GP_refer*(1-p_uptake_face_to_face)*$M67*c_lost_productivity_debt*$O67)+((1-p_GP_refer)*(1-p_uptake_face_to_face)*$M67*c_lost_productivity_debt*$O67) -> 702642.6695 | BA67: =SUM(AW67:AZ67) -> 4620075.098 | BB67: =+(p_GP_refer*p_uptake_face_to_face*$G67*u_Depression*adult_pop_in_debt*$P67)+((1-p_GP_refer)*p_uptake_face_to_face*$G67*u_Depression*adult_pop_in_debt*$P67) -> 366.7786486 | BC67: =+(p_GP_refer*p_uptake_face_to_face*$H67*u_no_depression*adult_pop_in_debt*$P67)+((1-p_GP_refer)*p_uptake_face_to_face*$H67*u_no_depression*adult_pop_in_debt*$P67) -> 6054.364609 | BD67: =+(p_GP_refer*p_uptake_face_to_face*$I67*u_Depression*adult_pop_in_debt*$P67)+((1-p_GP_refer)*p_uptake_face_to_face*$I67*u_Depression*adult_pop_in_debt*$P67) -> 36.2748114 | BE67: =+(p_GP_refer*p_uptake_face_to_face*$J67*u_no_depression*adult_pop_in_debt*$P67)+((1-p_GP_refer)*p_uptake_face_to_face*$J67*u_no_depression*adult_pop_in_debt*$P67) -> 598.783313 | BF67: =+(p_GP_refer*(1-p_uptake_face_to_face)*$K67*u_Depression*adult_pop_in_debt*$P67)+((1-p_GP_refer)*(1-p_uptake_face_to_face)*$K67*u_Depression*adult_pop_in_debt*$P67) -> 264.0201552 | BG67: =+(p_GP_refer*(1-p_uptake_face_to_face)*$L67*u_no_depression*adult_pop_in_debt*$P67)+((1-p_GP_refer)*(1-p_uptake_face_to_face)*$L67*u_no_depression*adult_pop_in_debt*$P67) -> 4222.359368 | BH67: =+(p_GP_refer*(1-p_uptake_face_to_face)*$M67*u_Depression*adult_pop_in_debt*$P67)+((1-p_GP_refer)*(1-p_uptake_face_to_face)*$M67*u_Depression*adult_pop_in_debt*$P67) -> 61.93065368 | BI67: =+(p_GP_refer*(1-p_uptake_face_to_face)*$N67*u_no_depression*adult_pop_in_debt*$P67)+((1-p_GP_refer)*(1-p_uptake_face_to_face)*$N67*u_no_depression*adult_pop_in_debt*$P67) -> 990.4299752 | BJ67: =SUM(BB67:BI67) -> 12594.94153 | BK67: =+S67+AB67+AG67+AL67+AQ67+AV67+BA67 -> 6817034.069 | BQ67: =1+BQ66 -> 4 | BR67: =+($J$24*$BR66)+($J$25*$BS66)+($J$26*$BT66)+$J$27*$BU66 -> 0.0730278078 | BS67: =+($K$24*$BR66)+($K$25*$BS66)+($K$26*$BT66)+$K$27*$BU66 -> 0.7369721922 | BT67: =+($L$24*$BR66)+($L$25*$BS66)+($L$26*$BT66)+$L$27*$BU66 -> 0.01712997961 | BU67: =+($M$24*$BR66)+($M$25*$BS66)+($M$26*$BT66)+$M$27*$BU66 -> 0.1728700204 | BV67: =+BV66/(1+Discount_Rate_Costs) -> 0.9019427057 | BW67: =+BW66/(1+Discount_Rate_Outcomes) -> 0.9563169937 | BX67: 0 | BY67: =+$BU67*c_stress_absenteeism*$BV67 -> 424047.3929 | BZ67: =SUM(BX67:BY67) -> 424047.3929 | CA67: =+$BT67*c_GP_visit*$BV67 -> 11124.18731 | CB67: =+$BU67*c_GP_visit*$BV67 -> 112261.5748 | CC67: =SUM(CA67:CB67) -> 123385.7621 | CD67: =+$BR67*c_IAPT*$BV67 -> 1012769.432 | CE67: =+$BT67*c_IAPT*$BV67 -> 237563.2001 | CF67: =SUM(CD67:CE67) -> 1250332.632 | CG67: =+$BT67*c_legal*$BV67 -> 74161.24874 | CH67: =+$BU67*c_legal*$BV67 -> 748410.4988 | CI67: =SUM(CG67:CH67) -> 822571.7476 | CJ67: =+$BR67*c_lost_productivity_depression*$BV67 -> 3334951.73 | CK67: =+$BT67*c_lost_productivity_debt*$BV67 -> 1596915.158 | CL67: =SUM(CJ67:CK67) -> 4931866.888 | CM67: =+$BR67*u_Depression*adult_pop_in_debt*$BW67 -> 600.0458072 | CN67: =+$BS67*u_no_depression*adult_pop_in_debt*$BW67 -> 9596.27129 | CO67: =+$BT67*u_Depression*adult_pop_in_debt*$BW67 -> 140.7514856 | CP67: =+$BU67*u_no_depression*adult_pop_in_debt*$BW67 -> 2250.977216 | CQ67: =SUM(CM67:CP67) -> 12588.0458 | CR67: =+BZ67+CC67+CF67+CI67+CL67 -> 7552204.423
A68: uc_GP_visit | B68: 45 | F68: =1+F67 -> 5 | G68: =+($J$5*$G67)+($J$6*$H67)+($J$7*$I67)+$J$8*$J67 -> 0.08016646957 | H68: =+($K$5*$G67)+($K$6*$H67)+($K$7*$I67)+$K$8*$J67 -> 0.8298335304 | I68: =+($L$5*$G67)+($L$6*$H67)+($L$7*$I67)+$L$8*$J67 -> 0.007928551936 | J68: =+($M$5*$G67)+($M$6*$H67)+($M$7*$I67)+$M$8*$J67 -> 0.08207144806 | K68: =+($J$15*$K67)+($J$16*$L67)+($J$17*$M67)+$J$18*$N67 -> 0.07343953854 | L68: =+($K$15*$K67)+($K$16*$L67)+($K$17*$M67)+$K$18*$N67 -> 0.7365604615 | M68: =+($L$15*$K67)+($L$16*$L67)+($L$17*$M67)+$L$18*$N67 -> 0.01722655842 | N68: =+($M$15*$K67)+($M$16*$L67)+($M$17*$M67)+$M$18*$N67 -> 0.1727734416 | O68: =+O67/(1+Discount_Rate_Costs) -> 0.8714422277 | P68: =+P67/(1+Discount_Rate_Outcomes) -> 0.9421842303 | AB68: =SUM(T68:AA68) -> 0 | AC68: 0 | AD68: =+(p_GP_refer*p_uptake_face_to_face*$J68*c_stress_absenteeism*$O68)+((1-p_GP_refer)*p_uptake_face_to_face*$J68*c_stress_absenteeism*$O68) -> 108926.7354 | AE68: 0 | AF68: =+(p_GP_refer*(1-p_uptake_face_to_face)*N68*c_stress_absenteeism*$O68)+((1-p_GP_refer)*(1-p_uptake_face_to_face)*N68*c_stress_absenteeism*$O68) -> 180170.6416 | AG68: =SUM(AC68:AF68) -> 289097.377 | AH68: =+(p_GP_refer*p_uptake_face_to_face*$I68*c_GP_visit*$O68)+((1-p_GP_refer)*p_uptake_face_to_face*$I68*c_GP_visit*$O68) -> 2785.819664 | AI68: =+(p_GP_refer*p_uptake_face_to_face*$J68*c_GP_visit*$O68)+((1-p_GP_refer)*p_uptake_face_to_face*$J68*c_GP_visit*$O68) -> 28837.07589 | AJ68: =+(p_GP_refer*(1-p_uptake_face_to_face)*$M68*c_GP_visit*$O68)+((1-p_GP_refer)*(1-p_uptake_face_to_face)*$M68*c_GP_visit*$O68) -> 4755.785902 | AK68: =+(p_GP_refer*(1-p_uptake_face_to_face)*N68*c_GP_visit*$O68)+((1-p_GP_refer)*(1-p_uptake_face_to_face)*N68*c_GP_visit*$O68) -> 47698.06467 | AL68: =SUM(AH68:AK68) -> 84076.74613 | AM68: =+(p_GP_refer*p_uptake_face_to_face*$G68*c_IAPT*$O68)+((1-p_GP_refer)*p_uptake_face_to_face*$G68*c_IAPT*$O68) -> 601537.5691 | AN68: =+(p_GP_refer*p_uptake_face_to_face*$I68*c_IAPT*$O68)+((1-p_GP_refer)*p_uptake_face_to_face*$I68*c_IAPT*$O68) -> 59492.72661 | AO68: =+(p_GP_refer*(1-p_uptake_face_to_face)*$K68*c_IAPT*$O68)+((1-p_GP_refer)*(1-p_uptake_face_to_face)*$K68*c_IAPT*$O68) -> 432976.7607 | AP68: =+(p_GP_refer*(1-p_uptake_face_to_face)*$M68*c_IAPT*$O68)+((1-p_GP_refer)*(1-p_uptake_face_to_face)*$M68*c_IAPT*$O68) -> 101562.45 | AQ68: =SUM(AM68:AP68) -> 1195569.506 | AR68: =+(p_GP_refer*p_uptake_face_to_face*$I68*c_legal*$O68)+((1-p_GP_refer)*p_uptake_face_to_face*$I68*c_legal*$O68) -> 18572.1311 | AS68: =+(p_GP_refer*p_uptake_face_to_face*$J68*c_legal*$O68)+((1-p_GP_refer)*p_uptake_face_to_face*$J68*c_legal*$O68) -> 192247.1726 | AT68: =+(p_GP_refer*(1-p_uptake_face_to_face)*$M68*c_legal*$O68)+((1-p_GP_refer)*(1-p_uptake_face_to_face)*$M68*c_legal*$O68) -> 31705.23934 | AU68: =+(p_GP_refer*(1-p_uptake_face_to_face)*$N68*c_legal*$O68)+((1-p_GP_refer)*(1-p_uptake_face_to_face)*$N68*c_legal*$O68) -> 317987.0978 | AV68: =SUM(AR68:AU68) -> 560511.6409 | AW68: =+(p_GP_refer*p_uptake_face_to_face*$G68*c_lost_productivity_depression*$O68)+((1-p_GP_refer)*p_uptake_face_to_face*$G68*c_lost_productivity_depression*$O68) -> 1980805.002 | AX68: =+(p_GP_refer*p_uptake_face_to_face*$I68*c_lost_productivity_debt*$O68)+((1-p_GP_refer)*p_uptake_face_to_face*$I68*c_lost_productivity_debt*$O68) -> 399913.9465 | AY68: =+(p_GP_refer*(1-p_uptake_face_to_face)*$K68*c_lost_productivity_depression*$O68)+((1-p_GP_refer)*(1-p_uptake_face_to_face)*$K68*c_lost_productivity_depression*$O68) -> 1425750.572 | AZ68: =+(p_GP_refer*(1-p_uptake_face_to_face)*$M68*c_lost_productivity_debt*$O68)+((1-p_GP_refer)*(1-p_uptake_face_to_face)*$M68*c_lost_productivity_debt*$O68) -> 682709.3415 | BA68: =SUM(AW68:AZ68) -> 4489178.862 | BB68: =+(p_GP_refer*p_uptake_face_to_face*$G68*u_Depression*adult_pop_in_debt*$P68)+((1-p_GP_refer)*p_uptake_face_to_face*$G68*u_Depression*adult_pop_in_debt*$P68) -> 363.4217243 | BC68: =+(p_GP_refer*p_uptake_face_to_face*$H68*u_no_depression*adult_pop_in_debt*$P68)+((1-p_GP_refer)*p_uptake_face_to_face*$H68*u_no_depression*adult_pop_in_debt*$P68) -> 5961.62123 | BD68: =+(p_GP_refer*p_uptake_face_to_face*$I68*u_Depression*adult_pop_in_debt*$P68)+((1-p_GP_refer)*p_uptake_face_to_face*$I68*u_Depression*adult_pop_in_debt*$P68) -> 35.9428079 | BE68: =+(p_GP_refer*p_uptake_face_to_face*$J68*u_no_depression*adult_pop_in_debt*$P68)+((1-p_GP_refer)*p_uptake_face_to_face*$J68*u_no_depression*adult_pop_in_debt*$P68) -> 589.6108909 | BF68: =+(p_GP_refer*(1-p_uptake_face_to_face)*$K68*u_Depression*adult_pop_in_debt*$P68)+((1-p_GP_refer)*(1-p_uptake_face_to_face)*$K68*u_Depression*adult_pop_in_debt*$P68) -> 261.5849268 | BG68: =+(p_GP_refer*(1-p_uptake_face_to_face)*$L68*u_no_depression*adult_pop_in_debt*$P68)+((1-p_GP_refer)*(1-p_uptake_face_to_face)*$L68*u_no_depression*adult_pop_in_debt*$P68) -> 4157.635887 | BH68: =+(p_GP_refer*(1-p_uptake_face_to_face)*$M68*u_Depression*adult_pop_in_debt*$P68)+((1-p_GP_refer)*(1-p_uptake_face_to_face)*$M68*u_Depression*adult_pop_in_debt*$P68) -> 61.35942726 | BI68: =+(p_GP_refer*(1-p_uptake_face_to_face)*$N68*u_no_depression*adult_pop_in_debt*$P68)+((1-p_GP_refer)*(1-p_uptake_face_to_face)*$N68*u_no_depression*adult_pop_in_debt*$P68) -> 975.2479241 | BJ68: =SUM(BB68:BI68) -> 12406.42482 | BK68: =+S68+AB68+AG68+AL68+AQ68+AV68+BA68 -> 6618434.132 | BQ68: =1+BQ67 -> 5 | BR68: =+($J$24*$BR67)+($J$25*$BS67)+($J$26*$BT67)+$J$27*$BU67 -> 0.07343953854 | BS68: =+($K$24*$BR67)+($K$25*$BS67)+($K$26*$BT67)+$K$27*$BU67 -> 0.7365604615 | BT68: =+($L$24*$BR67)+($L$25*$BS67)+($L$26*$BT67)+$L$27*$BU67 -> 0.01722655842 | BU68: =+($M$24*$BR67)+($M$25*$BS67)+($M$26*$BT67)+$M$27*$BU67 -> 0.1727734416 | BV68: =+BV67/(1+Discount_Rate_Costs) -> 0.8714422277 | BW68: =+BW67/(1+Discount_Rate_Outcomes) -> 0.9421842303 | BX68: 0 | BY68: =+$BU68*c_stress_absenteeism*$BV68 -> 409478.731 | BZ68: =SUM(BX68:BY68) -> 409478.731 | CA68: =+$BT68*c_GP_visit*$BV68 -> 10808.60432 | CB68: =+$BU68*c_GP_visit*$BV68 -> 108404.6924 | CC68: =SUM(CA68:CB68) -> 119213.2967 | CD68: =+$BR68*c_IAPT*$BV68 -> 984038.0924 | CE68: =+$BT68*c_IAPT*$BV68 -> 230823.7501 | CF68: =SUM(CD68:CE68) -> 1214861.843 | CG68: =+$BT68*c_legal*$BV68 -> 72057.36215 | CH68: =+$BU68*c_legal*$BV68 -> 722697.9495 | CI68: =SUM(CG68:CH68) -> 794755.3117 | CJ68: =+$BR68*c_lost_productivity_depression*$BV68 -> 3240342.209 | CK68: =+$BT68*c_lost_productivity_debt*$BV68 -> 1551612.14 | CL68: =SUM(CJ68:CK68) -> 4791954.349 | CM68: =+$BR68*u_Depression*adult_pop_in_debt*$BW68 -> 594.5111972 | CN68: =+$BS68*u_no_depression*adult_pop_in_debt*$BW68 -> 9449.17247 | CO68: =+$BT68*u_Depression*adult_pop_in_debt*$BW68 -> 139.4532438 | CP68: =+$BU68*u_no_depression*adult_pop_in_debt*$BW68 -> 2216.472555 | CQ68: =SUM(CM68:CP68) -> 12399.60947 | CR68: =+BZ68+CC68+CF68+CI68+CL68 -> 7330263.531
A69: c_GP_visit | B69: =+uc_GP_visit*adult_pop_in_debt -> 720000
A70: p_employ_depression | B70: 0.6 | BQ70: =SUM(BR65:BU65) -> 1
A71: irr_stress_debt | B71: 0.1 | K71: =+J15 -> 0.2673
A72: Discount_Rate_Costs | B72: =IF(Debt_Parameters!$C26>0,Debt_Parameters!$C26,Debt_Parameters!$B26) -> 0.035 | BR72: =+J23 -> 0
A73: Discount_Rate_Outcomes | B73: =IF(Debt_Parameters!$C27>0,Debt_Parameters!$C27,Debt_Parameters!$B27) -> 0.015
CQ74: =SUM(CM74:CP74) -> 0
CQ75: =SUM(CM75:CP75) -> 0
Q78: DEPRESSED-STRESSED | R78: NOT DEPRESSED-STRESSED
E79: TOTALS | G79: =SUM(G65:G74) -> 0.3093914431 | H79: =SUM(H65:H74) -> 3.330608557 | Q79: =SUM(Q64:Q65) -> 69300 | R79: =SUM(R64:R74) -> 0 | S79: =SUM(S64:S74) -> 69300 | T79: =SUM(T64:T77) -> 0 | U79: 286720 | V79: 0 | W79: 860160 | AB79: 1146880 | AC79: =SUM(AC64:AC77) -> 0 | AD79: =SUM(AD64:AD74) -> 1603005.911 | AE79: =SUM(AE64:AE77) -> 0 | AG79: =SUM(AG64:AG77) -> 3394309.105 | AH79: =SUM(AH64:AH77) -> 11311.68035 | AI79: 424377.018 | AJ79: 19311.46821 | AK79: 474226.5155 | AL79: 929226.682 | AM79: 2442512.984 | AN79: 241567.2182 | AO79: 1758156.722 | AP79: 412407.1323 | AQ79: 4854644.056 | AR79: 75411.20234 | AS79: 813180.1198 | AT79: 128743.1214 | AU79: 1345190.103 | AV79: 2362524.547 | AW79: =SUM(AW64:AW77) -> 8042958.883 | AX79: 1623830.425 | AY79: 5789439.94 | AZ79: 2772227.35 | BA79: 18228456.6 | BB79: 1433.493132 | BC79: 26379.01163 | BD79: 141.774046 | BE79: 8139.104007 | BF79: 1031.849737 | BG79: 17907.87819 | BH79: 242.0388272 | BI79: 9156.165008 | BJ79: 64431.31458 | BK79: 30985340.99 | BP79: TOTALS | BR79: =SUM(BR65:BR74) -> 0.283442249 | BS79: =SUM(BS65:BS74) -> 2.956557751 | BY79: =SUM(BY64:BY77) -> 4071143.623 | BZ79: 4071143.623 | CC79: 1121677.236 | CD79: 3995810.731 | CE79: 937288.9369 | CF79: 4933099.668 | CG79: =SUM(CG64:CG77) -> 292598.0032 | CH79: =SUM(CH64:CH77) -> 3057250.235 | CI79: =SUM(CI64:CI73) -> 3349848.238 | CJ79: =SUM(CJ64:CJ77) -> 13157818.05 | CK79: =SUM(CK64:CK77) -> 6300516.704 | CL79: =SUM(CL64:CL77) -> 19458334.75 | CM79: =SUM(CM64:CM77) -> 2345.113039 | CN79: 40699.72316 | CO79: 550.0882437 | CP79: 20809.46593 | CQ79: 64404.39037 | CR79: 32934103.52
S81: =SUM(Q79:R79) -> 69300

Sheet Suicide_Contents
A1: Investing in Self-Harm and Suicide Prevention
A3: Click on links below for further information about the intervention, adjust the values of some model parameters or see results
A5: About the Programme
A7: Check and/or adjust model parameters
A9: Summary of Return on Investment
A11: Summary of Return on Investment: Payoffs to Different Sectors
A13: Return to Intervention Choice Menu

Sheet Suicide_Background
A1: Investing in Self-Harm and Suicide Prevention
A6: Target: | B6: Adults identified as being at risk of suicidal behaviour and who present at hospital following self-harm event | C6: Return to Suicide Intervention Contents Page
A8: Intervention: | B8: Increased use of psychosocial assessment in A&E to help reduce risk of further self-harm events | C8: Return to Intervention Choice Menu
A10: Outcome evidence | B10: Cochrane systematic reviews on impact of psychological interventions; evidence on impact of psychosocial assessment
A12: Economic Pay Offs | B12: Impacts over 10 years on NHS services, local authorities (including costs related to coroner inquests), police costs, productivity losses related to self-harm and suicide
A14: Findings | B14: Intervention has long term potential to be cost saving from NHS perspective and ROI increases when impacts on other sectors taken into account. Important to recognise this strategy needs to be combined with other approaches at national level to restrict access to means of suicide, and local/national measures to train gatekeepers to identify and refer and also to make suicide hot spots (e.g. bridges, railway lines, safer)

Sheet Suicide_Parameters
A1: Investing in Self-Harm and Suicide Prevention: Checking and/or Adjusting Model Parameters
A4: You can use your own values rather than the model's predefined assumptions by inputing these into one or more of the blue coloured cells | B4: Area selected: | C4: =+A38 -> --- Model default values
C6: Return to Suicide Intervention Contents Page
C7: Return to Intervention Choice Menu
A8: Intervention Costs
B10: Default | C10: Input your own value for costs if desired
A11: Cost of psychosocial assessment (PSA) | B11: 232
A13: Other Costs
B15: Default | C15: Input your own value for costs if desired
A16: Immediate cost of treating self harm | B16: 668.72
A17: Annual cost of subsequent health system support for individual who self harm | B17: 1006
A18: Coroner costs | B18: 569
A20: Include productivity and intangible costs - choose Yes or No | B20: No
A22: Other parameters | F22: Yes
F23: No
B24: Default | C24: Input your own value if desired
A25: Relative risk of subsequent self-harm within a year if undergoes PSA | B25: 0.59
A26: Probability of subsequent non-fatal self harm event within one year | B26: 0.163
A27: Probability of subsequent fatal self harm event within one year | B27: 0.016
A28: Increased rate of PSA use after hospital presenting self harm (%) | B28: 0.8
A29: Current rate of PSA use after hospital presenting self harm (%) | B29: 0.532
A30: Suicide rate per 100,000 adult population | B30: =0.000103*100000 -> 10.3
A31: Completed suicide as a percentage of all hospital presenting self-harm (%) | B31: 0.02575
A32: Discount Rate (Costs) | B32: 0.035
A33: Discount Rate (Outcomes) | B33: 0.015
A34: Target population | B34: 100000 | C34: =+B38 -> 0 | D34: Local authority or CCG adult population (default value if blank)
A37: Population in selected area
A38: =+'Intervention Choice'!C5 -> --- Model default values | B38: =VLOOKUP(+'Intervention Choice'!C5,All_Population_18plus!D6:BZ382,75) -> 0 | C38: Adult population aged 18 and over
A40: Return to Suicide Intervention Contents Page
A42: Return to Intervention Choice Menu

Sheet Suicide_Prevention_ROI
A1: ROI: Suicide and Self-Harm Prevention Programmes
A5: Area Selected: | C5: Return to Suicide Intervention Contents Page
A6: =+'Intervention Choice'!C5 -> --- Model default values | C6: Return to Intervention Choice Menu
A9: Total Net Costs / Payoffs (Default values 2015 prices)
B11: Year 1 | C11: Year 2 | D11: Year 3 | E11: Year 4 | F11: Year 5 | G11: Year 6 | H11: Year 7 | I11: Year 8 | J11: Year 9 | K11: Year 10 | L11: Total Cost / Saving
A12: Cost of Additional Psychosocial Assessments (NHS) | B12: =+B30-B46 -> 24229.9872 | C12: 1731.974468 | D12: 1665.473239 | E12: 1601.449878 | F12: 1539.81605 | G12: 1480.486351 | H12: 1423.378226 | I12: 1368.411879 | J12: 1315.510202 | K12: 1264.598685 | L12: =SUM(B12:K12) -> 37621.08618
A14: Ambulance Costs | B14: =+B32-B48 -> 0 | C14: -419.4546202 | D14: -432.0680035 | E14: -442.6936782 | F14: -451.4851587 | G14: -458.58616 | H14: -464.131169 | I14: -468.2459845 | J14: -471.0482271 | K14: -472.6478209 | L14: =SUM(B14:K14) -> -4080.360822
A15: Immediate Treatment for Self Harm/Suicide | B15: =+B33-B49 -> 0 | C15: -3513.769818 | D15: -3424.700126 | E15: -3336.52637 | F15: -3249.348554 | G15: -3163.255854 | H15: -3078.32739 | I15: -2994.632948 | J15: -2912.233668 | K15: -2831.182672 | L15: =SUM(B15:K15) -> -28503.9774
A16: Ongoing Psychological Treatment | B16: =+B34-B50 -> 0 | C16: -6784.132037 | D16: -6402.240595 | E16: -6040.994683 | F16: -5699.308887 | G16: -5376.153701 | H16: -5070.552698 | I16: -4781.579831 | J16: -4508.356879 | K16: -4250.051015 | L16: =SUM(B16:K16) -> -48913.37033
A17: Productivity Losses | B17: =+B35-B51 -> 0 | C17: 0 | D17: 0 | E17: 0 | F17: 0 | G17: 0 | H17: 0 | I17: 0 | J17: 0 | K17: 0 | L17: =SUM(B17:K17) -> 0
A18: Police Investigations | B18: =+B36-B52 -> 0 | C18: -432.2568365 | D18: -825.5637486 | E18: -1182.553332 | F18: -1505.699997 | G18: -1797.328886 | H18: -2059.624296 | I18: -2294.637657 | J18: -2504.295069 | K18: -2690.404437 | L18: -15292.36426
A19: Coroner Inquests | B19: =+B37-B53 -> 0 | C19: -376.652588 | D19: -719.3656554 | E19: -1030.433148 | F19: -1312.011177 | G19: -1566.125783 | H19: -1794.680282 | I19: -1999.462215 | J19: -2182.149915 | K19: -2344.31872 | L19: -13325.19948
A20: Intangible Costs | B20: =+B38-B54 -> 0 | C20: 0 | D20: 0 | E20: 0 | F20: 0 | G20: 0 | H20: 0 | I20: 0 | J20: 0 | K20: 0 | L20: 0
A21: Total cost consequences (saving if negative value) | B21: =SUM(B14:B20) -> 0 | C21: -11526.2659 | D21: -11803.93813 | E21: -12033.20121 | F21: -12217.85377 | G21: -12361.45038 | H21: -12467.31583 | I21: -12538.55864 | J21: -12578.08376 | K21: -12588.60467 | L21: -110115.2723
A23: Total costs (saving if negative value) | B23: =+B12+B21 -> 24229.9872 | C23: -9794.291432 | D23: -10138.46489 | E23: -10431.75133 | F23: -10678.03772 | G23: -10880.96403 | H23: -11043.93761 | I23: -11170.14676 | J23: -11262.57356 | K23: -11324.00598 | L23: -72494.18611
A24: Cumulative Return per Pound Invested | B24: =+(B21/B12)*-1 -> 0 | C24: =+((C21+B21)/(C12+B12)*-1) -> 0.4439674493 | D24: =+((D21+C21+B21)/(D12+C12+B12)*-1) -> 0.8444578408 | E24: =+((E21+D21+C21+B21)/(E12+D12+C12+B12)*-1) -> 1.209878704 | F24: =+((F21+E21+D21+C21+B21)/(F12+E12+D12+C12+B12)*-1) -> 1.546417552 | G24: =+((G21+F21+E21+D21+C21+B21)/(G12+F12+E12+D12+C12+B12)*-1) -> 1.85873551 | H24: =+((H21+G21+F21+E21+D21+C21+B21)/(H12+G12+F12+E12+D12+C12+B12)*-1) -> 2.150416054 | I24: =+((I21+H21+G21+F21+E21+D21+C21+B21)/(I12+H12+G12+F12+E12+D12+C12+B12)*-1) -> 2.424264117 | J24: =+((J21+I21+H21+G21+F21+E21+D21+C21+B21)/(J12+I12+H12+G12+F12+E12+D12+C12+B12)*-1) -> 2.682510725 | K24: =+((K21+J21+I21+H21+G21+F21+E21+D21+C21+B21)/(K12+J12+I12+H12+G12+F12+E12+D12+C12+B12)*-1) -> 2.926956223 | L24: =+(L21/L12)*-1 -> 2.926956223
A25: Quality Adjusted Life Years Saved | B25: =+B41-B57 -> 0.02575 | C25: 2.76935053 | D25: 3.241766735 | E25: 3.687617195 | F25: 4.107969185 | G25: 4.503852273 | H25: 4.876259561 | I25: 5.226148891 | J25: 5.554444014 | K25: 5.862035715 | L25: =SUM(B25:K25) -> 39.8551941
A28: Costs of Suicide Prevention Cohort
B29: Year 1 | C29: Year 2 | D29: Year 3 | E29: Year 4 | F29: Year 5 | G29: Year 6 | H29: Year 7 | I29: Year 8 | J29: Year 9 | K29: Year 10 | L29: Total
A30: Cost of Psychosocial Assessments | B30: =+Suicide_Model!W63 -> 72328.32 | C30: =+Suicide_Model!W64 -> 7654.642376 | D30: =+Suicide_Model!W65 -> 7316.270204 | E30: =+Suicide_Model!W66 -> 6992.855717 | F30: =+Suicide_Model!W67 -> 6683.737712 | G30: =+Suicide_Model!W68 -> 6388.284217 | H30: =+Suicide_Model!W69 -> 6105.891193 | I30: =+Suicide_Model!W70 -> 5835.981305 | J30: =+Suicide_Model!W71 -> 5578.002739 | K30: =+Suicide_Model!W72 -> 5331.428071 | L30: =SUM(B30:K30) -> 130215.4135
A32: Ambulance Costs | B32: =+Suicide_Model!AC63 -> 22656 | C32: =+Suicide_Model!AC64 -> 3128.948668 | D32: =+Suicide_Model!AC65 -> 3218.034718 | E32: =+Suicide_Model!AC66 -> 3295.492856 | F32: =+Suicide_Model!AC67 -> 3362.097136 | G32: =+Suicide_Model!AC68 -> 3418.578601 | H32: =+Suicide_Model!AC69 -> 3465.627482 | I32: =+Suicide_Model!AC70 -> 3503.89529 | J32: =+Suicide_Model!AC71 -> 3533.996805 | K32: =+Suicide_Model!AC72 -> 3556.511967 | L32: =SUM(B32:K32) -> 53139.18352
A33: Immediate Treatment for Self Harm/Suicide | B33: =+Suicide_Model!AG63 -> 198300.092 | C33: =+Suicide_Model!AG64 -> 23181.16965 | D33: =+Suicide_Model!AG65 -> 22838.97325 | E33: =+Suicide_Model!AG66 -> 22488.82308 | F33: =+Suicide_Model!AG67 -> 22131.85124 | G33: =+Suicide_Model!AG68 -> 21769.11339 | H33: =+Suicide_Model!AG69 -> 21401.59302 | I33: =+Suicide_Model!AG70 -> 21030.20551 | J33: =+Suicide_Model!AG71 -> 20655.80196 | K33: =+Suicide_Model!AG72 -> 20279.17285 | L33: 394076.7959
A34: Ongoing Psychological Treatment | B34: =+Suicide_Model!AK63 -> 392038.2 | C34: =+Suicide_Model!AK64 -> 41490.14133 | D34: =+Suicide_Model!AK65 -> 39656.07665 | E34: =+Suicide_Model!AK66 -> 37903.08648 | F34: =+Suicide_Model!AK67 -> 36227.58695 | G34: =+Suicide_Model!AK68 -> 34626.1526 | H34: =+Suicide_Model!AK69 -> 33095.50938 | I34: =+Suicide_Model!AK70 -> 31632.52798 | J34: =+Suicide_Model!AK71 -> 30234.21743 | K34: =+Suicide_Model!AK72 -> 28897.71896 | L34: 705801.2178
A35: Productivity Losses | B35: =+Suicide_Model!AP63 -> 0 | C35: =+Suicide_Model!AP64 -> 0 | D35: =+Suicide_Model!AP65 -> 0 | E35: =+Suicide_Model!AP66 -> 0 | F35: =+Suicide_Model!AP67 -> 0 | G35: =+Suicide_Model!AP68 -> 0 | H35: =+Suicide_Model!AP69 -> 0 | I35: =+Suicide_Model!AP70 -> 0 | J35: =+Suicide_Model!AP71 -> 0 | K35: =+Suicide_Model!AP72 -> 0 | L35: 0
A36: Police Investigations | B36: =+Suicide_Model!AM63 -> 6725.9 | C36: =+Suicide_Model!AM64 -> 9142.034322 | D36: =+Suicide_Model!AM65 -> 11359.6046 | E36: =+Suicide_Model!AM66 -> 13390.4913 | F36: =+Suicide_Model!AM67 -> 15245.94477 | G36: =+Suicide_Model!AM68 -> 16936.61666 | H36: =+Suicide_Model!AL69 -> 18472.58982 | I36: =+Suicide_Model!AM70 -> 19863.40673 | J36: =+Suicide_Model!AL71 -> 21118.09662 | K36: =+Suicide_Model!AL72 -> 22245.20122 | L36: 154499.886
A37: Coroner Inquests | B37: =+Suicide_Model!Y63 -> 5860.7 | C37: =+Suicide_Model!Y64 -> 7966.029907 | D37: =+Suicide_Model!Y65 -> 9898.338466 | E37: =+Suicide_Model!Y66 -> 11667.97787 | F37: =+Suicide_Model!X67 -> 13284.75126 | G37: =+Suicide_Model!Y68 -> 14757.94009 | H37: =+Suicide_Model!X69 -> 16096.33018 | I37: =+Suicide_Model!Y70 -> 17308.23649 | J37: =+Suicide_Model!Y71 -> 18401.52676 | K37: =+Suicide_Model!Y72 -> 19383.64395 | L37: 134625.475
A38: Intangible Costs | B38: =+Suicide_Model!AS63 -> 0 | C38: =+Suicide_Model!AS64 -> 0 | D38: =+Suicide_Model!AS65 -> 0 | E38: =+Suicide_Model!AS66 -> 0 | F38: =+Suicide_Model!AS67 -> 0 | G38: =+Suicide_Model!AS68 -> 0 | H38: =+Suicide_Model!AS69 -> 0 | I38: =+Suicide_Model!AS70 -> 0 | J38: =+Suicide_Model!AS71 -> 0 | K38: =+Suicide_Model!AS72 -> 0 | L38: =SUM(B38:K38) -> 0
A40: Total cost | B40: =SUM(B30:B38) -> 697909.212 | C40: 92562.96625 | D40: 94287.29788 | E40: 95738.7273 | F40: 96935.96907 | G40: 97896.68556 | H40: 98637.54107 | I40: 99174.2533 | J40: 99521.64231 | K40: 99693.67702 | L40: 1572357.972
A41: Quality Adjusted Life Years Saved | B41: =+Suicide_Model!AW63 -> 209.29465 | C41: =+Suicide_Model!AW64 -> 310.0509641 | D41: =+Suicide_Model!AW65 -> 302.1949648 | E41: =+Suicide_Model!AW66 -> 294.5381291 | F41: =+Suicide_Model!AW67 -> 287.0754064 | G41: =+Suicide_Model!AW68 -> 279.8018739 | H41: =+Suicide_Model!AW69 -> 272.7127338 | I41: =+Suicide_Model!AW70 -> 265.80331 | J41: =+Suicide_Model!AW71 -> 259.069045 | K41: =+Suicide_Model!AW72 -> 252.5054968 | L41: =SUM(B41:K41) -> 2733.046574
A44: Costs of Usual Care Cohort
B45: Year 1 | C45: Year 2 | D45: Year 3 | E45: Year 4 | F45: Year 5 | G45: Year 6 | H45: Year 7 | I45: Year 8 | J45: Year 9 | K45: Year 10 | L45: Total
A46: Cost of Psychosocial Assessments | B46: =+Suicide_Model!BN63 -> 48098.3328 | C46: =+Suicide_Model!BN64 -> 5922.667908 | D46: =+Suicide_Model!BN65 -> 5650.796965 | E46: =+Suicide_Model!BN66 -> 5391.405839 | F46: =+Suicide_Model!BN67 -> 5143.921662 | G46: =+Suicide_Model!BN68 -> 4907.797866 | H46: =+Suicide_Model!BN69 -> 4682.512968 | I46: =+Suicide_Model!BN70 -> 4467.569426 | J46: =+Suicide_Model!BN71 -> 4262.492536 | K46: =+Suicide_Model!BN72 -> 4066.829385 | L46: =SUM(B46:K46) -> 92594.32736
A48: Ambulance Costs | B48: =+Suicide_Model!BV63 -> 22656 | C48: =+Suicide_Model!BV64 -> 3548.403288 | D48: =+Suicide_Model!BV65 -> 3650.102722 | E48: =+Suicide_Model!BV66 -> 3738.186535 | F48: =+Suicide_Model!BV67 -> 3813.582295 | G48: =+Suicide_Model!BV68 -> 3877.164761 | H48: =+Suicide_Model!BV69 -> 3929.758651 | I48: =+Suicide_Model!BV70 -> 3972.141275 | J48: =+Suicide_Model!BV71 -> 4005.045032 | K48: =+Suicide_Model!BV72 -> 4029.159788 | L48: =SUM(B48:K48) -> 57219.54435
A49: Immediate Treatment for Self Harm/Suicide | B49: =+Suicide_Model!BR63 -> 198300.092 | C49: =+Suicide_Model!BR64 -> 26694.93947 | D49: =+Suicide_Model!BR65 -> 26263.67337 | E49: =+Suicide_Model!BR66 -> 25825.34945 | F49: =+Suicide_Model!BR67 -> 25381.19979 | G49: =+Suicide_Model!BR68 -> 24932.36925 | H49: =+Suicide_Model!BR69 -> 24479.92041 | I49: =+Suicide_Model!BR70 -> 24024.83846 | J49: =+Suicide_Model!BR71 -> 23568.03562 | K49: =+Suicide_Model!BR72 -> 23110.35552 | L49: 422580.7733
A50: Ongoing Psychological Treatment | B50: =+Suicide_Model!CB63 -> 392038.2 | C50: =+Suicide_Model!CB64 -> 48274.27337 | D50: =+Suicide_Model!CB65 -> 46058.31724 | E50: =+Suicide_Model!CB66 -> 43944.08117 | F50: =+Suicide_Model!CB67 -> 41926.89584 | G50: =+Suicide_Model!CB68 -> 40002.3063 | H50: =+Suicide_Model!CB69 -> 38166.06208 | I50: =+Suicide_Model!CB70 -> 36414.10781 | J50: =+Suicide_Model!CB71 -> 34742.57431 | K50: =+Suicide_Model!CB72 -> 33147.76998 | L50: =SUM(B50:K50) -> 754714.5881
A51: Productivity Losses | B51: =+Suicide_Model!CG63 -> 0 | C51: =+Suicide_Model!CF64 -> 0 | D51: =+Suicide_Model!CG65 -> 0 | E51: =+Suicide_Model!CG66 -> 0 | F51: =+Suicide_Model!CG67 -> 0 | G51: =+Suicide_Model!CG68 -> 0 | H51: =+Suicide_Model!CG69 -> 0 | I51: =+Suicide_Model!CG70 -> 0 | J51: =+Suicide_Model!CG71 -> 0 | K51: =+Suicide_Model!CG72 -> 0 | L51: =SUM(B51:K51) -> 0
A52: Police Investigations | B52: =+Suicide_Model!CD63 -> 6725.9 | C52: =+Suicide_Model!CD64 -> 9574.291158 | D52: =+Suicide_Model!CD65 -> 12185.16835 | E52: =+Suicide_Model!CD66 -> 14573.04463 | F52: =+Suicide_Model!CD67 -> 16751.64477 | G52: =+Suicide_Model!CD68 -> 18733.94555 | H52: =+Suicide_Model!CD69 -> 20532.21411 | I52: =+Suicide_Model!CD70 -> 22158.04438 | J52: =+Suicide_Model!CD71 -> 23622.39169 | K52: =+Suicide_Model!CC72 -> 24935.60566 | L52: 169792.2503
A53: Coroner Inquests | B53: =+Suicide_Model!BX63 -> 5860.7 | C53: =+Suicide_Model!BX64 -> 8342.682495 | D53: =+Suicide_Model!BX65 -> 10617.70412 | E53: =+Suicide_Model!BX66 -> 12698.41102 | F53: =+Suicide_Model!BX67 -> 14596.76244 | G53: =+Suicide_Model!BX68 -> 16324.06587 | H53: =+Suicide_Model!BX69 -> 17891.01046 | I53: =+Suicide_Model!BX70 -> 19307.6987 | J53: =+Suicide_Model!BX71 -> 20583.67668 | K53: =+Suicide_Model!BX72 -> 21727.96267 | L53: 147950.6744
A54: Intangible Costs | B54: =+Suicide_Model!CJ63 -> 0 | C54: =+Suicide_Model!CJ64 -> 0 | D54: =+Suicide_Model!CJ65 -> 0 | E54: =+Suicide_Model!CJ66 -> 0 | F54: =+Suicide_Model!CJ67 -> 0 | G54: =+Suicide_Model!CJ68 -> 0 | H54: =+Suicide_Model!CJ69 -> 0 | I54: =+Suicide_Model!CJ70 -> 0 | J54: =+Suicide_Model!CI71 -> 0 | K54: =+Suicide_Model!CI72 -> 0 | L54: 0
A56: Total cost usual care | B56: =SUM(B46:B54) -> 673679.2248 | C56: =SUM(C46:C54) -> 102357.2577 | D56: 104425.7628 | E56: 106170.4786 | F56: 107614.0068 | G56: 108777.6496 | H56: 109681.4787 | I56: 110344.4001 | J56: 110784.2159 | K56: 111017.683 | L56: =SUM(B56:K56) -> 1644852.158
A57: Quality Adjusted Life Years Saved | B57: =+Suicide_Model!CN63 -> 209.2689 | C57: =+Suicide_Model!CN64 -> 307.2816136 | D57: =+Suicide_Model!CN65 -> 298.953198 | E57: =+Suicide_Model!CN66 -> 290.8505119 | F57: =+Suicide_Model!CN67 -> 282.9674372 | G57: =+Suicide_Model!CN68 -> 275.2980216 | H57: =+Suicide_Model!CN69 -> 267.8364742 | I57: =+Suicide_Model!CN70 -> 260.5771611 | J57: =+Suicide_Model!CN71 -> 253.5146009 | K57: =+Suicide_Model!CN72 -> 246.6434611 | L57: =SUM(B57:K57) -> 2693.19138
A59: Return to Suicide Intervention Contents Page
A61: Return to Home Page

Sheet Suicide_ROI_by sector
A1: ROI: Suicide and Self-Harm Prevention Programme
A5: Area Selected: | C5: Return to Suicide Intervention Contents Page
A6: =+'Intervention Choice'!C5 -> --- Model default values | C6: Return to Intervention Choice Menu
A9: Total Net Costs / Payoffs to Different Sectors (Default values 2015 prices)
B11: Year 1 | C11: Year 2 | D11: Year 3 | E11: Year 4 | F11: Year 5 | G11: Year 6 | H11: Year 7 | I11: Year 8 | J11: Year 9 | K11: Year 10 | L11: Total Cost or Saving (If negative)
A12: NHS: Additional costs of psychosocial assessment | B12: =+B36-B50 -> 24229.9872 | C12: 1731.974468 | D12: 1665.473239 | E12: 1601.449878 | F12: 1539.81605 | G12: 1480.486351 | H12: 1423.378226 | I12: 1368.411879 | J12: 1315.510202 | K12: 1264.598685 | L12: =SUM(B12:K12) -> 37621.08618
A13: Payoffs:
A14: NHS | B14: =+B38-B52 -> 0 | C14: -10717.35648 | D14: -10259.00872 | E14: -9820.214732 | F14: -9400.1426 | G14: -8997.995716 | H14: -8613.011256 | I14: -8244.458763 | J14: -7891.638774 | K14: -7553.881508 | L14: =SUM(B14:K14) -> -81497.70855
A15: Local Authority | B15: =+B39-B53 -> 0 | C15: -376.652588 | D15: -719.3656554 | E15: -1030.433148 | F15: -1312.011177 | G15: -1566.125783 | H15: -1794.680282 | I15: -1999.462215 | J15: -2182.149915 | K15: -2344.31872 | L15: =SUM(B15:K15) -> -13325.19948
A16: Police | B16: =+B40-B54 -> 0 | C16: -432.2568365 | D16: -825.5637486 | E16: -1182.553332 | F16: -1505.699997 | G16: -1797.328886 | H16: -2059.624296 | I16: -2294.637657 | J16: -2504.295069 | K16: -2690.404437 | L16: =SUM(B16:K16) -> -15292.36426
A17: Productivity Losses | B17: =+B41-B55 -> 0 | C17: 0 | D17: 0 | E17: 0 | F17: 0 | G17: 0 | H17: 0 | I17: 0 | J17: 0 | K17: 0 | L17: =SUM(B17:K17) -> 0
A18: Intangible Losses | B18: =+B42-B56 -> 0 | C18: 0 | D18: 0 | E18: 0 | F18: 0 | G18: 0 | H18: 0 | I18: 0 | J18: 0 | K18: 0 | L18: =SUM(B18:K18) -> 0
A20: Total cost consequences (saving if negative value) | B20: =SUM(B14:B19) -> 0 | C20: =SUM(C14:C18) -> -11526.2659 | D20: -11803.93813 | E20: -12033.20121 | F20: -12217.85377 | G20: -12361.45038 | H20: -12467.31583 | I20: -12538.55864 | J20: -12578.08376 | K20: -12588.60467 | L20: =SUM(B20:K20) -> -110115.2723
A21: Total costs (saving if negative value) | B21: =+B12+B20 -> 24229.9872 | C21: -9794.291432 | D21: -10138.46489 | E21: -10431.75133 | F21: -10678.03772 | G21: -10880.96403 | H21: -11043.93761 | I21: -11170.14676 | J21: -11262.57356 | K21: -11324.00598 | L21: =SUM(B21:K21) -> -72494.18611
A22: Cumulative Return per Pound Invested | B22: =+(B20/B12)*-1 -> 0 | C22: =+((C20+B20)/(C12+B12))*-1 -> 0.4439674493 | D22: =+((D20+C20+B20)/(D12+C12+B12))*-1 -> 0.8444578408 | E22: =+((E20+D20+C20+B20)/(E12+D12+C12+B12))*-1 -> 1.209878704 | F22: =+((F20+E20+D20+C20+B20)/(F12+E12+D12+C12+B12))*-1 -> 1.546417552 | G22: =+((G20+F20+E20+D20+C20+B20)/(G12+F12+E12+D12+C12+B12))*-1 -> 1.85873551 | H22: =+((H20+G20+F20+E20+D20+C20+B20)/(H12+G12+F12+E12+D12+C12+B12))*-1 -> 2.150416054 | I22: =+((I20+H20+G20+F20+E20+D20+C20+B20)/(I12+H12+G12+F12+E12+D12+C12+B12))*-1 -> 2.424264117 | J22: =+((J20+I20+H20+G20+F20+E20+D20+C20+B20)/(J12+I12+H12+G12+F12+E12+D12+C12+B12))*-1 -> 2.682510725 | K22: =+((K20+J20+I20+H20+G20+F20+E20+D20+C20+B20)/(K12+J12+I12+H12+G12+F12+E12+D12+C12+B12))*-1 -> 2.926956223 | L22: =+(L20/L12)*-1 -> 2.926956223
A23: Quality Adjusted Life Years Saved | B23: =+B45-B59 -> 0.02575 | C23: 2.76935053 | D23: 3.241766735 | E23: 3.687617195 | F23: 4.107969185 | G23: 4.503852273 | H23: 4.876259561 | I23: 5.226148891 | J23: 5.554444014 | K23: 5.862035715 | L23: =SUM(B23:K23) -> 39.8551941
A25: Cumulative ROI by sector:
B26: Year 1 | C26: Year 2 | D26: Year 3 | E26: Year 4 | F26: Year 5 | G26: Year 6 | H26: Year 7 | I26: Year 8 | J26: Year 9 | K26: Year 10 | L26: Total Cost or Saving (If negative)
A27: NHS | B27: =+(B14/$B$12)*-1 -> 0 | C27: =+((C14+B14)/(C$12+B$12)*-1) -> 0.4128099645 | D27: =+((D14+C14+B14)/(D$12+C$12+B$12)*-1) -> 0.759258515 | E27: =+((E14+D14+C14+B14)/(E$12+D$12+C$12+B$12)*-1) -> 1.053635134 | F27: =+((F14+E14+D14+C14+B14)/(F$12+E$12+D$12+C$12+B$12)*-1) -> 1.306415982 | G27: =+((G14+F14+E14+D14+C14+B14)/(G$12+F$12+E$12+D$12+C$12+B$12)*-1) -> 1.525456067 | H27: =+((H14+G14+F14+E14+D14+C14+B14)/(H$12+G$12+F$12+E$12+D$12+C$12+B$12)*-1) -> 1.716760478 | I27: =+((I14+H14+G14+F14+E14+D14+C14+B14)/(I$12+H$12+G$12+F$12+E$12+D$12+C$12+B$12)*-1) -> 1.884998461 | J27: =+((J14+I14+H14+G14+F14+E14+D14+C14+B14)/(J$12+I$12+H$12+G$12+F$12+E$12+D$12+C$12+B$12)*-1) -> 2.033855087 | K27: =+((K14+J14+I14+H14+G14+F14+E14+D14+C14+B14)/(K$12+J$12+I$12+H$12+G$12+F$12+E$12+D$12+C$12+B$12)*-1) -> 2.166277395 | L27: =+L14/$L$12 -> -2.166277395
A28: Local Authority | B28: =+(B15/$B$12)*-1 -> 0 | C28: =+((C15+B15)/(C$12+B$12)*-1) -> 0.01450786319 | D28: =+((D15+C15+B15)/(D$12+C$12+B$12)*-1) -> 0.03967137185 | E28: =+((E15+D15+C15+B15)/(E$12+D$12+C$12+B$12)*-1) -> 0.07275171143 | F28: =+((F15+E15+D15+C15+B15)/(F$12+E$12+D$12+C$12+B$12)*-1) -> 0.1117519581 | G28: =+((G15+F15+E15+D15+C15+B15)/(G$12+F$12+E$12+D$12+C$12+B$12)*-1) -> 0.1551849453 | H28: =+((H15+G15+F15+E15+D15+C15+B15)/(H$12+G$12+F$12+E$12+D$12+C$12+B$12)*-1) -> 0.2019230952 | I28: =+((I15+H15+G15+F15+E15+D15+C15+B15)/(I$12+H$12+G$12+F$12+E$12+D$12+C$12+B$12)*-1) -> 0.2510983291 | J28: =+((J15+I15+H15+G15+F15+E15+D15+C15+B15)/(J$12+I$12+H$12+G$12+F$12+E$12+D$12+C$12+B$12)*-1) -> 0.302033599 | K28: =+((K15+J15+I15+H15+G15+F15+E15+D15+C15+B15)/(K$12+J$12+I$12+H$12+G$12+F$12+E$12+D$12+C$12+B$12)*-1) -> 0.3541949698 | L28: =+L15/$L$12 -> -0.3541949698
A29: Police | B29: =+(B16/$B$12)*-1 -> 0 | C29: =+((C16+B16)/(C$12+B$12)*-1) -> 0.01664962155 | D29: =+((D16+C16+B16)/(D$12+C$12+B$12)*-1) -> 0.04552795398 | E29: =+((E16+D16+C16+B16)/(E$12+D$12+C$12+B$12)*-1) -> 0.08349185864 | F29: =+((F16+E16+D16+C16+B16)/(F$12+E$12+D$12+C$12+B$12)*-1) -> 0.128249611 | G29: =+((G16+F16+E16+D16+C16+B16)/(G$12+F$12+E$12+D$12+C$12+B$12)*-1) -> 0.1780944979 | H29: =+((H16+G16+F16+E16+D16+C16+B16)/(H$12+G$12+F$12+E$12+D$12+C$12+B$12)*-1) -> 0.2317324801 | I29: =+((I16+H16+G16+F16+E16+D16+C16+B16)/(I$12+H$12+G$12+F$12+E$12+D$12+C$12+B$12)*-1) -> 0.2881673267 | J29: =+((J16+I16+H16+G16+F16+E16+D16+C16+B16)/(J$12+I$12+H$12+G$12+F$12+E$12+D$12+C$12+B$12)*-1) -> 0.3466220389 | K29: =+((K16+J16+I16+H16+G16+F16+E16+D16+C16+B16)/(K$12+J$12+I$12+H$12+G$12+F$12+E$12+D$12+C$12+B$12)*-1) -> 0.4064838582 | L29: =+L16/$L$12 -> -0.4064838582
A30: Productivity Losses | B30: =+(B17/$B$12)*-1 -> 0 | C30: =+((C17+B17)/(C$12+B$12)*-1) -> 0 | D30: =+((D17+C17+B17)/(D$12+C$12+B$12)*-1) -> 0 | E30: =+((E17+D17+C17+B17)/(E$12+D$12+C$12+B$12)*-1) -> 0 | F30: =+((F17+E17+D17+C17+B17)/(F$12+E$12+D$12+C$12+B$12)*-1) -> 0 | G30: =+((G17+F17+E17+D17+C17+B17)/(G$12+F$12+E$12+D$12+C$12+B$12)*-1) -> 0 | H30: =+((H17+G17+F17+E17+D17+C17+B17)/(H$12+G$12+F$12+E$12+D$12+C$12+B$12)*-1) -> 0 | I30: =+((I17+H17+G17+F17+E17+D17+C17+B17)/(I$12+H$12+G$12+F$12+E$12+D$12+C$12+B$12)*-1) -> 0 | J30: =+((J17+I17+H17+G17+F17+E17+D17+C17+B17)/(J$12+I$12+H$12+G$12+F$12+E$12+D$12+C$12+B$12)*-1) -> 0 | K30: =+((K17+J17+I17+H17+G17+F17+E17+D17+C17+B17)/(K$12+J$12+I$12+H$12+G$12+F$12+E$12+D$12+C$12+B$12)*-1) -> 0 | L30: =+L17/$L$12 -> 0
A31: Intangible Losses | B31: =+(B18/$B$12)*-1 -> 0 | C31: =+((C18+B18)/(C$12+B$12)*-1) -> 0 | D31: =+((D18+C18+B18)/(D$12+C$12+B$12)*-1) -> 0 | E31: =+((E18+D18+C18+B18)/(E$12+D$12+C$12+B$12)*-1) -> 0 | F31: =+((F18+E18+D18+C18+B18)/(F$12+E$12+D$12+C$12+B$12)*-1) -> 0 | G31: =+((G18+F18+E18+D18+C18+B18)/(G$12+F$12+E$12+D$12+C$12+B$12)*-1) -> 0 | H31: =+((H18+G18+F18+E18+D18+C18+B18)/(H$12+G$12+F$12+E$12+D$12+C$12+B$12)*-1) -> 0 | I31: =+((I18+H18+G18+F18+E18+D18+C18+B18)/(I$12+H$12+G$12+F$12+E$12+D$12+C$12+B$12)*-1) -> 0 | J31: =+((J18+I18+H18+G18+F18+E18+D18+C18+B18)/(J$12+I$12+H$12+G$12+F$12+E$12+D$12+C$12+B$12)*-1) -> 0 | K31: =+((K18+J18+I18+H18+G18+F18+E18+D18+C18+B18)/(K$12+J$12+I$12+H$12+G$12+F$12+E$12+D$12+C$12+B$12)*-1) -> 0 | L31: =+L18/$L$12 -> 0
A32: Total | B32: =SUM(B27:B31) -> 0 | C32: =SUM(C27:C31) -> 0.4439674493 | D32: 0.8444578408 | E32: 1.209878704 | F32: 1.546417552 | G32: 1.85873551 | H32: 2.150416054 | I32: =SUM(I27:I31) -> 2.424264117 | J32: =SUM(J27:J31) -> 2.682510725 | K32: =SUM(K27:K31) -> 2.926956223 | L32: =+L20/L12 -> -2.926956223
A34: Costs of Suicide Prevention Cohort
B35: Year 1 | C35: Year 2 | D35: Year 3 | E35: Year 4 | F35: Year 5 | G35: Year 6 | H35: Year 7 | I35: Year 8 | J35: Year 9 | K35: Year 10 | L35: Total
A36: NHS: Additional costs of psychosocial assessment | B36: =Suicide_Prevention_ROI!B12 -> 24229.9872 | C36: =Suicide_Prevention_ROI!C12 -> 1731.974468 | D36: =Suicide_Prevention_ROI!D12 -> 1665.473239 | E36: =Suicide_Prevention_ROI!E12 -> 1601.449878 | F36: =Suicide_Prevention_ROI!F12 -> 1539.81605 | G36: =Suicide_Prevention_ROI!G12 -> 1480.486351 | H36: =Suicide_Prevention_ROI!H12 -> 1423.378226 | I36: =Suicide_Prevention_ROI!I12 -> 1368.411879 | J36: =Suicide_Prevention_ROI!J12 -> 1315.510202 | K36: =Suicide_Prevention_ROI!K12 -> 1264.598685 | L36: =SUM(B36:K36) -> 37621.08618
A37: Payoffs:
A38: NHS | B38: =+Suicide_Prevention_ROI!B33+Suicide_Prevention_ROI!B32+Suicide_Prevention_ROI!B34 -> 612994.292 | C38: =+Suicide_Prevention_ROI!C33+Suicide_Prevention_ROI!C32+Suicide_Prevention_ROI!C34 -> 67800.25965 | D38: =+Suicide_Prevention_ROI!D33+Suicide_Prevention_ROI!D32+Suicide_Prevention_ROI!D34 -> 65713.08461 | E38: =+Suicide_Prevention_ROI!E33+Suicide_Prevention_ROI!E32+Suicide_Prevention_ROI!E34 -> 63687.40242 | F38: =+Suicide_Prevention_ROI!F33+Suicide_Prevention_ROI!F32+Suicide_Prevention_ROI!F34 -> 61721.53533 | G38: =+Suicide_Prevention_ROI!G33+Suicide_Prevention_ROI!G32+Suicide_Prevention_ROI!G34 -> 59813.84459 | H38: =+Suicide_Prevention_ROI!H33+Suicide_Prevention_ROI!H32+Suicide_Prevention_ROI!H34 -> 57962.72988 | I38: =+Suicide_Prevention_ROI!I33+Suicide_Prevention_ROI!I32+Suicide_Prevention_ROI!I34 -> 56166.62878 | J38: =+Suicide_Prevention_ROI!J33+Suicide_Prevention_ROI!J32+Suicide_Prevention_ROI!J34 -> 54424.01619 | K38: =+Suicide_Prevention_ROI!K33+Suicide_Prevention_ROI!K32+Suicide_Prevention_ROI!K34 -> 52733.40378 | L38: 1153017.197
A39: Local Authority | B39: =+Suicide_Prevention_ROI!B37 -> 5860.7 | C39: =+Suicide_Prevention_ROI!C37 -> 7966.029907 | D39: =+Suicide_Prevention_ROI!D37 -> 9898.338466 | E39: =+Suicide_Prevention_ROI!E37 -> 11667.97787 | F39: =+Suicide_Prevention_ROI!F37 -> 13284.75126 | G39: =+Suicide_Prevention_ROI!G37 -> 14757.94009 | H39: =+Suicide_Prevention_ROI!H37 -> 16096.33018 | I39: =+Suicide_Prevention_ROI!I37 -> 17308.23649 | J39: =+Suicide_Prevention_ROI!J37 -> 18401.52676 | K39: =+Suicide_Prevention_ROI!K37 -> 19383.64395 | L39: 134625.475
A40: Police | B40: =+Suicide_Prevention_ROI!B36 -> 6725.9 | C40: =+Suicide_Prevention_ROI!C36 -> 9142.034322 | D40: =+Suicide_Prevention_ROI!D36 -> 11359.6046 | E40: =+Suicide_Prevention_ROI!E36 -> 13390.4913 | F40: =+Suicide_Prevention_ROI!F36 -> 15245.94477 | G40: =+Suicide_Prevention_ROI!G36 -> 16936.61666 | H40: =+Suicide_Prevention_ROI!H36 -> 18472.58982 | I40: =+Suicide_Prevention_ROI!I36 -> 19863.40673 | J40: =+Suicide_Prevention_ROI!J36 -> 21118.09662 | K40: =+Suicide_Prevention_ROI!K36 -> 22245.20122 | L40: 154499.886
A41: Productivity Losses | B41: =+Suicide_Prevention_ROI!B35 -> 0 | C41: =+Suicide_Prevention_ROI!C35 -> 0 | D41: =+Suicide_Prevention_ROI!D35 -> 0 | E41: =+Suicide_Prevention_ROI!E35 -> 0 | F41: =+Suicide_Prevention_ROI!F35 -> 0 | G41: =+Suicide_Prevention_ROI!G35 -> 0 | H41: =+Suicide_Prevention_ROI!H35 -> 0 | I41: =+Suicide_Prevention_ROI!I35 -> 0 | J41: =+Suicide_Prevention_ROI!J35 -> 0 | K41: =+Suicide_Prevention_ROI!K35 -> 0 | L41: 0
A42: Intangible Losses | B42: =+Suicide_Prevention_ROI!B38 -> 0 | C42: =+Suicide_Prevention_ROI!C38 -> 0 | D42: =+Suicide_Prevention_ROI!D38 -> 0 | E42: =+Suicide_Prevention_ROI!E38 -> 0 | F42: =+Suicide_Prevention_ROI!F38 -> 0 | G42: =+Suicide_Prevention_ROI!G38 -> 0 | H42: =+Suicide_Prevention_ROI!H38 -> 0 | I42: =+Suicide_Prevention_ROI!I38 -> 0 | J42: =+Suicide_Prevention_ROI!J38 -> 0 | K42: =+Suicide_Prevention_ROI!K38 -> 0 | L42: 0
A44: Total cost | B44: =SUM(B36:B43) -> 649810.8792 | C44: 86640.29834 | D44: 88636.50092 | E44: 90347.32147 | F44: 91792.04741 | G44: 92988.88769 | H44: 93955.0281 | I44: 94706.68387 | J44: 95259.14977 | K44: 95626.84763 | L44: =SUM(B44:K44) -> 1479763.644
A45: Quality Adjusted Life Years Saved | B45: =Suicide_Prevention_ROI!B41 -> 209.29465 | C45: =Suicide_Prevention_ROI!C41 -> 310.0509641 | D45: =Suicide_Prevention_ROI!D41 -> 302.1949648 | E45: =Suicide_Prevention_ROI!E41 -> 294.5381291 | F45: =Suicide_Prevention_ROI!F41 -> 287.0754064 | G45: =Suicide_Prevention_ROI!G41 -> 279.8018739 | H45: =Suicide_Prevention_ROI!H41 -> 272.7127338 | I45: =Suicide_Prevention_ROI!I41 -> 265.80331 | J45: =Suicide_Prevention_ROI!J41 -> 259.069045 | K45: =Suicide_Prevention_ROI!K41 -> 252.5054968 | L45: =SUM(B45:K45) -> 2733.046574
A48: Costs of Usual Care Cohort
B49: Year 1 | C49: Year 2 | D49: Year 3 | E49: Year 4 | F49: Year 5 | G49: Year 6 | H49: Year 7 | I49: Year 8 | J49: Year 9 | K49: Year 10 | L49: Total
A50: NHS: Additional costs of psychosocial assessment | B50: 0 | C50: 0 | D50: 0 | E50: 0 | F50: 0 | G50: 0 | H50: 0 | I50: 0 | J50: 0 | K50: 0 | L50: =SUM(B50:K50) -> 0
A51: Payoffs: | L51: =SUM(B51:H51) -> 0
A52: NHS | B52: =+Suicide_Prevention_ROI!B48+Suicide_Prevention_ROI!B49+Suicide_Prevention_ROI!B50 -> 612994.292 | C52: =+Suicide_Prevention_ROI!C48+Suicide_Prevention_ROI!C49+Suicide_Prevention_ROI!C50 -> 78517.61612 | D52: =+Suicide_Prevention_ROI!D48+Suicide_Prevention_ROI!D49+Suicide_Prevention_ROI!D50 -> 75972.09334 | E52: =+Suicide_Prevention_ROI!E48+Suicide_Prevention_ROI!E49+Suicide_Prevention_ROI!E50 -> 73507.61715 | F52: =+Suicide_Prevention_ROI!F48+Suicide_Prevention_ROI!F49+Suicide_Prevention_ROI!F50 -> 71121.67793 | G52: =+Suicide_Prevention_ROI!G48+Suicide_Prevention_ROI!G49+Suicide_Prevention_ROI!G50 -> 68811.84031 | H52: =+Suicide_Prevention_ROI!H48+Suicide_Prevention_ROI!H49+Suicide_Prevention_ROI!H50 -> 66575.74114 | I52: =+Suicide_Prevention_ROI!I48+Suicide_Prevention_ROI!I49+Suicide_Prevention_ROI!I50 -> 64411.08754 | J52: =+Suicide_Prevention_ROI!J48+Suicide_Prevention_ROI!J49+Suicide_Prevention_ROI!J50 -> 62315.65497 | K52: =+Suicide_Prevention_ROI!K48+Suicide_Prevention_ROI!K49+Suicide_Prevention_ROI!K50 -> 60287.28529 | L52: =SUM(B52:K52) -> 1234514.906
A53: Local Authority | B53: =+Suicide_Prevention_ROI!B53 -> 5860.7 | C53: =+Suicide_Prevention_ROI!C53 -> 8342.682495 | D53: =+Suicide_Prevention_ROI!D53 -> 10617.70412 | E53: =+Suicide_Prevention_ROI!E53 -> 12698.41102 | F53: =+Suicide_Prevention_ROI!F53 -> 14596.76244 | G53: =+Suicide_Prevention_ROI!G53 -> 16324.06587 | H53: =+Suicide_Prevention_ROI!H53 -> 17891.01046 | I53: =+Suicide_Prevention_ROI!I53 -> 19307.6987 | J53: =+Suicide_Prevention_ROI!J53 -> 20583.67668 | K53: =+Suicide_Prevention_ROI!K53 -> 21727.96267 | L53: =SUM(B53:K53) -> 147950.6744
A54: Police | B54: =+Suicide_Prevention_ROI!B52 -> 6725.9 | C54: =+Suicide_Prevention_ROI!C52 -> 9574.291158 | D54: =+Suicide_Prevention_ROI!D52 -> 12185.16835 | E54: =+Suicide_Prevention_ROI!E52 -> 14573.04463 | F54: =+Suicide_Prevention_ROI!F52 -> 16751.64477 | G54: =+Suicide_Prevention_ROI!G52 -> 18733.94555 | H54: =+Suicide_Prevention_ROI!H52 -> 20532.21411 | I54: =+Suicide_Prevention_ROI!I52 -> 22158.04438 | J54: =+Suicide_Prevention_ROI!J52 -> 23622.39169 | K54: =+Suicide_Prevention_ROI!K52 -> 24935.60566 | L54: =SUM(B54:K54) -> 169792.2503
A55: Productivity Losses | B55: =+Suicide_Prevention_ROI!B51 -> 0 | C55: =+Suicide_Prevention_ROI!C51 -> 0 | D55: =+Suicide_Prevention_ROI!D51 -> 0 | E55: =+Suicide_Prevention_ROI!E51 -> 0 | F55: =+Suicide_Prevention_ROI!F51 -> 0 | G55: =+Suicide_Prevention_ROI!G51 -> 0 | H55: =+Suicide_Prevention_ROI!H51 -> 0 | I55: =+Suicide_Prevention_ROI!I51 -> 0 | J55: =+Suicide_Prevention_ROI!J51 -> 0 | K55: =+Suicide_Prevention_ROI!K51 -> 0 | L55: =SUM(B55:K55) -> 0
A56: Intangible Losses | B56: =+Suicide_Prevention_ROI!B54 -> 0 | C56: =+Suicide_Prevention_ROI!C54 -> 0 | D56: =+Suicide_Prevention_ROI!D54 -> 0 | E56: =+Suicide_Prevention_ROI!E54 -> 0 | F56: =+Suicide_Prevention_ROI!F54 -> 0 | G56: =+Suicide_Prevention_ROI!G54 -> 0 | H56: =+Suicide_Prevention_ROI!H54 -> 0 | I56: =+Suicide_Prevention_ROI!I54 -> 0 | J56: =+Suicide_Prevention_ROI!J54 -> 0 | K56: =+Suicide_Prevention_ROI!K54 -> 0 | L56: =SUM(B56:K56) -> 0
A58: Total cost usual care | B58: =SUM(B50:B57) -> 625580.892 | C58: 96434.58978 | D58: 98774.96581 | E58: 100779.0728 | F58: 102470.0851 | G58: 103869.8517 | H58: 104998.9657 | I58: 105876.8306 | J58: 106521.7233 | K58: 106950.8536 | L58: =SUM(B58:K58) -> 1552257.831
A59: Quality Adjusted Life Years Saved | B59: =Suicide_Prevention_ROI!B57 -> 209.2689 | C59: =Suicide_Prevention_ROI!C57 -> 307.2816136 | D59: =Suicide_Prevention_ROI!D57 -> 298.953198 | E59: =Suicide_Prevention_ROI!E57 -> 290.8505119 | F59: =Suicide_Prevention_ROI!F57 -> 282.9674372 | G59: =Suicide_Prevention_ROI!G57 -> 275.2980216 | H59: =Suicide_Prevention_ROI!H57 -> 267.8364742 | I59: =Suicide_Prevention_ROI!I57 -> 260.5771611 | J59: =Suicide_Prevention_ROI!J57 -> 253.5146009 | K59: =Suicide_Prevention_ROI!K57 -> 246.6434611 | L59: =SUM(B59:K59) -> 2693.19138
A61: Return to Suicide Intervention Contents Page
A63: Return to Intervention Choice Menu

Sheet Suicide_Model (hidden)
A1: Suicide model | I1: Increased PSA
A3: Name | B3: Root Definition | F3: Undergo Training | G3: =+#REF! ->  | J3: NFSA | K3: Suicide Averted | L3: Suicide Completed
A4: at_risk_population | B4: =+incidence_selfharm*B19 -> 400 | F4: Do Not Undergo Training | G4: =1-p_training ->  | I4: Initial Values | J4: =+p_non_fatal_suicide_event -> 0.97425 | K4: =1-J4-L4 -> 5.204170428e-17 | L4: =+p_completed_suicide -> 0.02575 | M4: =SUM(J4:L4) -> 1
F5: Receives IAPT if trained | G5: =+#REF! ->  | I5: NFSA | J5: =+(PSA_use_increased*p_non_fatal_to_non_fatal*rr_PSA)+((1-PSA_use_increased)*p_non_fatal_to_non_fatal) -> 0.109536 | K5: =1-J5-L5 -> 0.879712 | L5: =+(PSA_use_increased*p_non_fatal_to_completed*rr_PSA)+((1-PSA_use_increased)*p_non_fatal_to_completed) -> 0.010752 | M5: =SUM(J5:L5) -> 1
F6: Does not receive IAPT if trained | G6: =1-G5 ->  | I6: Suicide Averted | J6: =+(PSA_use_increased*p_non_fatal_to_non_fatal*rr_PSA)+((1-PSA_use_increased)*p_non_fatal_to_non_fatal) -> 0.109536 | K6: =1-J6-L6 -> 0.879712 | L6: =+(PSA_use_increased*p_non_fatal_to_completed*rr_PSA)+((1-PSA_use_increased)*p_non_fatal_to_completed) -> 0.010752 | M6: 1
A7: c_non_fatal_event | B7: =+B41/2 -> 334.36 | F7: Receives IAPT no training | G7: =+#REF! ->  | I7: Suicide Completed | J7: 0 | K7: =1-J7-L7 -> 0 | L7: 1
F8: Does not receive IAPT no training | G8: =1-G7 -> 
A9: c_suicide_prevention_support | B9: =IF(Suicide_Parameters!$C17>0,Suicide_Parameters!$C17,Suicide_Parameters!$B17) -> 1006
A11: c_coroner | B11: =IF(Suicide_Parameters!$C18>0,Suicide_Parameters!$C18,Suicide_Parameters!$B18) -> 569 | I11: Usual PSA
A12: c_intangible_losses | B12: =IF(Suicide_Parameters!$B20 = "Yes",38797,0) -> 0 | C12: 38797
A14: p_completed_suicide | B14: =IF(Suicide_Parameters!$C31>0,Suicide_Parameters!$C31,Suicide_Parameters!$B31) -> 0.02575 | I14: Initial Values | J14: =+p_non_fatal_suicide_event -> 0.97425 | K14: =1-J14-L14 -> 5.204170428e-17 | L14: =+p_completed_suicide -> 0.02575 | M14: =SUM(J14:L14) -> 1
A15: p_non_fatal_suicide_event | B15: =1-p_completed_suicide -> 0.97425 | F15: =0.0109*569*324 -> 2009.4804 | I15: NFSA | J15: =+(PSA_use_current*p_non_fatal_to_non_fatal*rr_PSA)+((1-PSA_use_current)*p_non_fatal_to_non_fatal) -> 0.12744644 | K15: =1-J15-L15 -> 0.86004348 | L15: =+(PSA_use_current*p_non_fatal_to_completed*rr_PSA)+((1-PSA_use_current)*p_non_fatal_to_completed) -> 0.01251008 | M15: 1
A16: p_non_fatal_to_completed | B16: =IF(Suicide_Parameters!$C27>0,Suicide_Parameters!$C27,Suicide_Parameters!$B27) -> 0.016 | F16: =+p_completed_suicide_IAPT*c_coroner*at_risk_population ->  | I16: Suicide Averted | J16: =+(PSA_use_current*p_non_fatal_to_non_fatal*rr_PSA)+((1-PSA_use_current)*p_non_fatal_to_non_fatal) -> 0.12744644 | K16: =1-J16-L16 -> 0.86004348 | L16: =+(PSA_use_current*p_non_fatal_to_completed*rr_PSA)+((1-PSA_use_current)*p_non_fatal_to_completed) -> 0.01251008 | M16: 1
A17: p_non_fatal_to_non_fatal | B17: =IF(Suicide_Parameters!$C26>0,Suicide_Parameters!$C26,Suicide_Parameters!$B26) -> 0.163 | F17: =+G6*p_completed_suicide*at_risk_population*c_coroner ->  | I17: Suicide Completed | J17: 0 | K17: =1-J17-L17 -> 0 | L17: 1
A18: c_police | B18: 653
A19: population | B19: =IF(Suicide_Parameters!$C34>0,Suicide_Parameters!$C34,Suicide_Parameters!$B34) -> 100000
A20: c_productivity_losses | B20: =IF(Suicide_Parameters!$B20 = "Yes",19327,0) -> 0 | C20: 19327
A21: r | B21: 0.015 | F21: =0.171*p_completed_suicide_IAPT -> 
A22: suicide | B22: 1
A23: tot_u_survive_self_harm | B23: =+u_survival_self_harm*at_risk_population -> 214.8 | F23: =+c_coroner*at_risk_population -> 227600
A24: suicide_averted_survive | B24: =+tot_u_survive_self_harm/2 -> 107.4
A25: suicide_completed | B25: 0
A26: suicide_rate | B26: =IF(Suicide_Parameters!$C30>0,Suicide_Parameters!$C30,Suicide_Parameters!$B30) -> 10.3
A27: PSA_use_current | B27: =IF(Suicide_Parameters!$C29>0,Suicide_Parameters!$C29,Suicide_Parameters!$B29) -> 0.532
A28: rr_PSA | B28: =IF(Suicide_Parameters!$C25>0,Suicide_Parameters!$C25,Suicide_Parameters!$B25) -> 0.59
A29: u_survival_self_harm | B29: 0.537
A30: u_suicide_averted | B30: 0.851
A31: tot_u_survive_no_self_harm | B31: =+u_suicide_averted*at_risk_population -> 340.4
A32: incidence_selfharm | B32: =+B40/100000 -> 0.004
A33: IAPT_recovery_rate | B33: 0.438
A34: PSA_use_increased | B34: =IF(Suicide_Parameters!$C28>0,Suicide_Parameters!$C28,Suicide_Parameters!$B28) -> 0.8
A35: C_PSA | B35: =IF(Suicide_Parameters!$C11>0,Suicide_Parameters!$C11,Suicide_Parameters!$B11) -> 232
A36: c_AE | B36: 170
A37: p_ambulance_use | B37: 0.24
A38: c_AE_attendance | B38: =+c_ambulance_transport*p_ambulance_use -> 56.64
A39: c_ambulance_transport | B39: 236
A40: incidence of self harm per 100,000 adults | B40: =+suicide_rate/p_completed_suicide -> 400
A41: immediate self-harm treatment cost | B41: =IF(Suicide_Parameters!$C16>0,Suicide_Parameters!$C16,Suicide_Parameters!$B16) -> 668.72
A42: Discount Rate (Costs) | B42: =IF(Suicide_Parameters!$C32>0,Suicide_Parameters!$C32,Suicide_Parameters!$B32) -> 0.035
A43: Discount Rate (Outcomes) | B43: =IF(Suicide_Parameters!$C33>0,Suicide_Parameters!$C33,Suicide_Parameters!$B33) -> 0.015
AK59: TOTAL
E60: SUICIDE AND SELF-HARM INTERVENTION | BB60: Usual care
G61: PROBABILITY | Q61: SUICIDE AWARENESS TRAINING COSTS | T61: PSA COSTS | X61: CORONER COSTS | Z61: AMBULANCE COSTS | AD61: IMMEDIATE COSTS OF SELF HARM | AH61: ONGOING PSYCHOSOCIAL TREATMENT | AL61: POLICE COSTS | AN61: PRODUCTIVITY COSTS | AQ61: INTANGIBLE COSTS | AT61: UTILITY VALUES LIVES SAVED | BD61: PROBABILITY | BK61: PSA COSTS | BO61: IMMEDIATE COSTS OF SELF-HARM | BS61: AMBULANCE COSTS | BW61: CORONER | BY61: ONGOING PSYCHOLOGICAL TREATMENT | CC61: POLICE COSTS | CE61: PRODUCTIVITY LOSSES | CH61: INTANGIBLE | CK61: TOTAL UTILITY VALUES
E62: YEARS | F62: YEAR | G62: NFSA | H62: SUICIDE AVERTED | I62: SUICIDE COMPLETED | O62: discount | P62: UTILITY DISCOUNT | Q62: TRAINED | R62: NOT TRAINED | S62: TOTAL | T62: NFSA | U62: SUICIDE AVERTED | V62: SUICIDE COMPLETED | W62: TOTAL PSA | X62: SUICIDE COMPLETED | Y62: TOTAL | Z62: NFSA | AA62: SUICIDE AVERTED | AB62: SUICIDE COMPLETED | AC62: TOTAL | AD62: NFSA | AE62: SUICIDE AVERTED | AF62: SUICIDE COMPLETED | AG62: TOTAL | AH62: NFSA | AI62: SUICIDE AVERTED | AJ62: SUICIDE COMPLETED | AK62: TOTAL | AL62: SUICIDE COMPLETED | AM62: TOTAL | AN62: NFSA | AO62: SUICIDE COMPLETED | AP62: TOTAL | AQ62: NFSA | AR62: SUICIDE COMPLETED | AS62: TOTAL | AT62: NFSA | AU62: SUICIDE AVERTED | AV62: SUICIDE COMPLETED | AW62: TOTAL UTILITY | AX62: TOTAL COST | BB62: YEARS | BC62: YEAR | BD62: NFSA | BE62: SUICIDE AVERTED | BF62: SUICIDE COMPLETED | BG62: TOTAL | BH62: YEARS | BI62: discount | BJ62: utility discount | BK62: NFSA | BL62: SUICIDE AVERTED | BM62: SUICIDE COMPLETED | BN62: TOTAL USUAL CARE | BO62: NFSA | BP62: SUICIDE AVERTED | BQ62: SUICIDE COMPLETED | BR62: TOTAL USUAL CARE | BS62: NFSA | BT62: SUICIDE AVERTED | BU62: SUICIDE COMPLETED | BV62: TOTAL USUAL CARE | BW62: SUICIDE COMPLETED | BX62: TOTAL | BY62: NFSA | BZ62: SUICIDE AVERTED | CA62: SUICIDE COMPLETED | CB62: TOTAL | CC62: SUICIDE COMPLETED | CD62: TOTAL | CE62: NFSA | CF62: SUICIDE COMPLETED | CG62: TOTAL | CH62: NFSA | CI62: SUICIDE COMPLETED | CJ62: TOTAL | CK62: NFSA | CL62: SUICIDE AVERTED | CM62: SUICIDE COMPLETED | CN62: TOTAL UTILITY | CO62: TOTAL
F63: 1 | G63: =+$J$4 -> 0.97425 | H63: =+$K$4 -> 5.204170428e-17 | I63: =+$L$4 -> 0.02575 | O63: 1 | P63: 1 | Q63: =+p_training*c_suicide_awareness_training*n_GPs_per_capita*B19 ->  | R63: 0 | S63: =SUM(Q63:R63) ->  | T63: =+$G63*C_PSA*PSA_use_increased*at_risk_population*$O63 -> 72328.32 | U63: 0 | V63: 0 | W63: =SUM(T63:V63) -> 72328.32 | X63: =+$I63*c_coroner*at_risk_population*$O63 -> 5860.7 | Y63: =SUM(X63) -> 5860.7 | Z63: =+$G63*c_AE_attendance*at_risk_population*$O63 -> 22072.608 | AA63: 0 | AB63: =+$I63*c_AE_attendance*at_risk_population*$O63 -> 583.392 | AC63: =SUM(Z63:AB63) -> 22656 | AD63: =+$G63*(c_AE+c_non_fatal_event)*at_risk_population*$O63 -> 196549.092 | AE63: 0 | AF63: =+$I63*c_AE*at_risk_population*$O63 -> 1751 | AG63: =SUM(AD63:AF63) -> 198300.092 | AH63: =+$G63*c_suicide_prevention_support*at_risk_population*$O63 -> 392038.2 | AI63: 0 | AJ63: 0 | AK63: =SUM(AH63:AJ63) -> 392038.2 | AL63: =+$I63*c_police*at_risk_population*$O63 -> 6725.9 | AM63: =SUM(AL63) -> 6725.9 | AO63: =+$I63*c_productivity_losses*at_risk_population*$O63 -> 0 | AP63: =SUM(AN63:AO63) -> 0 | AR63: =+$I63*c_intangible_losses*at_risk_population*$O63 -> 0 | AS63: =SUM(AR63) -> 0 | AT63: =$G63*tot_u_survive_self_harm*$P63 -> 209.2689 | AU63: =$H63*tot_u_survive_no_self_harm*$P63 -> 1.771499614e-14 | AV63: =$I63*$P63 -> 0.02575 | AW63: =SUM(AT63:AV63) -> 209.29465 | BC63: 1 | BD63: =+$J$14 -> 0.97425 | BE63: =+$K$14 -> 5.204170428e-17 | BF63: =+$L$14 -> 0.02575 | BG63: =SUM(BD63:BF63) -> 1 | BH63: =SUM(AZ63:BC63) -> 1 | BI63: 1 | BJ63: 1 | BK63: =+$BD63*C_PSA*PSA_use_current*at_risk_population*$BI63 -> 48098.3328 | BL63: 0 | BM63: 0 | BN63: =SUM(BK63:BM63) -> 48098.3328 | BO63: =+$BD63*(c_AE+c_non_fatal_event)*at_risk_population*$BI63 -> 196549.092 | BP63: 0 | BQ63: =+$BF63*c_AE*at_risk_population*$BI63 -> 1751 | BR63: =SUM(BO63:BQ63) -> 198300.092 | BS63: =+BD63*at_risk_population*c_AE_attendance*$BI63 -> 22072.608 | BU63: =+BF63*at_risk_population*c_AE_attendance*$BI63 -> 583.392 | BV63: =SUM(BS63:BU63) -> 22656 | BW63: =+$BF63*at_risk_population*c_coroner*$BI63 -> 5860.7 | BX63: =SUM(BW63:BW63) -> 5860.7 | BY63: =+$BD63*at_risk_population*c_suicide_prevention_support*$BI63 -> 392038.2 | CB63: =SUM(BY63:CA63) -> 392038.2 | CC63: =+$BF63*at_risk_population*c_police*$BI63 -> 6725.9 | CD63: =SUM(CC63) -> 6725.9 | CF63: =+$BF63*at_risk_population*c_productivity_losses*$BI63 -> 0 | CG63: =SUM(CE63:CF63) -> 0 | CI63: =+$BF63*at_risk_population*c_intangible_losses*$BI63 -> 0 | CJ63: =SUM(CI63) -> 0 | CK63: =$BD63*tot_u_survive_self_harm*$BJ63 -> 209.2689 | CL63: =+$BE63*tot_u_survive_no_self_harm*$BJ63 -> 1.771499614e-14 | CM63: 0 | CN63: =SUM(CK63:CM63) -> 209.2689
F64: =1+F63 -> 2 | G64: =+($J$5*$G63)+($J$6*$H63)+($J$7*$I63) -> 0.106715448 | H64: =+($K$5*$G63)+($K$6*$H63)+($K$7*$I63) -> 0.857059416 | I64: =+($L$5*$G63)+($L$6*$H63)+($L$7*$I63) -> 0.036225136 | O64: =+O63/(1+Discount_Rate__Costs) -> 0.9661835749 | P64: =+P63/(1+Discount_Rate__Outcomes) -> 0.9852216749 | S64: =SUM(Q64:R64) -> 0 | T64: 7654.642376 | U64: 0 | V64: 0 | W64: =SUM(T64:V64) -> 7654.642376 | X64: 7966.029907 | Y64: =SUM(X64) -> 7966.029907 | Z64: 2335.985691 | AA64: 0 | AB64: 792.962977 | AC64: =SUM(Z64:AB64) -> 3128.948668 | AD64: 20801.16072 | AE64: 0 | AF64: 2380.008935 | AG64: =SUM(AD64:AF64) -> 23181.16965 | AH64: 41490.14133 | AI64: 0 | AJ64: 0 | AK64: =SUM(AH64:AJ64) -> 41490.14133 | AL64: 9142.034322 | AM64: =SUM(AL64) -> 9142.034322 | AO64: 0 | AP64: =SUM(AN64:AO64) -> 0 | AR64: 0 | AS64: =SUM(AR64) -> 0 | AT64: 22.58372239 | AU64: 287.4315519 | AV64: =$I64*$P64 -> 0.03568978916 | AW64: =SUM(AT64:AV64) -> 310.0509641 | BC64: =1+BC63 -> 2 | BD64: =+($J$15*$BD63)+($J$16*$BE63)+($J$17*$BF63) -> 0.1241646942 | BE64: =+($K$15*$BD63)+($K$16*$BE63)+($K$17*$BF63) -> 0.8378973604 | BF64: =+($L$15*$BD63)+($L$16*$BE63)+($L$17*$BF63) -> 0.03793794544 | BG64: =SUM(BD64:BF64) -> 1 | BH64: 2 | BI64: =+BI63/(1+Discount_Rate__Costs) -> 0.9661835749 | BJ64: =+BJ63/(1+Discount_Rate__Outcomes) -> 0.9852216749 | BK64: 5922.667908 | BL64: 0 | BM64: 0 | BN64: =SUM(BK64:BM64) -> 5922.667908 | BO64: 24202.39813 | BP64: 0 | BQ64: 2492.541343 | BR64: =SUM(BO64:BQ64) -> 26694.93947 | BS64: 2717.94716 | BU64: 830.4561274 | BV64: =SUM(BS64:BU64) -> 3548.403288 | BW64: 8342.682495 | BX64: 8342.682495 | BY64: 48274.27337 | CB64: =SUM(BY64:CA64) -> 48274.27337 | CC64: 9574.291158 | CD64: =SUM(CC64) -> 9574.291158 | CF64: 0 | CG64: =SUM(CE64:CF64) -> 0 | CI64: 0 | CJ64: =SUM(CI64) -> 0 | CK64: 26.27642986 | CL64: 281.0051837 | CM64: 0 | CN64: =SUM(CK64:CM64) -> 307.2816136
F65: =1+F64 -> 3 | G65: =+($J$5*$G64)+($J$6*$H64)+($J$7*$I64) -> 0.1055680435 | H65: =+($K$5*$G64)+($K$6*$H64)+($K$7*$I64) -> 0.8478443132 | I65: =+($L$5*$G64)+($L$6*$H64)+($L$7*$I64) -> 0.04658764334 | O65: 0.9335107004 | P65: 0.9706617486 | T65: 7316.270204 | U65: 0 | V65: 0 | W65: 7316.270204 | X65: 9898.338466 | Y65: 9898.338466 | Z65: 2232.723838 | AA65: 0 | AB65: 985.31088 | AC65: 3218.034718 | AD65: 19881.64892 | AE65: 0 | AF65: 2957.324322 | AG65: 22838.97325 | AH65: 39656.07665 | AI65: 0 | AJ65: 0 | AK65: 39656.07665 | AL65: 11359.6046 | AM65: 11359.6046 | AO65: 0 | AP65: 0 | AR65: 0 | AS65: 0 | AT65: 22.01074109 | AU65: 280.1390028 | AV65: 0.04522084335 | AW65: 302.1949648 | BC65: =1+BC64 -> 3 | BD65: 0.1226113839 | BE65: 0.8274151974 | BF65: 0.04997341871 | BG65: 1 | BH65: 3 | BI65: 0.9335107004 | BJ65: 0.9706617486 | BK65: 5650.796965 | BL65: 0 | BM65: 0 | BN65: 5650.796965 | BO65: 23091.42434 | BP65: 0 | BQ65: 3172.249035 | BR65: 26263.67337 | BS65: 2593.183985 | BU65: 1056.918737 | BV65: 3650.102722 | BW65: 10617.70412 | BX65: 10617.70412 | BY65: 46058.31724 | CB65: 46058.31724 | CC65: 12185.16835 | CD65: 12185.16835 | CF65: 0 | CG65: 0 | CI65: 0 | CJ65: 0 | CK65: 25.56424593 | CL65: 273.3889521 | CM65: 0 | CN65: 298.953198
F66: 4 | G66: 0.1044329759 | H66: 0.8387282911 | I66: 0.056838733 | O66: 0.9019427057 | P66: 0.9563169937 | T66: 6992.855717 | U66: 0 | V66: 0 | W66: 6992.855717 | X66: 11667.97787 | Y66: 11667.97787 | Z66: 2134.026658 | AA66: 0 | AB66: 1161.466198 | AC66: 3295.492856 | AD66: 19002.78399 | AE66: 0 | AF66: 3486.039083 | AG66: 22488.82308 | AH66: 37903.08648 | AI66: 0 | AJ66: 0 | AK66: 37903.08648 | AL66: 13390.4913 | AM66: 13390.4913 | AO66: 0 | AP66: 0 | AR66: 0 | AS66: 0 | AT66: 21.45229715 | AU66: 273.0314761 | AV66: 0.05435584627 | AW66: 294.5381291 | BC66: 4 | BD66: 0.1210775057 | BE66: 0.8170641671 | BF66: 0.06185832724 | BG66: 1 | BH66: 4 | BI66: 0.9019427057 | BJ66: 0.9563169937 | BK66: 5391.405839 | BL66: 0 | BM66: 0 | BN66: 5391.405839 | BO66: 22031.44809 | BP66: 0 | BQ66: 3793.901359 | BR66: 25825.34945 | BS66: 2474.14787 | BU66: 1264.038664 | BV66: 3738.186535 | BW66: 12698.41102 | BX66: 12698.41102 | BY66: 43944.08117 | CB66: 43944.08117 | CC66: 14573.04463 | CD66: 14573.04463 | CF66: 0 | CG66: 0 | CI66: 0 | CJ66: 0 | CK66: 24.8713647 | CL66: 265.9791472 | CM66: 0 | CN66: 290.8505119
F67: 5 | G67: 0.1033101125 | H67: 0.8297102845 | I67: 0.06697960294 | O67: 0.8714422277 | P67: 0.9421842303 | T67: 6683.737712 | U67: 0 | V67: 0 | W67: 6683.737712 | X67: 13284.75126 | Y67: 13284.75126 | Z67: 2039.692371 | AA67: 0 | AB67: 1322.404765 | AC67: 3362.097136 | AD67: 18162.76914 | AE67: 0 | AF67: 3969.082099 | AG67: 22131.85124 | AH67: 36227.58695 | AI67: 0 | AJ67: 0 | AK67: 36227.58695 | AL67: 15245.94477 | AM67: 15245.94477 | AO67: 0 | AP67: 0 | AR67: 0 | AS67: 0 | AT67: 20.90802172 | AU67: 266.1042775 | AV67: 0.06310712564 | AW67: 287.0754064 | BC67: 5 | BD67: 0.1195628164 | BE67: 0.806842629 | BF67: 0.07359455462 | BG67: 1 | BH67: 5 | BI67: 0.8714422277 | BJ67: 0.9421842303 | BK67: 5143.921662 | BL67: 0 | BM67: 0 | BN67: 5143.921662 | BO67: 21020.12842 | BP67: 0 | BQ67: 4361.071378 | BR67: 25381.19979 | BS67: 2360.575925 | BU67: 1453.00637 | BV67: 3813.582295 | BW67: 14596.76244 | BX67: 14596.76244 | BY67: 41926.89584 | CB67: 41926.89584 | CC67: 16751.64477 | CD67: 16751.64477 | CF67: 0 | CG67: 0 | CI67: 0 | CJ67: 0 | CK67: 24.19726299 | CL67: 258.7701742 | CM67: 0 | CN67: 282.9674372
F68: 6 | G68: 0.1021993222 | H68: 0.8207892395 | I68: 0.07701143825 | O68: 0.8419731669 | P68: 0.9282603254 | T68: 6388.284217 | U68: 0 | V68: 0 | W68: 6388.284217 | X68: 14757.94009 | Y68: 14757.94009 | Z68: 1949.528114 | AA68: 0 | AB68: 1469.050486 | AC68: 3418.578601 | AD68: 17359.887 | AE68: 0 | AF68: 4409.226389 | AG68: 21769.11339 | AH68: 34626.1526 | AI68: 0 | AJ68: 0 | AK68: 34626.1526 | AL68: 16936.61666 | AM68: 16936.61666 | AO68: 0 | AP68: 0 | AR68: 0 | AS68: 0 | AT68: 20.37755534 | AU68: 259.3528319 | AV68: 0.07148666273 | AW68: 279.8018739 | BC68: 6 | BD68: 0.118067076 | BE68: 0.7967489631 | BF68: 0.08518396085 | BG68: 1 | BH68: 6 | BI68: 0.8419731669 | BJ68: 0.9282603254 | BK68: 4907.797866 | BL68: 0 | BM68: 0 | BN68: 4907.797866 | BO68: 20055.23181 | BP68: 0 | BQ68: 4877.137431 | BR68: 24932.36925 | BS68: 2252.217325 | BU68: 1624.947436 | BV68: 3877.164761 | BW68: 16324.06587 | BX68: 16324.06587 | BY68: 40002.3063 | CB68: 40002.3063 | CC68: 18733.94555 | CD68: 18733.94555 | CF68: 0 | CG68: 0 | CI68: 0 | CJ68: 0 | CK68: 23.54143182 | CL68: 251.7565898 | CM68: 0 | CN68: 275.2980216
F69: 7 | G69: 0.1011004751 | H69: 0.8119641136 | I69: 0.08693541126 | O69: 0.8135006443 | P69: 0.9145421925 | T69: 6105.891193 | U69: 0 | V69: 0 | W69: 6105.891193 | X69: 16096.33018 | Y69: 16096.33018 | Z69: 1863.349554 | AA69: 0 | AB69: 1602.277928 | AC69: 3465.627482 | AD69: 16592.49613 | AE69: 0 | AF69: 4809.096889 | AG69: 21401.59302 | AH69: 33095.50938 | AI69: 0 | AJ69: 0 | AK69: 33095.50938 | AL69: 18472.58982 | AM69: 18472.58982 | AO69: 0 | AP69: 0 | AR69: 0 | AS69: 0 | AT69: 19.86054765 | AU69: 252.77268 | AV69: 0.07950610163 | AW69: 272.7127338 | BC69: 7 | BD69: 0.1165900474 | BE69: 0.7867815699 | BF69: 0.09662838269 | BG69: 1 | BH69: 7 | BI69: 0.8135006443 | BJ69: 0.9145421925 | BK69: 4682.512968 | BL69: 0 | BM69: 0 | BN69: 4682.512968 | BO69: 19134.6273 | BP69: 0 | BQ69: 5345.293107 | BR69: 24479.92041 | BS69: 2148.832759 | BU69: 1780.925892 | BV69: 3929.758651 | BW69: 17891.01046 | BX69: 17891.01046 | BY69: 38166.06208 | CB69: 38166.06208 | CC69: 20532.21411 | CD69: 20532.21411 | CF69: 0 | CG69: 0 | CI69: 0 | CJ69: 0 | CK69: 22.90337598 | CL69: 244.9330982 | CM69: 0 | CN69: 267.8364742
F70: 8 | G70: 0.1000134428 | H70: 0.8032338755 | I70: 0.09675268172 | O70: 0.7859909607 | P70: 0.9010267907 | T70: 5835.981305 | U70: 0 | V70: 0 | W70: 5835.981305 | X70: 17308.23649 | Y70: 17308.23649 | Z70: 1780.980502 | AA70: 0 | AB70: 1722.914789 | AC70: 3503.89529 | AD70: 15859.02765 | AE70: 0 | AF70: 5171.177861 | AG70: 21030.20551 | AH70: 31632.52798 | AI70: 0 | AJ70: 0 | AK70: 31632.52798 | AL70: 19863.40673 | AM70: 19863.40673 | AO70: 0 | AP70: 0 | AR70: 0 | AS70: 0 | AT70: 19.35665719 | AU70: 246.359476 | AV70: 0.0871767583 | AW70: 265.80331 | BC70: 8 | BD70: 0.1151314966 | BE70: 0.7769388695 | BF70: 0.1079296339 | BG70: 1 | BH70: 8 | BI70: 0.7859909607 | BJ70: 0.9010267907 | BK70: 4467.569426 | BL70: 0 | BM70: 0 | BN70: 4467.569426 | BO70: 18256.28173 | BP70: 0 | BQ70: 5768.556731 | BR70: 24024.83846 | BS70: 2050.193903 | BU70: 1921.947372 | BV70: 3972.141275 | BW70: 19307.6987 | BX70: 19307.6987 | BY70: 36414.10781 | CB70: 36414.10781 | CC70: 22158.04438 | CD70: 22158.04438 | CF70: 0 | CG70: 0 | CI70: 0 | CJ70: 0 | CK70: 22.28261371 | CL70: 238.2945474 | CM70: 0 | CN70: 260.5771611
F71: 9 | G71: 0.09893809825 | H71: 0.7945975049 | I71: 0.1064643969 | O71: 0.7594115562 | P71: 0.8877111238 | T71: 5578.002739 | U71: 0 | V71: 0 | W71: 5578.002739 | X71: 18401.52676 | Y71: 18401.52676 | Z71: 1702.25256 | AA71: 0 | AB71: 1831.744246 | AC71: 3533.996805 | AD71: 15157.98201 | AE71: 0 | AF71: 5497.819946 | AG71: 20655.80196 | AH71: 30234.21743 | AI71: 0 | AJ71: 0 | AK71: 30234.21743 | AL71: 21118.09662 | AM71: 21118.09662 | AO71: 0 | AP71: 0 | AR71: 0 | AS71: 0 | AT71: 18.86555114 | AU71: 240.1089842 | AV71: 0.09450962941 | AW71: 259.069045 | BC71: 9 | BD71: 0.1136911924 | BE71: 0.7672193021 | BF71: 0.1190895055 | BG71: 1 | BH71: 9 | BI71: 0.7594115562 | BJ71: 0.8877111238 | BK71: 4262.492536 | BL71: 0 | BM71: 0 | BN71: 4262.492536 | BO71: 17418.25525 | BP71: 0 | BQ71: 6149.780378 | BR71: 23568.03562 | BS71: 1956.082911 | BU71: 2048.962121 | BV71: 4005.045032 | BW71: 20583.67668 | BX71: 20583.67668 | BY71: 34742.57431 | CB71: 34742.57431 | CC71: 23622.39169 | CD71: 23622.39169 | CF71: 0 | CG71: 0 | CI71: 0 | CJ71: 0 | CK71: 21.67867629 | CL71: 231.8359247 | CM71: 0 | CN71: 253.5146009
F72: 10 | G72: 0.09787431582 | H72: 0.7860539925 | I72: 0.1160716917 | O72: 0.7337309722 | P72: 0.8745922402 | T72: 5331.428071 | U72: 0 | V72: 0 | W72: 5331.428071 | X72: 19383.64395 | Y72: 19383.64395 | Z72: 1627.004773 | AA72: 0 | AB72: 1929.507193 | AC72: 3556.511967 | AD72: 14487.92598 | AE72: 0 | AF72: 5791.246873 | AG72: 20279.17285 | AH72: 28897.71896 | AI72: 0 | AJ72: 0 | AK72: 28897.71896 | AL72: 22245.20122 | AM72: 22245.20122 | AO72: 0 | AP72: 0 | AR72: 0 | AS72: 0 | AT72: 18.38690516 | AU72: 234.0170762 | AV72: 0.1015154009 | AW72: 252.5054968 | BC72: 10 | BD72: 0.1122689065 | BE72: 0.7576213272 | BF72: 0.1301097663 | BG72: 1 | BH72: 10 | BI72: 0.7337309722 | BJ72: 0.8745922402 | BK72: 4066.829385 | BL72: 0 | BM72: 0 | BN72: 4066.829385 | BO72: 16618.69708 | BP72: 0 | BQ72: 6491.658441 | BR72: 23110.35552 | BS72: 1866.29194 | BU72: 2162.867848 | BV72: 4029.159788 | BW72: 21727.96267 | BX72: 21727.96267 | BY72: 33147.76998 | CB72: 33147.76998 | CC72: 24935.60566 | CD72: 24935.60566 | CF72: 0 | CG72: 0 | CI72: 0 | CJ72: 0 | CK72: 21.0911077 | CL72: 225.5523534 | CM72: 0 | CN72: 246.6434611
CN73: =SUM(CK73:CM73) -> 0
CN74: =SUM(CK74:CM74) -> 0
Q77: DEPRESSED-STRESSED | R77: NOT DEPRESSED-STRESSED
E78: TOTALS | G78: =SUM(G64:G73) -> 0.9201522341 | H78: =SUM(H64:H73) -> 7.389981031 | Q78: =SUM(Q63:Q64) ->  | R78: =SUM(R63:R73) -> 0 | S78: =SUM(S63:S73) ->  | T78: =SUM(T63:T76) -> 130215.4135 | W78: =SUM(W63:W76) -> 130215.4135 | X78: =SUM(X63:X76) -> 134625.475 | Y78: =SUM(Y63:Y76) -> 134625.475 | Z78: =SUM(Z63:Z76) -> 39738.15206 | AA78: 0 | AB78: 13401.03146 | AC78: 53139.18352 | AD78: 353854.7735 | AF78: 40222.0224 | AG78: 394076.7959 | AH78: 705801.2178 | AI78: 0 | AJ78: 0 | AK78: 705801.2178 | AM78: =SUM(AM63:AM76) -> 154499.886 | AO78: =SUM(AO63:AO76) -> 0 | AP78: =SUM(AP63:AP76) -> 0 | AS78: =SUM(AS63:AS76) -> 0 | AW78: =SUM(AW63:AW76) -> 2733.046574 | AX78: =SUM(AX63:AX76) -> 0 | BB78: TOTALS | BD78: =SUM(BD73:BD73) -> 0 | BE78: =SUM(BE73:BE73) -> 0 | BK78: =SUM(BK63:BK76) -> 92594.32736 | BN78: =SUM(BN63:BN76) -> 92594.32736 | BO78: =SUM(BO63:BO76) -> 378377.5841 | BQ78: =SUM(BQ63:BQ76) -> 44203.1892 | BR78: 422580.7733 | BS78: 42492.08178 | BT78: 0 | BU78: 14727.46257 | BV78: 57219.54435 | BW78: =SUM(BW63:BW76) -> 147950.6744 | BX78: 147950.6744 | BY78: 754714.5881 | BZ78: 0 | CA78: 0 | CB78: 754714.5881 | CC78: 169792.2503 | CD78: 169792.2503 | CG78: =SUM(CG63:CG76) -> 0 | CJ78: =SUM(CJ63:CJ76) -> 0 | CK78: =SUM(CK63:CK77) -> 421.675409 | CN78: =SUM(CN63:CN76) -> 2693.19138 | CO78: =SUM(CO63:CO76) -> 0
S80: =SUM(Q78:R78) -> 

Sheet Volunteering_Contents
A1: Tackling Loneliness and Social Isolation in Older Adults
A3: Click on links below for further information about the intervention, adjust the values of some model parameters or see results
A6: About the intervention
A8: Check and/or adjust model parameters
A10: Summary of Return on Investment
A12: Summary of Return on Investment: Payoffs to Different Sectors
A14: Return to Intervention Choice Menu

Sheet Volunteering_Background
A1: Tackling Loneliness and Social Isolation in Older Adults
A6: Target: | B6: Individuals aged over 65 and not in work that self identify as being lonely | C6: Return to Volunteering Intervention Contents Page
A8: Intervention: | B8: Provision of signposting service and subsequent participation in group activities | C8: Return to Intervention Choice Page
A10: Outcome evidence | B10: Randomised trial looking at impact on depression on participation in group based activity in England, plus non-controlled evidence from experience of provision of signposting services in England. Evidence of impact of loneliness on depression taken from meta analyses of longitudinal studies. Consistent with recent NICE guidance on promoting the mental health and wellbeing of older people
A12: Economic Pay Offs | B12: Impacts on NHS service use, increase in volunteering and loneliness averted
A14: Findings | B14: Positive ROI from health system perspective; modest costs for initial participation in group activities, longer term participation could be sustained through client contributions. Benefits in this model are conservative as they do not include benefits to phsyical health of reduced loneliness.

Sheet Volunteering_Parameters
A1: Tackling Loneliness and Social Isolation in Older Adults : Checking and/or Adjusting Model Parameters
A4: You can use your own values rather than the model's predefined assumptions by inputing these into one or more of the blue coloured cells | B4: Area selected: | C4: =+A33 -> --- Model default values
C6: Return to Volunteering Intervention Contents Page
C7: Return to Intervention Choice Menu
A8: Intervention Costs
B10: Default | C10: Input your own value for costs if desired
A11: Navigator cost per client reached | B11: 9.25
A12: Initial year cost of group based activity per client reached | B12: 20
A14: Other Costs
B16: Default | C16: Input your own value for costs if desired
A17: Annual average cost of managing depression | B17: 961
A19: Other parameters
B21: Default | C21: Input your own value if desired
A22: Initial engagement rate with services | B22: 0.06
A23: Relative risk of loneliness if engage with services compated to no action | B23: 0.91
A24: Increased likelihood of GP contact if severely lonely compared to non-lonely | B24: 1.8
A25: Increased likelihood of being depressed if severely lonely compared to non-lonely | B25: 3.3
A26: Increased likelihood of hospital admission if severely lonely compared to non-lonely | B26: 6
A27: Increased likehood of self-harm if severely lonely compared to non-lonely | B27: 17.37
A28: Discount Rate (Costs) | B28: 0.035
A29: Discount Rate (Outcomes) | B29: 0.015
A30: Number of older people in local population | B30: 100000 | C30: =+B34 -> 0 | D30: Enter CCG area pop aged 65 plus to estimate costs if delivered to all 65 plus year olds who are likely to make use of service
A32: Population in selected area
A33: =+'Intervention Choice'!C5 -> --- Model default values | B33: =VLOOKUP(+'Intervention Choice'!C5,Population_55_plus!D6:AP382,38) -> 0 | C33: Population aged 55 plus
B34: =VLOOKUP(+'Intervention Choice'!C5,Population_55_plus!D6:AP382,39) -> 0 | C34: Population aged 65 plus
A35: Return to Volunteering Intervention Contents Page
A37: Return to Home Page

Sheet Volunteering & Isolation_ROI
A1: ROI: Tackling Loneliness and Social Isolation in Older Adults
A5: Area Selected: | C5: Return to Loneliness and Social Isolation Intervention Contents Page
A6: =+'Intervention Choice'!C5 -> --- Model default values | C6: Return to Intervention Choice Menu
A8: Total Net Costs / Payoffs (Default values 2015 prices)
B10: Year 1 | C10: Year 2 | D10: Year 3 | E10: Year 4 | F10: Year 5 | G10: Total Cost / Saving
A11: Total cost intervention | B11: =+B12+B13 -> 175500 | C11: =+C12+C13 -> 0 | D11: =+D12+D13 -> 0 | E11: =+E12+E13 -> 0 | F11: =+F12+F13 -> 0 | G11: =SUM(B11:F11) -> 175500
A12: Signposting Service | B12: =+B29-B43 -> 55500 | C12: 0 | D12: 0 | E12: 0 | F12: 0 | G12: 55500
A13: Group Activities | B13: 120000 | C13: 0 | D13: 0 | E13: 0 | F13: 0 | G13: 120000
A15: GP Visits | B15: =+B32-B47 -> 0 | C15: -39718.27944 | D15: -37673.4296 | E15: -35817.29165 | F15: -34051.63314 | G15: -147260.6338
A16: Depression Treatment | B16: 0 | C16: -4980.86915 | D16: -4736.204384 | E16: -4514.130005 | F16: -4302.425944 | G16: -18533.62948
A17: Self-Harm Treatment | B17: 0 | C17: -258.4558421 | D17: -246.1030819 | E17: -234.8397911 | F17: -224.090874 | G17: -963.4895891
A18: Additional Volunteering through Signposting | B18: -11476.296 | C18: -11608.97278 | D18: -11091.11165 | E18: -10597.50456 | F18: -10125.86317 | G18: -54899.74816
A20: Total cost consequences (saving if negative value) | B20: =SUM(B15:B18) -> -11476.296 | C20: -56566.57721 | D20: -53746.84872 | E20: -51163.76601 | F20: -48704.01313 | G20: -221657.5011
A21: Total net costs (saving if negative value) | B21: =SUM(B12:B18) -> 164023.704 | C21: -56566.57721 | D21: -53746.84872 | E21: -51163.76601 | F21: -48704.01313 | G21: -46157.50106
A22: Cumulative Return per Pound Invested | B22: =+(B20/B11)*-1 -> 0.065392 | C22: =+((C20+B20)/$B$11)*-1 -> 0.3877086792 | D22: =+((D20+C20+B20)/$B$11)*-1 -> 0.6939585295 | E22: =+((E20+D20+C20+B20)/$B$11)*-1 -> 0.9854899597 | F22: =+((F20+E20+D20+C20+B20)/$B$11)*-1 -> 1.263005704 | G22: =+(G20/$B$11)*-1 -> 1.263005704
A23: Loneliness Free Years Gained | B23: =+B38-B53 -> 0 | C23: =+C38-C53 -> 341.2456847 | D23: =+D38-D53 -> 332.041294 | E23: =+E38-E53 -> 323.6868344 | F23: =+F38-F53 -> 315.5416276 | G23: =SUM(B23:F23) -> 1312.515441
A26: Costs of Signposting and Group Activity Cohort
B27: Year 1 | C27: Year 2 | D27: Year 3 | E27: Year 4 | F27: Year 5 | G27: Total
A28: Total cost intervention | B28: =+B29+B30 -> 175500 | C28: 0 | D28: 0 | E28: 0 | F28: 0 | G28: =SUM(B28:F28) -> 175500
A29: Signposting Service | B29: =+Volunteering_Model!S63 -> 55500 | C29: 0 | D29: 0 | E29: 0 | F29: 0 | G29: =SUM(B29:F29) -> 55500
A30: Group Activities | B30: =+Volunteering_Model!V63 -> 120000 | C30: 0 | D30: 0 | E30: 0 | F30: 0 | G30: 120000
A32: GP Visits | B32: =+Volunteering_Model!AE63 -> 0 | C32: =+Volunteering_Model!AE64 -> 1944874.917 | D32: =+Volunteering_Model!AE65 -> 1858400.156 | E32: =+Volunteering_Model!AE66 -> 1775692.002 | F32: =+Volunteering_Model!AE67 -> 1696664.923 | G32: 7275631.997
A33: Depression Treatment | B33: =+Volunteering_Model!AN63 -> 0 | C33: =+Volunteering_Model!AN64 -> 119949.2657 | D33: =+Volunteering_Model!AN65 -> 114621.1622 | E33: =+Volunteering_Model!AN66 -> 109519.9343 | F33: =+Volunteering_Model!AN67 -> 104645.7554 | G33: 448736.1176
A34: Self-Harm Treatment | B34: =+Volunteering_Model!AW63 -> 0 | C34: =+Volunteering_Model!AW64 -> 3180.653968 | D34: =+Volunteering_Model!AW65 -> 3039.570535 | E34: =+Volunteering_Model!AW66 -> 2904.293726 | F34: =+Volunteering_Model!AW67 -> 2775.038289 | G34: 11899.55652
A35: Additional Volunteering through Signposting | B35: =+Volunteering_Model!BF63 -> -11476.296 | C35: =+Volunteering_Model!BF64 -> -11608.97278 | D35: =+Volunteering_Model!BF65 -> -11091.11165 | E35: =+Volunteering_Model!BF66 -> -10597.50456 | F35: =+Volunteering_Model!BF67 -> -10125.86317 | G35: -54899.74816
A37: Total cost | B37: =SUM(B29:B35) -> 164023.704 | C37: =SUM(C29:C35) -> 2056395.864 | D37: =SUM(D29:D35) -> 1964969.777 | E37: =SUM(E29:E35) -> 1877518.725 | F37: =SUM(F29:F35) -> 1793959.853 | G37: 7856867.923
A38: Loneliness Free Years Gained | B38: =+Volunteering_Model!BO63 -> 1830 | C38: =+Volunteering_Model!BO64 -> 2154.440394 | D38: =+Volunteering_Model!BO65 -> 2098.582116 | E38: =+Volunteering_Model!BO66 -> 2044.696887 | F38: =+Volunteering_Model!BO67 -> 1992.194265 | G38: 10119.91366
A41: Costs of Usual Care Cohort
B42: Year 1 | C42: Year 2 | D42: Year 3 | E42: Year 4 | F42: Year 5 | G42: Total
A43: Total cost intervention | B43: 0 | C43: 0 | D43: 0 | E43: 0 | F43: 0 | G43: =SUM(B43:F43) -> 0
A44: Signposting Service | B44: 0 | C44: 0 | D44: 0 | E44: 0 | F44: 0 | G44: =SUM(B44:F44) -> 0
A45: Group Activities | B45: 0 | C45: 0 | D45: 0 | E45: 0 | F45: 0 | G45: 0
A47: GP Visits | B47: =+Volunteering_Model!CH81 -> 0 | C47: =+Volunteering_Model!CH64 -> 1984593.196 | D47: =+Volunteering_Model!CH65 -> 1896073.585 | E47: =+Volunteering_Model!CH66 -> 1811509.293 | F47: =+Volunteering_Model!CH67 -> 1730716.556 | G47: =SUM(B47:F47) -> 7422892.631
A48: Depression Treatment | B48: =+Volunteering_Model!CM63 -> 0 | C48: =+Volunteering_Model!CM64 -> 124930.1348 | D48: =+Volunteering_Model!CM65 -> 119357.3666 | E48: =+Volunteering_Model!CM66 -> 114034.0643 | F48: =+Volunteering_Model!CM67 -> 108948.1814 | G48: =SUM(B48:F48) -> 467269.7471
A49: Self-Harm Treatment | B49: =+Volunteering_Model!CR63 -> 0 | C49: =+Volunteering_Model!CR64 -> 3439.10981 | D49: =+Volunteering_Model!CR65 -> 3285.673617 | E49: =+Volunteering_Model!CR66 -> 3139.133517 | F49: =+Volunteering_Model!CR67 -> 2999.129163 | G49: =SUM(B49:F49) -> 12863.04611
A50: Additional Volunteering through Signposting | B50: 0 | C50: 0 | D50: 0 | E50: 0 | F50: 0 | G50: =SUM(B50:F50) -> 0
A52: Total cost usual care | B52: =SUM(B43:B51) -> 0 | C52: =SUM(C43:C51) -> 2112962.441 | D52: =SUM(D43:D51) -> 2018716.626 | E52: =SUM(E43:E51) -> 1928682.491 | F52: =SUM(F43:F51) -> 1842663.867 | G52: =SUM(B52:F52) -> 7903025.424
A53: Loneliness Free Years Gained | B53: =+Volunteering_Model!CW63 -> 1830 | C53: =+Volunteering_Model!CW64 -> 1813.194709 | D53: =+Volunteering_Model!CW65 -> 1766.540822 | E53: =+Volunteering_Model!CW66 -> 1721.010052 | F53: =+Volunteering_Model!CW67 -> 1676.652637 | G53: =SUM(B53:F53) -> 8807.39822
A55: Return to Loneliness and Social Isolation Intervention Contents Page
A57: Return to Intervention Choice Page

Sheet Volunteering_ROI_by sector
A1: ROI: Tackling Loneliness and Social Isolation in Older Adults
A5: Area Selected: | C5: Return to Loneliness and Social Isolation Intervention Contents Page
A6: =+'Intervention Choice'!C5 -> --- Model default values | C6: Return to Intervention Choice Menu
A8: Total Net Costs / Payoffs to Different Sectors (Default values 2015 prices)
B10: Year 1 | C10: Year 2 | D10: Year 3 | E10: Year 4 | F10: Year 5 | G10: Total Cost / Saving
A11: Programme cost: Local authorities | B11: =+B29-B40 -> 175500 | C11: =+C29-C40 -> 0 | D11: =+D29-D40 -> 0 | E11: =+E29-E40 -> 0 | F11: =+F29-F40 -> 0 | G11: =SUM(B11:F11) -> 175500
A12: Payoffs:
A13: NHS | B13: =+B31-B42 -> 0 | C13: -44957.60443 | D13: -42655.73707 | E13: -40566.26145 | F13: -38578.14996 | G13: =SUM(B13:F13) -> -166757.7529
A14: Volunteers (Local community) | B14: -11476.296 | C14: -11608.97278 | D14: -11091.11165 | E14: -10597.50456 | F14: -10125.86317 | G14: =SUM(B14:F14) -> -54899.74816
A15: Total cost consequences (saving if negative value) | B15: =SUM(B13:B14) -> -11476.296 | C15: =SUM(C13:C14) -> -56566.57721 | D15: =SUM(D13:D14) -> -53746.84872 | E15: =SUM(E13:E14) -> -51163.76601 | F15: =SUM(F13:F14) -> -48704.01313 | G15: =SUM(B15:F15) -> -221657.5011
A16: Total net costs (saving if negative value) | B16: =+B11+B15 -> 164023.704 | C16: =+C11+C15 -> -56566.57721 | D16: =+D11+D15 -> -53746.84872 | E16: =+E11+E15 -> -51163.76601 | F16: =+F11+F15 -> -48704.01313 | G16: =SUM(B16:F16) -> -46157.50106
A17: Cumulative Return per Pound Invested | B17: =+(B15/B11)*-1 -> 0.065392 | C17: =+((C15+B15)/$B$11)*-1 -> 0.3877086792 | D17: =+((D15+C15+B15)/$B$11)*-1 -> 0.6939585295 | E17: =+((E15+D15+C15+B15)/$B$11)*-1 -> 0.9854899597 | F17: =+((F15+E15+D15+C15+B15)/$B$11)*-1 -> 1.263005704 | G17: =+(G15/G11)*-1 -> 1.263005704
A18: Loneliness Free Years Gained | B18: =+B35-B46 -> 0 | C18: =+C35-C46 -> 341.2456847 | D18: =+D35-D46 -> 332.041294 | E18: =+E35-E46 -> 323.6868344 | F18: =+F35-F46 -> 315.5416276 | G18: =SUM(B18:F18) -> 1312.515441
A20: Cumulative ROI by sector:
B21: Year 1 | C21: Year 2 | D21: Year 3 | E21: Year 4 | F21: Year 5 | G21: Total Cost / Saving
A22: NHS | B22: =+(B13/$B$11)*-1 -> 0 | C22: =+((C13/$B$11)*-1) -> 0.2561686862 | D22: 0.2430526329 | E22: 0.2311467889 | F22: 0.2198185183 | G22: =SUM(B22:F22) -> 0.9501866262
A23: Volunteers (Local community) | B23: =+(B14/$B$11)*-1 -> 0.065392 | C23: 0.06614799304 | D23: 0.06319721735 | E23: 0.06038464137 | F23: 0.05769722606 | G23: =SUM(B23:F23) -> 0.3128190778
A25: Total | B25: =SUM(B22:B24) -> 0.065392 | C25: 0.3223166792 | D25: 0.3062498502 | E25: 0.2915314302 | F25: 0.2775157443 | G25: 1.263005704
A27: Costs of Resilience Cohort
B28: Year 1 | C28: Year 2 | D28: Year 3 | E28: Year 4 | F28: Year 5 | G28: Total
A29: Programme cost: Local authorities | B29: =+'Volunteering & Isolation_ROI'!B12+'Volunteering & Isolation_ROI'!B13 -> 175500 | C29: =+'Volunteering & Isolation_ROI'!C12+'Volunteering & Isolation_ROI'!C13 -> 0 | D29: =+'Volunteering & Isolation_ROI'!D12+'Volunteering & Isolation_ROI'!D13 -> 0 | E29: =+'Volunteering & Isolation_ROI'!E12+'Volunteering & Isolation_ROI'!E13 -> 0 | F29: =+'Volunteering & Isolation_ROI'!F12+'Volunteering & Isolation_ROI'!F13 -> 0 | G29: =SUM(B29:F29) -> 175500
A30: Payoffs:
A31: NHS | B31: =+'Volunteering & Isolation_ROI'!B32+'Volunteering & Isolation_ROI'!B33+'Volunteering & Isolation_ROI'!B34 -> 0 | C31: =+'Volunteering & Isolation_ROI'!C32+'Volunteering & Isolation_ROI'!C33+'Volunteering & Isolation_ROI'!C34 -> 2068004.836 | D31: =+'Volunteering & Isolation_ROI'!D32+'Volunteering & Isolation_ROI'!D33+'Volunteering & Isolation_ROI'!D34 -> 1976060.889 | E31: =+'Volunteering & Isolation_ROI'!E32+'Volunteering & Isolation_ROI'!E33+'Volunteering & Isolation_ROI'!E34 -> 1888116.23 | F31: =+'Volunteering & Isolation_ROI'!F32+'Volunteering & Isolation_ROI'!F33+'Volunteering & Isolation_ROI'!F34 -> 1804085.717 | G31: =SUM(B31:F31) -> 7736267.671
A32: Volunteers (Local community) | B32: =+'Volunteering & Isolation_ROI'!B18 -> -11476.296 | C32: =+'Volunteering & Isolation_ROI'!C18 -> -11608.97278 | D32: =+'Volunteering & Isolation_ROI'!D18 -> -11091.11165 | E32: =+'Volunteering & Isolation_ROI'!E18 -> -10597.50456 | F32: =+'Volunteering & Isolation_ROI'!F18 -> -10125.86317 | G32: =SUM(B32:F32) -> -54899.74816
A34: Total cost | B34: =SUM(B29:B33) -> 164023.704 | C34: =SUM(C29:C33) -> 2056395.864 | D34: =SUM(D29:D33) -> 1964969.777 | E34: =SUM(E29:E33) -> 1877518.725 | F34: =SUM(F29:F33) -> 1793959.853 | G34: =SUM(B34:F34) -> 7856867.923
A35: Loneliness Free Years Gained | B35: =+'Volunteering & Isolation_ROI'!B38 -> 1830 | C35: =+'Volunteering & Isolation_ROI'!C38 -> 2154.440394 | D35: =+'Volunteering & Isolation_ROI'!D38 -> 2098.582116 | E35: =+'Volunteering & Isolation_ROI'!E38 -> 2044.696887 | F35: =+'Volunteering & Isolation_ROI'!F38 -> 1992.194265 | G35: =SUM(B35:F35) -> 10119.91366
A38: Costs of Usual Care Cohort
B39: Year 1 | C39: Year 2 | D39: Year 3 | E39: Year 4 | F39: Year 5 | G39: Total
A40: Programme cost: Schools and/or education sector | B40: 0 | C40: 0 | D40: 0 | E40: 0 | F40: 0 | G40: =SUM(B40:F40) -> 0
A41: Payoffs:
A42: NHS | B42: =+'Volunteering & Isolation_ROI'!B47+'Volunteering & Isolation_ROI'!B48+'Volunteering & Isolation_ROI'!B49 -> 0 | C42: =+'Volunteering & Isolation_ROI'!C47+'Volunteering & Isolation_ROI'!C48+'Volunteering & Isolation_ROI'!C49 -> 2112962.441 | D42: =+'Volunteering & Isolation_ROI'!D47+'Volunteering & Isolation_ROI'!D48+'Volunteering & Isolation_ROI'!D49 -> 2018716.626 | E42: =+'Volunteering & Isolation_ROI'!E47+'Volunteering & Isolation_ROI'!E48+'Volunteering & Isolation_ROI'!E49 -> 1928682.491 | F42: =+'Volunteering & Isolation_ROI'!F47+'Volunteering & Isolation_ROI'!F48+'Volunteering & Isolation_ROI'!F49 -> 1842663.867 | G42: =SUM(B42:F42) -> 7903025.424
A43: Volunteers (Local community) | B43: =+'Volunteering & Isolation_ROI'!B50 -> 0 | C43: =+'Volunteering & Isolation_ROI'!C50 -> 0 | D43: =+'Volunteering & Isolation_ROI'!D50 -> 0 | E43: =+'Volunteering & Isolation_ROI'!E50 -> 0 | F43: =+'Volunteering & Isolation_ROI'!F50 -> 0 | G43: =SUM(B43:F43) -> 0
A45: Total cost usual care | B45: =SUM(B40:B44) -> 0 | C45: =SUM(C40:C44) -> 2112962.441 | D45: =SUM(D40:D44) -> 2018716.626 | E45: =SUM(E40:E44) -> 1928682.491 | F45: =SUM(F40:F44) -> 1842663.867 | G45: =SUM(B45:F45) -> 7903025.424
A46: Loneliness Free Years Gained | B46: =+'Volunteering & Isolation_ROI'!B53 -> 1830 | C46: =+'Volunteering & Isolation_ROI'!C53 -> 1813.194709 | D46: =+'Volunteering & Isolation_ROI'!D53 -> 1766.540822 | E46: =+'Volunteering & Isolation_ROI'!E53 -> 1721.010052 | F46: =+'Volunteering & Isolation_ROI'!F53 -> 1676.652637 | G46: =SUM(B46:F46) -> 8807.39822
A48: Return to Volunteering Intervention Contents Page
A50: Return to Intervention Choice Menu

Sheet Volunteering_Model (hidden)
A1: Volunteering Model | I1: Int Markov Make Use of Loneliness Intervention
A3: Name | B3: Root Definition | F3: Make use of loneliness intervention | G3: =+p_uptake -> 1 | J3: Not lonely | K3: Always Lonely | L3: Sometimes Lonely | M3: Dead
A4: year | B4: 5 | F4: Do not make use of loneliness intervention | G4: =1-p_uptake -> 0 | I4: Initial Values | J4: =1-K4-L4-M4 -> 0 | K4: =+p_initial_always_lonely -> 0.39 | L4: =+p_initial_sometime_lonely -> 0.61 | M4: 0 | N4: =SUM(J4:M4) -> 1
A5: p_inc_OR_gp_contact_lonely | B5: =IF(Volunteering_Parameters!$C24>0,Volunteering_Parameters!$C24,Volunteering_Parameters!$B24) -> 1.8 | F5: Receives IAPT if trained | G5: =+B52 -> 1020000 | I5: Not lonely | J5: =1-K5-L5-M5 -> 0.0891 | K5: =+p_always_lonely_int -> 0.351351 | L5: =+p_sometimes_lonely_int -> 0.549549 | M5: =+p_death -> 0.01 | N5: =SUM(J5:M5) -> 1 | O5: =+p_always_lonely_int -> 0.351351
A6: Cost | B6: 0 | F6: Does not receive IAPT if trained | G6: =1-G5 -> -1019999 | I6: Always Lonely | J6: =1-K6-L6-M6 -> 0.0921 | K6: =+p_always_lonely_int*1-(p_death_always_lonely-p_death) -> 0.348351 | L6: =+p_sometimes_lonely_int*1-(p_death_always_lonely-p_death) -> 0.546549 | M6: =+p_death_always_lonely -> 0.013 | N6: =SUM(J6:M6) -> 1
A7: c_int_sunk | B7: =+uc_sunk_costs_int*population_reached -> 120000 | F7: Receives IAPT no training | G7: =+B57 -> p_dementia_not_lonely*p_inc_OR_dementia_sometimes_lonely | I7: Sometimes Lonely | J7: =1-K7-L7-M7 -> 0.0891 | K7: =+p_always_lonely_int -> 0.351351 | L7: =+p_sometimes_lonely_int -> 0.549549 | M7: =+p_death -> 0.01 | N7: =SUM(J7:M7) -> 1
A8: population_reached | B8: =+population*engagement_rate -> 6000 | F8: Does not receive IAPT no training | G8: =1-G7 ->  | I8: Dead | J8: 0 | K8: 0 | L8: 0 | M8: 1 | N8: =SUM(J8:M8) -> 1
A9: uc_sunk_costs_int | B9: =IF(Volunteering_Parameters!$C12>0,Volunteering_Parameters!$C12,Volunteering_Parameters!$B12) -> 20
A10: uc_int_maintenance | B10: 0
A11: c_int_maintenance | B11: uc_int_maintenance*population_reached | I11: Int Markov Do Not Make Use of Loneliness Intervention
A12: uc_ambulance_visit | B12: =+p_ambulance_visit*uc_ambulance -> 56.64 | D12: IF(Volunteering_Parameters!$D28>0,Volunteering_Parameters!$D28,Volunteering_Parameters!$C28)
A13: c_depression | B13: =+uc_depression*population_reached -> 5766000 | J13: Not lonely | K13: Always Lonely | L13: Sometimes Lonely | M13: Dead
A14: p_depression_sometimes_lonely | B14: 0.012 | I14: Initial Values | J14: =1-K14-L14-M14 -> 0 | K14: =+p_initial_always_lonely -> 0.39 | L14: =+p_initial_sometime_lonely -> 0.61 | M14: 0
A15: p_depression_always_lonely | B15: =+p_depression_not_lonely*p_inc_OR_depression_always_lonely -> 0.0396 | I15: Not lonely | J15: =1-K15-L15-M15 -> 0.0099 | K15: =+p_always_lonely*(1-p_death) -> 0.382239 | L15: =+p_sometimes_lonely*(1-p_death) -> 0.597861 | M15: =+p_death -> 0.01
A16: p_depression_not_lonely | B16: 0.012 | I16: Always Lonely | J16: =1-K16-L16-M16 -> 0.003 | K16: =+p_always_lonely*1-(p_death_always_lonely-p_death) -> 0.3831 | L16: =+p_sometimes_lonely*1-(p_death_always_lonely-p_death) -> 0.6009 | M16: =+p_death_always_lonely -> 0.013
A17: uc_ambulance | B17: 236 | I17: Sometimes Lonely | J17: =1-K17-L17-M17 -> 0.0099 | K17: =+p_always_lonely*(1-p_death) -> 0.382239 | L17: =+p_sometimes_lonely*(1-p_death) -> 0.597861 | M17: =+p_death -> 0.01
A18: p_dementia_not_lonely | B18: 5/1000 | I18: Dead | J18: 0 | K18: 0 | L18: 0 | M18: 1
A19: p_inc_OR_dementia_always_lonely | B19: 1.58
A20: uc_GP_contact | B20: =+(45*0.66)+(15*0.33) -> 34.65 | I20: Markov Usual Care
A21: c_GP_not_lonely | B21: =+uc_GP_contact*contacts_GP_not_lonely*population_reached -> 1586277
A22: c_GP_always_lonely | B22: =+uc_GP_contact*contacts_GP_always_lonely*population_reached -> 2855298.6 | J22: Not lonely | K22: Always Lonely | L22: Sometimes Lonely | M22: Dead
A23: p_self_harm_always_lonely | B23: =+p_self_harm_not_lonely*p_inc_OR_self_harm_always_lonely -> 0.01170738 | I23: Initial Values | J23: =1-K23-L23-M23 -> 0 | K23: =+p_initial_always_lonely -> 0.39 | L23: =+p_initial_sometime_lonely -> 0.61 | M23: 0
A24: p_hospital_if_self_harm | B24: 0.126 | I24: Not lonely | J24: =1-K24-L24-M24 -> 0.0099 | K24: =+p_always_lonely*(1-p_death) -> 0.382239 | L24: =+p_sometimes_lonely*(1-p_death) -> 0.597861 | M24: =+p_death -> 0.01
A25: uc_AandE_attendance | B25: 170 | I25: Always Lonely | J25: =1-K25-L25-M25 -> 0.003 | K25: =+p_always_lonely*1-(p_death_always_lonely-p_death) -> 0.3831 | L25: =+p_sometimes_lonely*1-(p_death_always_lonely-p_death) -> 0.6009 | M25: =+p_death_always_lonely -> 0.013
A26: uc_psychosocial_assessment | B26: 232 | I26: Sometimes Lonely | J26: =1-K26-L26-M26 -> 0.0099 | K26: =+p_always_lonely*(1-p_death) -> 0.382239 | L26: =+p_sometimes_lonely*(1-p_death) -> 0.597861 | M26: =+p_death -> 0.01
A27: c_self_harm_always_lonely | B27: =+(uc_psychosocial_assessment+uc_AandE_attendance+uc_ambulance_visit+uc_self_harm_treatment)*(population_reached*p_self_harm_always_lonely*p_hospital_if_self_harm) -> 7018.667969 | I27: Dead | J27: 0 | K27: 0 | L27: 0 | M27: 1
A28: p_death | B28: 0.01
A29: p_sometimes_lonely_int | B29: =+p_sometimes_lonely*p_OR_int -> 0.549549
A30: contacts_GP_not_lonely | B30: 7.63
A31: contacts_GP_always_lonely | B31: =+contacts_GP_not_lonely*p_inc_OR_gp_contact_lonely -> 13.734
A32: p_inc_OR_gp_contact_sometimes_lonely | B32: 1
A33: contacts_GP_sometimes_lonely | B33: =+contacts_GP_not_lonely*p_inc_OR_gp_contact_sometimes_lonely -> 7.63
A34: c_GP_sometimes_lonely | B34: =+uc_GP_contact*contacts_GP_sometimes_lonely*population_reached -> 1586277
A35: p_dementia_always_lonely | B35: p_dementia_not_lonely*p_inc_OR_dementia_always_lonely
A36: p_inc_OR_depression_always_lonely | B36: =IF(Volunteering_Parameters!$C25>0,Volunteering_Parameters!$C25,Volunteering_Parameters!$B25) -> 3.3
A37: p_death_always_lonely | B37: =+p_death*p_inc_OR_death_always_lonely -> 0.013
A38: p_inc_OR_death_always_lonely | B38: 1.3
A39: p_death_dementia | B39: 0.2
A40: p_self_harm_not_lonely | B40: =67.4/100000 -> 0.000674
A41: p_inc_OR_self_harm_always_lonely | B41: =IF(Volunteering_Parameters!$C27>0,Volunteering_Parameters!$C27,Volunteering_Parameters!$B27) -> 17.37
A42: p_inc_OR_self_harm_sometimes_lonely | B42: 3.6
A43: p_self_harm_sometimes_lonely | B43: =+p_self_harm_not_lonely*p_inc_OR_self_harm_sometimes_lonely -> 0.0024264
A44: c_self_harm_sometimes_lonely | B44: =+(uc_psychosocial_assessment+uc_AandE_attendance+uc_ambulance_visit+uc_self_harm_treatment)*(population_reached*p_self_harm_sometimes_lonely*p_hospital_if_self_harm) -> 1454.646211
A45: c_self_harm_not_lonely | B45: =+(uc_psychosocial_assessment+uc_AandE_attendance+uc_ambulance_visit+uc_self_harm_treatment)*(population_reached*p_self_harm_not_lonely*p_hospital_if_self_harm) -> 404.068392
A46: p_inc_OR_hospital_admissions_always_lonely | B46: =IF(Volunteering_Parameters!$C26>0,Volunteering_Parameters!$C26,Volunteering_Parameters!$B26) -> 6
A47: hospital_admissions_not_lonely | B47: 0.25
A48: p_inc_OR_hospital_admissions_sometimes_lonely | B48: 1
A49: average_AandE_not_lonely | B49: 0.26
A50: p_inc_OR_AandE_always_lonely | B50: 1.6
A51: p_inc_OR_AandE_sometimes_lonely | B51: 1
A52: c_AandE | B52: =+uc_AandE_attendance*population_reached -> 1020000
A53: p_CHD_not_lonely
A54: p_CHD_always_lonely
A55: p_CHD_sometimes_lonely
A56: uc_self_harm_treatment | B56: =668.72/2 -> 334.36
A57: p_dementia_sometimes_lonely | B57: p_dementia_not_lonely*p_inc_OR_dementia_sometimes_lonely
A58: p_inc_OR_dementia_sometimes_lonely | B58: 1
A59: p_always_lonely | B59: =+p_initial_always_lonely*(1-p_death) -> 0.3861
A60: p_sometimes_lonely | B60: =+p_initial_sometime_lonely*(1-p_death) -> 0.6039 | E60: TACKLING LONELINESS | BV60: Usual care
A61: p_OR_int | B61: =IF(Volunteering_Parameters!$C23>0,Volunteering_Parameters!$C23,Volunteering_Parameters!$B23) -> 0.91 | G61: PROBABILITY | Q61: COST OF NAVIGATION | T61: GROUP ACTIVITY COSTS | W61: GP COSTS | AF61: DEPRESSION | AO61: SELF-HARM COSTS | AX61: VOLUNTEERING BENEFITS | BG61: UTILITY | BQ61: Discount Outcomes | BX61: PROBABILITY | CD61: GP COSTS | CI61: DEPRESSION COSTS | CN61: SELF-HARM COSTS
A62: p_always_lonely_int | B62: =+p_always_lonely*p_OR_int -> 0.351351 | E62: YEARS | F62: YEAR | G62: INT NOT LONELY | H62: INT ALWAYS LONELY | I62: INT SOMETIMES LONELY | J62: INT DEAD | K62: NOT LONELY | L62: ALWAYS LONELY | M62: SOMETIMES LONELY | N62: DEAD | O62: discount | P62: UTILITY DISCOUNT | Q62: MAKES USE | R62: NO USE | S62: TOTAL | T62: MAKES USE | U62: NO USE | V62: TOTAL-INT | W62: INT NOT LONELY | X62: INT ALWAYS LONELY | Y62: INT SOMETIMES LONELY | Z62: INT DEAD | AA62: NOT LONELY | AB62: ALWAYS LONELY | AC62: SOMETIMES LONELY | AD62: DEAD | AE62: TOTAL GP | AF62: INT NOT LONELY | AG62: INT ALWAYS LONELY | AH62: INT SOMETIMES LONELY | AI62: INT DEAD | AJ62: NOT LONELY | AK62: ALWAYS LONELY | AL62: SOMETIMES LONELY | AM62: DEAD | AN62: TOTAL | AO62: INT NOT LONELY | AP62: INT ALWAYS LONELY | AQ62: INT SOMETIMES LONELY | AR62: INT DEAD | AS62: NOT LONELY | AT62: ALWAYS LONELY | AU62: SOMETIMES LONELY | AV62: DEAD | AW62: TOTAL | AX62: INT NOT LONELY | AY62: INT ALWAYS LONELY | AZ62: INT SOMETIMES LONELY | BA62: INT DEAD | BB62: NOT LONELY | BC62: ALWAYS LONELY | BD62: SOMETIMES LONELY | BE62: DEAD | BF62: TOTAL | BG62: INT NOT LONELY | BH62: INT ALWAYS LONELY | BI62: INT SOMETIMES LONELY | BJ62: INT DEAD | BK62: NOT LONELY | BL62: ALWAYS LONELY | BM62: SOMETIMES LONELY | BN62: DEAD | BO62: TOTAL | BP62: TOTAL COSTS | BQ62: 1 | BV62: YEARS | BW62: YEAR | BX62: NOT LONELY | BY62: ALWAYS LONELY | BZ62: SOMETIMES LONELY | CA62: DEAD | CB62: discount | CC62: utility discount | CD62: NOT LONELY | CE62: ALWAYS LONELY | CF62: SOMETIMES LONELY | CG62: DEAD | CH62: TOTAL USUAL CARE | CI62: NOT LONELY | CJ62: ALWAYS LONELY | CK62: SOMETIMES LONELY | CL62: DEAD | CM62: TOTAL USUAL CARE | CN62: NOT LONELY | CO62: ALWAYS LONELY | CP62: SOMETIMES LONELY | CQ62: DEAD | CR62: TOTAL USUAL CARE | CS62: NOT LONELY | CT62: ALWAYS LONELY | CU62: SOMETIMES LONELY | CV62: DEAD | CW62: TOTAL | CX62: TOTAL COSTS | CY62: 1
A63: p_uptake | B63: 1 | F63: 1 | G63: =+$J$4 -> 0 | H63: =+$K$4 -> 0.39 | I63: =+$L$4 -> 0.61 | J63: =+$M$4 -> 0 | K63: =+$J$14 -> 0 | L63: =+$K$14 -> 0.39 | M63: =+$L$14 -> 0.61 | N63: =+$M$14 -> 0 | O63: 1 | P63: 1 | Q63: =+p_uptake*c_navigation*$O63 -> 55500 | R63: =+(1-p_uptake)*c_navigation*$O63 -> 0 | S63: =SUM(Q63:R63) -> 55500 | T63: =+p_uptake*c_int_sunk*$O63 -> 120000 | U63: =+(1-p_uptake)*c_int_sunk*$O63 -> 0 | V63: =SUM(T63:U63) -> 120000 | W63: 0 | X63: 0 | Y63: 0 | Z63: 0 | AA63: 0 | AB63: 0 | AC63: 0 | AD63: 0 | AE63: =SUM(W63:AD63) -> 0 | AF63: 0 | AG63: 0 | AH63: 0 | AI63: 0 | AJ63: 0 | AK63: 0 | AL63: 0 | AM63: 0 | AN63: =SUM(AF63:AM63) -> 0 | AO63: 0 | AP63: 0 | AQ63: 0 | AR63: 0 | AS63: 0 | AT63: 0 | AU63: 0 | AV63: 0 | AW63: =SUM(AO63:AV63) -> 0 | AX63: =+value_volunteering*$G63*$O63*p_uptake -> 0 | AY63: 0 | AZ63: =+value_volunteering*$I63*$O63*p_uptake -> -11476.296 | BA63: 0 | BB63: =+value_volunteering*$K63*$O63*(1-p_uptake) -> 0 | BC63: 0 | BD63: =+value_volunteering*$M63*$O63*(1-p_uptake) -> 0 | BE63: 0 | BF63: =SUM(AX63:BE63) -> -11476.296 | BG63: =+u_not_lonely*$G63*$BQ63*p_uptake*population_reached -> 0 | BH63: 0 | BI63: =+u_moderately_lonely*$I63*$BQ63*p_uptake*population_reached -> 1830 | BJ63: 0 | BK63: =+value_volunteering*$K63*$O63*(1-p_uptake) -> 0 | BL63: 0 | BM63: =+value_volunteering*$M63*$O63*(1-p_uptake) -> 0 | BN63: 0 | BO63: =SUM(BG63:BN63) -> 1830 | BP63: =+S63+V63+AE63+AN63+AW63+BF63 -> 164023.704 | BQ63: 1 | BW63: 1 | BX63: =+$J23 -> 0 | BY63: =+$K23 -> 0.39 | BZ63: =+$L23 -> 0.61 | CA63: =+$M23 -> 0 | CB63: 1 | CC63: 1 | CD63: 0 | CE63: 0 | CF63: 0 | CG63: 0 | CH63: =SUM(CD63:CG63) -> 0 | CI63: 0 | CJ63: 0 | CK63: 0 | CL63: 0 | CM63: =SUM(CI63:CL63) -> 0 | CN63: 0 | CO63: 0 | CP63: 0 | CQ63: 0 | CR63: =SUM(CN63:CQ63) -> 0 | CS63: =+u_not_lonely*population_reached*$BX63*$CY63 -> 0 | CT63: =+u_lonely*population_reached*$BY63*$CY63 -> 0 | CU63: =+u_moderately_lonely*population_reached*$BZ63*$CY63 -> 1830 | CV63: 0 | CW63: =SUM(CS63:CV63) -> 1830 | CX63: =+CH63+CM63+CR63 -> 0 | CY63: 1
A64: uc_navigation | B64: =IF(Volunteering_Parameters!$C11>0,Volunteering_Parameters!$C11,Volunteering_Parameters!$B11) -> 9.25 | F64: =1+F63 -> 2 | G64: =+($J$5*$G63)+($J$6*$H63)+($J$7*$I63)+$J$8*$J63 -> 0.09027 | H64: =+($K$5*$G63)+($K$6*$H63)+($K$7*$I63)+$K$8*$J63 -> 0.350181 | I64: =+($L$5*$G63)+($L$6*$H63)+($L$7*$I63)+$L$8*$J63 -> 0.548379 | J64: =+($M$5*$G63)+($M$6*$H63)+($M$7*$I63)+$M$8*$J63 -> 0.01117 | K64: =+($J$15*$K63)+($J$16*$L63)+($J$17*$M63)+$J$18*$N63 -> 0.007209 | L64: =+($K$15*$K63)+($K$16*$L63)+($K$17*$M63)+$K$18*$N63 -> 0.38257479 | M64: =+($L$15*$K63)+($L$16*$L63)+($L$17*$M63)+$L$18*$N63 -> 0.59904621 | N64: =+($M$15*$K63)+($M$16*$L63)+($M$17*$M63)+$M$18*$N63 -> 0.01117 | O64: =+O63/(1+discount_rate_costs) -> 0.9661835749 | P64: =+P63/(1+discount_rate_outcomes) -> 0.9852216749 | S64: =SUM(Q64:R64) -> 0 | V64: =SUM(T64:U64) -> 0 | W64: =+c_GP_not_lonely*$G64*$O64*p_uptake -> 138350.9418 | X64: =+c_GP_always_lonely*$H64*$O64*p_uptake -> 966059.2455 | Y64: =+c_GP_sometimes_lonely*$I64*$O64*p_uptake -> 840464.7295 | Z64: 0 | AA64: =+c_GP_not_lonely*$K64*$O64*(1-p_uptake) -> 0 | AB64: =+c_GP_always_lonely*$L64*$O64*(1-p_uptake) -> 0 | AC64: =+c_GP_sometimes_lonely*$M64*$O64*(1-p_uptake) -> 0 | AD64: 0 | AE64: =SUM(W64:AD64) -> 1944874.917 | AF64: =+c_depression*p_depression_not_lonely*$G64*$O64*p_uptake -> 6034.745739 | AG64: =+c_depression*p_depression_always_lonely*$H64*$O64*p_uptake -> 77254.19167 | AH64: =+c_depression*p_depression_sometimes_lonely*$I64*$O64*p_uptake -> 36660.32828 | AI64: 0 | AJ64: =+c_depression*p_depression_not_lonely*$K64*$O64*(1-p_uptake) -> 0 | AK64: =+c_depression*p_depression_always_lonely*$L64*$O64*(1-p_uptake) -> 0 | AL64: =+c_depression*p_depression_sometimes_lonely*$M64*$O64*(1-p_uptake) -> 0 | AM64: 0 | AN64: =SUM(AF64:AM64) -> 119949.2657 | AO64: =+c_self_harm_not_lonely*$G64*$O64*p_uptake -> 35.24179106 | AP64: =+c_self_harm_always_lonely*$H64*$O64*p_uptake -> 2374.690017 | AQ64: =+c_self_harm_sometimes_lonely*$I64*$O64*p_uptake -> 770.7221591 | AR64: 0 | AS64: =+c_self_harm_not_lonely*$K64*$O64*(1-p_uptake) -> 0 | AT64: =+c_self_harm_always_lonely*$L64*$O64*(1-p_uptake) -> 0 | AU64: =+c_self_harm_sometimes_lonely*$M64*$O64*(1-p_uptake) -> 0 | AV64: 0 | AW64: =SUM(AO64:AV64) -> 3180.653968 | AX64: =+value_volunteering*$G64*$O64*p_uptake -> -1640.873113 | AY64: 0 | AZ64: =+value_volunteering*$I64*$O64*p_uptake -> -9968.099666 | BA64: 0 | BB64: =+value_volunteering*$K64*$O64*(1-p_uptake) -> 0 | BC64: 0 | BD64: =+value_volunteering*$M64*$O64*(1-p_uptake) -> 0 | BE64: 0 | BF64: =SUM(AX64:BE64) -> -11608.97278 | BG64: =+u_not_lonely*$G64*$BQ64*p_uptake*population_reached -> 533.6157635 | BH64: 0 | BI64: =+u_moderately_lonely*$I64*$BQ64*p_uptake*population_reached -> 1620.824631 | BJ64: 0 | BK64: =+value_volunteering*$K64*$O64*(1-p_uptake) -> 0 | BL64: 0 | BM64: =+value_volunteering*$M64*$O64*(1-p_uptake) -> 0 | BN64: 0 | BO64: =SUM(BG64:BN64) -> 2154.440394 | BP64: =+S64+V64+AE64+AN64+AW64+BF64 -> 2056395.864 | BQ64: =+BQ63/(1+Volunteering_Model!discount_rate_outcomes) -> 0.9852216749 | BW64: =1+BW63 -> 2 | BX64: =+($J$24*$BX63)+($J$25*$BY63)+($J$26*$BZ63)+$J$27*$CA63 -> 0.007209 | BY64: =+($K$24*$BX63)+($K$25*$BY63)+($K$26*$BZ63)+$K$27*$CA63 -> 0.38257479 | BZ64: =+($L$24*$BX63)+($L$25*$BY63)+($L$26*$BZ63)+$L$27*$CA63 -> 0.59904621 | CA64: =+($M$24*$BX63)+($M$25*$BY63)+($M$26*$BZ63)+$M$27*$CA63 -> 0.01117 | CB64: =+CB63/(1+discount_rate_costs) -> 0.9661835749 | CC64: =+CC63/(1+discount_rate_outcomes) -> 0.9852216749 | CD64: =+c_GP_not_lonely*$BX64*$CB64 -> 11048.76415 | CE64: =+c_GP_always_lonely*$BY64*$CB64 -> 1055425.374 | CF64: =+c_GP_sometimes_lonely*$BZ64*$CB64 -> 918119.0578 | CG64: 0 | CH64: =SUM(CD64:CG64) -> 1984593.196 | CI64: =+c_depression*p_depression_not_lonely*$BX64*$CB64 -> 481.9373217 | CJ64: =+c_depression*p_depression_always_lonely*$BY64*$CB64 -> 84400.65611 | CK64: =+c_depression*p_depression_sometimes_lonely*$BZ64*$CB64 -> 40047.54141 | CL64: 0 | CM64: =SUM(CI64:CL64) -> 124930.1348 | CN64: =+c_self_harm_not_lonely*$BX64*$CB64 -> 2.814424191 | CO64: =+c_self_harm_always_lonely*$BY64*$CB64 -> 2594.362729 | CP64: =+c_self_harm_sometimes_lonely*$BZ64*$CB64 -> 841.9326567 | CQ64: 0 | CR64: =SUM(CN64:CQ64) -> 3439.10981 | CS64: =+u_not_lonely*population_reached*$BX64*$CY64 -> 42.61477833 | CT64: =+u_lonely*population_reached*$BY64*$CY64 -> 0 | CU64: =+u_moderately_lonely*population_reached*$BZ64*$CY64 -> 1770.579931 | CV64: 0 | CW64: =SUM(CS64:CV64) -> 1813.194709 | CX64: =+CH64+CM64+CR64 -> 2112962.441 | CY64: =+CY63/(1+Volunteering_Model!discount_rate_outcomes) -> 0.9852216749
A65: c_navigation | B65: =+uc_navigation*population_reached -> 55500 | F65: =1+F64 -> 3 | G65: =+($J$5*$G64)+($J$6*$H64)+($J$7*$I64)+$J$8*$J64 -> 0.089155296 | H65: =+($K$5*$G64)+($K$6*$H64)+($K$7*$I64)+$K$8*$J64 -> 0.3463758663 | I65: =+($L$5*$G64)+($L$6*$H64)+($L$7*$I64)+$L$8*$J64 -> 0.5423599947 | J65: =+($M$5*$G64)+($M$6*$H64)+($M$7*$I64)+$M$8*$J64 -> 0.022108843 | K65: =+($J$15*$K64)+($J$16*$L64)+($J$17*$M64)+$J$18*$N64 -> 0.007149650949 | L65: =+($K$15*$K64)+($K$16*$L64)+($K$17*$M64)+$K$18*$N64 -> 0.3782987873 | M65: =+($L$15*$K64)+($L$16*$L64)+($L$17*$M64)+$L$18*$N64 -> 0.5923455374 | N65: =+($M$15*$K64)+($M$16*$L64)+($M$17*$M64)+$M$18*$N64 -> 0.02220602437 | O65: =+O64/(1+discount_rate_costs) -> 0.9335107004 | P65: =+P64/(1+discount_rate_outcomes) -> 0.9706617486 | V65: =SUM(T65:U65) -> 0 | W65: =+c_GP_not_lonely*$G65*$O65*p_uptake -> 132021.7466 | X65: =+c_GP_always_lonely*$H65*$O65*p_uptake -> 923248.1749 | Y65: =+c_GP_sometimes_lonely*$I65*$O65*p_uptake -> 803130.2343 | Z65: 0 | AA65: =+c_GP_not_lonely*$K65*$O65*(1-p_uptake) -> 0 | AB65: =+c_GP_always_lonely*$L65*$O65*(1-p_uptake) -> 0 | AC65: =+c_GP_sometimes_lonely*$M65*$O65*(1-p_uptake) -> 0 | AD65: 0 | AE65: =SUM(W65:AD65) -> 1858400.156 | AF65: =+c_depression*p_depression_not_lonely*$G65*$O65*p_uptake -> 5758.671839 | AG65: =+c_depression*p_depression_always_lonely*$H65*$O65*p_uptake -> 73830.65977 | AH65: =+c_depression*p_depression_sometimes_lonely*$I65*$O65*p_uptake -> 35031.83062 | AI65: 0 | AJ65: =+c_depression*p_depression_not_lonely*$K65*$O65*(1-p_uptake) -> 0 | AK65: =+c_depression*p_depression_always_lonely*$L65*$O65*(1-p_uptake) -> 0 | AL65: =+c_depression*p_depression_sometimes_lonely*$M65*$O65*(1-p_uptake) -> 0 | AM65: 0 | AN65: =SUM(AF65:AM65) -> 114621.1622 | AO65: =+c_self_harm_not_lonely*$G65*$O65*p_uptake -> 33.62957091 | AP65: =+c_self_harm_always_lonely*$H65*$O65*p_uptake -> 2269.455248 | AQ65: =+c_self_harm_sometimes_lonely*$I65*$O65*p_uptake -> 736.4857162 | AR65: 0 | AS65: =+c_self_harm_not_lonely*$K65*$O65*(1-p_uptake) -> 0 | AT65: =+c_self_harm_always_lonely*$L65*$O65*(1-p_uptake) -> 0 | AU65: =+c_self_harm_sometimes_lonely*$M65*$O65*(1-p_uptake) -> 0 | AV65: 0 | AW65: =SUM(AO65:AV65) -> 3039.570535 | AX65: =+value_volunteering*$G65*$O65*p_uptake -> -1565.807442 | AY65: 0 | AZ65: =+value_volunteering*$I65*$O65*p_uptake -> -9525.304204 | BA65: 0 | BB65: =+value_volunteering*$K65*$O65*(1-p_uptake) -> 0 | BC65: 0 | BD65: =+value_volunteering*$M65*$O65*(1-p_uptake) -> 0 | BE65: 0 | BF65: =SUM(AX65:BE65) -> -11091.11165 | BG65: =+u_not_lonely*$G65*$BQ65*p_uptake*population_reached -> 519.2378131 | BH65: 0 | BI65: =+u_moderately_lonely*$I65*$BQ65*p_uptake*population_reached -> 1579.344302 | BJ65: 0 | BK65: =+value_volunteering*$K65*$O65*(1-p_uptake) -> 0 | BL65: 0 | BM65: =+value_volunteering*$M65*$O65*(1-p_uptake) -> 0 | BN65: 0 | BO65: =SUM(BG65:BN65) -> 2098.582116 | BP65: =+S65+V65+AE65+AN65+AW65+BF65 -> 1964969.777 | BQ65: =+BQ64/(1+Volunteering_Model!discount_rate_outcomes) -> 0.9706617486 | BW65: =1+BW64 -> 3 | BX65: =+($J$24*$BX64)+($J$25*$BY64)+($J$26*$BZ64)+$J$27*$CA64 -> 0.007149650949 | BY65: =+($K$24*$BX64)+($K$25*$BY64)+($K$26*$BZ64)+$K$27*$CA64 -> 0.3782987873 | BZ65: =+($L$24*$BX64)+($L$25*$BY64)+($L$26*$BZ64)+$L$27*$CA64 -> 0.5923455374 | CA65: =+($M$24*$BX64)+($M$25*$BY64)+($M$26*$BZ64)+$M$27*$CA64 -> 0.02220602437 | CB65: =+CB64/(1+discount_rate_costs) -> 0.9335107004 | CC65: =+CC64/(1+discount_rate_outcomes) -> 0.9706617486 | CD65: =+c_GP_not_lonely*$BX65*$CB65 -> 10587.24998 | CE65: =+c_GP_always_lonely*$BY65*$CB65 -> 1008337.182 | CF65: =+c_GP_sometimes_lonely*$BZ65*$CB65 -> 877149.1536 | CG65: 0 | CH65: =SUM(CD65:CG65) -> 1896073.585 | CI65: =+c_depression*p_depression_not_lonely*$BX65*$CB65 -> 461.8064818 | CJ65: =+c_depression*p_depression_always_lonely*$BY65*$CB65 -> 80635.08971 | CK65: =+c_depression*p_depression_sometimes_lonely*$BZ65*$CB65 -> 38260.47042 | CL65: 0 | CM65: =SUM(CI65:CL65) -> 119357.3666 | CN65: =+c_self_harm_not_lonely*$BX65*$CB65 -> 2.696863836 | CO65: =+c_self_harm_always_lonely*$BY65*$CB65 -> 2478.614279 | CP65: =+c_self_harm_sometimes_lonely*$BZ65*$CB65 -> 804.3624745 | CQ65: 0 | CR65: =SUM(CN65:CQ65) -> 3285.673617 | CS65: =+u_not_lonely*population_reached*$BX65*$CY65 -> 41.63935615 | CT65: =+u_lonely*population_reached*$BY65*$CY65 -> 0 | CU65: =+u_moderately_lonely*population_reached*$BZ65*$CY65 -> 1724.901465 | CV65: 0 | CW65: =SUM(CS65:CV65) -> 1766.540822 | CX65: =+CH65+CM65+CR65 -> 2018716.626 | CY65: =+CY64/(1+Volunteering_Model!discount_rate_outcomes) -> 0.9706617486
A66: u_not_lonely | B66: 1 | F66: =1+F65 -> 4 | G66: =+($J$5*$G65)+($J$6*$H65)+($J$7*$I65)+$J$8*$J65 -> 0.08816922969 | H66: =+($K$5*$G65)+($K$6*$H65)+($K$7*$I65)+$K$8*$J65 -> 0.3425439083 | I66: =+($L$5*$G65)+($L$6*$H65)+($L$7*$I65)+$L$8*$J65 -> 0.5363599798 | J66: =+($M$5*$G65)+($M$6*$H65)+($M$7*$I65)+$M$8*$J65 -> 0.03292688217 | K66: =+($J$15*$K65)+($J$16*$L65)+($J$17*$M65)+$J$18*$N65 -> 0.007069898727 | L66: =+($K$15*$K65)+($K$16*$L65)+($K$17*$M65)+$K$18*$N65 -> 0.3740767067 | M66: =+($L$15*$K65)+($L$16*$L65)+($L$17*$M65)+$L$18*$N65 -> 0.5857345341 | N66: =+($M$15*$K65)+($M$16*$L65)+($M$17*$M65)+$M$18*$N65 -> 0.03311886049 | O66: =+O65/(1+discount_rate_costs) -> 0.9019427057 | P66: =+P65/(1+discount_rate_outcomes) -> 0.9563169937 | V66: =SUM(T66:U66) -> 0 | W66: =+c_GP_not_lonely*$G66*$O66*p_uptake -> 126146.4475 | X66: =+c_GP_always_lonely*$H66*$O66*p_uptake -> 882158.7203 | Y66: =+c_GP_sometimes_lonely*$I66*$O66*p_uptake -> 767386.8339 | Z66: 0 | AA66: =+c_GP_not_lonely*$K66*$O66*(1-p_uptake) -> 0 | AB66: =+c_GP_always_lonely*$L66*$O66*(1-p_uptake) -> 0 | AC66: =+c_GP_sometimes_lonely*$M66*$O66*(1-p_uptake) -> 0 | AD66: 0 | AE66: =SUM(W66:AD66) -> 1775692.002 | AF66: =+c_depression*p_depression_not_lonely*$G66*$O66*p_uptake -> 5502.396487 | AG66: =+c_depression*p_depression_always_lonely*$H66*$O66*p_uptake -> 70544.8027 | AH66: =+c_depression*p_depression_sometimes_lonely*$I66*$O66*p_uptake -> 33472.7351 | AI66: 0 | AJ66: =+c_depression*p_depression_not_lonely*$K66*$O66*(1-p_uptake) -> 0 | AK66: =+c_depression*p_depression_always_lonely*$L66*$O66*(1-p_uptake) -> 0 | AL66: =+c_depression*p_depression_sometimes_lonely*$M66*$O66*(1-p_uptake) -> 0 | AM66: 0 | AN66: =SUM(AF66:AM66) -> 109519.9343 | AO66: =+c_self_harm_not_lonely*$G66*$O66*p_uptake -> 32.13297058 | AP66: =+c_self_harm_always_lonely*$H66*$O66*p_uptake -> 2168.452418 | AQ66: =+c_self_harm_sometimes_lonely*$I66*$O66*p_uptake -> 703.7083374 | AR66: 0 | AS66: =+c_self_harm_not_lonely*$K66*$O66*(1-p_uptake) -> 0 | AT66: =+c_self_harm_always_lonely*$L66*$O66*(1-p_uptake) -> 0 | AU66: =+c_self_harm_sometimes_lonely*$M66*$O66*(1-p_uptake) -> 0 | AV66: 0 | AW66: =SUM(AO66:AV66) -> 2904.293726 | AX66: =+value_volunteering*$G66*$O66*p_uptake -> -1496.12508 | AY66: 0 | AZ66: =+value_volunteering*$I66*$O66*p_uptake -> -9101.37948 | BA66: 0 | BB66: =+value_volunteering*$K66*$O66*(1-p_uptake) -> 0 | BC66: 0 | BD66: =+value_volunteering*$M66*$O66*(1-p_uptake) -> 0 | BE66: 0 | BF66: =SUM(AX66:BE66) -> -10597.50456 | BG66: =+u_not_lonely*$G66*$BQ66*p_uptake*population_reached -> 505.9063961 | BH66: 0 | BI66: =+u_moderately_lonely*$I66*$BQ66*p_uptake*population_reached -> 1538.79049 | BJ66: 0 | BK66: =+value_volunteering*$K66*$O66*(1-p_uptake) -> 0 | BL66: 0 | BM66: =+value_volunteering*$M66*$O66*(1-p_uptake) -> 0 | BN66: 0 | BO66: =SUM(BG66:BN66) -> 2044.696887 | BP66: =+S66+V66+AE66+AN66+AW66+BF66 -> 1877518.725 | BQ66: =+BQ65/(1+Volunteering_Model!discount_rate_outcomes) -> 0.9563169937 | BW66: =1+BW65 -> 4 | BX66: =+($J$24*$BX65)+($J$25*$BY65)+($J$26*$BZ65)+$J$27*$CA65 -> 0.007069898727 | BY66: =+($K$24*$BX65)+($K$25*$BY65)+($K$26*$BZ65)+$K$27*$CA65 -> 0.3740767067 | BZ66: =+($L$24*$BX65)+($L$25*$BY65)+($L$26*$BZ65)+$L$27*$CA65 -> 0.5857345341 | CA66: =+($M$24*$BX65)+($M$25*$BY65)+($M$26*$BZ65)+$M$27*$CA65 -> 0.03311886049 | CB66: =+CB65/(1+discount_rate_costs) -> 0.9019427057 | CC66: =+CC65/(1+discount_rate_outcomes) -> 0.9563169937 | CD66: =+c_GP_not_lonely*$BX66*$CB66 -> 10115.12306 | CE66: =+c_GP_always_lonely*$BY66*$CB66 -> 963365.6325 | CF66: =+c_GP_sometimes_lonely*$BZ66*$CB66 -> 838028.5377 | CG66: 0 | CH66: =SUM(CD66:CG66) -> 1811509.293 | CI66: =+c_depression*p_depression_not_lonely*$BX66*$CB66 -> 441.212723 | CJ66: =+c_depression*p_depression_always_lonely*$BY66*$CB66 -> 77038.78781 | CK66: =+c_depression*p_depression_sometimes_lonely*$BZ66*$CB66 -> 36554.06375 | CL66: 0 | CM66: =SUM(CI66:CL66) -> 114034.0643 | CN66: =+c_self_harm_not_lonely*$BX66*$CB66 -> 2.57660012 | CO66: =+c_self_harm_always_lonely*$BY66*$CB66 -> 2368.068792 | CP66: =+c_self_harm_sometimes_lonely*$BZ66*$CB66 -> 768.4881249 | CQ66: 0 | CR66: =SUM(CN66:CQ66) -> 3139.133517 | CS66: =+u_not_lonely*population_reached*$BX66*$CY66 -> 40.56638578 | CT66: =+u_lonely*population_reached*$BY66*$CY66 -> 0 | CU66: =+u_moderately_lonely*population_reached*$BZ66*$CY66 -> 1680.443666 | CV66: 0 | CW66: =SUM(CS66:CV66) -> 1721.010052 | CX66: =+CH66+CM66+CR66 -> 1928682.491 | CY66: =+CY65/(1+Volunteering_Model!discount_rate_outcomes) -> 0.9563169937
A67: u_lonely | B67: 0 | F67: =1+F66 -> 5 | G67: =+($J$5*$G66)+($J$6*$H66)+($J$7*$I66)+$J$8*$J66 -> 0.08719384652 | H67: =+($K$5*$G66)+($K$6*$H66)+($K$7*$I66)+$K$8*$J66 -> 0.3387544753 | I67: =+($L$5*$G66)+($L$6*$H66)+($L$7*$I66)+$L$8*$J66 -> 0.5304264331 | J67: =+($M$5*$G66)+($M$6*$H66)+($M$7*$I66)+$M$8*$J66 -> 0.04362524507 | K67: =+($J$15*$K66)+($J$16*$L66)+($J$17*$M66)+$J$18*$N66 -> 0.006990994005 | L67: =+($K$15*$K66)+($K$16*$L66)+($K$17*$M66)+$K$18*$N66 -> 0.3699017599 | M67: =+($L$15*$K66)+($L$16*$L66)+($L$17*$M66)+$L$18*$N66 -> 0.5791973441 | N67: =+($M$15*$K66)+($M$16*$L66)+($M$17*$M66)+$M$18*$N66 -> 0.043909902 | O67: =+O66/(1+discount_rate_costs) -> 0.8714422277 | P67: =+P66/(1+discount_rate_outcomes) -> 0.9421842303 | V67: =SUM(T67:U67) -> 0 | W67: =+c_GP_not_lonely*$G67*$O67*p_uptake -> 120532.3059 | X67: =+c_GP_always_lonely*$H67*$O67*p_uptake -> 842898.2936 | Y67: =+c_GP_sometimes_lonely*$I67*$O67*p_uptake -> 733234.3235 | Z67: 0 | AA67: =+c_GP_not_lonely*$K67*$O67*(1-p_uptake) -> 0 | AB67: =+c_GP_always_lonely*$L67*$O67*(1-p_uptake) -> 0 | AC67: =+c_GP_sometimes_lonely*$M67*$O67*(1-p_uptake) -> 0 | AD67: 0 | AE67: =SUM(W67:AD67) -> 1696664.923 | AF67: =+c_depression*p_depression_not_lonely*$G67*$O67*p_uptake -> 5257.512595 | AG67: =+c_depression*p_depression_always_lonely*$H67*$O67*p_uptake -> 67405.21002 | AH67: =+c_depression*p_depression_sometimes_lonely*$I67*$O67*p_uptake -> 31983.03279 | AI67: 0 | AJ67: =+c_depression*p_depression_not_lonely*$K67*$O67*(1-p_uptake) -> 0 | AK67: =+c_depression*p_depression_always_lonely*$L67*$O67*(1-p_uptake) -> 0 | AL67: =+c_depression*p_depression_sometimes_lonely*$M67*$O67*(1-p_uptake) -> 0 | AM67: 0 | AN67: =SUM(AF67:AM67) -> 104645.7554 | AO67: =+c_self_harm_not_lonely*$G67*$O67*p_uptake -> 30.70289427 | AP67: =+c_self_harm_always_lonely*$H67*$O67*p_uptake -> 2071.945559 | AQ67: =+c_self_harm_sometimes_lonely*$I67*$O67*p_uptake -> 672.3898352 | AR67: 0 | AS67: =+c_self_harm_not_lonely*$K67*$O67*(1-p_uptake) -> 0 | AT67: =+c_self_harm_always_lonely*$L67*$O67*(1-p_uptake) -> 0 | AU67: =+c_self_harm_sometimes_lonely*$M67*$O67*(1-p_uptake) -> 0 | AV67: 0 | AW67: =SUM(AO67:AV67) -> 2775.038289 | AX67: =+value_volunteering*$G67*$O67*p_uptake -> -1429.540105 | AY67: 0 | AZ67: =+value_volunteering*$I67*$O67*p_uptake -> -8696.323068 | BA67: 0 | BB67: =+value_volunteering*$K67*$O67*(1-p_uptake) -> 0 | BC67: 0 | BD67: =+value_volunteering*$M67*$O67*(1-p_uptake) -> 0 | BE67: 0 | BF67: =SUM(AX67:BE67) -> -10125.86317 | BG67: =+u_not_lonely*$G67*$BQ67*p_uptake*population_reached -> 492.916003 | BH67: 0 | BI67: =+u_moderately_lonely*$I67*$BQ67*p_uptake*population_reached -> 1499.278262 | BJ67: 0 | BK67: =+value_volunteering*$K67*$O67*(1-p_uptake) -> 0 | BL67: 0 | BM67: =+value_volunteering*$M67*$O67*(1-p_uptake) -> 0 | BN67: 0 | BO67: =SUM(BG67:BN67) -> 1992.194265 | BP67: =+S67+V67+AE67+AN67+AW67+BF67 -> 1793959.853 | BQ67: =+BQ66/(1+Volunteering_Model!discount_rate_outcomes) -> 0.9421842303 | BW67: =1+BW66 -> 5 | BX67: =+($J$24*$BX66)+($J$25*$BY66)+($J$26*$BZ66)+$J$27*$CA66 -> 0.006990994005 | BY67: =+($K$24*$BX66)+($K$25*$BY66)+($K$26*$BZ66)+$K$27*$CA66 -> 0.3699017599 | BZ67: =+($L$24*$BX66)+($L$25*$BY66)+($L$26*$BZ66)+$L$27*$CA66 -> 0.5791973441 | CA67: =+($M$24*$BX66)+($M$25*$BY66)+($M$26*$BZ66)+$M$27*$CA66 -> 0.043909902 | CB67: =+CB66/(1+discount_rate_costs) -> 0.8714422277 | CC67: =+CC66/(1+discount_rate_outcomes) -> 0.9421842303 | CD67: =+c_GP_not_lonely*$BX67*$CB67 -> 9663.991912 | CE67: =+c_GP_always_lonely*$BY67*$CB67 -> 920399.8322 | CF67: =+c_GP_sometimes_lonely*$BZ67*$CB67 -> 800652.7319 | CG67: 0 | CH67: =SUM(CD67:CG67) -> 1730716.556 | CI67: =+c_depression*p_depression_not_lonely*$BX67*$CB67 -> 421.5347814 | CJ67: =+c_depression*p_depression_always_lonely*$BY67*$CB67 -> 73602.88242 | CK67: =+c_depression*p_depression_sometimes_lonely*$BZ67*$CB67 -> 34923.76415 | CL67: 0 | CM67: =SUM(CI67:CL67) -> 108948.1814 | CN67: =+c_self_harm_not_lonely*$BX67*$CB67 -> 2.461684606 | CO67: =+c_self_harm_always_lonely*$BY67*$CB67 -> 2262.453679 | CP67: =+c_self_harm_sometimes_lonely*$BZ67*$CB67 -> 734.2137993 | CQ67: 0 | CR67: =SUM(CN67:CQ67) -> 2999.129163 | CS67: =+u_not_lonely*population_reached*$BX67*$CY67 -> 39.52082583 | CT67: =+u_lonely*population_reached*$BY67*$CY67 -> 0 | CU67: =+u_moderately_lonely*population_reached*$BZ67*$CY67 -> 1637.131811 | CV67: 0 | CW67: =SUM(CS67:CV67) -> 1676.652637 | CX67: =+CH67+CM67+CR67 -> 1842663.867 | CY67: =+CY66/(1+Volunteering_Model!discount_rate_outcomes) -> 0.9421842303
A68: u_moderately_lonely | B68: 0.5
A69: c_non_fatal_event
A70: r | B70: 0.035
A71: hr | B71: 0.015
A72: population | B72: =IF(Volunteering_Parameters!$C30>0,Volunteering_Parameters!$C30,Volunteering_Parameters!$B30) -> 100000
A73: engagement_rate | B73: =IF(Volunteering_Parameters!$C22>0,Volunteering_Parameters!$C22,Volunteering_Parameters!$B22) -> 0.06 | CV73: =SUM(CS73:CS73) -> 0
A74: p_initial_always_lonely | B74: 0.39 | CV74: =SUM(CS74:CS74) -> 0
A75: p_initial_sometime_lonely | B75: 0.61
A76: uc_volunteering | B76: -6.7
A77: volunteer_hours_per_year | B77: =3*52 -> 156 | AE77: =SUM(AE63:AE76) -> 7275631.997
A78: volunteer_engagement_rate | B78: 0.003 | E78: TOTALS | G78: =SUM(G64:G73) -> 0.3547883722 | H78: =SUM(H64:H73) -> 1.37785525 | Q78: =SUM(Q63:Q64) -> 55500 | R78: =SUM(R63:R73) -> 0 | S78: =SUM(S63:S73) -> 55500 | T78: =SUM(T63:T76) -> 120000 | U78: =SUM(U63:U76) -> 0 | V78: =SUM(V63:V76) -> 120000 | AE78: =SUM(AE63:AE76) -> 7275631.997 | AF78: =SUM(AF63:AF76) -> 22553.32666 | AG78: =SUM(AG63:AG73) -> 289034.8642 | AH78: =SUM(AH63:AH76) -> 137147.9268 | AN78: =SUM(AN63:AN76) -> 448736.1176 | AO78: =SUM(AO63:AO76) -> 131.7072268 | AP78: 8884.543243 | AQ78: 2883.306048 | AR78: 0 | AS78: 0 | AV78: 0 | AW78: 11899.55652 | AZ78: -48767.40242 | BA78: 0 | BB78: 0 | BE78: 0 | BF78: -54899.74816 | BG78: 2051.675976 | BH78: 0 | BN78: =SUM(BN63:BN76) -> 0 | BO78: =SUM(BO63:BO76) -> 10119.91366 | BP78: =SUM(BP63:BP76) -> 7856867.923 | BV78: TOTALS | BX78: =SUM(BX64:BX73) -> 0.02841954368 | BY78: =SUM(BY64:BY73) -> 1.504852044 | CH78: =SUM(CH63:CH67) -> 7422892.631 | CM78: =SUM(CM63:CM76) -> 467269.7471 | CN78: =SUM(CN63:CN76) -> 10.54957275 | CO78: =SUM(CO63:CO76) -> 9703.499479 | CP78: =SUM(CP63:CP76) -> 3148.997055 | CQ78: =SUM(CQ63:CQ76) -> 0 | CR78: =SUM(CR63:CR72) -> 12863.04611 | CV78: =SUM(CV63:CV76) -> 0 | CW78: =SUM(CW63:CW72) -> 8807.39822 | CX78: =SUM(CX63:CX72) -> 7903025.424
A79: value_volunteering | B79: =+volunteer_hours_per_year*uc_volunteering*volunteer_engagement_rate*population_reached -> -18813.6
A80: uc_depression | B80: =IF(Volunteering_Parameters!$C17>0,Volunteering_Parameters!$C17,Volunteering_Parameters!$B17) -> 961 | S80: =SUM(Q78:R78) -> 55500
A81: p_ambulance_visit | B81: 0.24
A82: discount rate costs | B82: =IF(Volunteering_Parameters!$C28>0,Volunteering_Parameters!$C28,Volunteering_Parameters!$B28) -> 0.035
A83: discount rate outcomes | B83: =IF(Volunteering_Parameters!$C29>0,Volunteering_Parameters!$C29,Volunteering_Parameters!$B29) -> 0.015

Sheet Collaborative Care Contents
A1: Investing in Collaborative Care for people with physical health problems
A3: Click on links below for further information about the intervention, adjust the values of some model parameters or see results
A5: About the collaborative care programme
A7: Check and/or adjust model parameters
A9: Summary of Return on Investment
A11: Summary of Return on Investment: Payoffs to Different Sectors
A13: Return to Intervention Choice Menu

Sheet CC_Background
A1: Investing in Collaborative Care for people with long-term physical health problems
C2: Return to Collaborative Care Contents Page
A3: Target: | B3: Individuals living with diabetes and/or coronary heart disease
C4: Return to Intervention Choice Menu
A5: Intervention: | B5: Collaborative care involving cognitive behavioural therapy delivered within primary care
A7: Outcome evidence | B7: Randomised controlled trial in England
A9: Economic Pay Offs | B9: 2 year economic pay offs to health and social care services, as well as impacts on productivity
A11: Findings | B11: Positive return on investment when productivity costs included. Favourable cost per QALY gained from health and social care system perspective

Sheet CC_Parameters
A1: Investing in Collaborative Care for people with physical health problems: Checking and/or Adjusting Model Parameters
A4: You can use your own values rather than the model's predefined assumptions by inputing these into one or more of the blue coloured cells | B4: Area selected: | C4: =+A31 -> --- Model default values
C6: Return to Collaborative Care Contents Page
C7: Return to Intervention Choice Menu
A9: Intervention Costs
B11: Default | C11: Input your own value for costs if desired
A12: Cost of collaborative care per patient | B12: 168
A14: Other Costs
B16: Default | C16: Input your own value for costs if desired
A17: Annual health service cost per patient with depression | B17: 5190
A18: Annual health cost per patient without depression | B18: 4548
A20: Other parameters
B22: Default | C22: Input your own value if desired
A23: Uptake rate of collaborative care | B23: 0.5
A24: Likelihood of being depressed at 4 months after Collaborative Care | B24: 0.57
A25: Likelihood of being depressed at 4 months after Usual Care | B25: 0.72
A26: Discount Rate (Costs) | B26: 0.035
A27: Discount Rate (Outcomes) | B27: 0.015
A28: Area adult population | B28: 100000 | C28: =+B31 -> 0
A30: Population in selected area
A31: =+'Intervention Choice'!C5 -> --- Model default values | B31: =VLOOKUP(+'Intervention Choice'!C5,All_Population_18plus!D6:BZ382,75) -> 0 | C31: Population aged 18 and over
A33: Return to Collaborative Care Contents Page
A34: Return to Intervention Choice Menu

Sheet Collaborative Care_ROI
A1: ROI: Collaborative Care for people with long-term physical health problems
A4: Area Selected: | C4: Return to Collaborative Care Contents Page
A5: =+'Intervention Choice'!C5 -> --- Model default values | C5: Return to Intervention Choice Menu
A8: Total Net Costs / Payoffs (Default values 2015 prices)
B10: Year 1 | C10: Year 2 | D10: Total Cost / Saving
A11: Total cost intervention | B11: =+B12 -> 22075.2 | C11: =+C12 -> 0 | D11: =SUM(B11:C11) -> 22075.2
A12: Collaborative Care | B12: =+B26-B37 -> 22075.2 | C12: =+C26-C37 -> 0 | D12: =SUM(B12:C12) -> 22075.2
A14: Health and Social Care Services | B14: =+B28-B40 -> -4705.533864 | C14: =+C28-C40 -> -942.2103652 | D14: =SUM(B14:C14) -> -5647.744229
A15: Productivity Impacts | B15: =+B29-B41 -> -23194.03084 | C15: =+C29-C41 -> -4644.245882 | D15: =SUM(B15:C15) -> -27838.27673
A17: Total cost consequences (saving if negative value) | B17: =SUM(B14:B16) -> -27899.56471 | C17: =SUM(C14:C16) -> -5586.456248 | D17: =SUM(B17:C17) -> -33486.02096
A18: Total cost | B18: =SUM(B12:B15) -> -5824.364708 | C18: =SUM(C12:C15) -> -5586.456248 | D18: =SUM(B18:C18) -> -11410.82096
A19: Cumulative Return per Pound Invested | B19: =+(B17/B11)*-1 -> 1.26384199 | C19: =+((C17+B17)/$B$11)*-1 -> 1.516906798 | D19: =+(D17/$B$11)*-1 -> 1.516906798
A20: QALYs gained | B20: =+B32-B44 -> 0.835562088 | C20: =+C32-C44 -> 0.1706050995 | D20: =SUM(B20:C20) -> 1.006167188
A23: Costs of Collaborative Care Cohort
B24: Year 1 | C24: Year 2 | D24: Total
A25: Total cost intervention | B25: =+B26 -> 22075.2 | C25: 0 | D25: =SUM(B25:C25) -> 22075.2
A26: Collaborative Care | B26: =+CC_model!Y64 -> 22075.2 | C26: 0 | D26: =SUM(B26:C26) -> 22075.2
A28: Health and Social Care Services | B28: =+CC_model!AH64 -> 865160.5866 | C28: =+CC_model!AH65 -> 831848.3142 | D28: =SUM(B28:C28) -> 1697008.901
A29: Productivity Impacts | B29: =+CC_model!AQ64 -> 336908.6138 | C29: =+CC_model!AQ65 -> 305524.9562 | D29: =SUM(B29:C29) -> 642433.5699
A31: Total cost | B31: =SUM(B26:B30) -> 1224144.4 | C31: =SUM(C26:C30) -> 1137373.27 | D31: =SUM(B31:C31) -> 2361517.671
A32: QALYs gained | B32: =+CC_model!AZ64 -> 90.88050892 | C32: =+CC_model!AZ65 -> 90.27179689 | D32: =SUM(B32:C32) -> 181.1523058
A35: Costs of Usual Care Cohort
B36: Year 1 | C36: Year 2 | D36: Total
A37: Total cost intervention | B37: 0 | C37: 0 | D37: =SUM(B37:C37) -> 0
A38: Collaborative Care | B38: 0 | C38: 0 | D38: =SUM(B38:C38) -> 0
A40: Health and Social Care Services | B40: =+CC_model!BR64 -> 869866.1205 | C40: =+CC_model!BR65 -> 832790.5245 | D40: =SUM(B40:C40) -> 1702656.645
A41: Productivity Impacts | B41: =+CC_model!BW64 -> 360102.6446 | C41: =+CC_model!BW65 -> 310169.2021 | D41: =SUM(B41:C41) -> 670271.8467
A43: Total cost usual care | B43: =SUM(B37:B42) -> 1229968.765 | C43: =SUM(C37:C42) -> 1142959.727 | D43: =SUM(B43:C43) -> 2372928.492
A44: QALYs gained | B44: =+CC_model!CB64 -> 90.04494684 | C44: =+CC_model!CB65 -> 90.10119179 | D44: =SUM(B44:C44) -> 180.1461386
A46: Return to Collaborative Care Contents Page
A48: Return to Intervention Choice Menu

Sheet CC_ROI_by sector
A1: ROI: Collaborative Care for people with long-term physical health problems
A4: Area Selected: | C4: Return to Collaborative Care Contents Page
A5: =+'Intervention Choice'!C5 -> --- Model default values | C5: Return to Intervention Choice Menu
A8: Total Net Costs / Payoffs to Different Sectors (Default values 2015 prices)
B10: Year 1 | C10: Year 2 | D10: Total Cost / Saving
A11: Programme cost: NHS | B11: =+B31-B42 -> 22075.2 | C11: =+C31-C42 -> 0 | D11: =SUM(B11:C11) -> 22075.2
A12: Payoffs:
A13: NHS | B13: =+B33-B44 -> -4705.533864 | C13: =+C33-C44 -> -942.2103652 | D13: =SUM(B13:C13) -> -5647.744229
A14: Productivity | B14: =+B34-B45 -> -23194.03084 | C14: =+C34-C45 -> -4644.245882 | D14: =SUM(B14:C14) -> -27838.27673
A16: Total cost consequences (saving if negative value) | B16: =SUM(B13:B15) -> -27899.56471 | C16: =SUM(C13:C15) -> -5586.456248 | D16: =SUM(B16:C16) -> -33486.02096
A17: Total costs (saving if negative value) | B17: =+B11+B16 -> -5824.364708 | C17: =+C11+C16 -> -5586.456248 | D17: =SUM(B17:C17) -> -11410.82096
A18: Cumulative Return per Pound Invested | B18: =+(B16/B11)*-1 -> 1.26384199 | C18: =+((C16+B16)/$B$11)*-1 -> 1.516906798 | D18: =+(D16/D11)*-1 -> 1.516906798
A19: QALYS gained | B19: =+B37-B53 -> 0.835562088 | C19: =+C37-C53 -> 0.1706050995 | D19: =SUM(B19:C19) -> 1.006167188
B22: Year 1 | C22: Year 2 | D22: Total Cost / Saving
A23: Cumulative ROI by sector: | D23: `
A24: NHS | B24: =+(B13/$B$11)*-1 -> 0.2131592857 | C24: =+((C13/$B$11)*-1) -> 0.04268184955 | D24: =SUM(B24:C24) -> 0.2558411353
A25: Productivity | B25: =+(B14/$B$11)*-1 -> 1.050682705 | C25: =+((C14/$B$11)*-1) -> 0.2103829584 | D25: =SUM(B25:C25) -> 1.261065663
A27: Total | B27: =SUM(B24:B26) -> 1.26384199 | C27: =SUM(C24:C26) -> 0.2530648079 | D27: =SUM(D24:D26) -> 1.516906798
A29: Costs of Collaborative Care Cohort
B30: Year 1 | C30: Year 2 | D30: Total
A31: Programme cost: NHS | B31: =+'Collaborative Care_ROI'!B26 -> 22075.2 | C31: 0 | D31: =SUM(B31:C31) -> 22075.2
A32: Payoffs: | D32: =SUM(B32:C32) -> 0
A33: NHS | B33: =+'Collaborative Care_ROI'!B28 -> 865160.5866 | C33: =+'Collaborative Care_ROI'!C28 -> 831848.3142 | D33: =SUM(B33:C33) -> 1697008.901
A34: Productivity | B34: =+'Collaborative Care_ROI'!B29 -> 336908.6138 | C34: =+'Collaborative Care_ROI'!C29 -> 305524.9562 | D34: =SUM(B34:C34) -> 642433.5699
A36: Total cost | B36: =SUM(B31:B35) -> 1224144.4 | C36: =SUM(C31:C35) -> 1137373.27 | D36: =SUM(B36:C36) -> 2361517.671
A37: QALYS gained | B37: =+'Collaborative Care_ROI'!B32 -> 90.88050892 | C37: =+'Collaborative Care_ROI'!C32 -> 90.27179689 | D37: =SUM(B37:C37) -> 181.1523058
A40: Costs of Usual Care Cohort
B41: Year 1 | C41: Year 2 | D41: Total
A42: Programme cost: NHS | B42: 0 | C42: 0 | D42: =SUM(B42:C42) -> 0
A43: Payoffs: | D43: =SUM(B43:C43) -> 0
A44: NHS | B44: =+'Collaborative Care_ROI'!B40 -> 869866.1205 | C44: =+'Collaborative Care_ROI'!C40 -> 832790.5245 | D44: =SUM(B44:C44) -> 1702656.645
A45: Productivity | B45: =+'Collaborative Care_ROI'!B41 -> 360102.6446 | C45: =+'Collaborative Care_ROI'!C41 -> 310169.2021 | D45: =SUM(B45:C45) -> 670271.8467
A52: Total cost usual care | B52: =SUM(B42:B51) -> 1229968.765 | C52: =SUM(C42:C51) -> 1142959.727 | D52: =SUM(B52:C52) -> 2372928.492
A53: QALYS gained | B53: =+'Collaborative Care_ROI'!B44 -> 90.04494684 | C53: =+'Collaborative Care_ROI'!C44 -> 90.10119179 | D53: =SUM(B53:C53) -> 180.1461386

Sheet CC_model (hidden)
A1: Collaborative Care Model | I1: Int Markov Uptake of CC Service
A3: Name | B3: Root Definition | F3: Makes use collaborative care | G3: =+p_uptake_CC -> 0.5 | J3: Depressed | K3: Depressed 4 not 12 | L3: Not Depressed | M3: Depressed 12 not 4
A4: year | B4: 2 | F4: Does not make use of collaborative care | G4: =1-p_uptake_CC -> 0.5 | I4: Initial Values | J4: =+p_4mths_depression_CC*p_remains_depressed -> 0.4047 | K4: =+p_4mths_depression_CC*(1-p_remains_depressed) -> 0.1653 | L4: =+(1-p_4mths_depression_CC)*(1-p_becomes_depressed) -> 0.2709 | M4: =+(1-p_4mths_depression_CC)*p_becomes_depressed -> 0.1591 | N4: =SUM(J4:M4) -> 1 | X4: =+J4+L5 -> 0.6947
A5: p_remains_depressed | B5: 0.71 | I5: Depressed | J5: =+p_remains_depressed -> 0.71 | K5: 0 | L5: =1-p_remains_depressed -> 0.29 | M5: 0 | X5: =SUM(J5:N5) -> 1
A6: p_becomes_depressed | B6: 0.37 | I6: Depressed 4 not 12 | J6: =+p_becomes_depressed -> 0.37 | K6: 0 | L6: =1-p_becomes_depressed -> 0.63 | M6: 0 | X6: =SUM(J6:N6) -> 1
A7: p_4mths_depression_CC | B7: =IF(CC_Parameters!$C24>0,CC_Parameters!$C24,CC_Parameters!$B24) -> 0.57 | D7: =+target_population*prev_diabetes_or_CHD*incidence_depression*IR_depression -> 175.2 | G7: =+J4*G3*cost_CC -> 5955.88896 | I7: Not Depressed | J7: =+p_becomes_depressed -> 0.37 | K7: 0 | L7: =1-p_becomes_depressed -> 0.63 | M7: 0 | X7: =SUM(J7:N7) -> 1
